Workbook

Sheet Changes to AER Jun 2008 version
A2: Distribution RFM - List of specific changes from the AER's June 2008 version of the Distribution RFM
A5: Item | B5: Sheet \ Location | C5: Comment
A7: 1 | B7: All sheets | C7: Expanded to accommodate additional asset classes
A9: 2 | B9: 2011-12 shared asset adjustment | C9: New sheet
A11: 3 | B11: Asset lives roll forward | C11: New sheet - AER methodology
A13: 4 | B13: Adjusted Rem Lives calculation | C13: New sheet - TasNetworks methodology
A15: 5 | B15: Output summary | C15: New sheet - AER methodology
A17: 6 | B17: Output summary adj Rem Lives | C17: New sheet - TasNetworks methodology
A19: 7 | B19: Adjustment for provisions | C19: New sheet
A21: 8 | B21: Input'!$X$6:$X$7 | C21: "Start of Regulatory period" is an additional input. This enables the labels in cells Input'!$J$6:$K$6 and Input'!$S$6:$T$6 to include the relevant date of the data required.
A23: 9 | B23: Input!T6 | C23: The note in this cell has been changed to better describe the data required for the Distribution RFM Tax Asset roll forward.
A25: 10 | B25: Input'!$F$261:$G$262 | C25: This input item was previously located in sheet "Adjustment for previous period" cells $B$6:$F$6, which now references the cell G262 in the "Input" sheet.
A27: 11 | B27: 2011-12 shared asset adjustment | C27: New sheet calculates a revised 2011-12 shared asset adjustment, ie calculates difference between the forecast and actual adjustments in 2011-12.
A29: 12 | B29: Input sheet | C29: Cells shaded in yellow contain inputs/calculations to derive the required RFM input values in relation to the June 2012 shared asset adjustment and tax remaining lives.

Sheet Intro
F1: Electricity Distribution Network Service Providers
K2: Roll Forward Model
K3: Version: 01
K4: Date: 26 June 2008
B7: Introduction
C13: This Roll Forward Model (RFM) is used by the Australian Energy Regulator to determine the value of the opening
C14: regulatory asset base for distribution network service providers.
D19: AMENDMENT RECORD
D21: version no. | E21: date of issue | G21: details of amendments
D22: version 01 | E22: 2008-06-26

Sheet 2011-12 shared asset adjustment
A3: Midnight adjustment - shared assets reduction to RAB 30 June 2012
E4: Forecast in RFM ($m nominal in "Input" sheet) | L4: Actual ($m nominal)
B5: Closing RAB (pre adjustment) | C5: % allocation to non-SCS (from RFM, Adj/pre-adj Clos RAB) | D5: Total Adjustment | E5: 2011-12 Forecast Capex | F5: 2011-12 Forecast Disposals | G5: 2011-12 Forecast Cust Cont | H5: 2011-12 Forecast Net Capex | I5: % allocation to non-SCS | J5: 2011-12 Adjustment included in forecast total ($m nominal) | L5: 2011-12 Actual capex | M5: 2011-12 Cust Cont | N5: 2011-12 Disposals | O5: 2011-12 Actual Net Capex | P5: Shared asset % allocation | Q5: 2011-12 Actual Shared asset adjustment
A6: Overhead Subtransmission Lines (Urban) | B6: 10.82010419 | E6: 1.603576953 | F6: 0 | G6: 0.1291440913 | H6: =E6-F6-G6 -> 1.474432862 | L6: 0.8736416493 | M6: 0.007982707588 | N6: 0 | O6: =L6-M6-N6 -> 0.8656589417
A7: Underground Subtransmission Lines (Urban) | B7: 10.5361568 | E7: 0.7022360954 | F7: 0 | G7: 0.0367566181 | H7: =E7-F7-G7 -> 0.6654794773 | L7: 0.2876312057 | M7: 0.0006502221214 | N7: 0 | O7: =L7-M7-N7 -> 0.2869809836
A8: Urban Zone Substations | B8: 40.78533372 | E8: 9.167815047 | F8: 0 | G8: 0.8074411944 | H8: 8.360373853 | L8: 4.515570541 | M8: 0.08654932472 | N8: 0 | O8: 4.429021216
A9: Rural Zone Substations | B9: 2.344081306 | E9: 1.217327411 | F9: 0 | G9: 0.09885032246 | H9: 1.118477089 | L9: -0.01782812422 | M9: 0.0002540781766 | N9: 0 | O9: -0.0180822024
A10: SCADA | B10: 2.89319389 | E10: 0.9896641403 | F10: 0 | G10: 0.08716314535 | H10: 0.9025009949 | L10: 0.4387035465 | M10: 0.00814429112 | N10: 0 | O10: 0.4305592554
A11: Distribution Switching Stations (Ground) | B11: 15.10822988 | E11: 3.626665672 | F11: 0 | G11: 0.3026851652 | H11: 3.323980507 | L11: 2.26644305 | M11: 0.1861257328 | N11: 0 | O11: 2.080317317
A12: Overhead High Voltage Lines Urban | B12: 81.78463186 | E12: 8.444253072 | F12: 0 | G12: 0.6851671831 | H12: 7.759085889 | L12: 6.130417868 | M12: 0.3944297243 | N12: 0 | O12: 5.735988144
A13: Overhead High Voltage Lines Rural | B13: 318.6387301 | C13: -0.001830307567 | D13: =B13*C13 -> -0.583206879 | E13: 28.49919702 | F13: 0 | G13: 2.368481458 | H13: 26.13071557 | I13: =C13 -> -0.001830307567 | J13: =H13*I13 -> -0.04782724644 | L13: 20.49060908 | M13: 1.597898069 | N13: 0 | O13: 18.89271101 | P13: =C13 -> -0.001830307567 | Q13: =O13*P13 -> -0.03457947193
A14: Voltage Regulators on Distribution Feeders | B14: 11.14830348 | E14: 0.6674179484 | F14: 0 | G14: 0.05878180817 | H14: 0.6086361402 | L14: 0.1064888857 | M14: 0.002420826094 | N14: 0 | O14: 0.1040680596
A15: Underground High Voltage Lines | B15: 226.521703 | E15: 19.2238487 | F15: 0 | G15: 1.637958105 | H15: 17.58589059 | L15: 11.70814302 | M15: 0.848581342 | N15: 0 | O15: 10.85956168
A16: Underground High Voltage Lines SWER | B16: 0.3676607992 | E16: 0 | F16: 0 | G16: 0 | H16: 0 | L16: 0 | M16: 0 | N16: 0 | O16: 0
A17: Distribution Substations HV (Pole) | B17: 1.197526335 | E17: 0.1194440744 | F17: 0 | G17: 0.01051985294 | H17: 0.1089242215 | L17: 0.06406046319 | M17: 0.005189674833 | N17: 0 | O17: 0.05887078836
A18: Distribution Substations HV (Ground) | B18: 17.84467856 | E18: 0.7446247477 | F18: 0 | G18: 0.06558167814 | H18: 0.6790430695 | L18: 0.6477306472 | M18: 0.0545866292 | N18: 0 | O18: 0.593144018
A19: Distribution Substations LV (Pole) | B19: 141.8957763 | E19: 11.15795251 | F19: 0 | G19: 0.9827194869 | H19: 10.17523302 | L19: 7.289224002 | M19: 0.6920675953 | N19: 0 | O19: 6.597156407
A20: Distribution Substations LV (Ground) | B20: 59.81104031 | E20: 6.323499695 | F20: 0 | G20: 0.501779729 | H20: 5.821719966 | L20: 4.274904104 | M20: 0.4164749084 | N20: 0 | O20: 3.858429195
A21: Overhead Low Voltage Lines Underbuilt Urban | B21: 30.07145548 | E21: 2.708180989 | F21: 0 | G21: 0.2385188708 | H21: 2.469662118 | L21: 2.457939729 | M21: 0.1876876369 | N21: 0 | O21: 2.270252092
A22: Overhead Low Voltage Lines Underbuilt Rural | B22: 40.73469511 | E22: 3.298547633 | F22: 0 | G22: 0.2905145039 | H22: 3.008033129 | L22: 1.864119406 | M22: 0.1393281063 | N22: 0 | O22: 1.7247913
A23: Overhead Low Voltage Lines Urban | B23: 57.68305261 | E23: 3.416665622 | F23: 0 | G23: 0.300917564 | H23: 3.115748058 | L23: 3.611412252 | M23: 0.2789711461 | N23: 0 | O23: 3.332441105
A24: Overhead Low Voltage Lines Rural | B24: 61.42458215 | E24: 6.935741331 | F24: 0 | G24: 0.6108547386 | H24: 6.324886592 | L24: 4.805907939 | M24: 0.3677739723 | N24: 0 | O24: 4.438133967
A25: Underground Low Voltage Lines | B25: 93.66113053 | E25: 6.756711345 | F25: 0 | G25: 0.512357793 | H25: 6.244353552 | L25: 5.024722021 | M25: 0.4000307435 | N25: 0 | O25: 4.624691277
A26: Underground Low Voltage Common Trench | B26: 42.34480935 | E26: 4.840744361 | F26: 0 | G26: 0.343611951 | H26: 4.49713241 | L26: 3.44000129 | M26: 0.2738064087 | N26: 0 | O26: 3.166194881
A27: HVST Service Connections | B27: 0.002983883948 | E27: 0 | F27: 0 | G27: 0 | H27: 0 | L27: 0 | M27: 0 | N27: 0 | O27: 0
A28: HV Service Connections | B28: 2.239078192 | E28: 0.1058273372 | F28: 0 | G28: 0 | H28: 0.1058273372 | L28: 0.06961353249 | M28: 0 | N28: 0 | O28: 0.06961353249
A29: HV Metering CA Service Connections | B29: 0.8702032317 | E29: 0.03288147984 | F29: 0 | G29: 0 | H29: 0.03288147984 | L29: 0.527422759 | M29: 0 | N29: 0 | O29: 0.527422759
A30: HV/LV Service Connections | B30: 3.803758309 | E30: 0.1914130964 | F30: 0 | G30: 0 | H30: 0.1914130964 | L30: 0.1259120957 | M30: 0 | N30: 0 | O30: 0.1259120957
A31: Business LV Service Connections | B31: 8.408739899 | E31: 0.5064805137 | F31: 0 | G31: 0 | H31: 0.5064805137 | L31: 0.3298901233 | M31: 0 | N31: 0 | O31: 0.3298901233
A32: Business LV Metering CA Service Connections | B32: 7.987228656 | E32: 0.9434043461 | F32: 0 | G32: 0 | H32: 0.9434043461 | L32: 0.572247191 | M32: 0 | N32: 0 | O32: 0.572247191
A33: Domestic LV Service Connections | B33: 53.04064291 | E33: 4.036409305 | F33: 0 | G33: 0 | H33: 4.036409305 | L33: 2.64533914 | M33: 0 | N33: 0 | O33: 2.64533914
A34: Domestic LV Metering CA Service Connections | B34: 11.77414759 | E34: 0.6364948439 | F34: 0 | G34: 0 | H34: 0.6364948439 | L34: 1.011918716 | M34: 0 | N34: 0 | O34: 1.011918716
A35: Wholesale Metering | B35: 0 | E35: 0 | F35: 0 | G35: 0 | H35: 0 | L35: 0 | M35: 0 | N35: 0 | O35: 0
A36: HV Metering | B36: 0 | E36: 0 | F36: 0 | G36: 0 | H36: 0 | L36: 0 | M36: 0 | N36: 0 | O36: 0
A37: HV/LV Metering | B37: 0 | E37: 0 | F37: 0 | G37: 0 | H37: 0 | L37: 0 | M37: 0 | N37: 0 | O37: 0
A38: Business LV Metering | B38: 0 | E38: 0 | F38: 0 | G38: 0 | H38: 0 | L38: 0 | M38: 0 | N38: 0 | O38: 0
A39: Domestic LV Metering | B39: 0 | E39: 0 | F39: 0 | G39: 0 | H39: 0 | L39: 0 | M39: 0 | N39: 0 | O39: 0
A40: Off Peak Metering | B40: 0 | E40: 0 | F40: 0 | G40: 0 | H40: 0 | L40: 0 | M40: 0 | N40: 0 | O40: 0
A41: Emergency Network Spares | B41: 2.300353591 | E41: 0 | F41: 0 | G41: 0 | H41: 0 | L41: 0 | M41: 0 | N41: 0 | O41: 0
A42: Motor Vehicles | B42: 22.2687014 | C42: -0.1168234846 | D42: =B42*C42 -> -2.601507295 | E42: 8.629271758 | F42: 0.829 | G42: 0 | H42: 7.800271758 | I42: =C42 -> -0.1168234846 | J42: =H42*I42 -> -0.9112549275 | L42: 0.8206356694 | M42: 0 | N42: 0.736213 | O42: 0.08442266938 | P42: -0.1168234846 | Q42: =O42*P42 -> -0.009862550414
A43: Minor Assets | B43: 34.25095355 | C43: -0.1168479931 | D43: -4.002155185 | E43: 11.89724149 | F43: 0 | G43: 0 | H43: 11.89724149 | I43: =C43 -> -0.1168479931 | J43: =H43*I43 -> -1.390168791 | L43: 5.987975444 | M43: 0 | N43: 0.367543 | O43: 5.620432444 | P43: -0.1168479931 | Q43: =O43*P43 -> -0.6567362516
A44: Non-System Property | B44: 21.18979505 | C44: -0.117287245 | D44: -2.485292684 | E44: 1.712217227 | F44: 3.76 | G44: 0 | H44: -2.047782773 | I44: -0.117287245 | J44: =H44*I44 -> 0.2401787999 | L44: 10.35539403 | M44: 0 | N44: 0.953231 | O44: 9.402163028 | P44: -0.117287245 | Q44: -1.102753799
A45: Spare Parts | B45: 12.31129639 | C45: -0.117517784 | D45: -1.446796269 | E45: 0 | F45: 0 | G45: 0 | H45: 0 | I45: -0.117517784 | J45: =H45*I45 -> 0 | L45: 0.9296158248 | M45: 0 | N45: 0 | O45: 0.9296158248 | P45: -0.117517784 | Q45: -0.1092463917
A46: NEM Assets | B46: 9.363092188 | C46: -0.1170147706 | D46: -1.095620084 | E46: 0 | F46: 0 | H46: 0 | I46: -0.1170147706 | J46: =H46*I46 -> 0 | L46: 2.592971764 | M46: 0 | N46: 0 | O46: 2.592971764 | P46: -0.1170147706 | Q46: -0.303415996
A47: 0 | M47: 0 | N47: 0 | O47: 0
A48: Land | L48: 0 | M48: 0 | N48: 0 | O48: 0
A49: Easements | L49: 0 | M49: 0 | N49: 0 | O49: 0
A50: Equity Raising Costs | L50: 0 | M50: 0 | N50: 0 | O50: 0
B51: =SUM(B6:B50) -> 1457.427851 | D51: =SUM(D6:D50) -> -12.2145784 | E51: =SUM(E6:E50) -> 149.1357558 | F51: =SUM(F6:F50) -> 4.589 | G51: 10.06980526 | H51: 134.4769505 | J51: =SUM(J6:J50) -> -2.109072166 | L51: =SUM(L6:L50) -> 106.2487789 | M51: 5.94895314 | N51: 2.056987 | O51: 98.24283872 | Q51: =SUM(Q6:Q50) -> -2.216594461
C52: Check - total from RFM | D52: -12.2145784
D53: =IF(D51=D52,"ok","error") -> ok

Sheet Input
F2: Input Variables | G2: Input cells are in blue | K2: AER amendments
F5: ="Opening Regulated Asset Base for "&CONCATENATE(LEFT(V7, 4)-1 &"-" &IF(V7>"2009-10",,"0") &RIGHT(V7,2)-1) &" ($m Nominal)" -> Opening Regulated Asset Base for 2011-12 ($m Nominal)
G6: Asset Class Name | J6: ="Opening Asset Value "&TEXT(EOMONTH(X7,-13)+1,"dd/mm/yyyy") -> Opening Asset Value 01/07/2011 | K6: ="Remaining Life "&TEXT(X7,"dd/mm/yyyy") -> Remaining Life 01/07/2012 | L6: Standard Life | M6: Forecast Net Capex | N6: Forecast Regulatory Depreciation | O6: Prudent Additional Capex Allowance | P6: Foregone Return on Additional Capex | Q6: Forecast Assets Under Construction | R6: Actual Assets Under Construction | S6: ="Opening Tax Value "&TEXT(EOMONTH(X7,-13)+1,"dd/mm/yyyy") -> Opening Tax Value 01/07/2011 | T6: ="Tax Remaining Life "&TEXT(EOMONTH(X7,-13)+1,"dd/mm/yyyy") -> Tax Remaining Life 01/07/2011 | U6: Tax Standard Life | V6: Base Financial Year | W6: Length of Regulatory Control Period (Year) | X6: Start of Regulatory period | Z6: 2011-12 Forecast Net Capex | AA6: 2012 Shared Asset Adjustment ($June 2012) from RFM | AB6: 2011-12 Forecast Net Capex after Shared Asset Adjustment | AD6: Tax Remaining Life as at 1 July 2012 (as per 2012-17 PTRM) | AE6: Tax Remaining Life as at 1 July 2011
F7: Asset Class 1 | G7: Overhead Subtransmission Lines (Urban) | J7: 10.76227929 | K7: 29.14202736 | L7: 50 | M7: =AB7 -> 1.54038274 | N7: -0.004313524534 | O7: -0.9733631735 | P7: -0.5135081898 | S7: 2.794293813 | T7: =AE7 -> 39.6974354 | U7: 44.54902923 | V7: 2012-13 | W7: 5 | X7: 2012-07-01 | Z7: 1.54038274 | AB7: =Z7+AA7 -> 1.54038274 | AD7: 38.6974354 | AE7: =IF(AD7=0,0,IF(AD7="n/a","n/a",AD7+1)) -> 39.6974354
F8: Asset Class 2 | G8: Underground Subtransmission Lines (Urban) | J8: 10.4543881 | K8: 37.8979447 | L8: 60 | M8: =AB8 -> 0.6952456953 | N8: -0.06601881637 | O8: -0.4448240847 | P8: -0.2346717204 | S8: 1.626300088 | T8: 49.25181795 | U8: 50 | Z8: 0.6952456953 | AB8: =Z8+AA8 -> 0.6952456953 | AD8: 48.25181795 | AE8: =IF(AD8=0,0,IF(AD8="n/a","n/a",AD8+1)) -> 49.25181795
F9: Asset Class 3 | G9: Urban Zone Substations | J9: 36.56472805 | K9: 30.84256571 | L9: 40 | M9: =AB9 -> 8.734324844 | N9: -0.06925399757 | O9: -3.000190476 | P9: -1.582782689 | S9: 23.39829188 | T9: 29.5990567 | U9: 32.77302044 | Z9: 8.734324844 | AB9: 8.734324844 | AD9: 28.5990567 | AE9: 29.5990567
F10: Asset Class 4 | G10: Rural Zone Substations | J10: 1.222341549 | K10: 29.44286888 | L10: 40 | M10: 1.168505427 | N10: 0.01011550243 | O10: -0.0239926097 | P10: -0.01265755877 | S10: 0.5400759123 | T10: 31.71718077 | U10: 32.77 | Z10: 1.168505427 | AB10: 1.168505427 | AD10: 30.71718077 | AE10: 31.71718077
F11: Asset Class 5 | G11: SCADA | J11: 5.42024432 | K11: 2.56308248 | L11: 10 | M11: 0.9428689435 | N11: 0.8325397398 | O11: -1.726530131 | P11: -0.9108495025 | S11: 3.614833107 | T11: 30.16426879 | U11: 32.77302044 | Z11: 0.9428689435 | AB11: 0.9428689435 | AD11: 29.16426879 | AE11: 30.16426879
F12: Asset Class 6 | G12: Distribution Switching Stations (Ground) | J12: 12.83173872 | K12: 32.28428726 | L12: 40 | M12: 3.472658763 | N12: -0.03069667671 | O12: -0.8031525389 | P12: -0.4237117426 | S12: 22.62310594 | T12: 29.66940008 | U12: 36.27603974 | Z12: 3.472658763 | AB12: 3.472658763 | AD12: 28.66940008 | AE12: 29.66940008
F13: Asset Class 7 | G13: Overhead High Voltage Lines Urban | J13: 76.93748283 | K13: 23.86469153 | L13: 35 | M13: 8.106141884 | N13: 0.7073048763 | O13: -1.670433073 | P13: -0.8812548971 | S13: 83.64071842 | T13: 30.13330349 | U13: 34.89077975 | Z13: 8.106141884 | AB13: 8.106141884 | AD13: 29.13330349 | AE13: 30.13330349
F14: Asset Class 8 | G14: Overhead High Voltage Lines Rural | J14: 297.2602826 | K14: 20.72032196 | L14: 35 | M14: 26.71630893 | N14: 4.893336459 | O14: -0.6727928189 | P14: -0.3549390731 | S14: 228.3635846 | T14: 25.67101529 | U14: 33.39579155 | Z14: 27.29951581 | AA14: ='2011-12 shared asset adjustment'!D13 -> -0.583206879 | AB14: 26.71630893 | AD14: 24.67101529 | AE14: 25.67101529
F15: Asset Class 9 | G15: Voltage Regulators on Distribution Feeders | J15: 10.62092091 | K15: 23.00909163 | L15: 40 | M15: 0.6358598137 | N15: 0.1248038631 | O15: 0.01068803096 | P15: 0.005638585456 | S15: 1.680956729 | T15: 44.60830553 | U15: 45.45454545 | Z15: 0.6358598137 | AB15: 0.6358598137 | AD15: 43.60830553 | AE15: 44.60830553
F16: Asset Class 10 | G16: Underground High Voltage Lines | J16: 205.4310384 | K16: 41.91791827 | L16: 60 | M16: 18.37248953 | N16: -1.433120363 | O16: 0.8412462387 | P16: 0.4438084828 | S16: 115.8846913 | T16: 19.88169093 | U16: 31.36816174 | Z16: 18.37248953 | AB16: 18.37248953 | AD16: 18.88169093 | AE16: 19.88169093
F17: Asset Class 11 | G17: Underground High Voltage Lines SWER | J17: 0.363882645 | K17: 47.53347634 | L17: 60 | M17: 0 | N17: -0.00377815428 | O17: 0 | P17: 0 | S17: 0 | T17: 0 | U17: 31.37 | Z17: 0 | AB17: 0 | AD17: 0 | AE17: 0
F18: Asset Class 12 | G18: Distribution Substations HV (Pole) | J18: 1.045774748 | K18: 33.34292308 | L18: 40 | M18: 0.1137962907 | N18: -0.0004283692382 | O18: 0.02456656929 | P18: 0.01296035732 | S18: 1.064302538 | T18: 34.07909729 | U18: 37.60772006 | Z18: 0.1137962907 | AB18: 0.1137962907 | AD18: 33.07909729 | AE18: 34.07909729
F19: Asset Class 13 | G19: Distribution Substations HV (Ground) | J19: 17.52304259 | K19: 16.8850725 | L19: 40 | M19: 0.7094159731 | N19: 0.4641052003 | O19: 0.04996541257 | P19: 0.02635978971 | S19: 6.43876542 | T19: 26.35009118 | U19: 33.24966682 | Z19: 0.7094159731 | AB19: 0.7094159731 | AD19: 25.35009118 | AE19: 26.35009118
F20: Asset Class 14 | G20: Distribution Substations LV (Pole) | J20: 131.7367058 | K20: 22.83402154 | L20: 40 | M20: 10.63036081 | N20: 1.677780654 | O20: 0.7898149421 | P20: 0.4166753502 | S20: 65.94371664 | T20: 32.82578512 | U20: 36.60668588 | Z20: 10.63036081 | AB20: 10.63036081 | AD20: 31.82578512 | AE20: 32.82578512
F21: Asset Class 15 | G21: Distribution Substations LV (Ground) | J21: 54.0085785 | K21: 24.46057891 | L21: 40 | M21: 6.082119559 | N21: 0.5453603589 | O21: 0.1739391436 | P21: 0.0917634622 | S21: 31.61786039 | T21: 29.74954191 | U21: 34.14917279 | Z21: 6.082119559 | AB21: 6.082119559 | AD21: 28.74954191 | AE21: 29.74954191
F22: Asset Class 16 | G22: Overhead Low Voltage Lines Underbuilt Urban | J22: 27.83314923 | K22: 23.73034658 | L22: 35 | M22: 2.580127585 | N22: 0.2925671324 | O22: -0.03224369562 | P22: -0.01701050771 | S22: 39.61651532 | T22: 32.34782041 | U22: 37.40751673 | Z22: 2.580127585 | AB22: 2.580127585 | AD22: 31.34782041 | AE22: 32.34782041
F23: Asset Class 17 | G23: Overhead Low Voltage Lines Underbuilt Rural | J23: 38.55305752 | K23: 17.51397348 | L23: 35 | M23: 3.142579381 | N23: 0.970973846 | O23: 0.006567365625 | P23: 0.003464684226 | S23: 15.48789326 | T23: 35.45155354 | U23: 38.68883157 | Z23: 3.142579381 | AB23: 3.142579381 | AD23: 34.45155354 | AE23: 35.45155354
F24: Asset Class 18 | G24: Overhead Low Voltage Lines Urban | J24: 55.5006637 | K24: 17.56296049 | L24: 35 | M24: 3.25511229 | N24: 1.37208064 | O24: 0.1959707736 | P24: 0.1033864851 | S24: 43.6082556 | T24: 29.6365243 | U24: 35.27529741 | Z24: 3.25511229 | AB24: 3.25511229 | AD24: 28.6365243 | AE24: 29.6365243
F25: Asset Class 19 | G25: Overhead Low Voltage Lines Rural | J25: 54.90230156 | K25: 25.768098 | L25: 35 | M25: 6.607792316 | N25: 0.4213056684 | O25: 0.2198236275 | P25: 0.1159703142 | S25: 38.28966444 | T25: 31.79772269 | U25: 36.7118578 | Z25: 6.607792316 | AB25: 6.607792316 | AD25: 30.79772269 | AE25: 31.79772269
F26: Asset Class 20 | G26: Underground Low Voltage Lines | J26: 87.56666947 | K26: 37.81121464 | L26: 60 | M26: 6.523657115 | N26: -0.4207019581 | O26: -0.556375923 | P26: -0.2935220901 | S26: 24.96832868 | T26: 40.46234447 | U26: 42.48439204 | Z26: 6.523657115 | AB26: 6.523657115 | AD26: 39.46234447 | AE26: 40.46234447
F27: Asset Class 21 | G27: Underground Low Voltage Common Trench | J27: 37.57291128 | K27: 46.92647042 | L27: 60 | M27: 4.698284554 | N27: -0.3678321077 | O27: -0.1926068026 | P27: -0.1016117861 | S27: 15.45539425 | T27: 41.92315575 | U27: 43.06548311 | Z27: 4.698284554 | AB27: 4.698284554 | AD27: 40.92315575 | AE27: 41.92315575
F28: Asset Class 22 | G28: HVST Service Connections | J28: 0.004279201129 | K28: 2.026765227 | L28: 40 | M28: 0 | N28: 0.001295317181 | O28: 0 | P28: 0 | S28: 0 | T28: 0 | U28: 36.4 | Z28: 0 | AB28: 0 | AD28: 0 | AE28: 0
F29: Asset Class 23 | G29: HV Service Connections | J29: 2.233987496 | K29: 28.04834182 | L29: 40 | M29: 0.110560886 | N29: 0.005411321438 | O29: -0.06550238318 | P29: -0.03455648532 | S29: 0.7876152091 | T29: 32.36800191 | U29: 36.39646802 | Z29: 0.110560886 | AB29: 0.110560886 | AD29: 31.36800191 | AE29: 32.36800191
F30: Asset Class 24 | G30: HV Metering CA Service Connections | J30: 0.8842924953 | K30: 11.00248932 | L30: 40 | M30: 0.03435223488 | N30: 0.04844149844 | O30: 0 | P30: 0 | S30: 0.07802661735 | T30: 35.98272083 | U30: 36.4 | Z30: 0.03435223488 | AB30: 0.03435223488 | AD30: 34.98272083 | AE30: 35.98272083
F31: Asset Class 25 | G31: HV/LV Service Connections | J31: 3.798943762 | K31: 26.94017867 | L31: 40 | M31: 0.1999748089 | N31: 0.01418076866 | O31: -0.1184761359 | P31: -0.06250335718 | S31: 1.39141828 | T31: 32.45021129 | U31: 36.41241774 | Z31: 0.1999748089 | AB31: 0.1999748089 | AD31: 31.45021129 | AE31: 32.45021129
F32: Asset Class 26 | G32: Business LV Service Connections | J32: 8.695793619 | K32: 13.01685334 | L32: 35 | M32: 0.5291348702 | N32: 0.3418774182 | O32: -0.3105023329 | P32: -0.1638088385 | S32: 4.115190529 | T32: 32.09058488 | U32: 36.34318994 | Z32: 0.5291348702 | AB32: 0.5291348702 | AD32: 31.09058488 | AE32: 32.09058488
F33: Asset Class 27 | G33: Business LV Metering CA Service Connections | J33: 7.945906695 | K33: 6.298291818 | L33: 25 | M33: 0.9856018599 | N33: 0.9442798992 | O33: 0 | P33: 0 | S33: 2.449987454 | T33: 35.90071887 | U33: 36.4 | Z33: 0.9856018599 | AB33: 0.9856018599 | AD33: 34.90071887 | AE33: 35.90071887
F34: Asset Class 28 | G34: Domestic LV Service Connections | J34: 53.21845486 | K34: 21.7777002 | L34: 35 | M34: 4.216953775 | N34: 0.5920600929 | O34: -2.489397345 | P34: -1.313308289 | S34: 37.92000678 | T34: 32.87204998 | U34: 36.41241774 | Z34: 4.216953775 | AB34: 4.216953775 | AD34: 31.87204998 | AE34: 32.87204998
F35: Asset Class 29 | G35: Domestic LV Metering CA Service Connections | J35: 13.61106207 | K35: 3.861972433 | L35: 20 | M35: 0.6649646088 | N35: 2.501879086 | O35: 0 | P35: 0 | S35: 2.417301932 | T35: 35.59216944 | U35: 36.4 | Z35: 0.6649646088 | AB35: 0.6649646088 | AD35: 34.59216944 | AE35: 35.59216944
F36: Asset Class 30 | G36: Wholesale Metering | J36: 0 | K36: n/a | L36: n/a | M36: 0 | N36: 0 | O36: 0 | P36: 0 | S36: 0 | T36: 0 | U36: n/a | Z36: 0 | AB36: 0 | AD36: 0 | AE36: 0
F37: Asset Class 31 | G37: HV Metering | J37: 0 | K37: n/a | L37: n/a | M37: 0 | N37: 0 | O37: 0 | P37: 0 | S37: 0 | T37: 0 | U37: n/a | Z37: 0 | AB37: 0 | AD37: 0 | AE37: 0
F38: Asset Class 32 | G38: HV/LV Metering | J38: 0 | K38: n/a | L38: n/a | M38: 0 | N38: 0 | O38: 0 | P38: 0 | S38: 0 | T38: 0 | U38: n/a | Z38: 0 | AB38: 0 | AD38: 0 | AE38: 0
F39: Asset Class 33 | G39: Business LV Metering | J39: 0 | K39: n/a | L39: n/a | M39: 0 | N39: 0 | O39: 0 | P39: 0 | S39: 0 | T39: 0 | U39: n/a | Z39: 0 | AB39: 0 | AD39: 0 | AE39: 0
F40: Asset Class 34 | G40: Domestic LV Metering | J40: 0 | K40: n/a | L40: n/a | M40: 0 | N40: 0 | O40: 0 | P40: 0 | S40: 0 | T40: 0 | U40: n/a | Z40: 0 | AB40: 0 | AD40: 0 | AE40: 0
F41: Asset Class 35 | G41: Off Peak Metering | J41: 0 | K41: n/a | L41: n/a | M41: 0 | N41: 0 | O41: 0 | P41: 0 | S41: 0 | T41: 0 | U41: n/a | Z41: 0 | AB41: 0 | AD41: 0 | AE41: 0
F42: Asset Class 36 | G42: Emergency Network Spares | J42: 2.2311868 | K42: n/a | L42: n/a | M42: 0 | N42: -0.06916679082 | O42: 0 | P42: 0 | S42: 0 | T42: n/a | U42: n/a | Z42: 0 | AB42: 0 | AD42: n/a | AE42: n/a
F43: Asset Class 37 | G43: Motor Vehicles | J43: 18.20981251 | K43: 3.481032967 | L43: 6 | M43: 5.547662659 | N43: 3.557238286 | O43: -0.348950296 | P43: -0.1840924741 | S43: 24.51086421 | T43: 5.421765411 | U43: 9.233642409 | Z43: 8.149169955 | AA43: ='2011-12 shared asset adjustment'!D42 -> -2.601507295 | AB43: 5.547662659 | AD43: 4.421765411 | AE43: 5.421765411
F44: Asset Class 38 | G44: Minor Assets | J44: 29.31495873 | K44: 2.624167061 | L44: 5 | M44: 8.427237772 | N44: 7.785774171 | O44: 0.1914005932 | P44: 0.1009754374 | S44: 27.60187036 | T44: 3.894343515 | U44: 5.218420866 | Z44: 12.42939296 | AA44: ='2011-12 shared asset adjustment'!D43 -> -4.002155185 | AB44: 8.427237772 | AD44: 2.894343515 | AE44: 3.894343515
F45: Asset Class 39 | G45: Non-System Property | J45: 36.90274505 | K45: 17.01634785 | L45: 40 | M45: -4.624670691 | N45: -0.02434370645 | O45: -8.901718537 | P45: -4.696197161 | S45: 31.56797461 | T45: 22.15731858 | U45: 34.54468091 | Z45: -2.139378007 | AA45: ='2011-12 shared asset adjustment'!D44 -> -2.485292684 | AB45: -4.624670691 | AD45: 21.15731858 | AE45: 22.15731858
F46: Asset Class 40 | G46: Spare Parts | J46: 11.94112162 | K46: n/a | L46: n/a | M46: -1.446796269 | N46: -0.3701747701 | O46: 0 | P46: 0 | S46: 3.991658103 | T46: n/a | U46: n/a | Z46: 0 | AA46: ='2011-12 shared asset adjustment'!D45 -> -1.446796269 | AB46: -1.446796269 | AD46: n/a | AE46: n/a
F47: Asset Class 41 | G47: NEM Assets | J47: 16.37595198 | K47: 1.803535526 | L47: 5 | M47: -1.095620084 | N47: 3.938549349 | O47: -2.012561842 | P47: -1.061748602 | S47: 12.19945788 | T47: 2.542350672 | U47: 3.024058996 | Z47: 0 | AA47: ='2011-12 shared asset adjustment'!D46 -> -1.095620084 | AB47: -1.095620084 | AD47: 1.542350672 | AE47: 2.542350672
F48: Asset Class 42 | Z48: 0 | AB48: 0 | AD48: n/a | AE48: n/a
F49: Asset Class 43 | G49: Land | J49: 0 | K49: n/a | L49: n/a | M49: 0 | S49: 0 | T49: n/a | U49: n/a | Z49: 0 | AB49: 0 | AD49: n/a | AE49: n/a
F50: Asset Class 44 | G50: Easements | J50: 0 | K50: n/a | L50: n/a | M50: 0 | S50: 0 | T50: n/a | U50: n/a | Z50: 0 | AB50: 0 | AD50: n/a | AE50: n/a
F51: Asset Class 45 | G51: Equity Raising Costs | J51: 0 | K51: n/a | L51: 40.9240008 | M51: 0 | S51: 0 | T51: n/a | U51: 5 | Z51: 0 | AB51: 0 | AD51: n/a | AE51: n/a
F52: Total | J52: =SUM(J7:J51) -> 1379.480679 | M52: =SUM(M7:M51) -> 128.2773889 | N52: =SUM(N7:N51) -> 29.18343191 | O52: -21.8396315 | P52: -11.52173202 | Q52: 0 | R52: 0 | S52: 915.6889203 | Z52: =SUM(Z7:Z51) -> 140.4919673 | AA52: =SUM(AA7:AA51) -> -12.2145784 | AB52: =SUM(AB7:AB51) -> 128.2773889
F54: Actual Capital Expenditure – As Incurred ($m Nominal)
F55: Year | G55: =CONCATENATE(LEFT(H55, 4)-1 &"-" &IF(H55>"2009-10",,"0") &RIGHT(H55,2)-1) -> 2011-12 | H55: =V7 -> 2012-13 | I55: =CONCATENATE(LEFT(H55, 4)+1 &"-" &IF(H55>"2007-08",,"0") &RIGHT(H55,2)+1) -> 2013-14 | J55: =CONCATENATE(LEFT(I55, 4)+1 &"-" &IF(I55>"2007-08",,"0") &RIGHT(I55,2)+1) -> 2014-15 | K55: 2015-16 | L55: 2016-17 | M55: 2017-18 | N55: 2018-19 | O55: 2019-20 | P55: 2020-21 | Q55: =CONCATENATE(LEFT(P55, 4)+1 &"-" &IF(P55>"2007-08",,"0") &RIGHT(P55,2)+1) -> 2021-22
F56: =Asset1 -> Overhead Subtransmission Lines (Urban) | G56: ='Adjustment for provisions'!T9 -> 0.8736416493 | H56: ='Adjustment for provisions'!U9 -> 1.430652046 | I56: ='Adjustment for provisions'!V9 -> 0.7701259678 | J56: ='Adjustment for provisions'!W9 -> 0.329 | K56: ='Adjustment for provisions'!X9 -> 0.3439825905 | L56: ='Adjustment for provisions'!Y9 -> 0.2606313475
F57: =Asset2 -> Underground Subtransmission Lines (Urban) | G57: ='Adjustment for provisions'!T10 -> 0.2876312057 | H57: ='Adjustment for provisions'!U10 -> 0.1637992205 | I57: ='Adjustment for provisions'!V10 -> 0.134893741 | J57: ='Adjustment for provisions'!W10 -> 0.01 | K57: ='Adjustment for provisions'!X10 -> 0.0269994021 | L57: ='Adjustment for provisions'!Y10 -> 0
F58: =Asset3 -> Urban Zone Substations | G58: ='Adjustment for provisions'!T11 -> 4.515570541 | H58: ='Adjustment for provisions'!U11 -> 2.077643603 | I58: ='Adjustment for provisions'!V11 -> 5.042347078 | J58: ='Adjustment for provisions'!W11 -> 2.215 | K58: ='Adjustment for provisions'!X11 -> 3.861706949 | L58: ='Adjustment for provisions'!Y11 -> 0.1662176021
F59: =Asset4 -> Rural Zone Substations | G59: ='Adjustment for provisions'!T12 -> -0.01782812422 | H59: ='Adjustment for provisions'!U12 -> 0.3067469231 | I59: ='Adjustment for provisions'!V12 -> 1.087515875 | J59: ='Adjustment for provisions'!W12 -> 0.444 | K59: ='Adjustment for provisions'!X12 -> 0.1925228863 | L59: ='Adjustment for provisions'!Y12 -> 0.1492388448
F60: =Asset5 -> SCADA | G60: ='Adjustment for provisions'!T13 -> 0.4387035465 | H60: ='Adjustment for provisions'!U13 -> 1.271080377 | I60: ='Adjustment for provisions'!V13 -> 2.508767573 | J60: ='Adjustment for provisions'!W13 -> 2.41 | K60: ='Adjustment for provisions'!X13 -> 16.73583296 | L60: ='Adjustment for provisions'!Y13 -> 18.15411612
F61: =Asset6 -> Distribution Switching Stations (Ground) | G61: ='Adjustment for provisions'!T14 -> 2.26644305 | H61: ='Adjustment for provisions'!U14 -> 0.1529147402 | I61: ='Adjustment for provisions'!V14 -> 0.1844782262 | J61: ='Adjustment for provisions'!W14 -> 0.214 | K61: ='Adjustment for provisions'!X14 -> 0.1834636239 | L61: ='Adjustment for provisions'!Y14 -> 0.4566460234
F62: =Asset7 -> Overhead High Voltage Lines Urban | G62: ='Adjustment for provisions'!T15 -> 6.130417868 | H62: ='Adjustment for provisions'!U15 -> 6.723547829 | I62: ='Adjustment for provisions'!V15 -> 7.355545647 | J62: ='Adjustment for provisions'!W15 -> 6.321 | K62: ='Adjustment for provisions'!X15 -> 7.060759255 | L62: ='Adjustment for provisions'!Y15 -> 7.536076644
F63: =Asset8 -> Overhead High Voltage Lines Rural | G63: ='Adjustment for provisions'!T16 -> 20.49060908 | H63: ='Adjustment for provisions'!U16 -> 18.91647774 | I63: ='Adjustment for provisions'!V16 -> 19.4735371 | J63: ='Adjustment for provisions'!W16 -> 18.553 | K63: ='Adjustment for provisions'!X16 -> 18.12854134 | L63: ='Adjustment for provisions'!Y16 -> 23.97832088
F64: =Asset9 -> Voltage Regulators on Distribution Feeders | G64: ='Adjustment for provisions'!T17 -> 0.1064888857 | H64: ='Adjustment for provisions'!U17 -> 0.8875364062 | I64: ='Adjustment for provisions'!V17 -> 0.7344739222 | J64: ='Adjustment for provisions'!W17 -> 1.046 | K64: ='Adjustment for provisions'!X17 -> 0.5929834398 | L64: ='Adjustment for provisions'!Y17 -> 0.7833033281
F65: =Asset10 -> Underground High Voltage Lines | G65: ='Adjustment for provisions'!T18 -> 11.70814302 | H65: ='Adjustment for provisions'!U18 -> 5.88167043 | I65: ='Adjustment for provisions'!V18 -> 4.774804733 | J65: ='Adjustment for provisions'!W18 -> 6.404 | K65: ='Adjustment for provisions'!X18 -> 6.004226744 | L65: ='Adjustment for provisions'!Y18 -> 10.14992654
F66: =Asset11 -> Underground High Voltage Lines SWER | G66: ='Adjustment for provisions'!T19 -> 0 | H66: ='Adjustment for provisions'!U19 -> 0.06086711875 | I66: ='Adjustment for provisions'!V19 -> 0.0837821682 | J66: ='Adjustment for provisions'!W19 -> 0.031 | K66: ='Adjustment for provisions'!X19 -> 0.0365696226 | L66: ='Adjustment for provisions'!Y19 -> 0
F67: =Asset12 -> Distribution Substations HV (Pole) | G67: ='Adjustment for provisions'!T20 -> 0.06406046319 | H67: ='Adjustment for provisions'!U20 -> 0.1064459427 | I67: ='Adjustment for provisions'!V20 -> 0.203208238 | J67: ='Adjustment for provisions'!W20 -> 0.184 | K67: ='Adjustment for provisions'!X20 -> 0.1156003692 | L67: ='Adjustment for provisions'!Y20 -> 0.2130376194
F68: =Asset13 -> Distribution Substations HV (Ground) | G68: ='Adjustment for provisions'!T21 -> 0.6477306472 | H68: ='Adjustment for provisions'!U21 -> 1.678552873 | I68: ='Adjustment for provisions'!V21 -> 2.310748965 | J68: ='Adjustment for provisions'!W21 -> 3.016 | K68: ='Adjustment for provisions'!X21 -> 3.674971983 | L68: ='Adjustment for provisions'!Y21 -> 3.786381768
F69: =Asset14 -> Distribution Substations LV (Pole) | G69: ='Adjustment for provisions'!T22 -> 7.289224002 | H69: ='Adjustment for provisions'!U22 -> 7.47199119 | I69: ='Adjustment for provisions'!V22 -> 6.684701034 | J69: ='Adjustment for provisions'!W22 -> 6.042 | K69: ='Adjustment for provisions'!X22 -> 7.832258172 | L69: ='Adjustment for provisions'!Y22 -> 6.869803623
F70: =Asset15 -> Distribution Substations LV (Ground) | G70: ='Adjustment for provisions'!T23 -> 4.274904104 | H70: ='Adjustment for provisions'!U23 -> 3.056514444 | I70: ='Adjustment for provisions'!V23 -> 3.318639543 | J70: ='Adjustment for provisions'!W23 -> 5.454 | K70: ='Adjustment for provisions'!X23 -> 6.316271021 | L70: ='Adjustment for provisions'!Y23 -> 7.143235386
F71: =Asset16 -> Overhead Low Voltage Lines Underbuilt Urban | G71: ='Adjustment for provisions'!T24 -> 2.457939729 | H71: ='Adjustment for provisions'!U24 -> 2.740849496 | I71: ='Adjustment for provisions'!V24 -> 2.693766662 | J71: ='Adjustment for provisions'!W24 -> 4.191 | K71: ='Adjustment for provisions'!X24 -> 3.840700977 | L71: ='Adjustment for provisions'!Y24 -> 3.354014116
F72: =Asset17 -> Overhead Low Voltage Lines Underbuilt Rural | G72: ='Adjustment for provisions'!T25 -> 1.864119406 | H72: ='Adjustment for provisions'!U25 -> 2.129337026 | I72: ='Adjustment for provisions'!V25 -> 2.172309151 | J72: ='Adjustment for provisions'!W25 -> 3.67 | K72: ='Adjustment for provisions'!X25 -> 3.695569166 | L72: ='Adjustment for provisions'!Y25 -> 2.722404038
F73: =Asset18 -> Overhead Low Voltage Lines Urban | G73: ='Adjustment for provisions'!T26 -> 3.611412252 | H73: ='Adjustment for provisions'!U26 -> 3.571311924 | I73: ='Adjustment for provisions'!V26 -> 3.425784784 | J73: ='Adjustment for provisions'!W26 -> 4.987 | K73: ='Adjustment for provisions'!X26 -> 4.763163808 | L73: ='Adjustment for provisions'!Y26 -> 4.141433558
F74: =Asset19 -> Overhead Low Voltage Lines Rural | G74: ='Adjustment for provisions'!T27 -> 4.805907939 | H74: ='Adjustment for provisions'!U27 -> 6.280463975 | I74: ='Adjustment for provisions'!V27 -> 5.324656921 | J74: ='Adjustment for provisions'!W27 -> 6.823 | K74: ='Adjustment for provisions'!X27 -> 6.856436785 | L74: ='Adjustment for provisions'!Y27 -> 6.768923923
F75: =Asset20 -> Underground Low Voltage Lines | G75: ='Adjustment for provisions'!T28 -> 5.024722021 | H75: ='Adjustment for provisions'!U28 -> 3.272253338 | I75: ='Adjustment for provisions'!V28 -> 3.646301723 | J75: ='Adjustment for provisions'!W28 -> 4.948 | K75: ='Adjustment for provisions'!X28 -> 3.773308967 | L75: ='Adjustment for provisions'!Y28 -> 5.686854103
F76: =Asset21 -> Underground Low Voltage Common Trench | G76: ='Adjustment for provisions'!T29 -> 3.44000129 | H76: ='Adjustment for provisions'!U29 -> 1.754810028 | I76: ='Adjustment for provisions'!V29 -> 1.612881207 | J76: ='Adjustment for provisions'!W29 -> 1.807 | K76: ='Adjustment for provisions'!X29 -> 1.944070083 | L76: ='Adjustment for provisions'!Y29 -> 2.202028393
F77: =Asset22 -> HVST Service Connections | G77: ='Adjustment for provisions'!T30 -> 0 | H77: ='Adjustment for provisions'!U30 -> 0 | I77: ='Adjustment for provisions'!V30 -> 0 | J77: ='Adjustment for provisions'!W30 -> 0 | K77: ='Adjustment for provisions'!X30 -> 0 | L77: ='Adjustment for provisions'!Y30 -> 0
F78: =Asset23 -> HV Service Connections | G78: ='Adjustment for provisions'!T31 -> 0.06961353249 | H78: ='Adjustment for provisions'!U31 -> 0.09367653102 | I78: ='Adjustment for provisions'!V31 -> 0.1048581107 | J78: ='Adjustment for provisions'!W31 -> 0.15 | K78: ='Adjustment for provisions'!X31 -> 0.1534566912 | L78: ='Adjustment for provisions'!Y31 -> 0.1379676556
F79: =Asset24 -> HV Metering CA Service Connections | G79: ='Adjustment for provisions'!T32 -> 0.527422759 | H79: ='Adjustment for provisions'!U32 -> 0.00751062247 | I79: ='Adjustment for provisions'!V32 -> 0.006839048003 | J79: ='Adjustment for provisions'!W32 -> 0.001 | K79: ='Adjustment for provisions'!X32 -> 0.0061210392 | L79: ='Adjustment for provisions'!Y32 -> 0.02372034604
F80: =Asset25 -> HV/LV Service Connections | G80: ='Adjustment for provisions'!T33 -> 0.1259120957 | H80: ='Adjustment for provisions'!U33 -> 0.1694355668 | I80: ='Adjustment for provisions'!V33 -> 0.1896600273 | J80: ='Adjustment for provisions'!W33 -> 0.27 | K80: ='Adjustment for provisions'!X33 -> 0.2775617454 | L80: ='Adjustment for provisions'!Y33 -> 0.2495462596
F81: =Asset26 -> Business LV Service Connections | G81: ='Adjustment for provisions'!T34 -> 0.3298901233 | H81: ='Adjustment for provisions'!U34 -> 0.471127565 | I81: ='Adjustment for provisions'!V34 -> 0.5155464362 | J81: ='Adjustment for provisions'!W34 -> 0.742 | K81: ='Adjustment for provisions'!X34 -> 0.7493780529 | L81: ='Adjustment for provisions'!Y34 -> 0.663474251
F82: =Asset27 -> Business LV Metering CA Service Connections | G82: ='Adjustment for provisions'!T35 -> 0.572247191 | H82: ='Adjustment for provisions'!U35 -> 0.4820939496 | I82: ='Adjustment for provisions'!V35 -> 0.4658551522 | J82: ='Adjustment for provisions'!W35 -> 0.246 | K82: ='Adjustment for provisions'!X35 -> 0.4207822464 | L82: ='Adjustment for provisions'!Y35 -> 0.6893323008
F83: =Asset28 -> Domestic LV Service Connections | G83: ='Adjustment for provisions'!T36 -> 2.64533914 | H83: ='Adjustment for provisions'!U36 -> 3.86147991 | I83: ='Adjustment for provisions'!V36 -> 4.208511267 | J83: ='Adjustment for provisions'!W36 -> 5.969 | K83: ='Adjustment for provisions'!X36 -> 6.067262161 | L83: ='Adjustment for provisions'!Y36 -> 5.271806853
F84: =Asset29 -> Domestic LV Metering CA Service Connections | G84: ='Adjustment for provisions'!T37 -> 1.011918716 | H84: ='Adjustment for provisions'!U37 -> 0.364306478 | I84: ='Adjustment for provisions'!V37 -> 0.5892488858 | J84: ='Adjustment for provisions'!W37 -> 0.139 | K84: ='Adjustment for provisions'!X37 -> 0.4509331268 | L84: ='Adjustment for provisions'!Y37 -> 0.5165529516
F85: =Asset30 -> Wholesale Metering | G85: ='Adjustment for provisions'!T38 -> 0 | H85: ='Adjustment for provisions'!U38 -> 0 | I85: ='Adjustment for provisions'!V38 -> 0 | J85: ='Adjustment for provisions'!W38 -> 0 | K85: ='Adjustment for provisions'!X38 -> 0 | L85: ='Adjustment for provisions'!Y38 -> 0
F86: =Asset31 -> HV Metering | G86: ='Adjustment for provisions'!T39 -> 0 | H86: ='Adjustment for provisions'!U39 -> 0 | I86: ='Adjustment for provisions'!V39 -> 0 | J86: ='Adjustment for provisions'!W39 -> 0 | K86: ='Adjustment for provisions'!X39 -> 0 | L86: ='Adjustment for provisions'!Y39 -> 0
F87: =Asset32 -> HV/LV Metering | G87: ='Adjustment for provisions'!T40 -> 0 | H87: ='Adjustment for provisions'!U40 -> 0 | I87: ='Adjustment for provisions'!V40 -> 0 | J87: ='Adjustment for provisions'!W40 -> 0 | K87: ='Adjustment for provisions'!X40 -> 0 | L87: ='Adjustment for provisions'!Y40 -> 0
F88: =Asset33 -> Business LV Metering | G88: ='Adjustment for provisions'!T41 -> 0 | H88: ='Adjustment for provisions'!U41 -> 0 | I88: ='Adjustment for provisions'!V41 -> 0 | J88: ='Adjustment for provisions'!W41 -> 0 | K88: ='Adjustment for provisions'!X41 -> 0 | L88: ='Adjustment for provisions'!Y41 -> 0
F89: =Asset34 -> Domestic LV Metering | G89: ='Adjustment for provisions'!T42 -> 0 | H89: ='Adjustment for provisions'!U42 -> 0 | I89: ='Adjustment for provisions'!V42 -> 0 | J89: ='Adjustment for provisions'!W42 -> 0 | K89: ='Adjustment for provisions'!X42 -> 0 | L89: ='Adjustment for provisions'!Y42 -> 0
F90: =Asset35 -> Off Peak Metering | G90: ='Adjustment for provisions'!T43 -> 0 | H90: ='Adjustment for provisions'!U43 -> 0 | I90: ='Adjustment for provisions'!V43 -> 0 | J90: ='Adjustment for provisions'!W43 -> 0 | K90: ='Adjustment for provisions'!X43 -> 0 | L90: ='Adjustment for provisions'!Y43 -> 0
F91: =Asset36 -> Emergency Network Spares | G91: ='Adjustment for provisions'!T44 -> 0 | H91: ='Adjustment for provisions'!U44 -> 0 | I91: ='Adjustment for provisions'!V44 -> 0 | J91: ='Adjustment for provisions'!W44 -> 0 | K91: ='Adjustment for provisions'!X44 -> 0 | L91: ='Adjustment for provisions'!Y44 -> 0
F92: =Asset37 -> Motor Vehicles | G92: ='Adjustment for provisions'!T45 -> 0.8206356694 | H92: ='Adjustment for provisions'!U45 -> 4.432425776 | I92: ='Adjustment for provisions'!V45 -> 5.0767009 | J92: ='Adjustment for provisions'!W45 -> 2.183 | K92: ='Adjustment for provisions'!X45 -> 2.679115725 | L92: ='Adjustment for provisions'!Y45 -> 2.396513505
F93: =Asset38 -> Minor Assets | G93: ='Adjustment for provisions'!T46 -> 5.987975444 | H93: ='Adjustment for provisions'!U46 -> 7.538745863 | I93: ='Adjustment for provisions'!V46 -> 8.265187012 | J93: ='Adjustment for provisions'!W46 -> 9.922 | K93: ='Adjustment for provisions'!X46 -> 6.994401214 | L93: ='Adjustment for provisions'!Y46 -> 15.71046424
F94: =Asset39 -> Non-System Property | G94: ='Adjustment for provisions'!T47 -> 10.35539403 | H94: ='Adjustment for provisions'!U47 -> 0.3882905163 | I94: ='Adjustment for provisions'!V47 -> 0.2681345275 | J94: ='Adjustment for provisions'!W47 -> 0 | K94: ='Adjustment for provisions'!X47 -> 0 | L94: ='Adjustment for provisions'!Y47 -> 1.442102002
F95: =Asset40 -> Spare Parts | G95: ='Adjustment for provisions'!T48 -> 0.9296158248 | H95: ='Adjustment for provisions'!U48 -> 0 | I95: ='Adjustment for provisions'!V48 -> 0 | J95: ='Adjustment for provisions'!W48 -> 0 | K95: ='Adjustment for provisions'!X48 -> 0 | L95: ='Adjustment for provisions'!Y48 -> 0
F96: =Asset41 -> NEM Assets | G96: ='Adjustment for provisions'!T49 -> 2.592971764 | H96: ='Adjustment for provisions'!U49 -> 9.265204832 | I96: ='Adjustment for provisions'!V49 -> 13.97931021 | J96: ='Adjustment for provisions'!W49 -> 0 | K96: ='Adjustment for provisions'!X49 -> 0 | L96: ='Adjustment for provisions'!Y49 -> 0
F97: =Asset42 -> 0 | G97: ='Adjustment for provisions'!T50 -> 0 | H97: ='Adjustment for provisions'!U50 -> 0 | I97: ='Adjustment for provisions'!V50 -> 0 | J97: ='Adjustment for provisions'!W50 -> 0 | K97: ='Adjustment for provisions'!X50 -> 0 | L97: ='Adjustment for provisions'!Y50 -> 0
F98: =Asset43 -> Land | G98: ='Adjustment for provisions'!T51 -> 0 | H98: ='Adjustment for provisions'!U51 -> 0.5672222658 | I98: ='Adjustment for provisions'!V51 -> 0.64759992 | J98: ='Adjustment for provisions'!W51 -> 0 | K98: ='Adjustment for provisions'!X51 -> 0 | L98: ='Adjustment for provisions'!Y51 -> 0
F99: =Asset44 -> Easements | G99: ='Adjustment for provisions'!T52 -> 0 | H99: ='Adjustment for provisions'!U52 -> 0.1166203151 | I99: ='Adjustment for provisions'!V52 -> 0.46526247 | J99: ='Adjustment for provisions'!W52 -> 0.48 | K99: ='Adjustment for provisions'!X52 -> 0.71361862 | L99: ='Adjustment for provisions'!Y52 -> 0
F100: =Asset45 -> Equity Raising Costs | G100: ='Adjustment for provisions'!T53 -> 0 | H100: ='Adjustment for provisions'!U53 -> 0 | I100: ='Adjustment for provisions'!V53 -> 0 | J100: ='Adjustment for provisions'!W53 -> 0 | K100: ='Adjustment for provisions'!X53 -> 0 | L100: ='Adjustment for provisions'!Y53 -> 0
F101: Total | G101: =SUM(G56:G100) -> 106.2487789 | H101: =SUM(H56:H100) -> 97.69360686 | I101: 108.3259842 | J101: 99.201 | K101: 114.4925708 | L101: 131.6240742 | M101: 0 | N101: 0 | O101: 0 | P101: 0 | Q101: 0
R102: =SUM(G101:Q101) -> 657.5860149 | Y102: TAX Asset Value
F103: Actual Asset Disposal – As Incurred ($m Nominal)
F104: Year | G104: =G55 -> 2011-12 | H104: =H55 -> 2012-13 | I104: 2013-14 | J104: 2014-15 | K104: 2015-16 | L104: 2016-17 | M104: 2017-18 | N104: 2018-19 | O104: 2019-20 | P104: 2020-21 | Q104: 2021-22 | R104: 2011-12 Disposals | S104: 2012 Shared Asset Adjustment ($June 2012) from previous RFM | T104: 2012 Shared Asset Adjustment ($nominal 2011-12) | U104: Forecast shared asset adjustment for 2011-12 included | V104: Actual shared asset adjustment for 2011-12 | W104: Revised shared asset adjustment with actual for 2011-12 | Y104: TAV Shared assets adj | Z104: Shared assets adj difference to RAB
F105: =Asset1 -> Overhead Subtransmission Lines (Urban) | G105: =R105-W105 -> 0 | I105: 0 | J105: 0 | K105: 0 | L105: 0 | R105: 0 | Y105: 0 | Z105: =Y105-T105 -> 0
F106: =Asset2 -> Underground Subtransmission Lines (Urban) | G106: =R106-W106 -> 0 | I106: 0 | J106: 0 | K106: 0 | L106: 0 | R106: 0 | Y106: 0 | Z106: 0
F107: =Asset3 -> Urban Zone Substations | G107: 0 | I107: 0 | J107: 0 | K107: 0 | L107: 0 | R107: 0 | Y107: 0 | Z107: 0
F108: =Asset4 -> Rural Zone Substations | G108: 0 | I108: 0 | J108: 0 | K108: 0 | L108: 0 | R108: 0 | Y108: 0 | Z108: 0
F109: =Asset5 -> SCADA | G109: 0 | I109: 0 | J109: 0 | K109: 0 | L109: 0 | R109: 0 | Y109: 0 | Z109: 0
F110: =Asset6 -> Distribution Switching Stations (Ground) | G110: 0 | I110: 0 | J110: 0 | K110: 0 | L110: 0 | R110: 0 | Y110: 0 | Z110: 0
F111: =Asset7 -> Overhead High Voltage Lines Urban | G111: 0 | I111: 0 | J111: 0 | K111: 0 | L111: 0 | R111: 0 | Y111: 0 | Z111: 0
F112: =Asset8 -> Overhead High Voltage Lines Rural | G112: 0.5449803762 | I112: 0 | J112: 0 | K112: 0 | L112: 0 | R112: 0 | S112: =AA14 -> -0.583206879 | T112: =S112/(1+previous_vanilla)^0.5 -> -0.5582281507 | U112: ='2011-12 shared asset adjustment'!J13 -> -0.04782724644 | V112: ='2011-12 shared asset adjustment'!Q13 -> -0.03457947193 | W112: =T112-U112+V112 -> -0.5449803762 | Y112: -0.4532228818 | Z112: =Y112-T112 -> 0.1050052689
F113: =Asset9 -> Voltage Regulators on Distribution Feeders | G113: 0 | I113: 0 | J113: 0 | K113: 0 | L113: 0 | R113: 0 | Y113: 0 | Z113: =Y113-T113 -> 0
F114: =Asset10 -> Underground High Voltage Lines | G114: 0 | I114: 0 | J114: 0 | K114: 0 | L114: 0 | R114: 0 | Y114: 0 | Z114: 0
F115: =Asset11 -> Underground High Voltage Lines SWER | G115: 0 | I115: 0 | J115: 0 | K115: 0 | L115: 0 | R115: 0 | Y115: 0 | Z115: 0
F116: =Asset12 -> Distribution Substations HV (Pole) | G116: 0 | I116: 0 | J116: 0 | K116: 0 | L116: 0 | R116: 0 | Y116: 0 | Z116: 0
F117: =Asset13 -> Distribution Substations HV (Ground) | G117: 0 | I117: 0 | J117: 0.05 | K117: 0.00824702 | L117: 0 | R117: 0 | Y117: 0 | Z117: 0
F118: =Asset14 -> Distribution Substations LV (Pole) | G118: 0 | I118: 0 | J118: 0 | K118: 0 | L118: 0 | R118: 0 | Y118: 0 | Z118: 0
F119: =Asset15 -> Distribution Substations LV (Ground) | G119: 0 | I119: 0.217702 | J119: 0 | K119: 0 | L119: 0 | R119: 0 | Y119: 0 | Z119: 0
F120: =Asset16 -> Overhead Low Voltage Lines Underbuilt Urban | G120: 0 | I120: 0 | J120: 0 | K120: 0 | L120: 0 | R120: 0 | Y120: 0 | Z120: 0
F121: =Asset17 -> Overhead Low Voltage Lines Underbuilt Rural | G121: 0 | I121: 0 | J121: 0 | K121: 0 | L121: 0 | R121: 0 | Y121: 0 | Z121: 0
F122: =Asset18 -> Overhead Low Voltage Lines Urban | G122: 0 | I122: 0 | J122: 0 | K122: 0 | L122: 0 | R122: 0 | Y122: 0 | Z122: 0
F123: =Asset19 -> Overhead Low Voltage Lines Rural | G123: 0 | I123: 0 | J123: 0 | K123: 0 | L123: 0 | R123: 0 | Y123: 0 | Z123: 0
F124: =Asset20 -> Underground Low Voltage Lines | G124: 0 | I124: 0 | J124: 0 | K124: 0 | L124: 0 | R124: 0 | Y124: 0 | Z124: 0
F125: =Asset21 -> Underground Low Voltage Common Trench | G125: 0 | I125: 0 | J125: 0 | K125: 0 | L125: 0 | R125: 0 | Y125: 0 | Z125: 0
F126: =Asset22 -> HVST Service Connections | G126: 0 | I126: 0 | J126: 0 | K126: 0 | L126: 0 | R126: 0 | Y126: 0 | Z126: 0
F127: =Asset23 -> HV Service Connections | G127: 0 | I127: 0 | J127: 0 | K127: 0 | L127: 0 | R127: 0 | Y127: 0 | Z127: 0
F128: =Asset24 -> HV Metering CA Service Connections | G128: 0 | I128: 0 | J128: 0 | K128: 0 | L128: 0 | R128: 0 | Y128: 0 | Z128: 0
F129: =Asset25 -> HV/LV Service Connections | G129: 0 | I129: 0 | J129: 0 | K129: 0 | L129: 0 | R129: 0 | Y129: 0 | Z129: 0
F130: =Asset26 -> Business LV Service Connections | G130: 0 | I130: 0 | J130: 0 | K130: 0 | L130: 0 | R130: 0 | Y130: 0 | Z130: 0
F131: =Asset27 -> Business LV Metering CA Service Connections | G131: 0 | I131: 0 | J131: 0 | K131: 0 | L131: 0 | R131: 0 | Y131: 0 | Z131: 0
F132: =Asset28 -> Domestic LV Service Connections | G132: 0 | I132: 0 | J132: 0 | K132: 0 | L132: 0 | R132: 0 | Y132: 0 | Z132: 0
F133: =Asset29 -> Domestic LV Metering CA Service Connections | G133: 0 | I133: 0 | J133: 0 | K133: 0 | L133: 0 | R133: 0 | Y133: 0 | Z133: 0
F134: =Asset30 -> Wholesale Metering | G134: 0 | I134: 0 | J134: 0 | K134: 0 | L134: 0 | R134: 0 | Y134: 0 | Z134: 0
F135: =Asset31 -> HV Metering | G135: 0 | I135: 0 | J135: 0 | K135: 0 | L135: 0 | R135: 0 | Y135: 0 | Z135: 0
F136: =Asset32 -> HV/LV Metering | G136: 0 | I136: 0 | J136: 0 | K136: 0 | L136: 0 | R136: 0 | Y136: 0 | Z136: 0
F137: =Asset33 -> Business LV Metering | G137: 0 | I137: 0 | J137: 0 | K137: 0 | L137: 0 | R137: 0 | Y137: 0 | Z137: 0
F138: =Asset34 -> Domestic LV Metering | G138: 0 | I138: 0 | J138: 0 | K138: 0 | L138: 0 | R138: 0 | Y138: 0 | Z138: 0
F139: =Asset35 -> Off Peak Metering | G139: 0 | I139: 0 | J139: 0 | K139: 0 | L139: 0 | R139: 0 | Y139: 0 | Z139: 0
F140: =Asset36 -> Emergency Network Spares | G140: 0 | I140: 0 | J140: 0 | K140: 0 | L140: 0 | R140: 0 | Y140: 0 | Z140: 0
F141: =Asset37 -> Motor Vehicles | G141: 2.32490546 | H141: 1.67848612 | I141: 1.130320119 | J141: 0.72 | K141: 0.7488939257 | L141: 0.7453311003 | R141: 0.736213 | S141: -2.601507295 | T141: -2.490084837 | U141: ='2011-12 shared asset adjustment'!J42 -> -0.9112549275 | V141: ='2011-12 shared asset adjustment'!Q42 -> -0.009862550414 | W141: =T141-U141+V141 -> -1.58869246 | Y141: -3.234287326 | Z141: -0.7442024886
F142: =Asset38 -> Minor Assets | G142: 3.464853492 | H142: 0.2879081555 | I142: 0.0979230031 | J142: 0 | K142: 0 | L142: 0 | R142: 0.367543 | S142: -4.002155185 | T142: -3.830743032 | U142: ='2011-12 shared asset adjustment'!J43 -> -1.390168791 | V142: ='2011-12 shared asset adjustment'!Q43 -> -0.6567362516 | W142: =T142-U142+V142 -> -3.097310492 | Y142: -3.742536848 | Z142: 0.08820618417
F143: =Asset39 -> Non-System Property | G143: 4.675011293 | H143: 2.453983468 | I143: 1.282178455 | J143: 0 | K143: 0 | L143: 0 | R143: 0.953231 | S143: -2.485292684 | T143: -2.378847694 | U143: ='2011-12 shared asset adjustment'!J44 -> 0.2401787999 | V143: ='2011-12 shared asset adjustment'!Q44 -> -1.102753799 | W143: -3.721780293 | Y143: -3.31852042 | Z143: -0.9396727263
F144: =Asset40 -> Spare Parts | G144: 1.494076432 | I144: 0 | J144: 0 | K144: 0 | L144: 0 | R144: 0 | S144: -1.446796269 | T144: -1.384830041 | U144: ='2011-12 shared asset adjustment'!J45 -> 0 | V144: ='2011-12 shared asset adjustment'!Q45 -> -0.1092463917 | W144: -1.494076432 | Y144: -3.996511859 | Z144: -2.611681818
F145: =Asset41 -> NEM Assets | G145: 1.352110714 | I145: 0 | J145: 0 | K145: 0 | L145: 0 | R145: 0 | S145: -1.095620084 | T145: -1.048694718 | U145: ='2011-12 shared asset adjustment'!J46 -> 0 | V145: ='2011-12 shared asset adjustment'!Q46 -> -0.303415996 | W145: -1.352110714 | Y145: -0.8502075249 | Z145: 0.1984871929
F146: =Asset42 -> 0 | G146: 0 | I146: 0 | J146: 0 | L146: 0 | R146: 0 | Z146: 0
F147: =Asset43 -> Land | G147: 0 | I147: 0 | J147: 0 | K147: 0 | L147: 0 | R147: 0 | Z147: 0
F148: =Asset44 -> Easements | G148: 0 | I148: 0 | J148: 0 | K148: 0 | L148: 0 | R148: 0 | Z148: 0
F149: =Asset45 -> Equity Raising Costs | G149: 0 | R149: 0 | Z149: 0
F150: Total | G150: =SUM(G105:G149) -> 13.85593777 | H150: =SUM(H105:H149) -> 4.420377743 | I150: 2.728123577 | J150: 0.77 | K150: 0.7571409457 | L150: 0.7453311003 | M150: 0 | N150: 0 | O150: 0 | P150: 0 | Q150: 0 | R150: =SUM(R105:R149) -> 2.056987 | S150: -12.2145784 | T150: -11.69142847 | U150: -2.109072166 | V150: -2.216594461 | W150: -11.79895077 | Y150: =SUM(Y105:Y149) -> -15.59528686 | Z150: -3.903858387
R151: =SUM(G150:Q150) -> 23.27691113
F152: Actual Customer Contributions – As Incurred ($m Nominal)
F153: Year | G153: =G104 -> 2011-12 | H153: 2012-13 | I153: 2013-14 | J153: 2014-15 | K153: 2015-16 | L153: 2016-17 | M153: 2017-18 | N153: 2018-19 | O153: 2019-20 | P153: 2020-21 | Q153: 2021-22
F154: =Asset1 -> Overhead Subtransmission Lines (Urban) | G154: 0.007982707588 | H154: 0.02044078 | I154: 0 | J154: 0 | K154: 0 | L154: 0.02787660188
F155: =Asset2 -> Underground Subtransmission Lines (Urban) | G155: 0.0006502221214 | H155: 0 | I155: 0.0006530350575 | J155: 0 | K155: 0 | L155: 0
F156: =Asset3 -> Urban Zone Substations | G156: 0.08654932472 | H156: 0 | I156: 0 | J156: 1.43 | K156: 0 | L156: 0.003197256827
F157: =Asset4 -> Rural Zone Substations | G157: 0.0002540781766 | H157: 0 | I157: 0.0002176783525 | J157: 0 | K157: 0 | L157: 0
F158: =Asset5 -> SCADA | G158: 0.00814429112 | H158: 0 | I158: 0 | J158: 0 | K158: 0 | L158: 0.006394513655
F159: =Asset6 -> Distribution Switching Stations (Ground) | G159: 0.1861257328 | H159: 0 | I159: 0.000435356705 | J159: 0 | K159: 0 | L159: 0.02238079779
F160: =Asset7 -> Overhead High Voltage Lines Urban | G160: 0.3944297243 | H160: 0.2107922177 | I160: 0.486602161 | J160: 0.27 | K160: 0.1516795226 | L160: 0.3635147028
F161: =Asset8 -> Overhead High Voltage Lines Rural | G161: 1.597898069 | H161: 1.588554961 | I161: 1.757362535 | J161: 1.31 | K161: 0.9535107917 | L161: 1.680170742
F162: =Asset9 -> Voltage Regulators on Distribution Feeders | G162: 0.002420826094 | H162: 0 | I162: 0 | J162: 0 | K162: 0 | L162: 0
F163: =Asset10 -> Underground High Voltage Lines | G163: 0.848581342 | H163: 1.894480276 | I163: 1.058636185 | J163: 2.36 | K163: 3.058903578 | L163: 2.414223379
F164: =Asset11 -> Underground High Voltage Lines SWER | G164: 0 | H164: 0 | I164: 0 | J164: 0 | K164: 0 | L164: 0
F165: =Asset12 -> Distribution Substations HV (Pole) | G165: 0.005189674833 | H165: 0.001321625 | I165: 0.0882311748 | J165: 0.04 | K165: 0 | L165: 0.05304383778
F166: =Asset13 -> Distribution Substations HV (Ground) | G166: 0.0545866292 | H166: 0.1889626232 | I166: 0.3388570043 | J166: 0.2 | K166: 0.1397029943 | L166: 0.2327374874
F167: =Asset14 -> Distribution Substations LV (Pole) | G167: 0.6920675953 | H167: 0.5765642674 | I167: 0.5549061057 | J167: 0.39 | K167: 0.3525006043 | L167: 0.4903354897
F168: =Asset15 -> Distribution Substations LV (Ground) | G168: 0.4164749084 | H168: 0.3450156891 | I168: 1.596261845 | J168: 2.61 | K168: 2.658343725 | L168: 1.229685276
F169: =Asset16 -> Overhead Low Voltage Lines Underbuilt Urban | G169: 0.1876876369 | H169: 0.007938862775 | I169: 0.003744118286 | J169: 0.01 | K169: 0.004778766497 | L169: 0.01153226437
F170: =Asset17 -> Overhead Low Voltage Lines Underbuilt Rural | G170: 0.1393281063 | H170: 0.2005058318 | I170: 0.1217974354 | J170: 0.18 | K170: 0.1212482516 | L170: 0.222537429
F171: =Asset18 -> Overhead Low Voltage Lines Urban | G171: 0.2789711461 | H171: 0.1882215907 | I171: 0.205794946 | J171: 0.15 | K171: 0.1384314107 | L171: 0.2647513465
F172: =Asset19 -> Overhead Low Voltage Lines Rural | G172: 0.3677739723 | H172: 0.5011759331 | I172: 0.3982197702 | J172: 0.42 | K172: 0.3050979634 | L172: 0.6256704757
F173: =Asset20 -> Underground Low Voltage Lines | G173: 0.4000307435 | H173: 0.5501065036 | I173: 0.6051787046 | J173: 1.25 | K173: 1.337299191 | L173: 1.209480598
F174: =Asset21 -> Underground Low Voltage Common Trench | G174: 0.2738064087 | H174: 0.5501065036 | I174: 0.6051787046 | J174: 1.25 | K174: 1.337299191 | L174: 1.209480598
F175: =Asset22 -> HVST Service Connections | G175: 0 | H175: 0 | I175: 0 | J175: 0 | K175: 0 | L175: 0
F176: =Asset23 -> HV Service Connections | G176: 0 | H176: 0.0128492486 | I176: 0.04218376652 | J176: 0 | K176: 0.03360246098 | L176: 0
F177: =Asset24 -> HV Metering CA Service Connections | G177: 0 | H177: 0 | I177: 0 | J177: 0 | K177: 0 | L177: 0
F178: =Asset25 -> HV/LV Service Connections | G178: 0 | H178: 0.02324082346 | I178: 0.07629905071 | J178: 0.01 | K178: 0.06077778458 | L178: 0
F179: =Asset26 -> Business LV Service Connections | G179: 0 | H179: 0.060866974 | I179: 0.1998247757 | J179: 0.01 | K179: 0.1591750757 | L179: 0
F180: =Asset27 -> Business LV Metering CA Service Connections | G180: 0 | H180: 0 | I180: 0 | J180: 0 | K180: 0 | L180: 0
F181: =Asset28 -> Domestic LV Service Connections | G181: 0 | H181: 0.4882038539 | I181: 1.602761222 | J181: 0.1 | K181: 1.276716753 | L181: 0
F182: =Asset29 -> Domestic LV Metering CA Service Connections | G182: 0 | H182: 0 | I182: 0 | J182: 0 | K182: 0 | L182: 0
F183: =Asset30 -> Wholesale Metering | G183: 0 | H183: 0 | I183: 0 | J183: 0 | K183: 0 | L183: 0
F184: =Asset31 -> HV Metering | G184: 0 | H184: 0 | I184: 0 | J184: 0 | K184: 0 | L184: 0
F185: =Asset32 -> HV/LV Metering | G185: 0 | H185: 0 | I185: 0 | J185: 0 | K185: 0 | L185: 0
F186: =Asset33 -> Business LV Metering | G186: 0 | H186: 0 | I186: 0 | J186: 0 | K186: 0 | L186: 0
F187: =Asset34 -> Domestic LV Metering | G187: 0 | H187: 0 | I187: 0 | J187: 0 | K187: 0 | L187: 0
F188: =Asset35 -> Off Peak Metering | G188: 0 | H188: 0 | I188: 0 | J188: 0 | K188: 0 | L188: 0
F189: =Asset36 -> Emergency Network Spares | G189: 0 | H189: 0 | I189: 0 | J189: 0 | K189: 0 | L189: 0
F190: =Asset37 -> Motor Vehicles | G190: 0 | H190: 0 | I190: 0 | J190: 0 | K190: 0 | L190: 0
F191: =Asset38 -> Minor Assets | G191: 0 | H191: 0 | I191: 0 | J191: 0 | K191: 0 | L191: 0
F192: =Asset39 -> Non-System Property | G192: 0 | H192: 0 | I192: 0 | J192: 0 | K192: 0 | L192: 0
F193: =Asset40 -> Spare Parts | G193: 0 | H193: 0 | I193: 0 | J193: 0 | K193: 0 | L193: 0
F194: =Asset41 -> NEM Assets | G194: 0 | H194: 0 | I194: 0 | J194: 0 | K194: 0 | L194: 0
F195: =Asset42 -> 0 | G195: 0 | H195: 0 | I195: 0 | J195: 0 | L195: 0
F196: =Asset43 -> Land | G196: 0 | H196: 0 | I196: 0 | J196: 0 | K196: 0 | L196: 0
F197: =Asset44 -> Easements | G197: 0 | I197: 0.1171411856 | J197: 0.2 | K197: 0.1634981087 | L197: 0
F198: =Asset45 -> Equity Raising Costs | G198: 0
F199: Total | G199: =SUM(G154:G198) -> 5.94895314 | H199: =SUM(H154:H198) -> 7.409348566 | I199: 9.86028676 | J199: 12.19 | K199: 12.25256617 | L199: 10.0670128 | M199: 0 | N199: 0 | O199: 0 | P199: 0 | Q199: 0
R200: =SUM(G199:Q199) -> 57.72816743
F201: ="Actual Net Capital Expenditure – As Incurred ($m Real "&CONCATENATE(LEFT(V7, 4)-1 &"-" &IF(V7>"2009-10",,"0") &RIGHT(V7,2)-1)&")" -> Actual Net Capital Expenditure – As Incurred ($m Real 2011-12)
F202: Year | G202: =G55 -> 2011-12 | H202: 2012-13 | I202: 2013-14 | J202: 2014-15 | K202: 2015-16 | L202: 2016-17 | M202: 2017-18 | N202: 2018-19 | O202: 2019-20 | P202: 2020-21 | Q202: 2021-22
F203: =Asset1 -> Overhead Subtransmission Lines (Urban) | G203: =(G56-G105-G154)/G$253 -> 0.8656589417 | H203: 1.367763435 | I203: 0.7287089587 | J203: 0.3024458188 | K203: 0.3120739428 | L203: 0.2084316092 | M203: 0 | N203: 0 | O203: 0 | P203: 0 | Q203: 0
F204: =Asset2 -> Underground Subtransmission Lines (Urban) | G204: =(G57-G106-G155)/G$253 -> 0.2869809836 | H204: 0.1588688092 | I204: 0.1270213045 | J204: 0.009192882029 | K204: 0.02449487299 | L204: 0 | M204: 0 | N204: 0 | O204: 0 | P204: 0 | Q204: 0
... 56 more rows

Sheet Adjustment for previous period
B2: Adjustments for Previous Regulatory Control Period
B4: Year | F4: =CONCATENATE(LEFT(G4, 4)-1 &"-" &IF(G4>"2009-10",,"0") &RIGHT(G4,2)-1) -> 2010-11 | G4: =Input!G55 -> 2011-12 | H4: =Input!H55 -> 2012-13 | I4: =Input!I55 -> 2013-14 | J4: =Input!J55 -> 2014-15 | K4: =Input!K55 -> 2015-16 | L4: =Input!L55 -> 2016-17 | M4: =Input!M55 -> 2017-18 | N4: =Input!N55 -> 2018-19 | O4: =Input!O55 -> 2019-20 | P4: =Input!P55 -> 2020-21 | Q4: =Input!Q55 -> 2021-22
B6: Actual CPI Inflation Rate | F6: =Input!G262 -> 0.02654867257 | G6: =Input!G252 -> 0.03103448276
B7: Nominal Vanilla WACC (fixed real time varying) | H7: =vanilla1 -> 0.08173108781 | I7: =vanilla2 -> 0.08623926352 | J7: =vanilla3 -> 0.06933919238 | K7: =vanilla4 -> 0.06915544166 | L7: =vanilla5 -> 0.0777545373 | M7: =vanilla6 -> 0 | N7: =vanilla7 -> 0 | O7: =vanilla8 -> 0 | P7: =vanilla9 -> 0 | Q7: =vanilla10 -> 0
B9: Nominal Adjustments for Difference Between Forecast and Actual Capex
B11: Nominal Forecast Net Capex (previous regulatory control period) | G11: =SUM(G12:G56) -> 128.2773889
C12: =Asset1 -> Overhead Subtransmission Lines (Urban) | G12: =Input!M7 -> 1.54038274
C13: =Asset2 -> Underground Subtransmission Lines (Urban) | G13: =Input!M8 -> 0.6952456953
C14: =Asset3 -> Urban Zone Substations | G14: =Input!M9 -> 8.734324844
C15: =Asset4 -> Rural Zone Substations | G15: =Input!M10 -> 1.168505427
C16: =Asset5 -> SCADA | G16: =Input!M11 -> 0.9428689435
C17: =Asset6 -> Distribution Switching Stations (Ground) | G17: =Input!M12 -> 3.472658763
C18: =Asset7 -> Overhead High Voltage Lines Urban | G18: =Input!M13 -> 8.106141884
C19: =Asset8 -> Overhead High Voltage Lines Rural | G19: =Input!M14 -> 26.71630893
C20: =Asset9 -> Voltage Regulators on Distribution Feeders | G20: =Input!M15 -> 0.6358598137
C21: =Asset10 -> Underground High Voltage Lines | G21: =Input!M16 -> 18.37248953
C22: =Asset11 -> Underground High Voltage Lines SWER | G22: =Input!M17 -> 0
C23: =Asset12 -> Distribution Substations HV (Pole) | G23: =Input!M18 -> 0.1137962907
C24: =Asset13 -> Distribution Substations HV (Ground) | G24: =Input!M19 -> 0.7094159731
C25: =Asset14 -> Distribution Substations LV (Pole) | G25: =Input!M20 -> 10.63036081
C26: =Asset15 -> Distribution Substations LV (Ground) | G26: =Input!M21 -> 6.082119559
C27: =Asset16 -> Overhead Low Voltage Lines Underbuilt Urban | G27: =Input!M22 -> 2.580127585
C28: =Asset17 -> Overhead Low Voltage Lines Underbuilt Rural | G28: =Input!M23 -> 3.142579381
C29: =Asset18 -> Overhead Low Voltage Lines Urban | G29: =Input!M24 -> 3.25511229
C30: =Asset19 -> Overhead Low Voltage Lines Rural | G30: =Input!M25 -> 6.607792316
C31: =Asset20 -> Underground Low Voltage Lines | G31: =Input!M26 -> 6.523657115
C32: =Asset21 -> Underground Low Voltage Common Trench | G32: =Input!M27 -> 4.698284554
C33: =Asset22 -> HVST Service Connections | G33: =Input!M28 -> 0
C34: =Asset23 -> HV Service Connections | G34: =Input!M29 -> 0.110560886
C35: =Asset24 -> HV Metering CA Service Connections | G35: =Input!M30 -> 0.03435223488
C36: =Asset25 -> HV/LV Service Connections | G36: =Input!M31 -> 0.1999748089
C37: =Asset26 -> Business LV Service Connections | G37: =Input!M32 -> 0.5291348702
C38: =Asset27 -> Business LV Metering CA Service Connections | G38: =Input!M33 -> 0.9856018599
C39: =Asset28 -> Domestic LV Service Connections | G39: =Input!M34 -> 4.216953775
C40: =Asset29 -> Domestic LV Metering CA Service Connections | G40: =Input!M35 -> 0.6649646088
C41: =Asset30 -> Wholesale Metering | G41: =Input!M36 -> 0
C42: =Asset31 -> HV Metering | G42: =Input!M37 -> 0
C43: =Asset32 -> HV/LV Metering | G43: =Input!M38 -> 0
C44: =Asset33 -> Business LV Metering | G44: =Input!M39 -> 0
C45: =Asset34 -> Domestic LV Metering | G45: =Input!M40 -> 0
C46: =Asset35 -> Off Peak Metering | G46: =Input!M41 -> 0
C47: =Asset36 -> Emergency Network Spares | G47: =Input!M42 -> 0
C48: =Asset37 -> Motor Vehicles | G48: =Input!M43 -> 5.547662659
C49: =Asset38 -> Minor Assets | G49: =Input!M44 -> 8.427237772
C50: =Asset39 -> Non-System Property | G50: =Input!M45 -> -4.624670691
C51: =Asset40 -> Spare Parts | G51: =Input!M46 -> -1.446796269
C52: =Asset41 -> NEM Assets | G52: =Input!M47 -> -1.095620084
C53: =Asset42 -> 0 | G53: =Input!M48 -> 0
C54: =Asset43 -> Land | G54: =Input!M49 -> 0
C55: =Asset44 -> Easements | G55: =Input!M50 -> 0
C56: =Asset45 -> Equity Raising Costs | G56: =Input!M51 -> 0
B58: Nominal Actual Net Capex | G58: =SUM(G59:G103) -> 90.3119451
C59: =Asset1 -> Overhead Subtransmission Lines (Urban) | G59: =Input!G203*(1+previous_vanilla)^0.5 -> 0.9043941066
C60: =Asset2 -> Underground Subtransmission Lines (Urban) | G60: =Input!G204*(1+previous_vanilla)^0.5 -> 0.2998223639
C61: =Asset3 -> Urban Zone Substations | G61: =Input!G205*(1+previous_vanilla)^0.5 -> 4.627204194
C62: =Asset4 -> Rural Zone Substations | G62: =Input!G206*(1+previous_vanilla)^0.5 -> -0.01889131677
C63: =Asset5 -> SCADA | G63: =Input!G207*(1+previous_vanilla)^0.5 -> 0.4498252538
C64: =Asset6 -> Distribution Switching Stations (Ground) | G64: =Input!G208*(1+previous_vanilla)^0.5 -> 2.173404133
C65: =Asset7 -> Overhead High Voltage Lines Urban | G65: =Input!G209*(1+previous_vanilla)^0.5 -> 5.992653253
C66: =Asset8 -> Overhead High Voltage Lines Rural | G66: =Input!G210*(1+previous_vanilla)^0.5 -> 19.16872645
C67: =Asset9 -> Voltage Regulators on Distribution Feeders | G67: =Input!G211*(1+previous_vanilla)^0.5 -> 0.1087247358
C68: =Asset10 -> Underground High Voltage Lines | G68: =Input!G212*(1+previous_vanilla)^0.5 -> 11.34548851
C69: =Asset11 -> Underground High Voltage Lines SWER | G69: =Input!G213*(1+previous_vanilla)^0.5 -> 0
C70: =Asset12 -> Distribution Substations HV (Pole) | G70: =Input!G214*(1+previous_vanilla)^0.5 -> 0.06150504717
C71: =Asset13 -> Distribution Substations HV (Ground) | G71: =Input!G215*(1+previous_vanilla)^0.5 -> 0.6196851074
C72: =Asset14 -> Distribution Substations LV (Pole) | G72: =Input!G216*(1+previous_vanilla)^0.5 -> 6.892355739
C73: =Asset15 -> Distribution Substations LV (Ground) | G73: =Input!G217*(1+previous_vanilla)^0.5 -> 4.031080206
C74: =Asset16 -> Overhead Low Voltage Lines Underbuilt Urban | G74: =Input!G218*(1+previous_vanilla)^0.5 -> 2.371837814
C75: =Asset17 -> Overhead Low Voltage Lines Underbuilt Rural | G75: =Input!G219*(1+previous_vanilla)^0.5 -> 1.801969588
C76: =Asset18 -> Overhead Low Voltage Lines Urban | G76: =Input!G220*(1+previous_vanilla)^0.5 -> 3.481556016
C77: =Asset19 -> Overhead Low Voltage Lines Rural | G77: =Input!G221*(1+previous_vanilla)^0.5 -> 4.636724709
C78: =Asset20 -> Underground Low Voltage Lines | G78: =Input!G222*(1+previous_vanilla)^0.5 -> 4.831629796
C79: =Asset21 -> Underground Low Voltage Common Trench | G79: =Input!G223*(1+previous_vanilla)^0.5 -> 3.307870864
C80: =Asset22 -> HVST Service Connections | G80: =Input!G224*(1+previous_vanilla)^0.5 -> 0
C81: =Asset23 -> HV Service Connections | G81: =Input!G225*(1+previous_vanilla)^0.5 -> 0.07272849096
C82: =Asset24 -> HV Metering CA Service Connections | G82: =Input!G226*(1+previous_vanilla)^0.5 -> 0.5510230553
C83: =Asset25 -> HV/LV Service Connections | G83: =Input!G227*(1+previous_vanilla)^0.5 -> 0.131546215
C84: =Asset26 -> Business LV Service Connections | G84: =Input!G228*(1+previous_vanilla)^0.5 -> 0.3446515354
C85: =Asset27 -> Business LV Metering CA Service Connections | G85: =Input!G229*(1+previous_vanilla)^0.5 -> 0.5978532215
C86: =Asset28 -> Domestic LV Service Connections | G86: =Input!G230*(1+previous_vanilla)^0.5 -> 2.763708677
C87: =Asset29 -> Domestic LV Metering CA Service Connections | G87: =Input!G231*(1+previous_vanilla)^0.5 -> 1.057198486
C88: =Asset30 -> Wholesale Metering | G88: =Input!G232*(1+previous_vanilla)^0.5 -> 0
C89: =Asset31 -> HV Metering | G89: =Input!G233*(1+previous_vanilla)^0.5 -> 0
C90: =Asset32 -> HV/LV Metering | G90: =Input!G234*(1+previous_vanilla)^0.5 -> 0
C91: =Asset33 -> Business LV Metering | G91: =Input!G235*(1+previous_vanilla)^0.5 -> 0
C92: =Asset34 -> Domestic LV Metering | G92: =Input!G236*(1+previous_vanilla)^0.5 -> 0
C93: =Asset35 -> Off Peak Metering | G93: =Input!G237*(1+previous_vanilla)^0.5 -> 0
C94: =Asset36 -> Emergency Network Spares | G94: =Input!G238*(1+previous_vanilla)^0.5 -> 0
C95: =Asset37 -> Motor Vehicles | G95: =Input!G239*(1+previous_vanilla)^0.5 -> -1.571580525
C96: =Asset38 -> Minor Assets | G96: =Input!G240*(1+previous_vanilla)^0.5 -> 2.636022703
C97: =Asset39 -> Non-System Property | G97: =Input!G241*(1+previous_vanilla)^0.5 -> 5.9345597
C98: =Asset40 -> Spare Parts | G98: =Input!G242*(1+previous_vanilla)^0.5 -> -0.5897182159
C99: =Asset41 -> NEM Assets | G99: =Input!G243*(1+previous_vanilla)^0.5 -> 1.296385177
C100: =Asset42 -> 0 | G100: =Input!G244*(1+previous_vanilla)^0.5 -> 0
C101: =Asset43 -> Land | G101: =Input!G245*(1+previous_vanilla)^0.5 -> 0
C102: =Asset44 -> Easements | G102: =Input!G246*(1+previous_vanilla)^0.5 -> 0
C103: =Asset45 -> Equity Raising Costs | G103: =Input!G247*(1+previous_vanilla)^0.5 -> 0
B105: Nominal Difference Between Actual and Forecast Net Capex | G105: =SUM(G106:G150) -> -37.96544378
C106: =Asset1 -> Overhead Subtransmission Lines (Urban) | G106: =G59-G12 -> -0.6359886329
C107: =Asset2 -> Underground Subtransmission Lines (Urban) | G107: =G60-G13 -> -0.3954233314
C108: =Asset3 -> Urban Zone Substations | G108: -4.10712065
C109: =Asset4 -> Rural Zone Substations | G109: -1.187396744
C110: =Asset5 -> SCADA | G110: -0.4930436897
C111: =Asset6 -> Distribution Switching Stations (Ground) | G111: -1.29925463
C112: =Asset7 -> Overhead High Voltage Lines Urban | G112: -2.113488631
C113: =Asset8 -> Overhead High Voltage Lines Rural | G113: -7.547582476
C114: =Asset9 -> Voltage Regulators on Distribution Feeders | G114: -0.5271350779
C115: =Asset10 -> Underground High Voltage Lines | G115: -7.027001019
C116: =Asset11 -> Underground High Voltage Lines SWER | G116: 0
C117: =Asset12 -> Distribution Substations HV (Pole) | G117: -0.05229124357
C118: =Asset13 -> Distribution Substations HV (Ground) | G118: -0.08973086571
C119: =Asset14 -> Distribution Substations LV (Pole) | G119: -3.738005071
C120: =Asset15 -> Distribution Substations LV (Ground) | G120: -2.051039353
C121: =Asset16 -> Overhead Low Voltage Lines Underbuilt Urban | G121: -0.2082897705
C122: =Asset17 -> Overhead Low Voltage Lines Underbuilt Rural | G122: -1.340609793
C123: =Asset18 -> Overhead Low Voltage Lines Urban | G123: 0.2264437264
C124: =Asset19 -> Overhead Low Voltage Lines Rural | G124: -1.971067607
C125: =Asset20 -> Underground Low Voltage Lines | G125: -1.692027319
C126: =Asset21 -> Underground Low Voltage Common Trench | G126: -1.39041369
C127: =Asset22 -> HVST Service Connections | G127: 0
C128: =Asset23 -> HV Service Connections | G128: -0.03783239504
C129: =Asset24 -> HV Metering CA Service Connections | G129: 0.5166708204
C130: =Asset25 -> HV/LV Service Connections | G130: -0.06842859388
C131: =Asset26 -> Business LV Service Connections | G131: -0.1844833349
C132: =Asset27 -> Business LV Metering CA Service Connections | G132: -0.3877486384
C133: =Asset28 -> Domestic LV Service Connections | G133: -1.453245098
C134: =Asset29 -> Domestic LV Metering CA Service Connections | G134: 0.3922338775
C135: =Asset30 -> Wholesale Metering | G135: 0
C136: =Asset31 -> HV Metering | G136: 0
C137: =Asset32 -> HV/LV Metering | G137: 0
C138: =Asset33 -> Business LV Metering | G138: 0
C139: =Asset34 -> Domestic LV Metering | G139: 0
C140: =Asset35 -> Off Peak Metering | G140: 0
C141: =Asset36 -> Emergency Network Spares | G141: 0
C142: =Asset37 -> Motor Vehicles | G142: -7.119243184
C143: =Asset38 -> Minor Assets | G143: -5.791215069
C144: =Asset39 -> Non-System Property | G144: 10.55923039
C145: =Asset40 -> Spare Parts | G145: 0.8570780533
C146: =Asset41 -> NEM Assets | G146: 2.392005261
C147: =Asset42 -> 0 | G147: 0
C148: =Asset43 -> Land | G148: 0
C149: =Asset44 -> Easements | G149: 0
C150: =Asset45 -> Equity Raising Costs | G150: 0
B152: Compounded Return on Difference - Net Capex | H152: =SUM(H153,H155,H157,H159,H161,H163,H165,H167,H169,H171,H173,H175,H177,H179,H181,H183,H185,H187,H189,H191,H193,H195,H197,H199,H201,H203,H205,H207,H209,H211,H213,H215,H217,H219,H221,H223,H225,H227,H229,H231,H233,H235,H237,H239,H241) -> -3.102957019 | I152: =SUM(I153,I155,I157,I159,I161,I163,I165,I167,I169,I171,I173,I175,I177,I179,I181,I183,I185,I187,I189,I191,I193,I195,I197,I199,I201,I203,I205,I207,I209,I211,I213,I215,I217,I219,I221,I223,I225,I227,I229,I231,I233,I235,I237,I239,I241) -> -3.541708639 | J152: -3.093228961 | K152: -3.298945436 | L152: -3.965658981 | M152: 0 | N152: 0 | O152: 0 | P152: 0 | Q152: =SUM(Q153,Q155,Q157,Q159,Q161,Q163,Q165,Q167,Q169,Q171,Q173,Q175,Q177,Q179,Q181,Q183,Q185,Q187,Q189,Q191,Q193,Q195,Q197,Q199,Q201,Q203,Q205,Q207,Q209,Q211) -> 0
C153: =Asset1 -> Overhead Subtransmission Lines (Urban) | H153: =($G106+(SUM($G153:G153)))*H$7 -> -0.05198004281 | I153: =($G106+(SUM($G153:H153)))*I$7 -> -0.05932991192 | J153: =($G106+(SUM($G153:I153)))*J$7 -> -0.05181708054 | K153: =($G106+(SUM($G153:J153)))*K$7 -> -0.05526319697 | L153: =($G106+(SUM($G153:K153)))*L$7 -> -0.06643183334 | M153: =($G106+(SUM($G153:L153)))*M$7 -> 0 | N153: =($G106+(SUM($G153:M153)))*N$7 -> 0 | O153: =($G106+(SUM($G153:N153)))*O$7 -> 0 | P153: =($G106+(SUM($G153:O153)))*P$7 -> 0 | Q153: =($G106+(SUM($G153:P153)))*Q$7 -> 0
C154: Sub-total | L154: =IF(M153=0, SUM($G153:L153), 0) -> -0.2848220656 | M154: =IF(N153=0, IF(M153=0, 0, SUM($G153:M153)), 0) -> 0 | N154: =IF(O153=0, IF(N153=0, 0, SUM($G153:N153)), 0) -> 0 | O154: =IF(P153=0, IF(O153=0, 0, SUM($G153:O153)), 0) -> 0 | P154: =IF(Q153=0, IF(P153=0, 0, SUM($G153:P153)), 0) -> 0 | Q154: =IF(R153=0, IF(Q153=0, 0, SUM($G153:Q153)), 0) -> 0
C155: =Asset2 -> Underground Subtransmission Lines (Urban) | H155: =($G107+(SUM($G155:G155)))*H$7 -> -0.03231837902 | I155: =($G107+(SUM($G155:H155)))*I$7 -> -0.03688813008 | J155: =($G107+(SUM($G155:I155)))*J$7 -> -0.0322170579 | K155: =($G107+(SUM($G155:J155)))*K$7 -> -0.0343596667 | L155: =($G107+(SUM($G155:K155)))*L$7 -> -0.04130372068 | M155: =($G107+(SUM($G155:L155)))*M$7 -> 0 | N155: =($G107+(SUM($G155:M155)))*N$7 -> 0 | O155: =($G107+(SUM($G155:N155)))*O$7 -> 0 | P155: =($G107+(SUM($G155:O155)))*P$7 -> 0 | Q155: =($G107+(SUM($G155:P155)))*Q$7 -> 0
C156: Sub-total | L156: =IF(M155=0, SUM($G155:L155), 0) -> -0.1770869544 | M156: =IF(N155=0, IF(M155=0, 0, SUM($G155:M155)), 0) -> 0 | N156: =IF(O155=0, IF(N155=0, 0, SUM($G155:N155)), 0) -> 0 | O156: =IF(P155=0, IF(O155=0, 0, SUM($G155:O155)), 0) -> 0 | P156: =IF(Q155=0, IF(P155=0, 0, SUM($G155:P155)), 0) -> 0 | Q156: =IF(R155=0, IF(Q155=0, 0, SUM($G155:Q155)), 0) -> 0
C157: =Asset3 -> Urban Zone Substations | H157: =($G108+(SUM($G157:G157)))*H$7 -> -0.3356794385 | I157: =($G108+(SUM($G157:H157)))*I$7 -> -0.3831438076 | J157: =($G108+(SUM($G157:I157)))*J$7 -> -0.3346270523 | K157: =($G108+(SUM($G157:J157)))*K$7 -> -0.3568815632 | L157: =($G108+(SUM($G157:K157)))*L$7 -> -0.4290069671 | M157: =($G108+(SUM($G157:L157)))*M$7 -> 0 | N157: =($G108+(SUM($G157:M157)))*N$7 -> 0 | O157: =($G108+(SUM($G157:N157)))*O$7 -> 0 | P157: =($G108+(SUM($G157:O157)))*P$7 -> 0 | Q157: =($G108+(SUM($G157:P157)))*Q$7 -> 0
C158: Sub-total | L158: =IF(M157=0, SUM($G157:L157), 0) -> -1.839338829 | M158: =IF(N157=0, IF(M157=0, 0, SUM($G157:M157)), 0) -> 0 | N158: =IF(O157=0, IF(N157=0, 0, SUM($G157:N157)), 0) -> 0 | O158: =IF(P157=0, IF(O157=0, 0, SUM($G157:O157)), 0) -> 0 | P158: =IF(Q157=0, IF(P157=0, 0, SUM($G157:P157)), 0) -> 0 | Q158: =IF(R157=0, IF(Q157=0, 0, SUM($G157:Q157)), 0) -> 0
C159: =Asset4 -> Rural Zone Substations | H159: =($G109+(SUM($G159:G159)))*H$7 -> -0.09704722757 | I159: =($G109+(SUM($G159:H159)))*I$7 -> -0.1107695022 | J159: =($G109+(SUM($G159:I159)))*J$7 -> -0.09674297548 | K159: =($G109+(SUM($G159:J159)))*K$7 -> -0.1031769072 | L159: =($G109+(SUM($G159:K159)))*L$7 -> -0.1240288561 | M159: =($G109+(SUM($G159:L159)))*M$7 -> 0 | N159: =($G109+(SUM($G159:M159)))*N$7 -> 0 | O159: =($G109+(SUM($G159:N159)))*O$7 -> 0 | P159: =($G109+(SUM($G159:O159)))*P$7 -> 0 | Q159: =($G109+(SUM($G159:P159)))*Q$7 -> 0
C160: Sub-total | L160: =IF(M159=0, SUM($G159:L159), 0) -> -0.5317654685 | M160: =IF(N159=0, IF(M159=0, 0, SUM($G159:M159)), 0) -> 0 | N160: =IF(O159=0, IF(N159=0, 0, SUM($G159:N159)), 0) -> 0 | O160: =IF(P159=0, IF(O159=0, 0, SUM($G159:O159)), 0) -> 0 | P160: =IF(Q159=0, IF(P159=0, 0, SUM($G159:P159)), 0) -> 0 | Q160: =IF(R159=0, IF(Q159=0, 0, SUM($G159:Q159)), 0) -> 0
C161: =Asset5 -> SCADA | H161: =($G110+(SUM($G161:G161)))*H$7 -> -0.0402969971 | I161: =($G110+(SUM($G161:H161)))*I$7 -> -0.04599490804 | J161: =($G110+(SUM($G161:I161)))*J$7 -> -0.04017066227 | K161: =($G110+(SUM($G161:J161)))*K$7 -> -0.04284222882 | L161: =($G110+(SUM($G161:K161)))*L$7 -> -0.05150060005 | M161: =($G110+(SUM($G161:L161)))*M$7 -> 0 | N161: =($G110+(SUM($G161:M161)))*N$7 -> 0 | O161: =($G110+(SUM($G161:N161)))*O$7 -> 0 | P161: =($G110+(SUM($G161:O161)))*P$7 -> 0 | Q161: =($G110+(SUM($G161:P161)))*Q$7 -> 0
C162: Sub-total | L162: =IF(M161=0, SUM($G161:L161), 0) -> -0.2208053963 | M162: =IF(N161=0, IF(M161=0, 0, SUM($G161:M161)), 0) -> 0 | N162: =IF(O161=0, IF(N161=0, 0, SUM($G161:N161)), 0) -> 0 | O162: =IF(P161=0, IF(O161=0, 0, SUM($G161:O161)), 0) -> 0 | P162: =IF(Q161=0, IF(P161=0, 0, SUM($G161:P161)), 0) -> 0 | Q162: =IF(R161=0, IF(Q161=0, 0, SUM($G161:Q161)), 0) -> 0
C163: =Asset6 -> Distribution Switching Stations (Ground) | H163: =($G111+(SUM($G163:G163)))*H$7 -> -0.1061894943 | I163: =($G111+(SUM($G163:H163)))*I$7 -> -0.1212044662 | J163: =($G111+(SUM($G163:I163)))*J$7 -> -0.1058565803 | K163: =($G111+(SUM($G163:J163)))*K$7 -> -0.1128966161 | L163: =($G111+(SUM($G163:K163)))*L$7 -> -0.1357129084 | M163: =($G111+(SUM($G163:L163)))*M$7 -> 0 | N163: =($G111+(SUM($G163:M163)))*N$7 -> 0 | O163: =($G111+(SUM($G163:N163)))*O$7 -> 0 | P163: =($G111+(SUM($G163:O163)))*P$7 -> 0 | Q163: =($G111+(SUM($G163:P163)))*Q$7 -> 0
C164: Sub-total | L164: =IF(M163=0, SUM($G163:L163), 0) -> -0.5818600653 | M164: =IF(N163=0, IF(M163=0, 0, SUM($G163:M163)), 0) -> 0 | N164: =IF(O163=0, IF(N163=0, 0, SUM($G163:N163)), 0) -> 0 | O164: =IF(P163=0, IF(O163=0, 0, SUM($G163:O163)), 0) -> 0 | P164: =IF(Q163=0, IF(P163=0, 0, SUM($G163:P163)), 0) -> 0 | Q164: =IF(R163=0, IF(Q163=0, 0, SUM($G163:Q163)), 0) -> 0
C165: =Asset7 -> Overhead High Voltage Lines Urban | H165: =($G112+(SUM($G165:G165)))*H$7 -> -0.1727377249 | I165: =($G112+(SUM($G165:H165)))*I$7 -> -0.1971624772 | J165: =($G112+(SUM($G165:I165)))*J$7 -> -0.1721961761 | K165: =($G112+(SUM($G165:J165)))*K$7 -> -0.1836481542 | L165: =($G112+(SUM($G165:K165)))*L$7 -> -0.2207632609 | M165: =($G112+(SUM($G165:L165)))*M$7 -> 0 | N165: =($G112+(SUM($G165:M165)))*N$7 -> 0 | O165: =($G112+(SUM($G165:N165)))*O$7 -> 0 | P165: =($G112+(SUM($G165:O165)))*P$7 -> 0 | Q165: =($G112+(SUM($G165:P165)))*Q$7 -> 0
C166: Sub-total | L166: =IF(M165=0, SUM($G165:L165), 0) -> -0.9465077932 | M166: =IF(N165=0, IF(M165=0, 0, SUM($G165:M165)), 0) -> 0 | N166: =IF(O165=0, IF(N165=0, 0, SUM($G165:N165)), 0) -> 0 | O166: =IF(P165=0, IF(O165=0, 0, SUM($G165:O165)), 0) -> 0 | P166: =IF(Q165=0, IF(P165=0, 0, SUM($G165:P165)), 0) -> 0 | Q166: =IF(R165=0, IF(Q165=0, 0, SUM($G165:Q165)), 0) -> 0
C167: =Asset8 -> Overhead High Voltage Lines Rural | H167: =($G113+(SUM($G167:G167)))*H$7 -> -0.6168721261 | I167: =($G113+(SUM($G167:H167)))*I$7 -> -0.7040965519 | J167: =($G113+(SUM($G167:I167)))*J$7 -> -0.6149381746 | K167: =($G113+(SUM($G167:J167)))*K$7 -> -0.655834893 | L167: =($G113+(SUM($G167:K167)))*L$7 -> -0.7883784634 | M167: =($G113+(SUM($G167:L167)))*M$7 -> 0 | N167: =($G113+(SUM($G167:M167)))*N$7 -> 0 | O167: =($G113+(SUM($G167:N167)))*O$7 -> 0 | P167: =($G113+(SUM($G167:O167)))*P$7 -> 0 | Q167: =($G113+(SUM($G167:P167)))*Q$7 -> 0
C168: Sub-total | L168: =IF(M167=0, SUM($G167:L167), 0) -> -3.380120209 | M168: =IF(N167=0, IF(M167=0, 0, SUM($G167:M167)), 0) -> 0 | N168: =IF(O167=0, IF(N167=0, 0, SUM($G167:N167)), 0) -> 0 | O168: =IF(P167=0, IF(O167=0, 0, SUM($G167:O167)), 0) -> 0 | P168: =IF(Q167=0, IF(P167=0, 0, SUM($G167:P167)), 0) -> 0 | Q168: =IF(R167=0, IF(Q167=0, 0, SUM($G167:Q167)), 0) -> 0
C169: =Asset9 -> Voltage Regulators on Distribution Feeders | H169: =($G114+(SUM($G169:G169)))*H$7 -> -0.04308332334 | I169: =($G114+(SUM($G169:H169)))*I$7 -> -0.04917521497 | J169: =($G114+(SUM($G169:I169)))*J$7 -> -0.04294825312 | K169: =($G114+(SUM($G169:J169)))*K$7 -> -0.04580454451 | L169: =($G114+(SUM($G169:K169)))*L$7 -> -0.05506159675 | M169: =($G114+(SUM($G169:L169)))*M$7 -> 0 | N169: =($G114+(SUM($G169:M169)))*N$7 -> 0 | O169: =($G114+(SUM($G169:N169)))*O$7 -> 0 | P169: =($G114+(SUM($G169:O169)))*P$7 -> 0 | Q169: =($G114+(SUM($G169:P169)))*Q$7 -> 0
C170: Sub-total | L170: =IF(M169=0, SUM($G169:L169), 0) -> -0.2360729327 | M170: =IF(N169=0, IF(M169=0, 0, SUM($G169:M169)), 0) -> 0 | N170: =IF(O169=0, IF(N169=0, 0, SUM($G169:N169)), 0) -> 0 | O170: =IF(P169=0, IF(O169=0, 0, SUM($G169:O169)), 0) -> 0 | P170: =IF(Q169=0, IF(P169=0, 0, SUM($G169:P169)), 0) -> 0 | Q170: =IF(R169=0, IF(Q169=0, 0, SUM($G169:Q169)), 0) -> 0
C171: =Asset10 -> Underground High Voltage Lines | H171: =($G115+(SUM($G171:G171)))*H$7 -> -0.5743244374 | I171: =($G115+(SUM($G171:H171)))*I$7 -> -0.6555327092 | J171: =($G115+(SUM($G171:I171)))*J$7 -> -0.5725238768 | K171: =($G115+(SUM($G171:J171)))*K$7 -> -0.6105998148 | L171: =($G115+(SUM($G171:K171)))*L$7 -> -0.7340014214 | M171: =($G115+(SUM($G171:L171)))*M$7 -> 0 | N171: =($G115+(SUM($G171:M171)))*N$7 -> 0 | O171: =($G115+(SUM($G171:N171)))*O$7 -> 0 | P171: =($G115+(SUM($G171:O171)))*P$7 -> 0 | Q171: =($G115+(SUM($G171:P171)))*Q$7 -> 0
C172: Sub-total | L172: =IF(M171=0, SUM($G171:L171), 0) -> -3.14698226 | M172: =IF(N171=0, IF(M171=0, 0, SUM($G171:M171)), 0) -> 0 | N172: =IF(O171=0, IF(N171=0, 0, SUM($G171:N171)), 0) -> 0 | O172: =IF(P171=0, IF(O171=0, 0, SUM($G171:O171)), 0) -> 0 | P172: =IF(Q171=0, IF(P171=0, 0, SUM($G171:P171)), 0) -> 0 | Q172: =IF(R171=0, IF(Q171=0, 0, SUM($G171:Q171)), 0) -> 0
C173: =Asset11 -> Underground High Voltage Lines SWER | H173: =($G116+(SUM($G173:G173)))*H$7 -> 0 | I173: =($G116+(SUM($G173:H173)))*I$7 -> 0 | J173: =($G116+(SUM($G173:I173)))*J$7 -> 0 | K173: =($G116+(SUM($G173:J173)))*K$7 -> 0 | L173: =($G116+(SUM($G173:K173)))*L$7 -> 0 | M173: =($G116+(SUM($G173:L173)))*M$7 -> 0 | N173: =($G116+(SUM($G173:M173)))*N$7 -> 0 | O173: =($G116+(SUM($G173:N173)))*O$7 -> 0 | P173: =($G116+(SUM($G173:O173)))*P$7 -> 0 | Q173: =($G116+(SUM($G173:P173)))*Q$7 -> 0
C174: Sub-total | L174: =IF(M173=0, SUM($G173:L173), 0) -> 0 | M174: =IF(N173=0, IF(M173=0, 0, SUM($G173:M173)), 0) -> 0 | N174: =IF(O173=0, IF(N173=0, 0, SUM($G173:N173)), 0) -> 0 | O174: =IF(P173=0, IF(O173=0, 0, SUM($G173:O173)), 0) -> 0 | P174: =IF(Q173=0, IF(P173=0, 0, SUM($G173:P173)), 0) -> 0 | Q174: =IF(R173=0, IF(Q173=0, 0, SUM($G173:Q173)), 0) -> 0
C175: =Asset12 -> Distribution Substations HV (Pole) | H175: =($G117+(SUM($G175:G175)))*H$7 -> -0.00427382022 | I175: =($G117+(SUM($G175:H175)))*I$7 -> -0.004878129442 | J175: =($G117+(SUM($G175:I175)))*J$7 -> -0.004260421396 | K175: =($G117+(SUM($G175:J175)))*K$7 -> -0.004543762488 | L175: =($G117+(SUM($G175:K175)))*L$7 -> -0.005462052304 | M175: =($G117+(SUM($G175:L175)))*M$7 -> 0 | N175: =($G117+(SUM($G175:M175)))*N$7 -> 0 | O175: =($G117+(SUM($G175:N175)))*O$7 -> 0 | P175: =($G117+(SUM($G175:O175)))*P$7 -> 0 | Q175: =($G117+(SUM($G175:P175)))*Q$7 -> 0
C176: Sub-total | L176: =IF(M175=0, SUM($G175:L175), 0) -> -0.02341818585 | M176: =IF(N175=0, IF(M175=0, 0, SUM($G175:M175)), 0) -> 0 | N176: =IF(O175=0, IF(N175=0, 0, SUM($G175:N175)), 0) -> 0 | O176: =IF(P175=0, IF(O175=0, 0, SUM($G175:O175)), 0) -> 0 | P176: =IF(Q175=0, IF(P175=0, 0, SUM($G175:P175)), 0) -> 0 | Q176: =IF(R175=0, IF(Q175=0, 0, SUM($G175:Q175)), 0) -> 0
C177: =Asset13 -> Distribution Substations HV (Ground) | H177: =($G118+(SUM($G177:G177)))*H$7 -> -0.007333801265 | I177: =($G118+(SUM($G177:H177)))*I$7 -> -0.008370785394 | J177: =($G118+(SUM($G177:I177)))*J$7 -> -0.007310809115 | K177: =($G118+(SUM($G177:J177)))*K$7 -> -0.007797017508 | L177: =($G118+(SUM($G177:K177)))*L$7 -> -0.009372786882 | M177: =($G118+(SUM($G177:L177)))*M$7 -> 0 | N177: =($G118+(SUM($G177:M177)))*N$7 -> 0 | O177: =($G118+(SUM($G177:N177)))*O$7 -> 0 | P177: =($G118+(SUM($G177:O177)))*P$7 -> 0 | Q177: =($G118+(SUM($G177:P177)))*Q$7 -> 0
C178: Sub-total | L178: =IF(M177=0, SUM($G177:L177), 0) -> -0.04018520016 | M178: =IF(N177=0, IF(M177=0, 0, SUM($G177:M177)), 0) -> 0 | N178: =IF(O177=0, IF(N177=0, 0, SUM($G177:N177)), 0) -> 0 | O178: =IF(P177=0, IF(O177=0, 0, SUM($G177:O177)), 0) -> 0 | P178: =IF(Q177=0, IF(P177=0, 0, SUM($G177:P177)), 0) -> 0 | Q178: =IF(R177=0, IF(Q177=0, 0, SUM($G177:Q177)), 0) -> 0
C179: =Asset14 -> Distribution Substations LV (Pole) | H179: =($G119+(SUM($G179:G179)))*H$7 -> -0.3055112207 | I179: =($G119+(SUM($G179:H179)))*I$7 -> -0.348709867 | J179: =($G119+(SUM($G179:I179)))*J$7 -> -0.3045534146 | K179: =($G119+(SUM($G179:J179)))*K$7 -> -0.3248078658 | L179: =($G119+(SUM($G179:K179)))*L$7 -> -0.3904512078 | M179: =($G119+(SUM($G179:L179)))*M$7 -> 0 | N179: =($G119+(SUM($G179:M179)))*N$7 -> 0 | O179: =($G119+(SUM($G179:N179)))*O$7 -> 0 | P179: =($G119+(SUM($G179:O179)))*P$7 -> 0 | Q179: =($G119+(SUM($G179:P179)))*Q$7 -> 0
C180: Sub-total | L180: =IF(M179=0, SUM($G179:L179), 0) -> -1.674033576 | M180: =IF(N179=0, IF(M179=0, 0, SUM($G179:M179)), 0) -> 0 | N180: =IF(O179=0, IF(N179=0, 0, SUM($G179:N179)), 0) -> 0 | O180: =IF(P179=0, IF(O179=0, 0, SUM($G179:O179)), 0) -> 0 | P180: =IF(Q179=0, IF(P179=0, 0, SUM($G179:P179)), 0) -> 0 | Q180: =IF(R179=0, IF(Q179=0, 0, SUM($G179:Q179)), 0) -> 0
C181: =Asset15 -> Distribution Substations LV (Ground) | H181: =($G120+(SUM($G181:G181)))*H$7 -> -0.1676336775 | I181: =($G120+(SUM($G181:H181)))*I$7 -> -0.1913367282 | J181: =($G120+(SUM($G181:I181)))*J$7 -> -0.1671081303 | K181: =($G120+(SUM($G181:J181)))*K$7 -> -0.1782217258 | L181: =($G120+(SUM($G181:K181)))*L$7 -> -0.2142401569 | M181: =($G120+(SUM($G181:L181)))*M$7 -> 0 | N181: =($G120+(SUM($G181:M181)))*N$7 -> 0 | O181: =($G120+(SUM($G181:N181)))*O$7 -> 0 | P181: =($G120+(SUM($G181:O181)))*P$7 -> 0 | Q181: =($G120+(SUM($G181:P181)))*Q$7 -> 0
C182: Sub-total | L182: =IF(M181=0, SUM($G181:L181), 0) -> -0.9185404186 | M182: =IF(N181=0, IF(M181=0, 0, SUM($G181:M181)), 0) -> 0 | N182: =IF(O181=0, IF(N181=0, 0, SUM($G181:N181)), 0) -> 0 | O182: =IF(P181=0, IF(O181=0, 0, SUM($G181:O181)), 0) -> 0 | P182: =IF(Q181=0, IF(P181=0, 0, SUM($G181:P181)), 0) -> 0 | Q182: =IF(R181=0, IF(Q181=0, 0, SUM($G181:Q181)), 0) -> 0
C183: =Asset16 -> Overhead Low Voltage Lines Underbuilt Urban | H183: =($G121+(SUM($G183:G183)))*H$7 -> -0.01702374952 | I183: =($G121+(SUM($G183:H183)))*I$7 -> -0.01943087202 | J183: =($G121+(SUM($G183:I183)))*J$7 -> -0.01697037848 | K183: =($G121+(SUM($G183:J183)))*K$7 -> -0.01809900054 | L183: =($G121+(SUM($G183:K183)))*L$7 -> -0.0217567903 | M183: =($G121+(SUM($G183:L183)))*M$7 -> 0 | N183: =($G121+(SUM($G183:M183)))*N$7 -> 0 | O183: =($G121+(SUM($G183:N183)))*O$7 -> 0 | P183: =($G121+(SUM($G183:O183)))*P$7 -> 0 | Q183: =($G121+(SUM($G183:P183)))*Q$7 -> 0
C184: Sub-total | L184: =IF(M183=0, SUM($G183:L183), 0) -> -0.09328079086 | M184: =IF(N183=0, IF(M183=0, 0, SUM($G183:M183)), 0) -> 0 | N184: =IF(O183=0, IF(N183=0, 0, SUM($G183:N183)), 0) -> 0 | O184: =IF(P183=0, IF(O183=0, 0, SUM($G183:O183)), 0) -> 0 | P184: =IF(Q183=0, IF(P183=0, 0, SUM($G183:P183)), 0) -> 0 | Q184: =IF(R183=0, IF(Q183=0, 0, SUM($G183:Q183)), 0) -> 0
C185: =Asset17 -> Overhead Low Voltage Lines Underbuilt Rural | H185: =($G122+(SUM($G185:G185)))*H$7 -> -0.1095694967 | I185: =($G122+(SUM($G185:H185)))*I$7 -> -0.1250623939 | J185: =($G122+(SUM($G185:I185)))*J$7 -> -0.1092259862 | K185: =($G122+(SUM($G185:J185)))*K$7 -> -0.1164901057 | L185: =($G122+(SUM($G185:K185)))*L$7 -> -0.1400326385 | M185: =($G122+(SUM($G185:L185)))*M$7 -> 0 | N185: =($G122+(SUM($G185:M185)))*N$7 -> 0 | O185: =($G122+(SUM($G185:N185)))*O$7 -> 0 | P185: =($G122+(SUM($G185:O185)))*P$7 -> 0 | Q185: =($G122+(SUM($G185:P185)))*Q$7 -> 0
C186: Sub-total | L186: =IF(M185=0, SUM($G185:L185), 0) -> -0.6003806211 | M186: =IF(N185=0, IF(M185=0, 0, SUM($G185:M185)), 0) -> 0 | N186: =IF(O185=0, IF(N185=0, 0, SUM($G185:N185)), 0) -> 0 | O186: =IF(P185=0, IF(O185=0, 0, SUM($G185:O185)), 0) -> 0 | P186: =IF(Q185=0, IF(P185=0, 0, SUM($G185:P185)), 0) -> 0 | Q186: =IF(R185=0, IF(Q185=0, 0, SUM($G185:Q185)), 0) -> 0
C187: =Asset18 -> Overhead Low Voltage Lines Urban | H187: =($G123+(SUM($G187:G187)))*H$7 -> 0.01850749208 | I187: =($G123+(SUM($G187:H187)))*I$7 -> 0.02112441268 | J187: =($G123+(SUM($G187:I187)))*J$7 -> 0.01844946937 | K187: =($G123+(SUM($G187:J187)))*K$7 -> 0.01967645899 | L187: =($G123+(SUM($G187:K187)))*L$7 -> 0.0236530515 | M187: =($G123+(SUM($G187:L187)))*M$7 -> 0 | N187: =($G123+(SUM($G187:M187)))*N$7 -> 0 | O187: =($G123+(SUM($G187:N187)))*O$7 -> 0 | P187: =($G123+(SUM($G187:O187)))*P$7 -> 0 | Q187: =($G123+(SUM($G187:P187)))*Q$7 -> 0
C188: Sub-total | L188: =IF(M187=0, SUM($G187:L187), 0) -> 0.1014108846 | M188: =IF(N187=0, IF(M187=0, 0, SUM($G187:M187)), 0) -> 0 | N188: =IF(O187=0, IF(N187=0, 0, SUM($G187:N187)), 0) -> 0 | O188: =IF(P187=0, IF(O187=0, 0, SUM($G187:O187)), 0) -> 0 | P188: =IF(Q187=0, IF(P187=0, 0, SUM($G187:P187)), 0) -> 0 | Q188: =IF(R187=0, IF(Q187=0, 0, SUM($G187:Q187)), 0) -> 0
C189: =Asset19 -> Overhead Low Voltage Lines Rural | H189: =($G124+(SUM($G189:G189)))*H$7 -> -0.1610974997 | I189: =($G124+(SUM($G189:H189)))*I$7 -> -0.1838763485 | J189: =($G124+(SUM($G189:I189)))*J$7 -> -0.160592444 | K189: =($G124+(SUM($G189:J189)))*K$7 -> -0.1712727112 | L189: =($G124+(SUM($G189:K189)))*L$7 -> -0.2058867533 | M189: =($G124+(SUM($G189:L189)))*M$7 -> 0 | N189: =($G124+(SUM($G189:M189)))*N$7 -> 0 | O189: =($G124+(SUM($G189:N189)))*O$7 -> 0 | P189: =($G124+(SUM($G189:O189)))*P$7 -> 0 | Q189: =($G124+(SUM($G189:P189)))*Q$7 -> 0
C190: Sub-total | L190: =IF(M189=0, SUM($G189:L189), 0) -> -0.8827257567 | M190: =IF(N189=0, IF(M189=0, 0, SUM($G189:M189)), 0) -> 0 | N190: =IF(O189=0, IF(N189=0, 0, SUM($G189:N189)), 0) -> 0 | O190: =IF(P189=0, IF(O189=0, 0, SUM($G189:O189)), 0) -> 0 | P190: =IF(Q189=0, IF(P189=0, 0, SUM($G189:P189)), 0) -> 0 | Q190: =IF(R189=0, IF(Q189=0, 0, SUM($G189:Q189)), 0) -> 0
C191: =Asset20 -> Underground Low Voltage Lines | H191: =($G125+(SUM($G191:G191)))*H$7 -> -0.1382912334 | I191: =($G125+(SUM($G191:H191)))*I$7 -> -0.1578453239 | J191: =($G125+(SUM($G191:I191)))*J$7 -> -0.1378576775 | K191: =($G125+(SUM($G191:J191)))*K$7 -> -0.1470259595 | L191: =($G125+(SUM($G191:K191)))*L$7 -> -0.1767397576 | M191: =($G125+(SUM($G191:L191)))*M$7 -> 0 | N191: =($G125+(SUM($G191:M191)))*N$7 -> 0 | O191: =($G125+(SUM($G191:N191)))*O$7 -> 0 | P191: =($G125+(SUM($G191:O191)))*P$7 -> 0 | Q191: =($G125+(SUM($G191:P191)))*Q$7 -> 0
C192: Sub-total | L192: =IF(M191=0, SUM($G191:L191), 0) -> -0.757759952 | M192: =IF(N191=0, IF(M191=0, 0, SUM($G191:M191)), 0) -> 0 | N192: =IF(O191=0, IF(N191=0, 0, SUM($G191:N191)), 0) -> 0 | O192: =IF(P191=0, IF(O191=0, 0, SUM($G191:O191)), 0) -> 0 | P192: =IF(Q191=0, IF(P191=0, 0, SUM($G191:P191)), 0) -> 0 | Q192: =IF(R191=0, IF(Q191=0, 0, SUM($G191:Q191)), 0) -> 0
C193: =Asset21 -> Underground Low Voltage Common Trench | H193: =($G126+(SUM($G193:G193)))*H$7 -> -0.1136400234 | I193: =($G126+(SUM($G193:H193)))*I$7 -> -0.1297084846 | J193: =($G126+(SUM($G193:I193)))*J$7 -> -0.1132837514 | K193: =($G126+(SUM($G193:J193)))*K$7 -> -0.1208177343 | L193: =($G126+(SUM($G193:K193)))*L$7 -> -0.1452348765 | M193: =($G126+(SUM($G193:L193)))*M$7 -> 0 | N193: =($G126+(SUM($G193:M193)))*N$7 -> 0 | O193: =($G126+(SUM($G193:N193)))*O$7 -> 0 | P193: =($G126+(SUM($G193:O193)))*P$7 -> 0 | Q193: =($G126+(SUM($G193:P193)))*Q$7 -> 0
C194: Sub-total | L194: =IF(M193=0, SUM($G193:L193), 0) -> -0.6226848701 | M194: =IF(N193=0, IF(M193=0, 0, SUM($G193:M193)), 0) -> 0 | N194: =IF(O193=0, IF(N193=0, 0, SUM($G193:N193)), 0) -> 0 | O194: =IF(P193=0, IF(O193=0, 0, SUM($G193:O193)), 0) -> 0 | P194: =IF(Q193=0, IF(P193=0, 0, SUM($G193:P193)), 0) -> 0 | Q194: =IF(R193=0, IF(Q193=0, 0, SUM($G193:Q193)), 0) -> 0
C195: =Asset22 -> HVST Service Connections | H195: =($G127+(SUM($G195:G195)))*H$7 -> 0 | I195: =($G127+(SUM($G195:H195)))*I$7 -> 0 | J195: =($G127+(SUM($G195:I195)))*J$7 -> 0 | K195: =($G127+(SUM($G195:J195)))*K$7 -> 0 | L195: =($G127+(SUM($G195:K195)))*L$7 -> 0 | M195: =($G127+(SUM($G195:L195)))*M$7 -> 0 | N195: =($G127+(SUM($G195:M195)))*N$7 -> 0 | O195: =($G127+(SUM($G195:N195)))*O$7 -> 0 | P195: =($G127+(SUM($G195:O195)))*P$7 -> 0 | Q195: =($G127+(SUM($G195:P195)))*Q$7 -> 0
C196: Sub-total | L196: =IF(M195=0, SUM($G195:L195), 0) -> 0 | M196: =IF(N195=0, IF(M195=0, 0, SUM($G195:M195)), 0) -> 0 | N196: =IF(O195=0, IF(N195=0, 0, SUM($G195:N195)), 0) -> 0 | O196: =IF(P195=0, IF(O195=0, 0, SUM($G195:O195)), 0) -> 0 | P196: =IF(Q195=0, IF(P195=0, 0, SUM($G195:P195)), 0) -> 0 | Q196: =IF(R195=0, IF(Q195=0, 0, SUM($G195:Q195)), 0) -> 0
C197: =Asset23 -> HV Service Connections | H197: =($G128+(SUM($G197:G197)))*H$7 -> -0.003092082801 | I197: =($G128+(SUM($G197:H197)))*I$7 -> -0.003529296829 | J197: =($G128+(SUM($G197:I197)))*J$7 -> -0.003082388834 | K197: =($G128+(SUM($G197:J197)))*K$7 -> -0.003287384382 | L197: =($G128+(SUM($G197:K197)))*L$7 -> -0.003951761449 | M197: =($G128+(SUM($G197:L197)))*M$7 -> 0 | N197: =($G128+(SUM($G197:M197)))*N$7 -> 0 | O197: =($G128+(SUM($G197:N197)))*O$7 -> 0 | P197: =($G128+(SUM($G197:O197)))*P$7 -> 0 | Q197: =($G128+(SUM($G197:P197)))*Q$7 -> 0
C198: Sub-total | L198: =IF(M197=0, SUM($G197:L197), 0) -> -0.01694291429 | M198: =IF(N197=0, IF(M197=0, 0, SUM($G197:M197)), 0) -> 0 | N198: =IF(O197=0, IF(N197=0, 0, SUM($G197:N197)), 0) -> 0 | O198: =IF(P197=0, IF(O197=0, 0, SUM($G197:O197)), 0) -> 0 | P198: =IF(Q197=0, IF(P197=0, 0, SUM($G197:P197)), 0) -> 0 | Q198: =IF(R197=0, IF(Q197=0, 0, SUM($G197:Q197)), 0) -> 0
C199: =Asset24 -> HV Metering CA Service Connections | H199: =($G129+(SUM($G199:G199)))*H$7 -> 0.0422280682 | I199: =($G129+(SUM($G199:H199)))*I$7 -> 0.04819902854 | J199: =($G129+(SUM($G199:I199)))*J$7 -> 0.04209567928 | K199: =($G129+(SUM($G199:J199)))*K$7 -> 0.04489526989 | L199: =($G129+(SUM($G199:K199)))*L$7 -> 0.05396855865 | M199: =($G129+(SUM($G199:L199)))*M$7 -> 0 | N199: =($G129+(SUM($G199:M199)))*N$7 -> 0 | O199: =($G129+(SUM($G199:N199)))*O$7 -> 0 | P199: =($G129+(SUM($G199:O199)))*P$7 -> 0 | Q199: =($G129+(SUM($G199:P199)))*Q$7 -> 0
C200: Sub-total | L200: =IF(M199=0, SUM($G199:L199), 0) -> 0.2313866045 | M200: =IF(N199=0, IF(M199=0, 0, SUM($G199:M199)), 0) -> 0 | N200: =IF(O199=0, IF(N199=0, 0, SUM($G199:N199)), 0) -> 0 | O200: =IF(P199=0, IF(O199=0, 0, SUM($G199:O199)), 0) -> 0 | P200: =IF(Q199=0, IF(P199=0, 0, SUM($G199:P199)), 0) -> 0 | Q200: =IF(R199=0, IF(Q199=0, 0, SUM($G199:Q199)), 0) -> 0
C201: =Asset25 -> HV/LV Service Connections | H201: =($G130+(SUM($G201:G201)))*H$7 -> -0.005592743415 | I201: =($G130+(SUM($G201:H201)))*I$7 -> -0.006383545613 | J201: =($G130+(SUM($G201:I201)))*J$7 -> -0.005575209644 | K201: =($G130+(SUM($G201:J201)))*K$7 -> -0.005945991274 | L201: =($G130+(SUM($G201:K201)))*L$7 -> -0.007147670113 | M201: =($G130+(SUM($G201:L201)))*M$7 -> 0 | N201: =($G130+(SUM($G201:M201)))*N$7 -> 0 | O201: =($G130+(SUM($G201:N201)))*O$7 -> 0 | P201: =($G130+(SUM($G201:O201)))*P$7 -> 0 | Q201: =($G130+(SUM($G201:P201)))*Q$7 -> 0
C202: Sub-total | L202: =IF(M201=0, SUM($G201:L201), 0) -> -0.03064516006 | M202: =IF(N201=0, IF(M201=0, 0, SUM($G201:M201)), 0) -> 0 | N202: =IF(O201=0, IF(N201=0, 0, SUM($G201:N201)), 0) -> 0 | O202: =IF(P201=0, IF(O201=0, 0, SUM($G201:O201)), 0) -> 0 | P202: =IF(Q201=0, IF(P201=0, 0, SUM($G201:P201)), 0) -> 0 | Q202: =IF(R201=0, IF(Q201=0, 0, SUM($G201:Q201)), 0) -> 0
C203: =Asset26 -> Business LV Service Connections | H203: =($G131+(SUM($G203:G203)))*H$7 -> -0.01507802364 | I203: =($G131+(SUM($G203:H203)))*I$7 -> -0.01721002459 | J203: =($G131+(SUM($G203:I203)))*J$7 -> -0.01503075264 | K203: =($G131+(SUM($G203:J203)))*K$7 -> -0.01603037908 | L203: =($G131+(SUM($G203:K203)))*L$7 -> -0.01927010252 | M203: =($G131+(SUM($G203:L203)))*M$7 -> 0 | N203: =($G131+(SUM($G203:M203)))*N$7 -> 0 | O203: =($G131+(SUM($G203:N203)))*O$7 -> 0 | P203: =($G131+(SUM($G203:O203)))*P$7 -> 0 | Q203: =($G131+(SUM($G203:P203)))*Q$7 -> 0
C204: Sub-total | L204: =IF(M203=0, SUM($G203:L203), 0) -> -0.08261928246 | M204: =IF(N203=0, IF(M203=0, 0, SUM($G203:M203)), 0) -> 0 | N204: =IF(O203=0, IF(N203=0, 0, SUM($G203:N203)), 0) -> 0 | O204: =IF(P203=0, IF(O203=0, 0, SUM($G203:O203)), 0) -> 0 | P204: =IF(Q203=0, IF(P203=0, 0, SUM($G203:P203)), 0) -> 0 | Q204: =IF(R203=0, IF(Q203=0, 0, SUM($G203:Q203)), 0) -> 0
C205: =Asset27 -> Business LV Metering CA Service Connections | H205: =($G132+(SUM($G205:G205)))*H$7 -> -0.03169111801 | I205: =($G132+(SUM($G205:H205)))*I$7 -> -0.03617217568 | J205: =($G132+(SUM($G205:I205)))*J$7 -> -0.03159176341 | K205: =($G132+(SUM($G205:J205)))*K$7 -> -0.03369278674 | L205: =($G132+(SUM($G205:K205)))*L$7 -> -0.04050206495 | M205: =($G132+(SUM($G205:L205)))*M$7 -> 0 | N205: =($G132+(SUM($G205:M205)))*N$7 -> 0 | O205: =($G132+(SUM($G205:N205)))*O$7 -> 0 | P205: =($G132+(SUM($G205:O205)))*P$7 -> 0 | Q205: =($G132+(SUM($G205:P205)))*Q$7 -> 0
C206: Sub-total | L206: =IF(M205=0, SUM($G205:L205), 0) -> -0.1736499088 | M206: =IF(N205=0, IF(M205=0, 0, SUM($G205:M205)), 0) -> 0 | N206: =IF(O205=0, IF(N205=0, 0, SUM($G205:N205)), 0) -> 0 | O206: =IF(P205=0, IF(O205=0, 0, SUM($G205:O205)), 0) -> 0 | P206: =IF(Q205=0, IF(P205=0, 0, SUM($G205:P205)), 0) -> 0 | Q206: =IF(R205=0, IF(Q205=0, 0, SUM($G205:Q205)), 0) -> 0
C207: =Asset28 -> Domestic LV Service Connections | H207: =($G133+(SUM($G207:G207)))*H$7 -> -0.1187753027 | I207: =($G133+(SUM($G207:H207)))*I$7 -> -0.1355698816 | J207: =($G133+(SUM($G207:I207)))*J$7 -> -0.1184029311 | K207: =($G133+(SUM($G207:J207)))*K$7 -> -0.1262773671 | L207: =($G133+(SUM($G207:K207)))*L$7 -> -0.1517978957 | M207: =($G133+(SUM($G207:L207)))*M$7 -> 0 | N207: =($G133+(SUM($G207:M207)))*N$7 -> 0 | O207: =($G133+(SUM($G207:N207)))*O$7 -> 0 | P207: =($G133+(SUM($G207:O207)))*P$7 -> 0 | Q207: =($G133+(SUM($G207:P207)))*Q$7 -> 0
C208: Sub-total | L208: =IF(M207=0, SUM($G207:L207), 0) -> -0.6508233782 | M208: =IF(N207=0, IF(M207=0, 0, SUM($G207:M207)), 0) -> 0 | N208: =IF(O207=0, IF(N207=0, 0, SUM($G207:N207)), 0) -> 0 | O208: =IF(P207=0, IF(O207=0, 0, SUM($G207:O207)), 0) -> 0 | P208: =IF(Q207=0, IF(P207=0, 0, SUM($G207:P207)), 0) -> 0 | Q208: =IF(R207=0, IF(Q207=0, 0, SUM($G207:Q207)), 0) -> 0
... 543 more rows

Sheet Actual RAB roll forward
C2: `
G3: 0 | H3: =G3+1 -> 1 | I3: 2 | J3: 3 | K3: 4 | L3: 5 | M3: 6 | N3: 7 | O3: 8 | P3: 9 | Q3: 10 | R3: 11
C4: Year | F4: ='Adjustment for previous period'!F4 -> 2010-11 | G4: =Input!G55 -> 2011-12 | H4: =Input!H55 -> 2012-13 | I4: =Input!I55 -> 2013-14 | J4: =Input!J55 -> 2014-15 | K4: =Input!K55 -> 2015-16 | L4: =Input!L55 -> 2016-17 | M4: =Input!M55 -> 2017-18 | N4: =Input!N55 -> 2018-19 | O4: =Input!O55 -> 2019-20 | P4: =Input!P55 -> 2020-21 | Q4: =Input!Q55 -> 2021-22 | R4: =CONCATENATE(LEFT(Q4, 4)+1 &"-" &IF(Q4>"2007-08",,"0") &RIGHT(Q4,2)+1) -> 2022-23
C6: Actual CPI Inflation Rate | G6: =Input!G252 -> 0.03103448276 | H6: =Input!H252 -> 0.02502502503 | I6: =Input!I252 -> 0.029296875 | J6: =Input!J252 -> 0.01328273245 | K6: =Input!K252 -> 0.01310861423 | L6: =Input!L252 -> 0.02125693161 | M6: =Input!M252 -> 0 | N6: =Input!N252 -> 0 | O6: =Input!O252 -> 0 | P6: =Input!P252 -> 0 | Q6: =Input!Q252 -> 0
C7: Actual CPI (one year lagged) | G7: =Input!G253 -> 1 | H7: =Input!H253 -> 1.031034483 | I7: =Input!I253 -> 1.056836146 | J7: =Input!J253 -> 1.087798143 | K7: =Input!K253 -> 1.102247075 | L7: =Input!L253 -> 1.116696006 | M7: =Input!M253 -> 1.140433537 | N7: =Input!N253 -> 1.140433537 | O7: =Input!O253 -> 1.140433537 | P7: =Input!P253 -> 1.140433537 | Q7: =Input!Q253 -> 1.140433537
C9: Real Asset Values
C11: Real Actual Net Capex | H11: =SUM(H12:H56) -> 86.61577135 | I11: =SUM(I12:I56) -> 94.41424125 | J11: 81.98288796 | K11: 95.19939406 | L11: 112.3140457 | M11: 0 | N11: 0 | O11: 0 | P11: 0 | Q11: 0
D12: =Asset1 -> Overhead Subtransmission Lines (Urban) | H12: =Input!H203*(1+vanilla1)^0.5 -> 1.42256017 | I12: =Input!I203*(1+vanilla2)^0.5 -> 0.7594809014 | J12: =Input!J203*(1+vanilla3)^0.5 -> 0.3127557674 | K12: =Input!K203*(1+vanilla4)^0.5 -> 0.3226843726 | L12: =Input!L203*(1+vanilla5)^0.5 -> 0.2163831863 | M12: =Input!M203*(1+vanilla6)^0.5 -> 0 | N12: =Input!N203*(1+vanilla7)^0.5 -> 0 | O12: =Input!O203*(1+vanilla8)^0.5 -> 0 | P12: =Input!P203*(1+vanilla9)^0.5 -> 0 | Q12: =Input!Q203*(1+vanilla10)^0.5 -> 0
D13: =Asset2 -> Underground Subtransmission Lines (Urban) | H13: =Input!H204*(1+vanilla1)^0.5 -> 0.1652335737 | I13: =Input!I204*(1+vanilla2)^0.5 -> 0.1323851638 | J13: =Input!J204*(1+vanilla3)^0.5 -> 0.009506254329 | K13: =Input!K204*(1+vanilla4)^0.5 -> 0.02532769206 | L13: =Input!L204*(1+vanilla5)^0.5 -> 0 | M13: =Input!M204*(1+vanilla6)^0.5 -> 0 | N13: =Input!N204*(1+vanilla7)^0.5 -> 0 | O13: =Input!O204*(1+vanilla8)^0.5 -> 0 | P13: =Input!P204*(1+vanilla9)^0.5 -> 0 | Q13: =Input!Q204*(1+vanilla10)^0.5 -> 0
D14: =Asset3 -> Urban Zone Substations | H14: =Input!H205*(1+vanilla1)^0.5 -> 2.095837063 | I14: =Input!I205*(1+vanilla2)^0.5 -> 4.972649234 | J14: =Input!J205*(1+vanilla3)^0.5 -> 0.7462409648 | K14: =Input!K205*(1+vanilla4)^0.5 -> 3.622603347 | L14: =Input!L205*(1+vanilla5)^0.5 -> 0.1515537809 | M14: =Input!M205*(1+vanilla6)^0.5 -> 0 | N14: =Input!N205*(1+vanilla7)^0.5 -> 0 | O14: =Input!O205*(1+vanilla8)^0.5 -> 0 | P14: =Input!P205*(1+vanilla9)^0.5 -> 0 | Q14: =Input!Q205*(1+vanilla10)^0.5 -> 0
D15: =Asset4 -> Rural Zone Substations | H15: =Input!H206*(1+vanilla1)^0.5 -> 0.3094330372 | I15: =Input!I206*(1+vanilla2)^0.5 -> 1.072269017 | J15: =Input!J206*(1+vanilla3)^0.5 -> 0.4220776922 | K15: =Input!K206*(1+vanilla4)^0.5 -> 0.1806025319 | L15: =Input!L206*(1+vanilla5)^0.5 -> 0.138741647 | M15: =Input!M206*(1+vanilla6)^0.5 -> 0 | N15: =Input!N206*(1+vanilla7)^0.5 -> 0 | O15: =Input!O206*(1+vanilla8)^0.5 -> 0 | P15: =Input!P206*(1+vanilla9)^0.5 -> 0 | Q15: =Input!Q206*(1+vanilla10)^0.5 -> 0
D16: =Asset5 -> SCADA | H16: =Input!H207*(1+vanilla1)^0.5 -> 1.282210944 | I16: =Input!I207*(1+vanilla2)^0.5 -> 2.474090132 | J16: =Input!J207*(1+vanilla3)^0.5 -> 2.291007293 | K16: =Input!K207*(1+vanilla4)^0.5 -> 15.69960779 | L16: =Input!L207*(1+vanilla5)^0.5 -> 16.87124279 | M16: =Input!M207*(1+vanilla6)^0.5 -> 0 | N16: =Input!N207*(1+vanilla7)^0.5 -> 0 | O16: =Input!O207*(1+vanilla8)^0.5 -> 0 | P16: =Input!P207*(1+vanilla9)^0.5 -> 0 | Q16: =Input!Q207*(1+vanilla10)^0.5 -> 0
D17: =Asset6 -> Distribution Switching Stations (Ground) | H17: =Input!H208*(1+vanilla1)^0.5 -> 0.1542537804 | I17: =Input!I208*(1+vanilla2)^0.5 -> 0.1814989369 | J17: =Input!J208*(1+vanilla3)^0.5 -> 0.2034338426 | K17: =Input!K208*(1+vanilla4)^0.5 -> 0.1721041878 | L17: =Input!L208*(1+vanilla5)^0.5 -> 0.4037197736 | M17: =Input!M208*(1+vanilla6)^0.5 -> 0 | N17: =Input!N208*(1+vanilla7)^0.5 -> 0 | O17: =Input!O208*(1+vanilla8)^0.5 -> 0 | P17: =Input!P208*(1+vanilla9)^0.5 -> 0 | Q17: =Input!Q208*(1+vanilla10)^0.5 -> 0
D18: =Asset7 -> Overhead High Voltage Lines Urban | H18: =Input!H209*(1+vanilla1)^0.5 -> 6.569786356 | I18: =Input!I209*(1+vanilla2)^0.5 -> 6.773997512 | J18: =Input!J209*(1+vanilla3)^0.5 -> 5.752234494 | K18: =Input!K209*(1+vanilla4)^0.5 -> 6.481293298 | L18: =Input!L209*(1+vanilla5)^0.5 -> 6.668056552 | M18: =Input!M209*(1+vanilla6)^0.5 -> 0 | N18: =Input!N209*(1+vanilla7)^0.5 -> 0 | O18: =Input!O209*(1+vanilla8)^0.5 -> 0 | P18: =Input!P209*(1+vanilla9)^0.5 -> 0 | Q18: =Input!Q209*(1+vanilla10)^0.5 -> 0
D19: =Asset8 -> Overhead High Voltage Lines Rural | H19: =Input!H210*(1+vanilla1)^0.5 -> 17.47965952 | I19: =Input!I210*(1+vanilla2)^0.5 -> 17.47129274 | J19: =Input!J210*(1+vanilla3)^0.5 -> 16.39163434 | K19: =Input!K210*(1+vanilla4)^0.5 -> 16.11161178 | L19: =Input!L210*(1+vanilla5)^0.5 -> 20.72973749 | M19: =Input!M210*(1+vanilla6)^0.5 -> 0 | N19: =Input!N210*(1+vanilla7)^0.5 -> 0 | O19: =Input!O210*(1+vanilla8)^0.5 -> 0 | P19: =Input!P210*(1+vanilla9)^0.5 -> 0 | Q19: =Input!Q210*(1+vanilla10)^0.5 -> 0
D20: =Asset9 -> Voltage Regulators on Distribution Feeders | H20: =Input!H211*(1+vanilla1)^0.5 -> 0.895308364 | I20: =Input!I211*(1+vanilla2)^0.5 -> 0.7243216562 | J20: =Input!J211*(1+vanilla3)^0.5 -> 0.9943542028 | K20: =Input!K211*(1+vanilla4)^0.5 -> 0.5562679464 | L20: =Input!L211*(1+vanilla5)^0.5 -> 0.7282071499 | M20: =Input!M211*(1+vanilla6)^0.5 -> 0 | N20: =Input!N211*(1+vanilla7)^0.5 -> 0 | O20: =Input!O211*(1+vanilla8)^0.5 -> 0 | P20: =Input!P211*(1+vanilla9)^0.5 -> 0 | Q20: =Input!Q211*(1+vanilla10)^0.5 -> 0
D21: =Asset10 -> Underground High Voltage Lines | H21: =Input!H212*(1+vanilla1)^0.5 -> 4.022105086 | I21: =Input!I212*(1+vanilla2)^0.5 -> 3.664801808 | J21: =Input!J212*(1+vanilla3)^0.5 -> 3.844329251 | K21: =Input!K212*(1+vanilla4)^0.5 -> 2.762958894 | L21: =Input!L212*(1+vanilla5)^0.5 -> 7.191587408 | M21: =Input!M212*(1+vanilla6)^0.5 -> 0 | N21: =Input!N212*(1+vanilla7)^0.5 -> 0 | O21: =Input!O212*(1+vanilla8)^0.5 -> 0 | P21: =Input!P212*(1+vanilla9)^0.5 -> 0 | Q21: =Input!Q212*(1+vanilla10)^0.5 -> 0
D22: =Asset11 -> Underground High Voltage Lines SWER | H22: =Input!H213*(1+vanilla1)^0.5 -> 0.0614001185 | I22: =Input!I213*(1+vanilla2)^0.5 -> 0.08262408916 | J22: =Input!J213*(1+vanilla3)^0.5 -> 0.02946938842 | K22: =Input!K213*(1+vanilla4)^0.5 -> 0.03430535745 | L22: =Input!L213*(1+vanilla5)^0.5 -> 0 | M22: =Input!M213*(1+vanilla6)^0.5 -> 0 | N22: =Input!N213*(1+vanilla7)^0.5 -> 0 | O22: =Input!O213*(1+vanilla8)^0.5 -> 0 | P22: =Input!P213*(1+vanilla9)^0.5 -> 0 | Q22: =Input!Q213*(1+vanilla10)^0.5 -> 0
D23: =Asset12 -> Distribution Substations HV (Pole) | H23: =Input!H214*(1+vanilla1)^0.5 -> 0.1060448678 | I23: =Input!I214*(1+vanilla2)^0.5 -> 0.1133877927 | J23: =Input!J214*(1+vanilla3)^0.5 -> 0.1368900623 | K23: =Input!K214*(1+vanilla4)^0.5 -> 0.1084427923 | L23: =Input!L214*(1+vanilla5)^0.5 -> 0.1487401005 | M23: =Input!M214*(1+vanilla6)^0.5 -> 0 | N23: =Input!N214*(1+vanilla7)^0.5 -> 0 | O23: =Input!O214*(1+vanilla8)^0.5 -> 0 | P23: =Input!P214*(1+vanilla9)^0.5 -> 0 | Q23: =Input!Q214*(1+vanilla10)^0.5 -> 0
D24: =Asset13 -> Distribution Substations HV (Ground) | H24: =Input!H215*(1+vanilla1)^0.5 -> 1.502634258 | I24: =Input!I215*(1+vanilla2)^0.5 -> 1.944635483 | J24: =Input!J215*(1+vanilla3)^0.5 -> 2.629429947 | K24: =Input!K215*(1+vanilla4)^0.5 -> 3.308640909 | L24: =Input!L215*(1+vanilla5)^0.5 -> 3.303687193 | M24: =Input!M215*(1+vanilla6)^0.5 -> 0 | N24: =Input!N215*(1+vanilla7)^0.5 -> 0 | O24: =Input!O215*(1+vanilla8)^0.5 -> 0 | P24: =Input!P215*(1+vanilla9)^0.5 -> 0 | Q24: =Input!Q215*(1+vanilla10)^0.5 -> 0
D25: =Asset14 -> Distribution Substations LV (Pole) | H25: =Input!H216*(1+vanilla1)^0.5 -> 6.955808634 | I25: =Input!I216*(1+vanilla2)^0.5 -> 6.045065837 | J25: =Input!J216*(1+vanilla3)^0.5 -> 5.372934947 | K25: =Input!K216*(1+vanilla4)^0.5 -> 7.016636726 | L25: =Input!L216*(1+vanilla5)^0.5 -> 5.930747567 | M25: =Input!M216*(1+vanilla6)^0.5 -> 0 | N25: =Input!N216*(1+vanilla7)^0.5 -> 0 | O25: =Input!O216*(1+vanilla8)^0.5 -> 0 | P25: =Input!P216*(1+vanilla9)^0.5 -> 0 | Q25: =Input!Q216*(1+vanilla10)^0.5 -> 0
D26: =Asset15 -> Distribution Substations LV (Ground) | H26: =Input!H217*(1+vanilla1)^0.5 -> 2.735242743 | I26: =Input!I217*(1+vanilla2)^0.5 -> 1.483877318 | J26: =Input!J217*(1+vanilla3)^0.5 -> 2.703578731 | K26: =Input!K217*(1+vanilla4)^0.5 -> 3.43144103 | L26: =Input!L217*(1+vanilla5)^0.5 -> 5.497601398 | M26: =Input!M217*(1+vanilla6)^0.5 -> 0 | N26: =Input!N217*(1+vanilla7)^0.5 -> 0 | O26: =Input!O217*(1+vanilla8)^0.5 -> 0 | P26: =Input!P217*(1+vanilla9)^0.5 -> 0 | Q26: =Input!Q217*(1+vanilla10)^0.5 -> 0
D27: =Asset16 -> Overhead Low Voltage Lines Underbuilt Urban | H27: =Input!H218*(1+vanilla1)^0.5 -> 2.75684212 | I27: =Input!I218*(1+vanilla2)^0.5 -> 2.652839706 | J27: =Input!J218*(1+vanilla3)^0.5 -> 3.974564935 | K27: =Input!K218*(1+vanilla4)^0.5 -> 3.598415112 | L27: =Input!L218*(1+vanilla5)^0.5 -> 3.107377558 | M27: =Input!M218*(1+vanilla6)^0.5 -> 0 | N27: =Input!N218*(1+vanilla7)^0.5 -> 0 | O27: =Input!O218*(1+vanilla8)^0.5 -> 0 | P27: =Input!P218*(1+vanilla9)^0.5 -> 0 | Q27: =Input!Q218*(1+vanilla10)^0.5 -> 0
D28: =Asset17 -> Overhead Low Voltage Lines Underbuilt Rural | H28: =Input!H219*(1+vanilla1)^0.5 -> 1.945721537 | I28: =Input!I219*(1+vanilla2)^0.5 -> 2.022168517 | J28: =Input!J219*(1+vanilla3)^0.5 -> 3.317682761 | K28: =Input!K219*(1+vanilla4)^0.5 -> 3.353011267 | L28: =Input!L219*(1+vanilla5)^0.5 -> 2.324030389 | M28: =Input!M219*(1+vanilla6)^0.5 -> 0 | N28: =Input!N219*(1+vanilla7)^0.5 -> 0 | O28: =Input!O219*(1+vanilla8)^0.5 -> 0 | P28: =Input!P219*(1+vanilla9)^0.5 -> 0 | Q28: =Input!Q219*(1+vanilla10)^0.5 -> 0
D29: =Asset18 -> Overhead Low Voltage Lines Urban | H29: =Input!H220*(1+vanilla1)^0.5 -> 3.412715299 | I29: =Input!I220*(1+vanilla2)^0.5 -> 3.175481527 | J29: =Input!J220*(1+vanilla3)^0.5 -> 4.598175219 | K29: =Input!K220*(1+vanilla4)^0.5 -> 4.338384887 | L29: =Input!L220*(1+vanilla5)^0.5 -> 3.604003204 | M29: =Input!M220*(1+vanilla6)^0.5 -> 0 | N29: =Input!N220*(1+vanilla7)^0.5 -> 0 | O29: =Input!O220*(1+vanilla8)^0.5 -> 0 | P29: =Input!P220*(1+vanilla9)^0.5 -> 0 | Q29: =Input!Q220*(1+vanilla10)^0.5 -> 0
D30: =Asset19 -> Overhead Low Voltage Lines Rural | H30: =Input!H221*(1+vanilla1)^0.5 -> 5.829895974 | I30: =Input!I221*(1+vanilla2)^0.5 -> 4.858341472 | J30: =Input!J221*(1+vanilla3)^0.5 -> 6.086854647 | K30: =Input!K221*(1+vanilla4)^0.5 -> 6.145702473 | L30: =Input!L221*(1+vanilla5)^0.5 -> 5.711147806 | M30: =Input!M221*(1+vanilla6)^0.5 -> 0 | N30: =Input!N221*(1+vanilla7)^0.5 -> 0 | O30: =Input!O221*(1+vanilla8)^0.5 -> 0 | P30: =Input!P221*(1+vanilla9)^0.5 -> 0 | Q30: =Input!Q221*(1+vanilla10)^0.5 -> 0
D31: =Asset20 -> Underground Low Voltage Lines | H31: =Input!H222*(1+vanilla1)^0.5 -> 2.745984065 | I31: =Input!I222*(1+vanilla2)^0.5 -> 2.999087095 | J31: =Input!J222*(1+vanilla3)^0.5 -> 3.515412851 | K31: =Input!K222*(1+vanilla4)^0.5 -> 2.285180436 | L31: =Input!L222*(1+vanilla5)^0.5 -> 4.162442929 | M31: =Input!M222*(1+vanilla6)^0.5 -> 0 | N31: =Input!N222*(1+vanilla7)^0.5 -> 0 | O31: =Input!O222*(1+vanilla8)^0.5 -> 0 | P31: =Input!P222*(1+vanilla9)^0.5 -> 0 | Q31: =Input!Q222*(1+vanilla10)^0.5 -> 0
D32: =Asset21 -> Underground Low Voltage Common Trench | H32: =Input!H223*(1+vanilla1)^0.5 -> 1.215252843 | I32: =Input!I223*(1+vanilla2)^0.5 -> 0.9937735341 | J32: =Input!J223*(1+vanilla3)^0.5 -> 0.5294983661 | K32: =Input!K223*(1+vanilla4)^0.5 -> 0.5692017267 | L32: =Input!L223*(1+vanilla5)^0.5 -> 0.9227337294 | M32: =Input!M223*(1+vanilla6)^0.5 -> 0 | N32: =Input!N223*(1+vanilla7)^0.5 -> 0 | O32: =Input!O223*(1+vanilla8)^0.5 -> 0 | P32: =Input!P223*(1+vanilla9)^0.5 -> 0 | Q32: =Input!Q223*(1+vanilla10)^0.5 -> 0
D33: =Asset22 -> HVST Service Connections | H33: =Input!H224*(1+vanilla1)^0.5 -> 0 | I33: =Input!I224*(1+vanilla2)^0.5 -> 0 | J33: =Input!J224*(1+vanilla3)^0.5 -> 0 | K33: =Input!K224*(1+vanilla4)^0.5 -> 0 | L33: =Input!L224*(1+vanilla5)^0.5 -> 0 | M33: =Input!M224*(1+vanilla6)^0.5 -> 0 | N33: =Input!N224*(1+vanilla7)^0.5 -> 0 | O33: =Input!O224*(1+vanilla8)^0.5 -> 0 | P33: =Input!P224*(1+vanilla9)^0.5 -> 0 | Q33: =Input!Q224*(1+vanilla10)^0.5 -> 0
D34: =Asset23 -> HV Service Connections | H34: =Input!H225*(1+vanilla1)^0.5 -> 0.08153506885 | I34: =Input!I225*(1+vanilla2)^0.5 -> 0.06180802808 | J34: =Input!J225*(1+vanilla3)^0.5 -> 0.1425938149 | K34: =Input!K225*(1+vanilla4)^0.5 -> 0.1124332688 | L34: =Input!L225*(1+vanilla5)^0.5 -> 0.1282632534 | M34: =Input!M225*(1+vanilla6)^0.5 -> 0 | N34: =Input!N225*(1+vanilla7)^0.5 -> 0 | O34: =Input!O225*(1+vanilla8)^0.5 -> 0 | P34: =Input!P225*(1+vanilla9)^0.5 -> 0 | Q34: =Input!Q225*(1+vanilla10)^0.5 -> 0
D35: =Asset24 -> HV Metering CA Service Connections | H35: =Input!H226*(1+vanilla1)^0.5 -> 0.00757639131 | I35: =Input!I226*(1+vanilla2)^0.5 -> 0.00674451526 | J35: =Input!J226*(1+vanilla3)^0.5 -> 0.0009506254329 | K35: =Input!K226*(1+vanilla4)^0.5 -> 0.005742045523 | L35: =Input!L226*(1+vanilla5)^0.5 -> 0.02205189863 | M35: =Input!M226*(1+vanilla6)^0.5 -> 0 | N35: =Input!N226*(1+vanilla7)^0.5 -> 0 | O35: =Input!O226*(1+vanilla8)^0.5 -> 0 | P35: =Input!P226*(1+vanilla9)^0.5 -> 0 | Q35: =Input!Q226*(1+vanilla10)^0.5 -> 0
D36: =Asset25 -> HV/LV Service Connections | H36: =Input!H227*(1+vanilla1)^0.5 -> 0.147474938 | I36: =Input!I227*(1+vanilla2)^0.5 -> 0.1117940444 | J36: =Input!J227*(1+vanilla3)^0.5 -> 0.2471626125 | K36: =Input!K227*(1+vanilla4)^0.5 -> 0.2033614441 | L36: =Input!L227*(1+vanilla5)^0.5 -> 0.2319936147 | M36: =Input!M227*(1+vanilla6)^0.5 -> 0 | N36: =Input!N227*(1+vanilla7)^0.5 -> 0 | O36: =Input!O227*(1+vanilla8)^0.5 -> 0 | P36: =Input!P227*(1+vanilla9)^0.5 -> 0 | Q36: =Input!Q227*(1+vanilla10)^0.5 -> 0
D37: =Asset26 -> Business LV Service Connections | H37: =Input!H228*(1+vanilla1)^0.5 -> 0.4138531512 | I37: =Input!I228*(1+vanilla2)^0.5 -> 0.3113575978 | J37: =Input!J228*(1+vanilla3)^0.5 -> 0.6958578169 | K37: =Input!K228*(1+vanilla4)^0.5 -> 0.5536596405 | L37: =Input!L228*(1+vanilla5)^0.5 -> 0.6168066393 | M37: =Input!M228*(1+vanilla6)^0.5 -> 0 | N37: =Input!N228*(1+vanilla7)^0.5 -> 0 | O37: =Input!O228*(1+vanilla8)^0.5 -> 0 | P37: =Input!P228*(1+vanilla9)^0.5 -> 0 | Q37: =Input!Q228*(1+vanilla10)^0.5 -> 0
D38: =Asset27 -> Business LV Metering CA Service Connections | H38: =Input!H229*(1+vanilla1)^0.5 -> 0.4863155385 | I38: =Input!I229*(1+vanilla2)^0.5 -> 0.4594158692 | J38: =Input!J229*(1+vanilla3)^0.5 -> 0.2338538565 | K38: =Input!K229*(1+vanilla4)^0.5 -> 0.3947288581 | L38: =Input!L229*(1+vanilla5)^0.5 -> 0.6408458794 | M38: =Input!M229*(1+vanilla6)^0.5 -> 0 | N38: =Input!N229*(1+vanilla7)^0.5 -> 0 | O38: =Input!O229*(1+vanilla8)^0.5 -> 0 | P38: =Input!P229*(1+vanilla9)^0.5 -> 0 | Q38: =Input!Q229*(1+vanilla10)^0.5 -> 0
D39: =Asset28 -> Domestic LV Service Connections | H39: =Input!H230*(1+vanilla1)^0.5 -> 3.40281508 | I39: =Input!I230*(1+vanilla2)^0.5 -> 2.569732065 | J39: =Input!J230*(1+vanilla3)^0.5 -> 5.579220665 | K39: =Input!K230*(1+vanilla4)^0.5 -> 4.493931326 | L39: =Input!L230*(1+vanilla5)^0.5 -> 4.900997233 | M39: =Input!M230*(1+vanilla6)^0.5 -> 0 | N39: =Input!N230*(1+vanilla7)^0.5 -> 0 | O39: =Input!O230*(1+vanilla8)^0.5 -> 0 | P39: =Input!P230*(1+vanilla9)^0.5 -> 0 | Q39: =Input!Q230*(1+vanilla10)^0.5 -> 0
D40: =Asset29 -> Domestic LV Metering CA Service Connections | H40: =Input!H231*(1+vanilla1)^0.5 -> 0.3674966283 | I40: =Input!I231*(1+vanilla2)^0.5 -> 0.5811039929 | J40: =Input!J231*(1+vanilla3)^0.5 -> 0.1321369352 | K40: =Input!K231*(1+vanilla4)^0.5 -> 0.4230128998 | L40: =Input!L231*(1+vanilla5)^0.5 -> 0.4802195256 | M40: =Input!M231*(1+vanilla6)^0.5 -> 0 | N40: =Input!N231*(1+vanilla7)^0.5 -> 0 | O40: =Input!O231*(1+vanilla8)^0.5 -> 0 | P40: =Input!P231*(1+vanilla9)^0.5 -> 0 | Q40: =Input!Q231*(1+vanilla10)^0.5 -> 0
D41: =Asset30 -> Wholesale Metering | H41: =Input!H232*(1+vanilla1)^0.5 -> 0 | I41: =Input!I232*(1+vanilla2)^0.5 -> 0 | J41: =Input!J232*(1+vanilla3)^0.5 -> 0 | K41: =Input!K232*(1+vanilla4)^0.5 -> 0 | L41: =Input!L232*(1+vanilla5)^0.5 -> 0 | M41: =Input!M232*(1+vanilla6)^0.5 -> 0 | N41: =Input!N232*(1+vanilla7)^0.5 -> 0 | O41: =Input!O232*(1+vanilla8)^0.5 -> 0 | P41: =Input!P232*(1+vanilla9)^0.5 -> 0 | Q41: =Input!Q232*(1+vanilla10)^0.5 -> 0
D42: =Asset31 -> HV Metering | H42: =Input!H233*(1+vanilla1)^0.5 -> 0 | I42: =Input!I233*(1+vanilla2)^0.5 -> 0 | J42: =Input!J233*(1+vanilla3)^0.5 -> 0 | K42: =Input!K233*(1+vanilla4)^0.5 -> 0 | L42: =Input!L233*(1+vanilla5)^0.5 -> 0 | M42: =Input!M233*(1+vanilla6)^0.5 -> 0 | N42: =Input!N233*(1+vanilla7)^0.5 -> 0 | O42: =Input!O233*(1+vanilla8)^0.5 -> 0 | P42: =Input!P233*(1+vanilla9)^0.5 -> 0 | Q42: =Input!Q233*(1+vanilla10)^0.5 -> 0
D43: =Asset32 -> HV/LV Metering | H43: =Input!H234*(1+vanilla1)^0.5 -> 0 | I43: =Input!I234*(1+vanilla2)^0.5 -> 0 | J43: =Input!J234*(1+vanilla3)^0.5 -> 0 | K43: =Input!K234*(1+vanilla4)^0.5 -> 0 | L43: =Input!L234*(1+vanilla5)^0.5 -> 0 | M43: =Input!M234*(1+vanilla6)^0.5 -> 0 | N43: =Input!N234*(1+vanilla7)^0.5 -> 0 | O43: =Input!O234*(1+vanilla8)^0.5 -> 0 | P43: =Input!P234*(1+vanilla9)^0.5 -> 0 | Q43: =Input!Q234*(1+vanilla10)^0.5 -> 0
D44: =Asset33 -> Business LV Metering | H44: =Input!H235*(1+vanilla1)^0.5 -> 0 | I44: =Input!I235*(1+vanilla2)^0.5 -> 0 | J44: =Input!J235*(1+vanilla3)^0.5 -> 0 | K44: =Input!K235*(1+vanilla4)^0.5 -> 0 | L44: =Input!L235*(1+vanilla5)^0.5 -> 0 | M44: =Input!M235*(1+vanilla6)^0.5 -> 0 | N44: =Input!N235*(1+vanilla7)^0.5 -> 0 | O44: =Input!O235*(1+vanilla8)^0.5 -> 0 | P44: =Input!P235*(1+vanilla9)^0.5 -> 0 | Q44: =Input!Q235*(1+vanilla10)^0.5 -> 0
D45: =Asset34 -> Domestic LV Metering | H45: =Input!H236*(1+vanilla1)^0.5 -> 0 | I45: =Input!I236*(1+vanilla2)^0.5 -> 0 | J45: =Input!J236*(1+vanilla3)^0.5 -> 0 | K45: =Input!K236*(1+vanilla4)^0.5 -> 0 | L45: =Input!L236*(1+vanilla5)^0.5 -> 0 | M45: =Input!M236*(1+vanilla6)^0.5 -> 0 | N45: =Input!N236*(1+vanilla7)^0.5 -> 0 | O45: =Input!O236*(1+vanilla8)^0.5 -> 0 | P45: =Input!P236*(1+vanilla9)^0.5 -> 0 | Q45: =Input!Q236*(1+vanilla10)^0.5 -> 0
D46: =Asset35 -> Off Peak Metering | H46: =Input!H237*(1+vanilla1)^0.5 -> 0 | I46: =Input!I237*(1+vanilla2)^0.5 -> 0 | J46: =Input!J237*(1+vanilla3)^0.5 -> 0 | K46: =Input!K237*(1+vanilla4)^0.5 -> 0 | L46: =Input!L237*(1+vanilla5)^0.5 -> 0 | M46: =Input!M237*(1+vanilla6)^0.5 -> 0 | N46: =Input!N237*(1+vanilla7)^0.5 -> 0 | O46: =Input!O237*(1+vanilla8)^0.5 -> 0 | P46: =Input!P237*(1+vanilla9)^0.5 -> 0 | Q46: =Input!Q237*(1+vanilla10)^0.5 -> 0
D47: =Asset36 -> Emergency Network Spares | H47: =Input!H238*(1+vanilla1)^0.5 -> 0 | I47: =Input!I238*(1+vanilla2)^0.5 -> 0 | J47: =Input!J238*(1+vanilla3)^0.5 -> 0 | K47: =Input!K238*(1+vanilla4)^0.5 -> 0 | L47: =Input!L238*(1+vanilla5)^0.5 -> 0 | M47: =Input!M238*(1+vanilla6)^0.5 -> 0 | N47: =Input!N238*(1+vanilla7)^0.5 -> 0 | O47: =Input!O238*(1+vanilla8)^0.5 -> 0 | P47: =Input!P238*(1+vanilla9)^0.5 -> 0 | Q47: =Input!Q238*(1+vanilla10)^0.5 -> 0
D48: =Asset37 -> Motor Vehicles | H48: =Input!H239*(1+vanilla1)^0.5 -> 2.77805529 | I48: =Input!I239*(1+vanilla2)^0.5 -> 3.891831931 | J48: =Input!J239*(1+vanilla3)^0.5 -> 1.390765008 | K48: =Input!K239*(1+vanilla4)^0.5 -> 1.81070911 | L48: =Input!L239*(1+vanilla5)^0.5 -> 1.535041139 | M48: =Input!M239*(1+vanilla6)^0.5 -> 0 | N48: =Input!N239*(1+vanilla7)^0.5 -> 0 | O48: =Input!O239*(1+vanilla8)^0.5 -> 0 | P48: =Input!P239*(1+vanilla9)^0.5 -> 0 | Q48: =Input!Q239*(1+vanilla10)^0.5 -> 0
D49: =Asset38 -> Minor Assets | H49: =Input!H240*(1+vanilla1)^0.5 -> 7.314331671 | I49: =Input!I240*(1+vanilla2)^0.5 -> 8.054372 | J49: =Input!J240*(1+vanilla3)^0.5 -> 9.432105545 | K49: =Input!K240*(1+vanilla4)^0.5 -> 6.561331968 | L49: =Input!L240*(1+vanilla5)^0.5 -> 14.60541782 | M49: =Input!M240*(1+vanilla6)^0.5 -> 0 | N49: =Input!N240*(1+vanilla7)^0.5 -> 0 | O49: =Input!O240*(1+vanilla8)^0.5 -> 0 | P49: =Input!P240*(1+vanilla9)^0.5 -> 0 | Q49: =Input!Q240*(1+vanilla10)^0.5 -> 0
D50: =Asset39 -> Non-System Property | H50: =Input!H241*(1+vanilla1)^0.5 -> -2.083781762 | I50: =Input!I241*(1+vanilla2)^0.5 -> -1.000027305 | J50: =Input!J241*(1+vanilla3)^0.5 -> 0 | K50: =Input!K241*(1+vanilla4)^0.5 -> 0 | L50: =Input!L241*(1+vanilla5)^0.5 -> 1.340667084 | M50: =Input!M241*(1+vanilla6)^0.5 -> 0 | N50: =Input!N241*(1+vanilla7)^0.5 -> 0 | O50: =Input!O241*(1+vanilla8)^0.5 -> 0 | P50: =Input!P241*(1+vanilla9)^0.5 -> 0 | Q50: =Input!Q241*(1+vanilla10)^0.5 -> 0
D51: =Asset40 -> Spare Parts | H51: =Input!H242*(1+vanilla1)^0.5 -> 0 | I51: =Input!I242*(1+vanilla2)^0.5 -> 0 | J51: =Input!J242*(1+vanilla3)^0.5 -> 0 | K51: =Input!K242*(1+vanilla4)^0.5 -> 0 | L51: =Input!L242*(1+vanilla5)^0.5 -> 0 | M51: =Input!M242*(1+vanilla6)^0.5 -> 0 | N51: =Input!N242*(1+vanilla7)^0.5 -> 0 | O51: =Input!O242*(1+vanilla8)^0.5 -> 0 | P51: =Input!P242*(1+vanilla9)^0.5 -> 0 | Q51: =Input!Q242*(1+vanilla10)^0.5 -> 0
D52: =Asset41 -> NEM Assets | H52: =Input!H243*(1+vanilla1)^0.5 -> 9.346338158 | I52: =Input!I243*(1+vanilla2)^0.5 -> 13.78608119 | J52: =Input!J243*(1+vanilla3)^0.5 -> 0 | K52: =Input!K243*(1+vanilla4)^0.5 -> 0 | L52: =Input!L243*(1+vanilla5)^0.5 -> 0 | M52: =Input!M243*(1+vanilla6)^0.5 -> 0 | N52: =Input!N243*(1+vanilla7)^0.5 -> 0 | O52: =Input!O243*(1+vanilla8)^0.5 -> 0 | P52: =Input!P243*(1+vanilla9)^0.5 -> 0 | Q52: =Input!Q243*(1+vanilla10)^0.5 -> 0
D53: =Asset42 -> 0 | H53: =Input!H244*(1+vanilla1)^0.5 -> 0 | I53: =Input!I244*(1+vanilla2)^0.5 -> 0 | J53: =Input!J244*(1+vanilla3)^0.5 -> 0 | K53: =Input!K244*(1+vanilla4)^0.5 -> 0 | L53: =Input!L244*(1+vanilla5)^0.5 -> 0 | M53: =Input!M244*(1+vanilla6)^0.5 -> 0 | N53: =Input!N244*(1+vanilla7)^0.5 -> 0 | O53: =Input!O244*(1+vanilla8)^0.5 -> 0 | P53: =Input!P244*(1+vanilla9)^0.5 -> 0 | Q53: =Input!Q244*(1+vanilla10)^0.5 -> 0
D54: =Asset43 -> Land | H54: =Input!H245*(1+vanilla1)^0.5 -> 0.5721893043 | I54: =Input!I245*(1+vanilla2)^0.5 -> 0.6386484699 | J54: =Input!J245*(1+vanilla3)^0.5 -> 0 | K54: =Input!K245*(1+vanilla4)^0.5 -> 0 | L54: =Input!L245*(1+vanilla5)^0.5 -> 0 | M54: =Input!M245*(1+vanilla6)^0.5 -> 0 | N54: =Input!N245*(1+vanilla7)^0.5 -> 0 | O54: =Input!O245*(1+vanilla8)^0.5 -> 0 | P54: =Input!P245*(1+vanilla9)^0.5 -> 0 | Q54: =Input!Q245*(1+vanilla10)^0.5 -> 0
D55: =Asset44 -> Easements | H55: =Input!H246*(1+vanilla1)^0.5 -> 0.1176415331 | I55: =Input!I246*(1+vanilla2)^0.5 -> 0.3433093778 | J55: =Input!J246*(1+vanilla3)^0.5 -> 0.2661751212 | K55: =Input!K246*(1+vanilla4)^0.5 -> 0.5160589429 | L55: =Input!L246*(1+vanilla5)^0.5 -> 0 | M55: =Input!M246*(1+vanilla6)^0.5 -> 0 | N55: =Input!N246*(1+vanilla7)^0.5 -> 0 | O55: =Input!O246*(1+vanilla8)^0.5 -> 0 | P55: =Input!P246*(1+vanilla9)^0.5 -> 0 | Q55: =Input!Q246*(1+vanilla10)^0.5 -> 0
D56: =Asset45 -> Equity Raising Costs | H56: =Input!H247*(1+vanilla1)^0.5 -> 0 | I56: =Input!I247*(1+vanilla2)^0.5 -> 0 | J56: =Input!J247*(1+vanilla3)^0.5 -> 0 | K56: =Input!K247*(1+vanilla4)^0.5 -> 0 | L56: =Input!L247*(1+vanilla5)^0.5 -> 0 | M56: =Input!M247*(1+vanilla6)^0.5 -> 0 | N56: =Input!N247*(1+vanilla7)^0.5 -> 0 | O56: =Input!O247*(1+vanilla8)^0.5 -> 0 | P56: =Input!P247*(1+vanilla9)^0.5 -> 0 | Q56: =Input!Q247*(1+vanilla10)^0.5 -> 0
C58: Real Actual Straight-line Depreciation | H58: =H71+H84+H97+H110+H123+H136+H149+H162+H175+H188+H201+H214+H227+H240+H253+H266+H279+H292+H305+H318+H331+H344+H357+H370+H383+H396+H409+H422+H435+H448+H461+H474+H487+H500+H513+H526+H539+H552+H565+H578+H591+H604+H617+H630+H643 -> -81.27405071 | I58: =I71+I84+I97+I110+I123+I136+I149+I162+I175+I188+I201+I214+I227+I240+I253+I266+I279+I292+I305+I318+I331+I344+I357+I370+I383+I396+I409+I422+I435+I448+I461+I474+I487+I500+I513+I526+I539+I552+I565+I578+I591+I604+I617+I630+I643 -> -86.01721876 | J58: -84.49600046 | K58: -77.47996555 | L58: -77.21215334 | M58: 0 | N58: 0 | O58: 0 | P58: 0 | Q58: 0
C59: =Asset1 -> Overhead Subtransmission Lines (Urban) | E59: Opening RAB | H59: =IF(H$3>A1remlife,A1value-SUM($G59:G59),IF(A1remlife="N/A","n/a",A1value/A1remlife)) -> 0.3712886565 | I59: =IF(I$3>A1remlife,A1value-SUM($G59:H59),IF(A1remlife="N/A","n/a",A1value/A1remlife)) -> 0.3712886565 | J59: =IF(J$3>A1remlife,A1value-SUM($G59:I59),IF(A1remlife="N/A","n/a",A1value/A1remlife)) -> 0.3712886565 | K59: =IF(K$3>A1remlife,A1value-SUM($G59:J59),IF(A1remlife="N/A","n/a",A1value/A1remlife)) -> 0.3712886565 | L59: =IF(L$3>A1remlife,A1value-SUM($G59:K59),IF(A1remlife="N/A","n/a",A1value/A1remlife)) -> 0.3712886565 | M59: =IF(M$3>A1remlife,A1value-SUM($G59:L59),IF(A1remlife="N/A","n/a",A1value/A1remlife)) -> 0.3712886565 | N59: =IF(N$3>A1remlife,A1value-SUM($G59:M59),IF(A1remlife="N/A","n/a",A1value/A1remlife)) -> 0.3712886565 | O59: =IF(O$3>A1remlife,A1value-SUM($G59:N59),IF(A1remlife="N/A","n/a",A1value/A1remlife)) -> 0.3712886565 | P59: =IF(P$3>A1remlife,A1value-SUM($G59:O59),IF(A1remlife="N/A","n/a",A1value/A1remlife)) -> 0.3712886565 | Q59: =IF(Q$3>A1remlife,A1value-SUM($G59:P59),IF(A1remlife="N/A","n/a",A1value/A1remlife)) -> 0.3712886565
E60: Capex in year | F60: 0
F61: 1 | I61: =IF(A1stdlife="n/a","n/a",IF(I$3>(A1stdlife+$F61),(Input!$H$203*(1+vanilla1)^0.5)-SUM($H61:H61),(Input!$H$203*(1+vanilla1)^0.5)/A1stdlife)) -> 0.02845120341 | J61: =IF(A1stdlife="n/a","n/a",IF(J$3>(A1stdlife+$F61),(Input!$H$203*(1+vanilla1)^0.5)-SUM($H61:I61),(Input!$H$203*(1+vanilla1)^0.5)/A1stdlife)) -> 0.02845120341 | K61: =IF(A1stdlife="n/a","n/a",IF(K$3>(A1stdlife+$F61),(Input!$H$203*(1+vanilla1)^0.5)-SUM($H61:J61),(Input!$H$203*(1+vanilla1)^0.5)/A1stdlife)) -> 0.02845120341 | L61: =IF(A1stdlife="n/a","n/a",IF(L$3>(A1stdlife+$F61),(Input!$H$203*(1+vanilla1)^0.5)-SUM($H61:K61),(Input!$H$203*(1+vanilla1)^0.5)/A1stdlife)) -> 0.02845120341 | M61: =IF(A1stdlife="n/a","n/a",IF(M$3>(A1stdlife+$F61),(Input!$H$203*(1+vanilla1)^0.5)-SUM($H61:L61),(Input!$H$203*(1+vanilla1)^0.5)/A1stdlife)) -> 0.02845120341 | N61: =IF(A1stdlife="n/a","n/a",IF(N$3>(A1stdlife+$F61),(Input!$H$203*(1+vanilla1)^0.5)-SUM($H61:M61),(Input!$H$203*(1+vanilla1)^0.5)/A1stdlife)) -> 0.02845120341 | O61: =IF(A1stdlife="n/a","n/a",IF(O$3>(A1stdlife+$F61),(Input!$H$203*(1+vanilla1)^0.5)-SUM($H61:N61),(Input!$H$203*(1+vanilla1)^0.5)/A1stdlife)) -> 0.02845120341 | P61: =IF(A1stdlife="n/a","n/a",IF(P$3>(A1stdlife+$F61),(Input!$H$203*(1+vanilla1)^0.5)-SUM($H61:O61),(Input!$H$203*(1+vanilla1)^0.5)/A1stdlife)) -> 0.02845120341 | Q61: =IF(A1stdlife="n/a","n/a",IF(Q$3>(A1stdlife+$F61),(Input!$H$203*(1+vanilla1)^0.5)-SUM($H61:P61),(Input!$H$203*(1+vanilla1)^0.5)/A1stdlife)) -> 0.02845120341
F62: 2 | J62: =IF(A1stdlife="n/a","n/a",IF(J$3>(A1stdlife+$F62),(Input!$I$203*(1+vanilla2)^0.5)-SUM($I62:I62),(Input!$I$203*(1+vanilla2)^0.5)/A1stdlife)) -> 0.01518961803 | K62: =IF(A1stdlife="n/a","n/a",IF(K$3>(A1stdlife+$F62),(Input!$I$203*(1+vanilla2)^0.5)-SUM($I62:J62),(Input!$I$203*(1+vanilla2)^0.5)/A1stdlife)) -> 0.01518961803 | L62: =IF(A1stdlife="n/a","n/a",IF(L$3>(A1stdlife+$F62),(Input!$I$203*(1+vanilla2)^0.5)-SUM($I62:K62),(Input!$I$203*(1+vanilla2)^0.5)/A1stdlife)) -> 0.01518961803 | M62: =IF(A1stdlife="n/a","n/a",IF(M$3>(A1stdlife+$F62),(Input!$I$203*(1+vanilla2)^0.5)-SUM($I62:L62),(Input!$I$203*(1+vanilla2)^0.5)/A1stdlife)) -> 0.01518961803 | N62: =IF(A1stdlife="n/a","n/a",IF(N$3>(A1stdlife+$F62),(Input!$I$203*(1+vanilla2)^0.5)-SUM($I62:M62),(Input!$I$203*(1+vanilla2)^0.5)/A1stdlife)) -> 0.01518961803 | O62: =IF(A1stdlife="n/a","n/a",IF(O$3>(A1stdlife+$F62),(Input!$I$203*(1+vanilla2)^0.5)-SUM($I62:N62),(Input!$I$203*(1+vanilla2)^0.5)/A1stdlife)) -> 0.01518961803 | P62: =IF(A1stdlife="n/a","n/a",IF(P$3>(A1stdlife+$F62),(Input!$I$203*(1+vanilla2)^0.5)-SUM($I62:O62),(Input!$I$203*(1+vanilla2)^0.5)/A1stdlife)) -> 0.01518961803 | Q62: =IF(A1stdlife="n/a","n/a",IF(Q$3>(A1stdlife+$F62),(Input!$I$203*(1+vanilla2)^0.5)-SUM($I62:P62),(Input!$I$203*(1+vanilla2)^0.5)/A1stdlife)) -> 0.01518961803
F63: 3 | K63: =IF(A1stdlife="n/a","n/a",IF(K$3>(A1stdlife+$F63),(Input!$J$203*(1+vanilla3)^0.5)-SUM($J63:J63),(Input!$J$203*(1+vanilla3)^0.5)/A1stdlife)) -> 0.006255115348 | L63: =IF(A1stdlife="n/a","n/a",IF(L$3>(A1stdlife+$F63),(Input!$J$203*(1+vanilla3)^0.5)-SUM($J63:K63),(Input!$J$203*(1+vanilla3)^0.5)/A1stdlife)) -> 0.006255115348 | M63: =IF(A1stdlife="n/a","n/a",IF(M$3>(A1stdlife+$F63),(Input!$J$203*(1+vanilla3)^0.5)-SUM($J63:L63),(Input!$J$203*(1+vanilla3)^0.5)/A1stdlife)) -> 0.006255115348 | N63: =IF(A1stdlife="n/a","n/a",IF(N$3>(A1stdlife+$F63),(Input!$J$203*(1+vanilla3)^0.5)-SUM($J63:M63),(Input!$J$203*(1+vanilla3)^0.5)/A1stdlife)) -> 0.006255115348 | O63: =IF(A1stdlife="n/a","n/a",IF(O$3>(A1stdlife+$F63),(Input!$J$203*(1+vanilla3)^0.5)-SUM($J63:N63),(Input!$J$203*(1+vanilla3)^0.5)/A1stdlife)) -> 0.006255115348 | P63: =IF(A1stdlife="n/a","n/a",IF(P$3>(A1stdlife+$F63),(Input!$J$203*(1+vanilla3)^0.5)-SUM($J63:O63),(Input!$J$203*(1+vanilla3)^0.5)/A1stdlife)) -> 0.006255115348 | Q63: =IF(A1stdlife="n/a","n/a",IF(Q$3>(A1stdlife+$F63),(Input!$J$203*(1+vanilla3)^0.5)-SUM($J63:P63),(Input!$J$203*(1+vanilla3)^0.5)/A1stdlife)) -> 0.006255115348
F64: 4 | L64: =IF(A1stdlife="n/a","n/a",IF(L$3>(A1stdlife+$F64),(Input!$K$203*(1+vanilla4)^0.5)-SUM($K64:K64),(Input!$K$203*(1+vanilla4)^0.5)/A1stdlife)) -> 0.006453687451 | M64: =IF(A1stdlife="n/a","n/a",IF(M$3>(A1stdlife+$F64),(Input!$K$203*(1+vanilla4)^0.5)-SUM($K64:L64),(Input!$K$203*(1+vanilla4)^0.5)/A1stdlife)) -> 0.006453687451 | N64: =IF(A1stdlife="n/a","n/a",IF(N$3>(A1stdlife+$F64),(Input!$K$203*(1+vanilla4)^0.5)-SUM($K64:M64),(Input!$K$203*(1+vanilla4)^0.5)/A1stdlife)) -> 0.006453687451 | O64: =IF(A1stdlife="n/a","n/a",IF(O$3>(A1stdlife+$F64),(Input!$K$203*(1+vanilla4)^0.5)-SUM($K64:N64),(Input!$K$203*(1+vanilla4)^0.5)/A1stdlife)) -> 0.006453687451 | P64: =IF(A1stdlife="n/a","n/a",IF(P$3>(A1stdlife+$F64),(Input!$K$203*(1+vanilla4)^0.5)-SUM($K64:O64),(Input!$K$203*(1+vanilla4)^0.5)/A1stdlife)) -> 0.006453687451 | Q64: =IF(A1stdlife="n/a","n/a",IF(Q$3>(A1stdlife+$F64),(Input!$K$203*(1+vanilla4)^0.5)-SUM($K64:P64),(Input!$K$203*(1+vanilla4)^0.5)/A1stdlife)) -> 0.006453687451
F65: 5 | M65: =IF(A1stdlife="n/a","n/a",IF(M$3>(A1stdlife+$F65),(Input!$L$203*(1+vanilla5)^0.5)-SUM($L65:L65),(Input!$L$203*(1+vanilla5)^0.5)/A1stdlife)) -> 0.004327663726 | N65: =IF(A1stdlife="n/a","n/a",IF(N$3>(A1stdlife+$F65),(Input!$L$203*(1+vanilla5)^0.5)-SUM($L65:M65),(Input!$L$203*(1+vanilla5)^0.5)/A1stdlife)) -> 0.004327663726 | O65: =IF(A1stdlife="n/a","n/a",IF(O$3>(A1stdlife+$F65),(Input!$L$203*(1+vanilla5)^0.5)-SUM($L65:N65),(Input!$L$203*(1+vanilla5)^0.5)/A1stdlife)) -> 0.004327663726 | P65: =IF(A1stdlife="n/a","n/a",IF(P$3>(A1stdlife+$F65),(Input!$L$203*(1+vanilla5)^0.5)-SUM($L65:O65),(Input!$L$203*(1+vanilla5)^0.5)/A1stdlife)) -> 0.004327663726 | Q65: =IF(A1stdlife="n/a","n/a",IF(Q$3>(A1stdlife+$F65),(Input!$L$203*(1+vanilla5)^0.5)-SUM($L65:P65),(Input!$L$203*(1+vanilla5)^0.5)/A1stdlife)) -> 0.004327663726
F66: 6 | N66: =IF(A1stdlife="n/a","n/a",IF(N$3>(A1stdlife+$F66),(Input!$M$203*(1+vanilla6)^0.5)-SUM($M66:M66),(Input!$M$203*(1+vanilla6)^0.5)/A1stdlife)) -> 0 | O66: =IF(A1stdlife="n/a","n/a",IF(O$3>(A1stdlife+$F66),(Input!$M$203*(1+vanilla6)^0.5)-SUM($M66:N66),(Input!$M$203*(1+vanilla6)^0.5)/A1stdlife)) -> 0 | P66: =IF(A1stdlife="n/a","n/a",IF(P$3>(A1stdlife+$F66),(Input!$M$203*(1+vanilla6)^0.5)-SUM($M66:O66),(Input!$M$203*(1+vanilla6)^0.5)/A1stdlife)) -> 0 | Q66: =IF(A1stdlife="n/a","n/a",IF(Q$3>(A1stdlife+$F66),(Input!$M$203*(1+vanilla6)^0.5)-SUM($M66:P66),(Input!$M$203*(1+vanilla6)^0.5)/A1stdlife)) -> 0
F67: 7 | O67: =IF(A1stdlife="n/a","n/a",IF(O$3>(A1stdlife+$F67),(Input!$N$203*(1+vanilla7)^0.5)-SUM($N67:N67),(Input!$N$203*(1+vanilla7)^0.5)/A1stdlife)) -> 0 | P67: =IF(A1stdlife="n/a","n/a",IF(P$3>(A1stdlife+$F67),(Input!$N$203*(1+vanilla7)^0.5)-SUM($N67:O67),(Input!$N$203*(1+vanilla7)^0.5)/A1stdlife)) -> 0 | Q67: =IF(A1stdlife="n/a","n/a",IF(Q$3>(A1stdlife+$F67),(Input!$N$203*(1+vanilla7)^0.5)-SUM($N67:P67),(Input!$N$203*(1+vanilla7)^0.5)/A1stdlife)) -> 0
F68: 8 | P68: =IF(A1stdlife="n/a","n/a",IF(P$3>(A1stdlife+$F68),(Input!$O$203*(1+vanilla8)^0.5)-SUM($O68:O68),(Input!$O$203*(1+vanilla8)^0.5)/A1stdlife)) -> 0 | Q68: =IF(A1stdlife="n/a","n/a",IF(Q$3>(A1stdlife+$F68),(Input!$O$203*(1+vanilla8)^0.5)-SUM($O68:P68),(Input!$O$203*(1+vanilla8)^0.5)/A1stdlife)) -> 0
F69: 9 | Q69: =IF(A1stdlife="n/a","n/a",IF(Q$3>(A1stdlife+$F69),(Input!$P$203*(1+vanilla9)^0.5)-SUM($P69:P69),(Input!$P$203*(1+vanilla9)^0.5)/A1stdlife)) -> 0
F70: 10
D71: =Asset1 -> Overhead Subtransmission Lines (Urban) | H71: =-SUM(H59:H70) -> -0.3712886565 | I71: =-SUM(I59:I70) -> -0.39973986 | J71: =-SUM(J59:J70) -> -0.414929478 | K71: =-SUM(K59:K70) -> -0.4211845933 | L71: =-SUM(L59:L70) -> -0.4276382808 | M71: =IF(Input!M248>0, -SUM(M59:M70), 0) -> 0 | N71: =IF(Input!N248>0, -SUM(N59:N70), 0) -> 0 | O71: =IF(Input!O248>0, -SUM(O59:O70), 0) -> 0 | P71: =IF(Input!P248>0, -SUM(P59:P70), 0) -> 0 | Q71: =IF(Input!Q248>0, -SUM(Q59:Q70), 0) -> 0
C72: =Asset2 -> Underground Subtransmission Lines (Urban) | E72: Opening RAB | H72: =IF(H$3>A2remlife,A2value-SUM($G72:G72),IF(A2remlife="N/A","n/a",A2value/A2remlife)) -> 0.2780139368 | I72: =IF(I$3>A2remlife,A2value-SUM($G72:H72),IF(A2remlife="N/A","n/a",A2value/A2remlife)) -> 0.2780139368 | J72: =IF(J$3>A2remlife,A2value-SUM($G72:I72),IF(A2remlife="N/A","n/a",A2value/A2remlife)) -> 0.2780139368 | K72: =IF(K$3>A2remlife,A2value-SUM($G72:J72),IF(A2remlife="N/A","n/a",A2value/A2remlife)) -> 0.2780139368 | L72: =IF(L$3>A2remlife,A2value-SUM($G72:K72),IF(A2remlife="N/A","n/a",A2value/A2remlife)) -> 0.2780139368 | M72: =IF(M$3>A2remlife,A2value-SUM($G72:L72),IF(A2remlife="N/A","n/a",A2value/A2remlife)) -> 0.2780139368 | N72: =IF(N$3>A2remlife,A2value-SUM($G72:M72),IF(A2remlife="N/A","n/a",A2value/A2remlife)) -> 0.2780139368 | O72: =IF(O$3>A2remlife,A2value-SUM($G72:N72),IF(A2remlife="N/A","n/a",A2value/A2remlife)) -> 0.2780139368 | P72: =IF(P$3>A2remlife,A2value-SUM($G72:O72),IF(A2remlife="N/A","n/a",A2value/A2remlife)) -> 0.2780139368 | Q72: =IF(Q$3>A2remlife,A2value-SUM($G72:P72),IF(A2remlife="N/A","n/a",A2value/A2remlife)) -> 0.2780139368
E73: Capex in year | F73: 0
F74: 1 | I74: =IF(A2stdlife="n/a","n/a",IF(I$3>(A2stdlife+$F74),(Input!$H$204*(1+vanilla1)^0.5)-SUM($H74:H74),(Input!$H$204*(1+vanilla1)^0.5)/A2stdlife)) -> 0.002753892894 | J74: =IF(A2stdlife="n/a","n/a",IF(J$3>(A2stdlife+$F74),(Input!$H$204*(1+vanilla1)^0.5)-SUM($H74:I74),(Input!$H$204*(1+vanilla1)^0.5)/A2stdlife)) -> 0.002753892894 | K74: =IF(A2stdlife="n/a","n/a",IF(K$3>(A2stdlife+$F74),(Input!$H$204*(1+vanilla1)^0.5)-SUM($H74:J74),(Input!$H$204*(1+vanilla1)^0.5)/A2stdlife)) -> 0.002753892894 | L74: =IF(A2stdlife="n/a","n/a",IF(L$3>(A2stdlife+$F74),(Input!$H$204*(1+vanilla1)^0.5)-SUM($H74:K74),(Input!$H$204*(1+vanilla1)^0.5)/A2stdlife)) -> 0.002753892894 | M74: =IF(A2stdlife="n/a","n/a",IF(M$3>(A2stdlife+$F74),(Input!$H$204*(1+vanilla1)^0.5)-SUM($H74:L74),(Input!$H$204*(1+vanilla1)^0.5)/A2stdlife)) -> 0.002753892894 | N74: =IF(A2stdlife="n/a","n/a",IF(N$3>(A2stdlife+$F74),(Input!$H$204*(1+vanilla1)^0.5)-SUM($H74:M74),(Input!$H$204*(1+vanilla1)^0.5)/A2stdlife)) -> 0.002753892894 | O74: =IF(A2stdlife="n/a","n/a",IF(O$3>(A2stdlife+$F74),(Input!$H$204*(1+vanilla1)^0.5)-SUM($H74:N74),(Input!$H$204*(1+vanilla1)^0.5)/A2stdlife)) -> 0.002753892894 | P74: =IF(A2stdlife="n/a","n/a",IF(P$3>(A2stdlife+$F74),(Input!$H$204*(1+vanilla1)^0.5)-SUM($H74:O74),(Input!$H$204*(1+vanilla1)^0.5)/A2stdlife)) -> 0.002753892894 | Q74: =IF(A2stdlife="n/a","n/a",IF(Q$3>(A2stdlife+$F74),(Input!$H$204*(1+vanilla1)^0.5)-SUM($H74:P74),(Input!$H$204*(1+vanilla1)^0.5)/A2stdlife)) -> 0.002753892894
F75: 2 | J75: =IF(A2stdlife="n/a","n/a",IF(J$3>(A2stdlife+$F75),(Input!$I$204*(1+vanilla2)^0.5)-SUM($I75:I75),(Input!$I$204*(1+vanilla2)^0.5)/A2stdlife)) -> 0.002206419396 | K75: =IF(A2stdlife="n/a","n/a",IF(K$3>(A2stdlife+$F75),(Input!$I$204*(1+vanilla2)^0.5)-SUM($I75:J75),(Input!$I$204*(1+vanilla2)^0.5)/A2stdlife)) -> 0.002206419396 | L75: =IF(A2stdlife="n/a","n/a",IF(L$3>(A2stdlife+$F75),(Input!$I$204*(1+vanilla2)^0.5)-SUM($I75:K75),(Input!$I$204*(1+vanilla2)^0.5)/A2stdlife)) -> 0.002206419396 | M75: =IF(A2stdlife="n/a","n/a",IF(M$3>(A2stdlife+$F75),(Input!$I$204*(1+vanilla2)^0.5)-SUM($I75:L75),(Input!$I$204*(1+vanilla2)^0.5)/A2stdlife)) -> 0.002206419396 | N75: =IF(A2stdlife="n/a","n/a",IF(N$3>(A2stdlife+$F75),(Input!$I$204*(1+vanilla2)^0.5)-SUM($I75:M75),(Input!$I$204*(1+vanilla2)^0.5)/A2stdlife)) -> 0.002206419396 | O75: =IF(A2stdlife="n/a","n/a",IF(O$3>(A2stdlife+$F75),(Input!$I$204*(1+vanilla2)^0.5)-SUM($I75:N75),(Input!$I$204*(1+vanilla2)^0.5)/A2stdlife)) -> 0.002206419396 | P75: =IF(A2stdlife="n/a","n/a",IF(P$3>(A2stdlife+$F75),(Input!$I$204*(1+vanilla2)^0.5)-SUM($I75:O75),(Input!$I$204*(1+vanilla2)^0.5)/A2stdlife)) -> 0.002206419396 | Q75: =IF(A2stdlife="n/a","n/a",IF(Q$3>(A2stdlife+$F75),(Input!$I$204*(1+vanilla2)^0.5)-SUM($I75:P75),(Input!$I$204*(1+vanilla2)^0.5)/A2stdlife)) -> 0.002206419396
F76: 3 | K76: =IF(A2stdlife="n/a","n/a",IF(K$3>(A2stdlife+$F76),(Input!$J$204*(1+vanilla3)^0.5)-SUM($J76:J76),(Input!$J$204*(1+vanilla3)^0.5)/A2stdlife)) -> 0.0001584375721 | L76: =IF(A2stdlife="n/a","n/a",IF(L$3>(A2stdlife+$F76),(Input!$J$204*(1+vanilla3)^0.5)-SUM($J76:K76),(Input!$J$204*(1+vanilla3)^0.5)/A2stdlife)) -> 0.0001584375721 | M76: =IF(A2stdlife="n/a","n/a",IF(M$3>(A2stdlife+$F76),(Input!$J$204*(1+vanilla3)^0.5)-SUM($J76:L76),(Input!$J$204*(1+vanilla3)^0.5)/A2stdlife)) -> 0.0001584375721 | N76: =IF(A2stdlife="n/a","n/a",IF(N$3>(A2stdlife+$F76),(Input!$J$204*(1+vanilla3)^0.5)-SUM($J76:M76),(Input!$J$204*(1+vanilla3)^0.5)/A2stdlife)) -> 0.0001584375721 | O76: =IF(A2stdlife="n/a","n/a",IF(O$3>(A2stdlife+$F76),(Input!$J$204*(1+vanilla3)^0.5)-SUM($J76:N76),(Input!$J$204*(1+vanilla3)^0.5)/A2stdlife)) -> 0.0001584375721 | P76: =IF(A2stdlife="n/a","n/a",IF(P$3>(A2stdlife+$F76),(Input!$J$204*(1+vanilla3)^0.5)-SUM($J76:O76),(Input!$J$204*(1+vanilla3)^0.5)/A2stdlife)) -> 0.0001584375721 | Q76: =IF(A2stdlife="n/a","n/a",IF(Q$3>(A2stdlife+$F76),(Input!$J$204*(1+vanilla3)^0.5)-SUM($J76:P76),(Input!$J$204*(1+vanilla3)^0.5)/A2stdlife)) -> 0.0001584375721
F77: 4 | L77: =IF(A2stdlife="n/a","n/a",IF(L$3>(A2stdlife+$F77),(Input!$K$204*(1+vanilla4)^0.5)-SUM($K77:K77),(Input!$K$204*(1+vanilla4)^0.5)/A2stdlife)) -> 0.000422128201 | M77: =IF(A2stdlife="n/a","n/a",IF(M$3>(A2stdlife+$F77),(Input!$K$204*(1+vanilla4)^0.5)-SUM($K77:L77),(Input!$K$204*(1+vanilla4)^0.5)/A2stdlife)) -> 0.000422128201 | N77: =IF(A2stdlife="n/a","n/a",IF(N$3>(A2stdlife+$F77),(Input!$K$204*(1+vanilla4)^0.5)-SUM($K77:M77),(Input!$K$204*(1+vanilla4)^0.5)/A2stdlife)) -> 0.000422128201 | O77: =IF(A2stdlife="n/a","n/a",IF(O$3>(A2stdlife+$F77),(Input!$K$204*(1+vanilla4)^0.5)-SUM($K77:N77),(Input!$K$204*(1+vanilla4)^0.5)/A2stdlife)) -> 0.000422128201 | P77: =IF(A2stdlife="n/a","n/a",IF(P$3>(A2stdlife+$F77),(Input!$K$204*(1+vanilla4)^0.5)-SUM($K77:O77),(Input!$K$204*(1+vanilla4)^0.5)/A2stdlife)) -> 0.000422128201 | Q77: =IF(A2stdlife="n/a","n/a",IF(Q$3>(A2stdlife+$F77),(Input!$K$204*(1+vanilla4)^0.5)-SUM($K77:P77),(Input!$K$204*(1+vanilla4)^0.5)/A2stdlife)) -> 0.000422128201
F78: 5 | M78: =IF(A2stdlife="n/a","n/a",IF(M$3>(A2stdlife+$F78),(Input!$L$204*(1+vanilla5)^0.5)-SUM($L78:L78),(Input!$L$204*(1+vanilla5)^0.5)/A2stdlife)) -> 0 | N78: =IF(A2stdlife="n/a","n/a",IF(N$3>(A2stdlife+$F78),(Input!$L$204*(1+vanilla5)^0.5)-SUM($L78:M78),(Input!$L$204*(1+vanilla5)^0.5)/A2stdlife)) -> 0 | O78: =IF(A2stdlife="n/a","n/a",IF(O$3>(A2stdlife+$F78),(Input!$L$204*(1+vanilla5)^0.5)-SUM($L78:N78),(Input!$L$204*(1+vanilla5)^0.5)/A2stdlife)) -> 0 | P78: =IF(A2stdlife="n/a","n/a",IF(P$3>(A2stdlife+$F78),(Input!$L$204*(1+vanilla5)^0.5)-SUM($L78:O78),(Input!$L$204*(1+vanilla5)^0.5)/A2stdlife)) -> 0 | Q78: =IF(A2stdlife="n/a","n/a",IF(Q$3>(A2stdlife+$F78),(Input!$L$204*(1+vanilla5)^0.5)-SUM($L78:P78),(Input!$L$204*(1+vanilla5)^0.5)/A2stdlife)) -> 0
F79: 6 | N79: =IF(A2stdlife="n/a","n/a",IF(N$3>(A2stdlife+$F79),(Input!$M$204*(1+vanilla6)^0.5)-SUM($M79:M79),(Input!$M$204*(1+vanilla6)^0.5)/A2stdlife)) -> 0 | O79: =IF(A2stdlife="n/a","n/a",IF(O$3>(A2stdlife+$F79),(Input!$M$204*(1+vanilla6)^0.5)-SUM($M79:N79),(Input!$M$204*(1+vanilla6)^0.5)/A2stdlife)) -> 0 | P79: =IF(A2stdlife="n/a","n/a",IF(P$3>(A2stdlife+$F79),(Input!$M$204*(1+vanilla6)^0.5)-SUM($M79:O79),(Input!$M$204*(1+vanilla6)^0.5)/A2stdlife)) -> 0 | Q79: =IF(A2stdlife="n/a","n/a",IF(Q$3>(A2stdlife+$F79),(Input!$M$204*(1+vanilla6)^0.5)-SUM($M79:P79),(Input!$M$204*(1+vanilla6)^0.5)/A2stdlife)) -> 0
F80: 7 | O80: =IF(A2stdlife="n/a","n/a",IF(O$3>(A2stdlife+$F80),(Input!$N$204*(1+vanilla7)^0.5)-SUM($N80:N80),(Input!$N$204*(1+vanilla7)^0.5)/A2stdlife)) -> 0 | P80: =IF(A2stdlife="n/a","n/a",IF(P$3>(A2stdlife+$F80),(Input!$N$204*(1+vanilla7)^0.5)-SUM($N80:O80),(Input!$N$204*(1+vanilla7)^0.5)/A2stdlife)) -> 0 | Q80: =IF(A2stdlife="n/a","n/a",IF(Q$3>(A2stdlife+$F80),(Input!$N$204*(1+vanilla7)^0.5)-SUM($N80:P80),(Input!$N$204*(1+vanilla7)^0.5)/A2stdlife)) -> 0
F81: 8 | P81: =IF(A2stdlife="n/a","n/a",IF(P$3>(A2stdlife+$F81),(Input!$O$204*(1+vanilla8)^0.5)-SUM($O81:O81),(Input!$O$204*(1+vanilla8)^0.5)/A2stdlife)) -> 0 | Q81: =IF(A2stdlife="n/a","n/a",IF(Q$3>(A2stdlife+$F81),(Input!$O$204*(1+vanilla8)^0.5)-SUM($O81:P81),(Input!$O$204*(1+vanilla8)^0.5)/A2stdlife)) -> 0
F82: 9 | Q82: =IF(A2stdlife="n/a","n/a",IF(Q$3>(A2stdlife+$F82),(Input!$P$204*(1+vanilla9)^0.5)-SUM($P82:P82),(Input!$P$204*(1+vanilla9)^0.5)/A2stdlife)) -> 0
F83: 10
D84: =Asset2 -> Underground Subtransmission Lines (Urban) | H84: =-SUM(H72:H83) -> -0.2780139368 | I84: =-SUM(I72:I83) -> -0.2807678297 | J84: =-SUM(J72:J83) -> -0.2829742491 | K84: =-SUM(K72:K83) -> -0.2831326867 | L84: =-SUM(L72:L83) -> -0.2835548149 | M84: =IF(Input!M248>0, -SUM(M72:M83), 0) -> 0 | N84: =IF(Input!N248>0, -SUM(N72:N83), 0) -> 0 | O84: =IF(Input!O248>0, -SUM(O72:O83), 0) -> 0 | P84: =IF(Input!P248>0, -SUM(P72:P83), 0) -> 0 | Q84: =IF(Input!Q248>0, -SUM(Q72:Q83), 0) -> 0
C85: =Asset3 -> Urban Zone Substations | E85: Opening RAB | H85: =IF(H$3>A3remlife,A3value-SUM($G85:G85),IF(A3remlife="N/A","n/a",A3value/A3remlife)) -> 1.322371624 | I85: =IF(I$3>A3remlife,A3value-SUM($G85:H85),IF(A3remlife="N/A","n/a",A3value/A3remlife)) -> 1.322371624 | J85: =IF(J$3>A3remlife,A3value-SUM($G85:I85),IF(A3remlife="N/A","n/a",A3value/A3remlife)) -> 1.322371624 | K85: =IF(K$3>A3remlife,A3value-SUM($G85:J85),IF(A3remlife="N/A","n/a",A3value/A3remlife)) -> 1.322371624 | L85: =IF(L$3>A3remlife,A3value-SUM($G85:K85),IF(A3remlife="N/A","n/a",A3value/A3remlife)) -> 1.322371624 | M85: =IF(M$3>A3remlife,A3value-SUM($G85:L85),IF(A3remlife="N/A","n/a",A3value/A3remlife)) -> 1.322371624 | N85: =IF(N$3>A3remlife,A3value-SUM($G85:M85),IF(A3remlife="N/A","n/a",A3value/A3remlife)) -> 1.322371624 | O85: =IF(O$3>A3remlife,A3value-SUM($G85:N85),IF(A3remlife="N/A","n/a",A3value/A3remlife)) -> 1.322371624 | P85: =IF(P$3>A3remlife,A3value-SUM($G85:O85),IF(A3remlife="N/A","n/a",A3value/A3remlife)) -> 1.322371624 | Q85: =IF(Q$3>A3remlife,A3value-SUM($G85:P85),IF(A3remlife="N/A","n/a",A3value/A3remlife)) -> 1.322371624
E86: Capex in year | F86: 0
F87: 1 | I87: =IF(A3stdlife="n/a","n/a",IF(I$3>(A3stdlife+$F87),(Input!$H$205*(1+vanilla1)^0.5)-SUM($H87:H87),(Input!$H$205*(1+vanilla1)^0.5)/A3stdlife)) -> 0.05239592659 | J87: =IF(A3stdlife="n/a","n/a",IF(J$3>(A3stdlife+$F87),(Input!$H$205*(1+vanilla1)^0.5)-SUM($H87:I87),(Input!$H$205*(1+vanilla1)^0.5)/A3stdlife)) -> 0.05239592659 | K87: =IF(A3stdlife="n/a","n/a",IF(K$3>(A3stdlife+$F87),(Input!$H$205*(1+vanilla1)^0.5)-SUM($H87:J87),(Input!$H$205*(1+vanilla1)^0.5)/A3stdlife)) -> 0.05239592659 | L87: =IF(A3stdlife="n/a","n/a",IF(L$3>(A3stdlife+$F87),(Input!$H$205*(1+vanilla1)^0.5)-SUM($H87:K87),(Input!$H$205*(1+vanilla1)^0.5)/A3stdlife)) -> 0.05239592659 | M87: =IF(A3stdlife="n/a","n/a",IF(M$3>(A3stdlife+$F87),(Input!$H$205*(1+vanilla1)^0.5)-SUM($H87:L87),(Input!$H$205*(1+vanilla1)^0.5)/A3stdlife)) -> 0.05239592659 | N87: =IF(A3stdlife="n/a","n/a",IF(N$3>(A3stdlife+$F87),(Input!$H$205*(1+vanilla1)^0.5)-SUM($H87:M87),(Input!$H$205*(1+vanilla1)^0.5)/A3stdlife)) -> 0.05239592659 | O87: =IF(A3stdlife="n/a","n/a",IF(O$3>(A3stdlife+$F87),(Input!$H$205*(1+vanilla1)^0.5)-SUM($H87:N87),(Input!$H$205*(1+vanilla1)^0.5)/A3stdlife)) -> 0.05239592659 | P87: =IF(A3stdlife="n/a","n/a",IF(P$3>(A3stdlife+$F87),(Input!$H$205*(1+vanilla1)^0.5)-SUM($H87:O87),(Input!$H$205*(1+vanilla1)^0.5)/A3stdlife)) -> 0.05239592659 | Q87: =IF(A3stdlife="n/a","n/a",IF(Q$3>(A3stdlife+$F87),(Input!$H$205*(1+vanilla1)^0.5)-SUM($H87:P87),(Input!$H$205*(1+vanilla1)^0.5)/A3stdlife)) -> 0.05239592659
F88: 2 | J88: =IF(A3stdlife="n/a","n/a",IF(J$3>(A3stdlife+$F88),(Input!$I$205*(1+vanilla2)^0.5)-SUM($I88:I88),(Input!$I$205*(1+vanilla2)^0.5)/A3stdlife)) -> 0.1243162309 | K88: =IF(A3stdlife="n/a","n/a",IF(K$3>(A3stdlife+$F88),(Input!$I$205*(1+vanilla2)^0.5)-SUM($I88:J88),(Input!$I$205*(1+vanilla2)^0.5)/A3stdlife)) -> 0.1243162309 | L88: =IF(A3stdlife="n/a","n/a",IF(L$3>(A3stdlife+$F88),(Input!$I$205*(1+vanilla2)^0.5)-SUM($I88:K88),(Input!$I$205*(1+vanilla2)^0.5)/A3stdlife)) -> 0.1243162309 | M88: =IF(A3stdlife="n/a","n/a",IF(M$3>(A3stdlife+$F88),(Input!$I$205*(1+vanilla2)^0.5)-SUM($I88:L88),(Input!$I$205*(1+vanilla2)^0.5)/A3stdlife)) -> 0.1243162309 | N88: =IF(A3stdlife="n/a","n/a",IF(N$3>(A3stdlife+$F88),(Input!$I$205*(1+vanilla2)^0.5)-SUM($I88:M88),(Input!$I$205*(1+vanilla2)^0.5)/A3stdlife)) -> 0.1243162309 | O88: =IF(A3stdlife="n/a","n/a",IF(O$3>(A3stdlife+$F88),(Input!$I$205*(1+vanilla2)^0.5)-SUM($I88:N88),(Input!$I$205*(1+vanilla2)^0.5)/A3stdlife)) -> 0.1243162309 | P88: =IF(A3stdlife="n/a","n/a",IF(P$3>(A3stdlife+$F88),(Input!$I$205*(1+vanilla2)^0.5)-SUM($I88:O88),(Input!$I$205*(1+vanilla2)^0.5)/A3stdlife)) -> 0.1243162309 | Q88: =IF(A3stdlife="n/a","n/a",IF(Q$3>(A3stdlife+$F88),(Input!$I$205*(1+vanilla2)^0.5)-SUM($I88:P88),(Input!$I$205*(1+vanilla2)^0.5)/A3stdlife)) -> 0.1243162309
F89: 3 | K89: =IF(A3stdlife="n/a","n/a",IF(K$3>(A3stdlife+$F89),(Input!$J$205*(1+vanilla3)^0.5)-SUM($J89:J89),(Input!$J$205*(1+vanilla3)^0.5)/A3stdlife)) -> 0.01865602412 | L89: =IF(A3stdlife="n/a","n/a",IF(L$3>(A3stdlife+$F89),(Input!$J$205*(1+vanilla3)^0.5)-SUM($J89:K89),(Input!$J$205*(1+vanilla3)^0.5)/A3stdlife)) -> 0.01865602412 | M89: =IF(A3stdlife="n/a","n/a",IF(M$3>(A3stdlife+$F89),(Input!$J$205*(1+vanilla3)^0.5)-SUM($J89:L89),(Input!$J$205*(1+vanilla3)^0.5)/A3stdlife)) -> 0.01865602412 | N89: =IF(A3stdlife="n/a","n/a",IF(N$3>(A3stdlife+$F89),(Input!$J$205*(1+vanilla3)^0.5)-SUM($J89:M89),(Input!$J$205*(1+vanilla3)^0.5)/A3stdlife)) -> 0.01865602412 | O89: =IF(A3stdlife="n/a","n/a",IF(O$3>(A3stdlife+$F89),(Input!$J$205*(1+vanilla3)^0.5)-SUM($J89:N89),(Input!$J$205*(1+vanilla3)^0.5)/A3stdlife)) -> 0.01865602412 | P89: =IF(A3stdlife="n/a","n/a",IF(P$3>(A3stdlife+$F89),(Input!$J$205*(1+vanilla3)^0.5)-SUM($J89:O89),(Input!$J$205*(1+vanilla3)^0.5)/A3stdlife)) -> 0.01865602412 | Q89: =IF(A3stdlife="n/a","n/a",IF(Q$3>(A3stdlife+$F89),(Input!$J$205*(1+vanilla3)^0.5)-SUM($J89:P89),(Input!$J$205*(1+vanilla3)^0.5)/A3stdlife)) -> 0.01865602412
F90: 4 | L90: =IF(A3stdlife="n/a","n/a",IF(L$3>(A3stdlife+$F90),(Input!$K$205*(1+vanilla4)^0.5)-SUM($K90:K90),(Input!$K$205*(1+vanilla4)^0.5)/A3stdlife)) -> 0.09056508369 | M90: =IF(A3stdlife="n/a","n/a",IF(M$3>(A3stdlife+$F90),(Input!$K$205*(1+vanilla4)^0.5)-SUM($K90:L90),(Input!$K$205*(1+vanilla4)^0.5)/A3stdlife)) -> 0.09056508369 | N90: =IF(A3stdlife="n/a","n/a",IF(N$3>(A3stdlife+$F90),(Input!$K$205*(1+vanilla4)^0.5)-SUM($K90:M90),(Input!$K$205*(1+vanilla4)^0.5)/A3stdlife)) -> 0.09056508369 | O90: =IF(A3stdlife="n/a","n/a",IF(O$3>(A3stdlife+$F90),(Input!$K$205*(1+vanilla4)^0.5)-SUM($K90:N90),(Input!$K$205*(1+vanilla4)^0.5)/A3stdlife)) -> 0.09056508369 | P90: =IF(A3stdlife="n/a","n/a",IF(P$3>(A3stdlife+$F90),(Input!$K$205*(1+vanilla4)^0.5)-SUM($K90:O90),(Input!$K$205*(1+vanilla4)^0.5)/A3stdlife)) -> 0.09056508369 | Q90: =IF(A3stdlife="n/a","n/a",IF(Q$3>(A3stdlife+$F90),(Input!$K$205*(1+vanilla4)^0.5)-SUM($K90:P90),(Input!$K$205*(1+vanilla4)^0.5)/A3stdlife)) -> 0.09056508369
F91: 5 | M91: =IF(A3stdlife="n/a","n/a",IF(M$3>(A3stdlife+$F91),(Input!$L$205*(1+vanilla5)^0.5)-SUM($L91:L91),(Input!$L$205*(1+vanilla5)^0.5)/A3stdlife)) -> 0.003788844523 | N91: =IF(A3stdlife="n/a","n/a",IF(N$3>(A3stdlife+$F91),(Input!$L$205*(1+vanilla5)^0.5)-SUM($L91:M91),(Input!$L$205*(1+vanilla5)^0.5)/A3stdlife)) -> 0.003788844523 | O91: =IF(A3stdlife="n/a","n/a",IF(O$3>(A3stdlife+$F91),(Input!$L$205*(1+vanilla5)^0.5)-SUM($L91:N91),(Input!$L$205*(1+vanilla5)^0.5)/A3stdlife)) -> 0.003788844523 | P91: =IF(A3stdlife="n/a","n/a",IF(P$3>(A3stdlife+$F91),(Input!$L$205*(1+vanilla5)^0.5)-SUM($L91:O91),(Input!$L$205*(1+vanilla5)^0.5)/A3stdlife)) -> 0.003788844523 | Q91: =IF(A3stdlife="n/a","n/a",IF(Q$3>(A3stdlife+$F91),(Input!$L$205*(1+vanilla5)^0.5)-SUM($L91:P91),(Input!$L$205*(1+vanilla5)^0.5)/A3stdlife)) -> 0.003788844523
F92: 6 | N92: =IF(A3stdlife="n/a","n/a",IF(N$3>(A3stdlife+$F92),(Input!$M$205*(1+vanilla6)^0.5)-SUM($M92:M92),(Input!$M$205*(1+vanilla6)^0.5)/A3stdlife)) -> 0 | O92: =IF(A3stdlife="n/a","n/a",IF(O$3>(A3stdlife+$F92),(Input!$M$205*(1+vanilla6)^0.5)-SUM($M92:N92),(Input!$M$205*(1+vanilla6)^0.5)/A3stdlife)) -> 0 | P92: =IF(A3stdlife="n/a","n/a",IF(P$3>(A3stdlife+$F92),(Input!$M$205*(1+vanilla6)^0.5)-SUM($M92:O92),(Input!$M$205*(1+vanilla6)^0.5)/A3stdlife)) -> 0 | Q92: =IF(A3stdlife="n/a","n/a",IF(Q$3>(A3stdlife+$F92),(Input!$M$205*(1+vanilla6)^0.5)-SUM($M92:P92),(Input!$M$205*(1+vanilla6)^0.5)/A3stdlife)) -> 0
F93: 7 | O93: =IF(A3stdlife="n/a","n/a",IF(O$3>(A3stdlife+$F93),(Input!$N$205*(1+vanilla7)^0.5)-SUM($N93:N93),(Input!$N$205*(1+vanilla7)^0.5)/A3stdlife)) -> 0 | P93: =IF(A3stdlife="n/a","n/a",IF(P$3>(A3stdlife+$F93),(Input!$N$205*(1+vanilla7)^0.5)-SUM($N93:O93),(Input!$N$205*(1+vanilla7)^0.5)/A3stdlife)) -> 0 | Q93: =IF(A3stdlife="n/a","n/a",IF(Q$3>(A3stdlife+$F93),(Input!$N$205*(1+vanilla7)^0.5)-SUM($N93:P93),(Input!$N$205*(1+vanilla7)^0.5)/A3stdlife)) -> 0
F94: 8 | P94: =IF(A3stdlife="n/a","n/a",IF(P$3>(A3stdlife+$F94),(Input!$O$205*(1+vanilla8)^0.5)-SUM($O94:O94),(Input!$O$205*(1+vanilla8)^0.5)/A3stdlife)) -> 0 | Q94: =IF(A3stdlife="n/a","n/a",IF(Q$3>(A3stdlife+$F94),(Input!$O$205*(1+vanilla8)^0.5)-SUM($O94:P94),(Input!$O$205*(1+vanilla8)^0.5)/A3stdlife)) -> 0
F95: 9 | Q95: =IF(A3stdlife="n/a","n/a",IF(Q$3>(A3stdlife+$F95),(Input!$P$205*(1+vanilla9)^0.5)-SUM($P95:P95),(Input!$P$205*(1+vanilla9)^0.5)/A3stdlife)) -> 0
F96: 10
D97: =Asset3 -> Urban Zone Substations | H97: =-SUM(H85:H96) -> -1.322371624 | I97: =-SUM(I85:I96) -> -1.374767551 | J97: =-SUM(J85:J96) -> -1.499083782 | K97: =-SUM(K85:K96) -> -1.517739806 | L97: =-SUM(L85:L96) -> -1.60830489 | M97: =IF(Input!M248>0, -SUM(M85:M96), 0) -> 0 | N97: =IF(Input!N248>0, -SUM(N85:N96), 0) -> 0 | O97: =IF(Input!O248>0, -SUM(O85:O96), 0) -> 0 | P97: =IF(Input!P248>0, -SUM(P85:P96), 0) -> 0 | Q97: =IF(Input!Q248>0, -SUM(Q85:Q96), 0) -> 0
C98: =Asset4 -> Rural Zone Substations | E98: Opening RAB | H98: =IF(H$3>A4remlife,A4value-SUM($G98:G98),IF(A4remlife="N/A","n/a",A4value/A4remlife)) -> 0.07961456865 | I98: =IF(I$3>A4remlife,A4value-SUM($G98:H98),IF(A4remlife="N/A","n/a",A4value/A4remlife)) -> 0.07961456865 | J98: =IF(J$3>A4remlife,A4value-SUM($G98:I98),IF(A4remlife="N/A","n/a",A4value/A4remlife)) -> 0.07961456865 | K98: =IF(K$3>A4remlife,A4value-SUM($G98:J98),IF(A4remlife="N/A","n/a",A4value/A4remlife)) -> 0.07961456865 | L98: =IF(L$3>A4remlife,A4value-SUM($G98:K98),IF(A4remlife="N/A","n/a",A4value/A4remlife)) -> 0.07961456865 | M98: =IF(M$3>A4remlife,A4value-SUM($G98:L98),IF(A4remlife="N/A","n/a",A4value/A4remlife)) -> 0.07961456865 | N98: =IF(N$3>A4remlife,A4value-SUM($G98:M98),IF(A4remlife="N/A","n/a",A4value/A4remlife)) -> 0.07961456865 | O98: =IF(O$3>A4remlife,A4value-SUM($G98:N98),IF(A4remlife="N/A","n/a",A4value/A4remlife)) -> 0.07961456865 | P98: =IF(P$3>A4remlife,A4value-SUM($G98:O98),IF(A4remlife="N/A","n/a",A4value/A4remlife)) -> 0.07961456865 | Q98: =IF(Q$3>A4remlife,A4value-SUM($G98:P98),IF(A4remlife="N/A","n/a",A4value/A4remlife)) -> 0.07961456865
E99: Capex in year | F99: 0
F100: 1 | I100: =IF(A4stdlife="n/a","n/a",IF(I$3>(A4stdlife+$F100),(Input!$H$206*(1+vanilla1)^0.5)-SUM($H100:H100),(Input!$H$206*(1+vanilla1)^0.5)/A4stdlife)) -> 0.007735825931 | J100: =IF(A4stdlife="n/a","n/a",IF(J$3>(A4stdlife+$F100),(Input!$H$206*(1+vanilla1)^0.5)-SUM($H100:I100),(Input!$H$206*(1+vanilla1)^0.5)/A4stdlife)) -> 0.007735825931 | K100: =IF(A4stdlife="n/a","n/a",IF(K$3>(A4stdlife+$F100),(Input!$H$206*(1+vanilla1)^0.5)-SUM($H100:J100),(Input!$H$206*(1+vanilla1)^0.5)/A4stdlife)) -> 0.007735825931 | L100: =IF(A4stdlife="n/a","n/a",IF(L$3>(A4stdlife+$F100),(Input!$H$206*(1+vanilla1)^0.5)-SUM($H100:K100),(Input!$H$206*(1+vanilla1)^0.5)/A4stdlife)) -> 0.007735825931 | M100: =IF(A4stdlife="n/a","n/a",IF(M$3>(A4stdlife+$F100),(Input!$H$206*(1+vanilla1)^0.5)-SUM($H100:L100),(Input!$H$206*(1+vanilla1)^0.5)/A4stdlife)) -> 0.007735825931 | N100: =IF(A4stdlife="n/a","n/a",IF(N$3>(A4stdlife+$F100),(Input!$H$206*(1+vanilla1)^0.5)-SUM($H100:M100),(Input!$H$206*(1+vanilla1)^0.5)/A4stdlife)) -> 0.007735825931 | O100: =IF(A4stdlife="n/a","n/a",IF(O$3>(A4stdlife+$F100),(Input!$H$206*(1+vanilla1)^0.5)-SUM($H100:N100),(Input!$H$206*(1+vanilla1)^0.5)/A4stdlife)) -> 0.007735825931 | P100: =IF(A4stdlife="n/a","n/a",IF(P$3>(A4stdlife+$F100),(Input!$H$206*(1+vanilla1)^0.5)-SUM($H100:O100),(Input!$H$206*(1+vanilla1)^0.5)/A4stdlife)) -> 0.007735825931 | Q100: =IF(A4stdlife="n/a","n/a",IF(Q$3>(A4stdlife+$F100),(Input!$H$206*(1+vanilla1)^0.5)-SUM($H100:P100),(Input!$H$206*(1+vanilla1)^0.5)/A4stdlife)) -> 0.007735825931
F101: 2 | J101: =IF(A4stdlife="n/a","n/a",IF(J$3>(A4stdlife+$F101),(Input!$I$206*(1+vanilla2)^0.5)-SUM($I101:I101),(Input!$I$206*(1+vanilla2)^0.5)/A4stdlife)) -> 0.02680672544 | K101: =IF(A4stdlife="n/a","n/a",IF(K$3>(A4stdlife+$F101),(Input!$I$206*(1+vanilla2)^0.5)-SUM($I101:J101),(Input!$I$206*(1+vanilla2)^0.5)/A4stdlife)) -> 0.02680672544 | L101: =IF(A4stdlife="n/a","n/a",IF(L$3>(A4stdlife+$F101),(Input!$I$206*(1+vanilla2)^0.5)-SUM($I101:K101),(Input!$I$206*(1+vanilla2)^0.5)/A4stdlife)) -> 0.02680672544 | M101: =IF(A4stdlife="n/a","n/a",IF(M$3>(A4stdlife+$F101),(Input!$I$206*(1+vanilla2)^0.5)-SUM($I101:L101),(Input!$I$206*(1+vanilla2)^0.5)/A4stdlife)) -> 0.02680672544 | N101: =IF(A4stdlife="n/a","n/a",IF(N$3>(A4stdlife+$F101),(Input!$I$206*(1+vanilla2)^0.5)-SUM($I101:M101),(Input!$I$206*(1+vanilla2)^0.5)/A4stdlife)) -> 0.02680672544 | O101: =IF(A4stdlife="n/a","n/a",IF(O$3>(A4stdlife+$F101),(Input!$I$206*(1+vanilla2)^0.5)-SUM($I101:N101),(Input!$I$206*(1+vanilla2)^0.5)/A4stdlife)) -> 0.02680672544 | P101: =IF(A4stdlife="n/a","n/a",IF(P$3>(A4stdlife+$F101),(Input!$I$206*(1+vanilla2)^0.5)-SUM($I101:O101),(Input!$I$206*(1+vanilla2)^0.5)/A4stdlife)) -> 0.02680672544 | Q101: =IF(A4stdlife="n/a","n/a",IF(Q$3>(A4stdlife+$F101),(Input!$I$206*(1+vanilla2)^0.5)-SUM($I101:P101),(Input!$I$206*(1+vanilla2)^0.5)/A4stdlife)) -> 0.02680672544
F102: 3 | K102: =IF(A4stdlife="n/a","n/a",IF(K$3>(A4stdlife+$F102),(Input!$J$206*(1+vanilla3)^0.5)-SUM($J102:J102),(Input!$J$206*(1+vanilla3)^0.5)/A4stdlife)) -> 0.0105519423 | L102: =IF(A4stdlife="n/a","n/a",IF(L$3>(A4stdlife+$F102),(Input!$J$206*(1+vanilla3)^0.5)-SUM($J102:K102),(Input!$J$206*(1+vanilla3)^0.5)/A4stdlife)) -> 0.0105519423 | M102: =IF(A4stdlife="n/a","n/a",IF(M$3>(A4stdlife+$F102),(Input!$J$206*(1+vanilla3)^0.5)-SUM($J102:L102),(Input!$J$206*(1+vanilla3)^0.5)/A4stdlife)) -> 0.0105519423 | N102: =IF(A4stdlife="n/a","n/a",IF(N$3>(A4stdlife+$F102),(Input!$J$206*(1+vanilla3)^0.5)-SUM($J102:M102),(Input!$J$206*(1+vanilla3)^0.5)/A4stdlife)) -> 0.0105519423 | O102: =IF(A4stdlife="n/a","n/a",IF(O$3>(A4stdlife+$F102),(Input!$J$206*(1+vanilla3)^0.5)-SUM($J102:N102),(Input!$J$206*(1+vanilla3)^0.5)/A4stdlife)) -> 0.0105519423 | P102: =IF(A4stdlife="n/a","n/a",IF(P$3>(A4stdlife+$F102),(Input!$J$206*(1+vanilla3)^0.5)-SUM($J102:O102),(Input!$J$206*(1+vanilla3)^0.5)/A4stdlife)) -> 0.0105519423 | Q102: =IF(A4stdlife="n/a","n/a",IF(Q$3>(A4stdlife+$F102),(Input!$J$206*(1+vanilla3)^0.5)-SUM($J102:P102),(Input!$J$206*(1+vanilla3)^0.5)/A4stdlife)) -> 0.0105519423
F103: 4 | L103: =IF(A4stdlife="n/a","n/a",IF(L$3>(A4stdlife+$F103),(Input!$K$206*(1+vanilla4)^0.5)-SUM($K103:K103),(Input!$K$206*(1+vanilla4)^0.5)/A4stdlife)) -> 0.004515063297 | M103: =IF(A4stdlife="n/a","n/a",IF(M$3>(A4stdlife+$F103),(Input!$K$206*(1+vanilla4)^0.5)-SUM($K103:L103),(Input!$K$206*(1+vanilla4)^0.5)/A4stdlife)) -> 0.004515063297 | N103: =IF(A4stdlife="n/a","n/a",IF(N$3>(A4stdlife+$F103),(Input!$K$206*(1+vanilla4)^0.5)-SUM($K103:M103),(Input!$K$206*(1+vanilla4)^0.5)/A4stdlife)) -> 0.004515063297 | O103: =IF(A4stdlife="n/a","n/a",IF(O$3>(A4stdlife+$F103),(Input!$K$206*(1+vanilla4)^0.5)-SUM($K103:N103),(Input!$K$206*(1+vanilla4)^0.5)/A4stdlife)) -> 0.004515063297 | P103: =IF(A4stdlife="n/a","n/a",IF(P$3>(A4stdlife+$F103),(Input!$K$206*(1+vanilla4)^0.5)-SUM($K103:O103),(Input!$K$206*(1+vanilla4)^0.5)/A4stdlife)) -> 0.004515063297 | Q103: =IF(A4stdlife="n/a","n/a",IF(Q$3>(A4stdlife+$F103),(Input!$K$206*(1+vanilla4)^0.5)-SUM($K103:P103),(Input!$K$206*(1+vanilla4)^0.5)/A4stdlife)) -> 0.004515063297
F104: 5 | M104: =IF(A4stdlife="n/a","n/a",IF(M$3>(A4stdlife+$F104),(Input!$L$206*(1+vanilla5)^0.5)-SUM($L104:L104),(Input!$L$206*(1+vanilla5)^0.5)/A4stdlife)) -> 0.003468541175 | N104: =IF(A4stdlife="n/a","n/a",IF(N$3>(A4stdlife+$F104),(Input!$L$206*(1+vanilla5)^0.5)-SUM($L104:M104),(Input!$L$206*(1+vanilla5)^0.5)/A4stdlife)) -> 0.003468541175 | O104: =IF(A4stdlife="n/a","n/a",IF(O$3>(A4stdlife+$F104),(Input!$L$206*(1+vanilla5)^0.5)-SUM($L104:N104),(Input!$L$206*(1+vanilla5)^0.5)/A4stdlife)) -> 0.003468541175 | P104: =IF(A4stdlife="n/a","n/a",IF(P$3>(A4stdlife+$F104),(Input!$L$206*(1+vanilla5)^0.5)-SUM($L104:O104),(Input!$L$206*(1+vanilla5)^0.5)/A4stdlife)) -> 0.003468541175 | Q104: =IF(A4stdlife="n/a","n/a",IF(Q$3>(A4stdlife+$F104),(Input!$L$206*(1+vanilla5)^0.5)-SUM($L104:P104),(Input!$L$206*(1+vanilla5)^0.5)/A4stdlife)) -> 0.003468541175
F105: 6 | N105: =IF(A4stdlife="n/a","n/a",IF(N$3>(A4stdlife+$F105),(Input!$M$206*(1+vanilla6)^0.5)-SUM($M105:M105),(Input!$M$206*(1+vanilla6)^0.5)/A4stdlife)) -> 0 | O105: =IF(A4stdlife="n/a","n/a",IF(O$3>(A4stdlife+$F105),(Input!$M$206*(1+vanilla6)^0.5)-SUM($M105:N105),(Input!$M$206*(1+vanilla6)^0.5)/A4stdlife)) -> 0 | P105: =IF(A4stdlife="n/a","n/a",IF(P$3>(A4stdlife+$F105),(Input!$M$206*(1+vanilla6)^0.5)-SUM($M105:O105),(Input!$M$206*(1+vanilla6)^0.5)/A4stdlife)) -> 0 | Q105: =IF(A4stdlife="n/a","n/a",IF(Q$3>(A4stdlife+$F105),(Input!$M$206*(1+vanilla6)^0.5)-SUM($M105:P105),(Input!$M$206*(1+vanilla6)^0.5)/A4stdlife)) -> 0
F106: 7 | O106: =IF(A4stdlife="n/a","n/a",IF(O$3>(A4stdlife+$F106),(Input!$N$206*(1+vanilla7)^0.5)-SUM($N106:N106),(Input!$N$206*(1+vanilla7)^0.5)/A4stdlife)) -> 0 | P106: =IF(A4stdlife="n/a","n/a",IF(P$3>(A4stdlife+$F106),(Input!$N$206*(1+vanilla7)^0.5)-SUM($N106:O106),(Input!$N$206*(1+vanilla7)^0.5)/A4stdlife)) -> 0 | Q106: =IF(A4stdlife="n/a","n/a",IF(Q$3>(A4stdlife+$F106),(Input!$N$206*(1+vanilla7)^0.5)-SUM($N106:P106),(Input!$N$206*(1+vanilla7)^0.5)/A4stdlife)) -> 0
F107: 8 | P107: =IF(A4stdlife="n/a","n/a",IF(P$3>(A4stdlife+$F107),(Input!$O$206*(1+vanilla8)^0.5)-SUM($O107:O107),(Input!$O$206*(1+vanilla8)^0.5)/A4stdlife)) -> 0 | Q107: =IF(A4stdlife="n/a","n/a",IF(Q$3>(A4stdlife+$F107),(Input!$O$206*(1+vanilla8)^0.5)-SUM($O107:P107),(Input!$O$206*(1+vanilla8)^0.5)/A4stdlife)) -> 0
F108: 9 | Q108: =IF(A4stdlife="n/a","n/a",IF(Q$3>(A4stdlife+$F108),(Input!$P$206*(1+vanilla9)^0.5)-SUM($P108:P108),(Input!$P$206*(1+vanilla9)^0.5)/A4stdlife)) -> 0
F109: 10
D110: =Asset4 -> Rural Zone Substations | H110: =-SUM(H98:H109) -> -0.07961456865 | I110: =-SUM(I98:I109) -> -0.08735039458 | J110: =-SUM(J98:J109) -> -0.11415712 | K110: =-SUM(K98:K109) -> -0.1247090623 | L110: =-SUM(L98:L109) -> -0.1292241256 | M110: =IF(Input!M248>0, -SUM(M98:M109), 0) -> 0 | N110: =IF(Input!N248>0, -SUM(N98:N109), 0) -> 0 | O110: =IF(Input!O248>0, -SUM(O98:O109), 0) -> 0 | P110: =IF(Input!P248>0, -SUM(P98:P109), 0) -> 0 | Q110: =IF(Input!Q248>0, -SUM(Q98:Q109), 0) -> 0
C111: =Asset5 -> SCADA | E111: Opening RAB | H111: =IF(H$3>A5remlife,A5value-SUM($G111:G111),IF(A5remlife="N/A","n/a",A5value/A5remlife)) -> 1.128794689 | I111: =IF(I$3>A5remlife,A5value-SUM($G111:H111),IF(A5remlife="N/A","n/a",A5value/A5remlife)) -> 1.128794689 | J111: =IF(J$3>A5remlife,A5value-SUM($G111:I111),IF(A5remlife="N/A","n/a",A5value/A5remlife)) -> 0.6356045127 | K111: =IF(K$3>A5remlife,A5value-SUM($G111:J111),IF(A5remlife="N/A","n/a",A5value/A5remlife)) -> 0 | L111: =IF(L$3>A5remlife,A5value-SUM($G111:K111),IF(A5remlife="N/A","n/a",A5value/A5remlife)) -> 0 | M111: =IF(M$3>A5remlife,A5value-SUM($G111:L111),IF(A5remlife="N/A","n/a",A5value/A5remlife)) -> 0 | N111: =IF(N$3>A5remlife,A5value-SUM($G111:M111),IF(A5remlife="N/A","n/a",A5value/A5remlife)) -> 0 | O111: =IF(O$3>A5remlife,A5value-SUM($G111:N111),IF(A5remlife="N/A","n/a",A5value/A5remlife)) -> 0 | P111: =IF(P$3>A5remlife,A5value-SUM($G111:O111),IF(A5remlife="N/A","n/a",A5value/A5remlife)) -> 0 | Q111: =IF(Q$3>A5remlife,A5value-SUM($G111:P111),IF(A5remlife="N/A","n/a",A5value/A5remlife)) -> 0
E112: Capex in year | F112: 0
F113: 1 | I113: =IF(A5stdlife="n/a","n/a",IF(I$3>(A5stdlife+$F113),(Input!$H$207*(1+vanilla1)^0.5)-SUM($H113:H113),(Input!$H$207*(1+vanilla1)^0.5)/A5stdlife)) -> 0.1282210944 | J113: =IF(A5stdlife="n/a","n/a",IF(J$3>(A5stdlife+$F113),(Input!$H$207*(1+vanilla1)^0.5)-SUM($H113:I113),(Input!$H$207*(1+vanilla1)^0.5)/A5stdlife)) -> 0.1282210944 | K113: =IF(A5stdlife="n/a","n/a",IF(K$3>(A5stdlife+$F113),(Input!$H$207*(1+vanilla1)^0.5)-SUM($H113:J113),(Input!$H$207*(1+vanilla1)^0.5)/A5stdlife)) -> 0.1282210944 | L113: =IF(A5stdlife="n/a","n/a",IF(L$3>(A5stdlife+$F113),(Input!$H$207*(1+vanilla1)^0.5)-SUM($H113:K113),(Input!$H$207*(1+vanilla1)^0.5)/A5stdlife)) -> 0.1282210944 | M113: =IF(A5stdlife="n/a","n/a",IF(M$3>(A5stdlife+$F113),(Input!$H$207*(1+vanilla1)^0.5)-SUM($H113:L113),(Input!$H$207*(1+vanilla1)^0.5)/A5stdlife)) -> 0.1282210944 | N113: =IF(A5stdlife="n/a","n/a",IF(N$3>(A5stdlife+$F113),(Input!$H$207*(1+vanilla1)^0.5)-SUM($H113:M113),(Input!$H$207*(1+vanilla1)^0.5)/A5stdlife)) -> 0.1282210944 | O113: =IF(A5stdlife="n/a","n/a",IF(O$3>(A5stdlife+$F113),(Input!$H$207*(1+vanilla1)^0.5)-SUM($H113:N113),(Input!$H$207*(1+vanilla1)^0.5)/A5stdlife)) -> 0.1282210944 | P113: =IF(A5stdlife="n/a","n/a",IF(P$3>(A5stdlife+$F113),(Input!$H$207*(1+vanilla1)^0.5)-SUM($H113:O113),(Input!$H$207*(1+vanilla1)^0.5)/A5stdlife)) -> 0.1282210944 | Q113: =IF(A5stdlife="n/a","n/a",IF(Q$3>(A5stdlife+$F113),(Input!$H$207*(1+vanilla1)^0.5)-SUM($H113:P113),(Input!$H$207*(1+vanilla1)^0.5)/A5stdlife)) -> 0.1282210944
F114: 2 | J114: =IF(A5stdlife="n/a","n/a",IF(J$3>(A5stdlife+$F114),(Input!$I$207*(1+vanilla2)^0.5)-SUM($I114:I114),(Input!$I$207*(1+vanilla2)^0.5)/A5stdlife)) -> 0.2474090132 | K114: =IF(A5stdlife="n/a","n/a",IF(K$3>(A5stdlife+$F114),(Input!$I$207*(1+vanilla2)^0.5)-SUM($I114:J114),(Input!$I$207*(1+vanilla2)^0.5)/A5stdlife)) -> 0.2474090132 | L114: =IF(A5stdlife="n/a","n/a",IF(L$3>(A5stdlife+$F114),(Input!$I$207*(1+vanilla2)^0.5)-SUM($I114:K114),(Input!$I$207*(1+vanilla2)^0.5)/A5stdlife)) -> 0.2474090132 | M114: =IF(A5stdlife="n/a","n/a",IF(M$3>(A5stdlife+$F114),(Input!$I$207*(1+vanilla2)^0.5)-SUM($I114:L114),(Input!$I$207*(1+vanilla2)^0.5)/A5stdlife)) -> 0.2474090132 | N114: =IF(A5stdlife="n/a","n/a",IF(N$3>(A5stdlife+$F114),(Input!$I$207*(1+vanilla2)^0.5)-SUM($I114:M114),(Input!$I$207*(1+vanilla2)^0.5)/A5stdlife)) -> 0.2474090132 | O114: =IF(A5stdlife="n/a","n/a",IF(O$3>(A5stdlife+$F114),(Input!$I$207*(1+vanilla2)^0.5)-SUM($I114:N114),(Input!$I$207*(1+vanilla2)^0.5)/A5stdlife)) -> 0.2474090132 | P114: =IF(A5stdlife="n/a","n/a",IF(P$3>(A5stdlife+$F114),(Input!$I$207*(1+vanilla2)^0.5)-SUM($I114:O114),(Input!$I$207*(1+vanilla2)^0.5)/A5stdlife)) -> 0.2474090132 | Q114: =IF(A5stdlife="n/a","n/a",IF(Q$3>(A5stdlife+$F114),(Input!$I$207*(1+vanilla2)^0.5)-SUM($I114:P114),(Input!$I$207*(1+vanilla2)^0.5)/A5stdlife)) -> 0.2474090132
F115: 3 | K115: =IF(A5stdlife="n/a","n/a",IF(K$3>(A5stdlife+$F115),(Input!$J$207*(1+vanilla3)^0.5)-SUM($J115:J115),(Input!$J$207*(1+vanilla3)^0.5)/A5stdlife)) -> 0.2291007293 | L115: =IF(A5stdlife="n/a","n/a",IF(L$3>(A5stdlife+$F115),(Input!$J$207*(1+vanilla3)^0.5)-SUM($J115:K115),(Input!$J$207*(1+vanilla3)^0.5)/A5stdlife)) -> 0.2291007293 | M115: =IF(A5stdlife="n/a","n/a",IF(M$3>(A5stdlife+$F115),(Input!$J$207*(1+vanilla3)^0.5)-SUM($J115:L115),(Input!$J$207*(1+vanilla3)^0.5)/A5stdlife)) -> 0.2291007293 | N115: =IF(A5stdlife="n/a","n/a",IF(N$3>(A5stdlife+$F115),(Input!$J$207*(1+vanilla3)^0.5)-SUM($J115:M115),(Input!$J$207*(1+vanilla3)^0.5)/A5stdlife)) -> 0.2291007293 | O115: =IF(A5stdlife="n/a","n/a",IF(O$3>(A5stdlife+$F115),(Input!$J$207*(1+vanilla3)^0.5)-SUM($J115:N115),(Input!$J$207*(1+vanilla3)^0.5)/A5stdlife)) -> 0.2291007293 | P115: =IF(A5stdlife="n/a","n/a",IF(P$3>(A5stdlife+$F115),(Input!$J$207*(1+vanilla3)^0.5)-SUM($J115:O115),(Input!$J$207*(1+vanilla3)^0.5)/A5stdlife)) -> 0.2291007293 | Q115: =IF(A5stdlife="n/a","n/a",IF(Q$3>(A5stdlife+$F115),(Input!$J$207*(1+vanilla3)^0.5)-SUM($J115:P115),(Input!$J$207*(1+vanilla3)^0.5)/A5stdlife)) -> 0.2291007293
F116: 4 | L116: =IF(A5stdlife="n/a","n/a",IF(L$3>(A5stdlife+$F116),(Input!$K$207*(1+vanilla4)^0.5)-SUM($K116:K116),(Input!$K$207*(1+vanilla4)^0.5)/A5stdlife)) -> 1.569960779 | M116: =IF(A5stdlife="n/a","n/a",IF(M$3>(A5stdlife+$F116),(Input!$K$207*(1+vanilla4)^0.5)-SUM($K116:L116),(Input!$K$207*(1+vanilla4)^0.5)/A5stdlife)) -> 1.569960779 | N116: =IF(A5stdlife="n/a","n/a",IF(N$3>(A5stdlife+$F116),(Input!$K$207*(1+vanilla4)^0.5)-SUM($K116:M116),(Input!$K$207*(1+vanilla4)^0.5)/A5stdlife)) -> 1.569960779 | O116: =IF(A5stdlife="n/a","n/a",IF(O$3>(A5stdlife+$F116),(Input!$K$207*(1+vanilla4)^0.5)-SUM($K116:N116),(Input!$K$207*(1+vanilla4)^0.5)/A5stdlife)) -> 1.569960779 | P116: =IF(A5stdlife="n/a","n/a",IF(P$3>(A5stdlife+$F116),(Input!$K$207*(1+vanilla4)^0.5)-SUM($K116:O116),(Input!$K$207*(1+vanilla4)^0.5)/A5stdlife)) -> 1.569960779 | Q116: =IF(A5stdlife="n/a","n/a",IF(Q$3>(A5stdlife+$F116),(Input!$K$207*(1+vanilla4)^0.5)-SUM($K116:P116),(Input!$K$207*(1+vanilla4)^0.5)/A5stdlife)) -> 1.569960779
F117: 5 | M117: =IF(A5stdlife="n/a","n/a",IF(M$3>(A5stdlife+$F117),(Input!$L$207*(1+vanilla5)^0.5)-SUM($L117:L117),(Input!$L$207*(1+vanilla5)^0.5)/A5stdlife)) -> 1.687124279 | N117: =IF(A5stdlife="n/a","n/a",IF(N$3>(A5stdlife+$F117),(Input!$L$207*(1+vanilla5)^0.5)-SUM($L117:M117),(Input!$L$207*(1+vanilla5)^0.5)/A5stdlife)) -> 1.687124279 | O117: =IF(A5stdlife="n/a","n/a",IF(O$3>(A5stdlife+$F117),(Input!$L$207*(1+vanilla5)^0.5)-SUM($L117:N117),(Input!$L$207*(1+vanilla5)^0.5)/A5stdlife)) -> 1.687124279 | P117: =IF(A5stdlife="n/a","n/a",IF(P$3>(A5stdlife+$F117),(Input!$L$207*(1+vanilla5)^0.5)-SUM($L117:O117),(Input!$L$207*(1+vanilla5)^0.5)/A5stdlife)) -> 1.687124279 | Q117: =IF(A5stdlife="n/a","n/a",IF(Q$3>(A5stdlife+$F117),(Input!$L$207*(1+vanilla5)^0.5)-SUM($L117:P117),(Input!$L$207*(1+vanilla5)^0.5)/A5stdlife)) -> 1.687124279
F118: 6 | N118: =IF(A5stdlife="n/a","n/a",IF(N$3>(A5stdlife+$F118),(Input!$M$207*(1+vanilla6)^0.5)-SUM($M118:M118),(Input!$M$207*(1+vanilla6)^0.5)/A5stdlife)) -> 0 | O118: =IF(A5stdlife="n/a","n/a",IF(O$3>(A5stdlife+$F118),(Input!$M$207*(1+vanilla6)^0.5)-SUM($M118:N118),(Input!$M$207*(1+vanilla6)^0.5)/A5stdlife)) -> 0 | P118: =IF(A5stdlife="n/a","n/a",IF(P$3>(A5stdlife+$F118),(Input!$M$207*(1+vanilla6)^0.5)-SUM($M118:O118),(Input!$M$207*(1+vanilla6)^0.5)/A5stdlife)) -> 0 | Q118: =IF(A5stdlife="n/a","n/a",IF(Q$3>(A5stdlife+$F118),(Input!$M$207*(1+vanilla6)^0.5)-SUM($M118:P118),(Input!$M$207*(1+vanilla6)^0.5)/A5stdlife)) -> 0
F119: 7 | O119: =IF(A5stdlife="n/a","n/a",IF(O$3>(A5stdlife+$F119),(Input!$N$207*(1+vanilla7)^0.5)-SUM($N119:N119),(Input!$N$207*(1+vanilla7)^0.5)/A5stdlife)) -> 0 | P119: =IF(A5stdlife="n/a","n/a",IF(P$3>(A5stdlife+$F119),(Input!$N$207*(1+vanilla7)^0.5)-SUM($N119:O119),(Input!$N$207*(1+vanilla7)^0.5)/A5stdlife)) -> 0 | Q119: =IF(A5stdlife="n/a","n/a",IF(Q$3>(A5stdlife+$F119),(Input!$N$207*(1+vanilla7)^0.5)-SUM($N119:P119),(Input!$N$207*(1+vanilla7)^0.5)/A5stdlife)) -> 0
F120: 8 | P120: =IF(A5stdlife="n/a","n/a",IF(P$3>(A5stdlife+$F120),(Input!$O$207*(1+vanilla8)^0.5)-SUM($O120:O120),(Input!$O$207*(1+vanilla8)^0.5)/A5stdlife)) -> 0 | Q120: =IF(A5stdlife="n/a","n/a",IF(Q$3>(A5stdlife+$F120),(Input!$O$207*(1+vanilla8)^0.5)-SUM($O120:P120),(Input!$O$207*(1+vanilla8)^0.5)/A5stdlife)) -> 0
F121: 9 | Q121: =IF(A5stdlife="n/a","n/a",IF(Q$3>(A5stdlife+$F121),(Input!$P$207*(1+vanilla9)^0.5)-SUM($P121:P121),(Input!$P$207*(1+vanilla9)^0.5)/A5stdlife)) -> 0
F122: 10
D123: =Asset5 -> SCADA | H123: =-SUM(H111:H122) -> -1.128794689 | I123: =-SUM(I111:I122) -> -1.257015783 | J123: =-SUM(J111:J122) -> -1.01123462 | K123: =-SUM(K111:K122) -> -0.6047308369 | L123: =-SUM(L111:L122) -> -2.174691616 | M123: =IF(Input!M248>0, -SUM(M111:M122), 0) -> 0 | N123: =IF(Input!N248>0, -SUM(N111:N122), 0) -> 0 | O123: =IF(Input!O248>0, -SUM(O111:O122), 0) -> 0 | P123: =IF(Input!P248>0, -SUM(P111:P122), 0) -> 0 | Q123: =IF(Input!Q248>0, -SUM(Q111:Q122), 0) -> 0
C124: =Asset6 -> Distribution Switching Stations (Ground) | E124: Opening RAB | H124: =IF(H$3>A6remlife,A6value-SUM($G124:G124),IF(A6remlife="N/A","n/a",A6value/A6remlife)) -> 0.4679747073 | I124: =IF(I$3>A6remlife,A6value-SUM($G124:H124),IF(A6remlife="N/A","n/a",A6value/A6remlife)) -> 0.4679747073 | J124: =IF(J$3>A6remlife,A6value-SUM($G124:I124),IF(A6remlife="N/A","n/a",A6value/A6remlife)) -> 0.4679747073 | K124: =IF(K$3>A6remlife,A6value-SUM($G124:J124),IF(A6remlife="N/A","n/a",A6value/A6remlife)) -> 0.4679747073 | L124: =IF(L$3>A6remlife,A6value-SUM($G124:K124),IF(A6remlife="N/A","n/a",A6value/A6remlife)) -> 0.4679747073 | M124: =IF(M$3>A6remlife,A6value-SUM($G124:L124),IF(A6remlife="N/A","n/a",A6value/A6remlife)) -> 0.4679747073 | N124: =IF(N$3>A6remlife,A6value-SUM($G124:M124),IF(A6remlife="N/A","n/a",A6value/A6remlife)) -> 0.4679747073 | O124: =IF(O$3>A6remlife,A6value-SUM($G124:N124),IF(A6remlife="N/A","n/a",A6value/A6remlife)) -> 0.4679747073 | P124: =IF(P$3>A6remlife,A6value-SUM($G124:O124),IF(A6remlife="N/A","n/a",A6value/A6remlife)) -> 0.4679747073 | Q124: =IF(Q$3>A6remlife,A6value-SUM($G124:P124),IF(A6remlife="N/A","n/a",A6value/A6remlife)) -> 0.4679747073
E125: Capex in year | F125: 0
F126: 1 | I126: =IF(A6stdlife="n/a","n/a",IF(I$3>(A6stdlife+$F126),(Input!$H$208*(1+vanilla1)^0.5)-SUM($H126:H126),(Input!$H$208*(1+vanilla1)^0.5)/A6stdlife)) -> 0.003856344509 | J126: =IF(A6stdlife="n/a","n/a",IF(J$3>(A6stdlife+$F126),(Input!$H$208*(1+vanilla1)^0.5)-SUM($H126:I126),(Input!$H$208*(1+vanilla1)^0.5)/A6stdlife)) -> 0.003856344509 | K126: =IF(A6stdlife="n/a","n/a",IF(K$3>(A6stdlife+$F126),(Input!$H$208*(1+vanilla1)^0.5)-SUM($H126:J126),(Input!$H$208*(1+vanilla1)^0.5)/A6stdlife)) -> 0.003856344509 | L126: =IF(A6stdlife="n/a","n/a",IF(L$3>(A6stdlife+$F126),(Input!$H$208*(1+vanilla1)^0.5)-SUM($H126:K126),(Input!$H$208*(1+vanilla1)^0.5)/A6stdlife)) -> 0.003856344509 | M126: =IF(A6stdlife="n/a","n/a",IF(M$3>(A6stdlife+$F126),(Input!$H$208*(1+vanilla1)^0.5)-SUM($H126:L126),(Input!$H$208*(1+vanilla1)^0.5)/A6stdlife)) -> 0.003856344509 | N126: =IF(A6stdlife="n/a","n/a",IF(N$3>(A6stdlife+$F126),(Input!$H$208*(1+vanilla1)^0.5)-SUM($H126:M126),(Input!$H$208*(1+vanilla1)^0.5)/A6stdlife)) -> 0.003856344509 | O126: =IF(A6stdlife="n/a","n/a",IF(O$3>(A6stdlife+$F126),(Input!$H$208*(1+vanilla1)^0.5)-SUM($H126:N126),(Input!$H$208*(1+vanilla1)^0.5)/A6stdlife)) -> 0.003856344509 | P126: =IF(A6stdlife="n/a","n/a",IF(P$3>(A6stdlife+$F126),(Input!$H$208*(1+vanilla1)^0.5)-SUM($H126:O126),(Input!$H$208*(1+vanilla1)^0.5)/A6stdlife)) -> 0.003856344509 | Q126: =IF(A6stdlife="n/a","n/a",IF(Q$3>(A6stdlife+$F126),(Input!$H$208*(1+vanilla1)^0.5)-SUM($H126:P126),(Input!$H$208*(1+vanilla1)^0.5)/A6stdlife)) -> 0.003856344509
F127: 2 | J127: =IF(A6stdlife="n/a","n/a",IF(J$3>(A6stdlife+$F127),(Input!$I$208*(1+vanilla2)^0.5)-SUM($I127:I127),(Input!$I$208*(1+vanilla2)^0.5)/A6stdlife)) -> 0.004537473422 | K127: =IF(A6stdlife="n/a","n/a",IF(K$3>(A6stdlife+$F127),(Input!$I$208*(1+vanilla2)^0.5)-SUM($I127:J127),(Input!$I$208*(1+vanilla2)^0.5)/A6stdlife)) -> 0.004537473422 | L127: =IF(A6stdlife="n/a","n/a",IF(L$3>(A6stdlife+$F127),(Input!$I$208*(1+vanilla2)^0.5)-SUM($I127:K127),(Input!$I$208*(1+vanilla2)^0.5)/A6stdlife)) -> 0.004537473422 | M127: =IF(A6stdlife="n/a","n/a",IF(M$3>(A6stdlife+$F127),(Input!$I$208*(1+vanilla2)^0.5)-SUM($I127:L127),(Input!$I$208*(1+vanilla2)^0.5)/A6stdlife)) -> 0.004537473422 | N127: =IF(A6stdlife="n/a","n/a",IF(N$3>(A6stdlife+$F127),(Input!$I$208*(1+vanilla2)^0.5)-SUM($I127:M127),(Input!$I$208*(1+vanilla2)^0.5)/A6stdlife)) -> 0.004537473422 | O127: =IF(A6stdlife="n/a","n/a",IF(O$3>(A6stdlife+$F127),(Input!$I$208*(1+vanilla2)^0.5)-SUM($I127:N127),(Input!$I$208*(1+vanilla2)^0.5)/A6stdlife)) -> 0.004537473422 | P127: =IF(A6stdlife="n/a","n/a",IF(P$3>(A6stdlife+$F127),(Input!$I$208*(1+vanilla2)^0.5)-SUM($I127:O127),(Input!$I$208*(1+vanilla2)^0.5)/A6stdlife)) -> 0.004537473422 | Q127: =IF(A6stdlife="n/a","n/a",IF(Q$3>(A6stdlife+$F127),(Input!$I$208*(1+vanilla2)^0.5)-SUM($I127:P127),(Input!$I$208*(1+vanilla2)^0.5)/A6stdlife)) -> 0.004537473422
F128: 3 | K128: =IF(A6stdlife="n/a","n/a",IF(K$3>(A6stdlife+$F128),(Input!$J$208*(1+vanilla3)^0.5)-SUM($J128:J128),(Input!$J$208*(1+vanilla3)^0.5)/A6stdlife)) -> 0.005085846066 | L128: =IF(A6stdlife="n/a","n/a",IF(L$3>(A6stdlife+$F128),(Input!$J$208*(1+vanilla3)^0.5)-SUM($J128:K128),(Input!$J$208*(1+vanilla3)^0.5)/A6stdlife)) -> 0.005085846066 | M128: =IF(A6stdlife="n/a","n/a",IF(M$3>(A6stdlife+$F128),(Input!$J$208*(1+vanilla3)^0.5)-SUM($J128:L128),(Input!$J$208*(1+vanilla3)^0.5)/A6stdlife)) -> 0.005085846066 | N128: =IF(A6stdlife="n/a","n/a",IF(N$3>(A6stdlife+$F128),(Input!$J$208*(1+vanilla3)^0.5)-SUM($J128:M128),(Input!$J$208*(1+vanilla3)^0.5)/A6stdlife)) -> 0.005085846066 | O128: =IF(A6stdlife="n/a","n/a",IF(O$3>(A6stdlife+$F128),(Input!$J$208*(1+vanilla3)^0.5)-SUM($J128:N128),(Input!$J$208*(1+vanilla3)^0.5)/A6stdlife)) -> 0.005085846066 | P128: =IF(A6stdlife="n/a","n/a",IF(P$3>(A6stdlife+$F128),(Input!$J$208*(1+vanilla3)^0.5)-SUM($J128:O128),(Input!$J$208*(1+vanilla3)^0.5)/A6stdlife)) -> 0.005085846066 | Q128: =IF(A6stdlife="n/a","n/a",IF(Q$3>(A6stdlife+$F128),(Input!$J$208*(1+vanilla3)^0.5)-SUM($J128:P128),(Input!$J$208*(1+vanilla3)^0.5)/A6stdlife)) -> 0.005085846066
F129: 4 | L129: =IF(A6stdlife="n/a","n/a",IF(L$3>(A6stdlife+$F129),(Input!$K$208*(1+vanilla4)^0.5)-SUM($K129:K129),(Input!$K$208*(1+vanilla4)^0.5)/A6stdlife)) -> 0.004302604696 | M129: =IF(A6stdlife="n/a","n/a",IF(M$3>(A6stdlife+$F129),(Input!$K$208*(1+vanilla4)^0.5)-SUM($K129:L129),(Input!$K$208*(1+vanilla4)^0.5)/A6stdlife)) -> 0.004302604696 | N129: =IF(A6stdlife="n/a","n/a",IF(N$3>(A6stdlife+$F129),(Input!$K$208*(1+vanilla4)^0.5)-SUM($K129:M129),(Input!$K$208*(1+vanilla4)^0.5)/A6stdlife)) -> 0.004302604696 | O129: =IF(A6stdlife="n/a","n/a",IF(O$3>(A6stdlife+$F129),(Input!$K$208*(1+vanilla4)^0.5)-SUM($K129:N129),(Input!$K$208*(1+vanilla4)^0.5)/A6stdlife)) -> 0.004302604696 | P129: =IF(A6stdlife="n/a","n/a",IF(P$3>(A6stdlife+$F129),(Input!$K$208*(1+vanilla4)^0.5)-SUM($K129:O129),(Input!$K$208*(1+vanilla4)^0.5)/A6stdlife)) -> 0.004302604696 | Q129: =IF(A6stdlife="n/a","n/a",IF(Q$3>(A6stdlife+$F129),(Input!$K$208*(1+vanilla4)^0.5)-SUM($K129:P129),(Input!$K$208*(1+vanilla4)^0.5)/A6stdlife)) -> 0.004302604696
F130: 5 | M130: =IF(A6stdlife="n/a","n/a",IF(M$3>(A6stdlife+$F130),(Input!$L$208*(1+vanilla5)^0.5)-SUM($L130:L130),(Input!$L$208*(1+vanilla5)^0.5)/A6stdlife)) -> 0.01009299434 | N130: =IF(A6stdlife="n/a","n/a",IF(N$3>(A6stdlife+$F130),(Input!$L$208*(1+vanilla5)^0.5)-SUM($L130:M130),(Input!$L$208*(1+vanilla5)^0.5)/A6stdlife)) -> 0.01009299434 | O130: =IF(A6stdlife="n/a","n/a",IF(O$3>(A6stdlife+$F130),(Input!$L$208*(1+vanilla5)^0.5)-SUM($L130:N130),(Input!$L$208*(1+vanilla5)^0.5)/A6stdlife)) -> 0.01009299434 | P130: =IF(A6stdlife="n/a","n/a",IF(P$3>(A6stdlife+$F130),(Input!$L$208*(1+vanilla5)^0.5)-SUM($L130:O130),(Input!$L$208*(1+vanilla5)^0.5)/A6stdlife)) -> 0.01009299434 | Q130: =IF(A6stdlife="n/a","n/a",IF(Q$3>(A6stdlife+$F130),(Input!$L$208*(1+vanilla5)^0.5)-SUM($L130:P130),(Input!$L$208*(1+vanilla5)^0.5)/A6stdlife)) -> 0.01009299434
F131: 6 | N131: =IF(A6stdlife="n/a","n/a",IF(N$3>(A6stdlife+$F131),(Input!$M$208*(1+vanilla6)^0.5)-SUM($M131:M131),(Input!$M$208*(1+vanilla6)^0.5)/A6stdlife)) -> 0 | O131: =IF(A6stdlife="n/a","n/a",IF(O$3>(A6stdlife+$F131),(Input!$M$208*(1+vanilla6)^0.5)-SUM($M131:N131),(Input!$M$208*(1+vanilla6)^0.5)/A6stdlife)) -> 0 | P131: =IF(A6stdlife="n/a","n/a",IF(P$3>(A6stdlife+$F131),(Input!$M$208*(1+vanilla6)^0.5)-SUM($M131:O131),(Input!$M$208*(1+vanilla6)^0.5)/A6stdlife)) -> 0 | Q131: =IF(A6stdlife="n/a","n/a",IF(Q$3>(A6stdlife+$F131),(Input!$M$208*(1+vanilla6)^0.5)-SUM($M131:P131),(Input!$M$208*(1+vanilla6)^0.5)/A6stdlife)) -> 0
F132: 7 | O132: =IF(A6stdlife="n/a","n/a",IF(O$3>(A6stdlife+$F132),(Input!$N$208*(1+vanilla7)^0.5)-SUM($N132:N132),(Input!$N$208*(1+vanilla7)^0.5)/A6stdlife)) -> 0 | P132: =IF(A6stdlife="n/a","n/a",IF(P$3>(A6stdlife+$F132),(Input!$N$208*(1+vanilla7)^0.5)-SUM($N132:O132),(Input!$N$208*(1+vanilla7)^0.5)/A6stdlife)) -> 0 | Q132: =IF(A6stdlife="n/a","n/a",IF(Q$3>(A6stdlife+$F132),(Input!$N$208*(1+vanilla7)^0.5)-SUM($N132:P132),(Input!$N$208*(1+vanilla7)^0.5)/A6stdlife)) -> 0
F133: 8 | P133: =IF(A6stdlife="n/a","n/a",IF(P$3>(A6stdlife+$F133),(Input!$O$208*(1+vanilla8)^0.5)-SUM($O133:O133),(Input!$O$208*(1+vanilla8)^0.5)/A6stdlife)) -> 0 | Q133: =IF(A6stdlife="n/a","n/a",IF(Q$3>(A6stdlife+$F133),(Input!$O$208*(1+vanilla8)^0.5)-SUM($O133:P133),(Input!$O$208*(1+vanilla8)^0.5)/A6stdlife)) -> 0
F134: 9 | Q134: =IF(A6stdlife="n/a","n/a",IF(Q$3>(A6stdlife+$F134),(Input!$P$208*(1+vanilla9)^0.5)-SUM($P134:P134),(Input!$P$208*(1+vanilla9)^0.5)/A6stdlife)) -> 0
F135: 10
D136: =Asset6 -> Distribution Switching Stations (Ground) | H136: =-SUM(H124:H135) -> -0.4679747073 | I136: =-SUM(I124:I135) -> -0.4718310518 | J136: =-SUM(J124:J135) -> -0.4763685252 | K136: =-SUM(K124:K135) -> -0.4814543713 | L136: =-SUM(L124:L135) -> -0.485756976 | M136: =IF(Input!M248>0, -SUM(M124:M135), 0) -> 0 | N136: =IF(Input!N248>0, -SUM(N124:N135), 0) -> 0 | O136: =IF(Input!O248>0, -SUM(O124:O135), 0) -> 0 | P136: =IF(Input!P248>0, -SUM(P124:P135), 0) -> 0 | Q136: =IF(Input!Q248>0, -SUM(Q124:Q135), 0) -> 0
C137: =Asset7 -> Overhead High Voltage Lines Urban | E137: Opening RAB | H137: =IF(H$3>A7remlife,A7value-SUM($G137:G137),IF(A7remlife="N/A","n/a",A7value/A7remlife)) -> 3.427013996 | I137: =IF(I$3>A7remlife,A7value-SUM($G137:H137),IF(A7remlife="N/A","n/a",A7value/A7remlife)) -> 3.427013996 | J137: =IF(J$3>A7remlife,A7value-SUM($G137:I137),IF(A7remlife="N/A","n/a",A7value/A7remlife)) -> 3.427013996 | K137: =IF(K$3>A7remlife,A7value-SUM($G137:J137),IF(A7remlife="N/A","n/a",A7value/A7remlife)) -> 3.427013996 | L137: =IF(L$3>A7remlife,A7value-SUM($G137:K137),IF(A7remlife="N/A","n/a",A7value/A7remlife)) -> 3.427013996 | M137: =IF(M$3>A7remlife,A7value-SUM($G137:L137),IF(A7remlife="N/A","n/a",A7value/A7remlife)) -> 3.427013996 | N137: =IF(N$3>A7remlife,A7value-SUM($G137:M137),IF(A7remlife="N/A","n/a",A7value/A7remlife)) -> 3.427013996 | O137: =IF(O$3>A7remlife,A7value-SUM($G137:N137),IF(A7remlife="N/A","n/a",A7value/A7remlife)) -> 3.427013996 | P137: =IF(P$3>A7remlife,A7value-SUM($G137:O137),IF(A7remlife="N/A","n/a",A7value/A7remlife)) -> 3.427013996 | Q137: =IF(Q$3>A7remlife,A7value-SUM($G137:P137),IF(A7remlife="N/A","n/a",A7value/A7remlife)) -> 3.427013996
E138: Capex in year | F138: 0
F139: 1 | I139: =IF(A7stdlife="n/a","n/a",IF(I$3>(A7stdlife+$F139),(Input!$H$209*(1+vanilla1)^0.5)-SUM($H139:H139),(Input!$H$209*(1+vanilla1)^0.5)/A7stdlife)) -> 0.1877081816 | J139: =IF(A7stdlife="n/a","n/a",IF(J$3>(A7stdlife+$F139),(Input!$H$209*(1+vanilla1)^0.5)-SUM($H139:I139),(Input!$H$209*(1+vanilla1)^0.5)/A7stdlife)) -> 0.1877081816 | K139: =IF(A7stdlife="n/a","n/a",IF(K$3>(A7stdlife+$F139),(Input!$H$209*(1+vanilla1)^0.5)-SUM($H139:J139),(Input!$H$209*(1+vanilla1)^0.5)/A7stdlife)) -> 0.1877081816 | L139: =IF(A7stdlife="n/a","n/a",IF(L$3>(A7stdlife+$F139),(Input!$H$209*(1+vanilla1)^0.5)-SUM($H139:K139),(Input!$H$209*(1+vanilla1)^0.5)/A7stdlife)) -> 0.1877081816 | M139: =IF(A7stdlife="n/a","n/a",IF(M$3>(A7stdlife+$F139),(Input!$H$209*(1+vanilla1)^0.5)-SUM($H139:L139),(Input!$H$209*(1+vanilla1)^0.5)/A7stdlife)) -> 0.1877081816 | N139: =IF(A7stdlife="n/a","n/a",IF(N$3>(A7stdlife+$F139),(Input!$H$209*(1+vanilla1)^0.5)-SUM($H139:M139),(Input!$H$209*(1+vanilla1)^0.5)/A7stdlife)) -> 0.1877081816 | O139: =IF(A7stdlife="n/a","n/a",IF(O$3>(A7stdlife+$F139),(Input!$H$209*(1+vanilla1)^0.5)-SUM($H139:N139),(Input!$H$209*(1+vanilla1)^0.5)/A7stdlife)) -> 0.1877081816 | P139: =IF(A7stdlife="n/a","n/a",IF(P$3>(A7stdlife+$F139),(Input!$H$209*(1+vanilla1)^0.5)-SUM($H139:O139),(Input!$H$209*(1+vanilla1)^0.5)/A7stdlife)) -> 0.1877081816 | Q139: =IF(A7stdlife="n/a","n/a",IF(Q$3>(A7stdlife+$F139),(Input!$H$209*(1+vanilla1)^0.5)-SUM($H139:P139),(Input!$H$209*(1+vanilla1)^0.5)/A7stdlife)) -> 0.1877081816
F140: 2 | J140: =IF(A7stdlife="n/a","n/a",IF(J$3>(A7stdlife+$F140),(Input!$I$209*(1+vanilla2)^0.5)-SUM($I140:I140),(Input!$I$209*(1+vanilla2)^0.5)/A7stdlife)) -> 0.1935427861 | K140: =IF(A7stdlife="n/a","n/a",IF(K$3>(A7stdlife+$F140),(Input!$I$209*(1+vanilla2)^0.5)-SUM($I140:J140),(Input!$I$209*(1+vanilla2)^0.5)/A7stdlife)) -> 0.1935427861 | L140: =IF(A7stdlife="n/a","n/a",IF(L$3>(A7stdlife+$F140),(Input!$I$209*(1+vanilla2)^0.5)-SUM($I140:K140),(Input!$I$209*(1+vanilla2)^0.5)/A7stdlife)) -> 0.1935427861 | M140: =IF(A7stdlife="n/a","n/a",IF(M$3>(A7stdlife+$F140),(Input!$I$209*(1+vanilla2)^0.5)-SUM($I140:L140),(Input!$I$209*(1+vanilla2)^0.5)/A7stdlife)) -> 0.1935427861 | N140: =IF(A7stdlife="n/a","n/a",IF(N$3>(A7stdlife+$F140),(Input!$I$209*(1+vanilla2)^0.5)-SUM($I140:M140),(Input!$I$209*(1+vanilla2)^0.5)/A7stdlife)) -> 0.1935427861 | O140: =IF(A7stdlife="n/a","n/a",IF(O$3>(A7stdlife+$F140),(Input!$I$209*(1+vanilla2)^0.5)-SUM($I140:N140),(Input!$I$209*(1+vanilla2)^0.5)/A7stdlife)) -> 0.1935427861 | P140: =IF(A7stdlife="n/a","n/a",IF(P$3>(A7stdlife+$F140),(Input!$I$209*(1+vanilla2)^0.5)-SUM($I140:O140),(Input!$I$209*(1+vanilla2)^0.5)/A7stdlife)) -> 0.1935427861 | Q140: =IF(A7stdlife="n/a","n/a",IF(Q$3>(A7stdlife+$F140),(Input!$I$209*(1+vanilla2)^0.5)-SUM($I140:P140),(Input!$I$209*(1+vanilla2)^0.5)/A7stdlife)) -> 0.1935427861
F141: 3 | K141: =IF(A7stdlife="n/a","n/a",IF(K$3>(A7stdlife+$F141),(Input!$J$209*(1+vanilla3)^0.5)-SUM($J141:J141),(Input!$J$209*(1+vanilla3)^0.5)/A7stdlife)) -> 0.164349557 | L141: =IF(A7stdlife="n/a","n/a",IF(L$3>(A7stdlife+$F141),(Input!$J$209*(1+vanilla3)^0.5)-SUM($J141:K141),(Input!$J$209*(1+vanilla3)^0.5)/A7stdlife)) -> 0.164349557 | M141: =IF(A7stdlife="n/a","n/a",IF(M$3>(A7stdlife+$F141),(Input!$J$209*(1+vanilla3)^0.5)-SUM($J141:L141),(Input!$J$209*(1+vanilla3)^0.5)/A7stdlife)) -> 0.164349557 | N141: =IF(A7stdlife="n/a","n/a",IF(N$3>(A7stdlife+$F141),(Input!$J$209*(1+vanilla3)^0.5)-SUM($J141:M141),(Input!$J$209*(1+vanilla3)^0.5)/A7stdlife)) -> 0.164349557 | O141: =IF(A7stdlife="n/a","n/a",IF(O$3>(A7stdlife+$F141),(Input!$J$209*(1+vanilla3)^0.5)-SUM($J141:N141),(Input!$J$209*(1+vanilla3)^0.5)/A7stdlife)) -> 0.164349557 | P141: =IF(A7stdlife="n/a","n/a",IF(P$3>(A7stdlife+$F141),(Input!$J$209*(1+vanilla3)^0.5)-SUM($J141:O141),(Input!$J$209*(1+vanilla3)^0.5)/A7stdlife)) -> 0.164349557 | Q141: =IF(A7stdlife="n/a","n/a",IF(Q$3>(A7stdlife+$F141),(Input!$J$209*(1+vanilla3)^0.5)-SUM($J141:P141),(Input!$J$209*(1+vanilla3)^0.5)/A7stdlife)) -> 0.164349557
F142: 4 | L142: =IF(A7stdlife="n/a","n/a",IF(L$3>(A7stdlife+$F142),(Input!$K$209*(1+vanilla4)^0.5)-SUM($K142:K142),(Input!$K$209*(1+vanilla4)^0.5)/A7stdlife)) -> 0.1851798085 | M142: =IF(A7stdlife="n/a","n/a",IF(M$3>(A7stdlife+$F142),(Input!$K$209*(1+vanilla4)^0.5)-SUM($K142:L142),(Input!$K$209*(1+vanilla4)^0.5)/A7stdlife)) -> 0.1851798085 | N142: =IF(A7stdlife="n/a","n/a",IF(N$3>(A7stdlife+$F142),(Input!$K$209*(1+vanilla4)^0.5)-SUM($K142:M142),(Input!$K$209*(1+vanilla4)^0.5)/A7stdlife)) -> 0.1851798085 | O142: =IF(A7stdlife="n/a","n/a",IF(O$3>(A7stdlife+$F142),(Input!$K$209*(1+vanilla4)^0.5)-SUM($K142:N142),(Input!$K$209*(1+vanilla4)^0.5)/A7stdlife)) -> 0.1851798085 | P142: =IF(A7stdlife="n/a","n/a",IF(P$3>(A7stdlife+$F142),(Input!$K$209*(1+vanilla4)^0.5)-SUM($K142:O142),(Input!$K$209*(1+vanilla4)^0.5)/A7stdlife)) -> 0.1851798085 | Q142: =IF(A7stdlife="n/a","n/a",IF(Q$3>(A7stdlife+$F142),(Input!$K$209*(1+vanilla4)^0.5)-SUM($K142:P142),(Input!$K$209*(1+vanilla4)^0.5)/A7stdlife)) -> 0.1851798085
F143: 5 | M143: =IF(A7stdlife="n/a","n/a",IF(M$3>(A7stdlife+$F143),(Input!$L$209*(1+vanilla5)^0.5)-SUM($L143:L143),(Input!$L$209*(1+vanilla5)^0.5)/A7stdlife)) -> 0.1905159015 | N143: =IF(A7stdlife="n/a","n/a",IF(N$3>(A7stdlife+$F143),(Input!$L$209*(1+vanilla5)^0.5)-SUM($L143:M143),(Input!$L$209*(1+vanilla5)^0.5)/A7stdlife)) -> 0.1905159015 | O143: =IF(A7stdlife="n/a","n/a",IF(O$3>(A7stdlife+$F143),(Input!$L$209*(1+vanilla5)^0.5)-SUM($L143:N143),(Input!$L$209*(1+vanilla5)^0.5)/A7stdlife)) -> 0.1905159015 | P143: =IF(A7stdlife="n/a","n/a",IF(P$3>(A7stdlife+$F143),(Input!$L$209*(1+vanilla5)^0.5)-SUM($L143:O143),(Input!$L$209*(1+vanilla5)^0.5)/A7stdlife)) -> 0.1905159015 | Q143: =IF(A7stdlife="n/a","n/a",IF(Q$3>(A7stdlife+$F143),(Input!$L$209*(1+vanilla5)^0.5)-SUM($L143:P143),(Input!$L$209*(1+vanilla5)^0.5)/A7stdlife)) -> 0.1905159015
F144: 6 | N144: =IF(A7stdlife="n/a","n/a",IF(N$3>(A7stdlife+$F144),(Input!$M$209*(1+vanilla6)^0.5)-SUM($M144:M144),(Input!$M$209*(1+vanilla6)^0.5)/A7stdlife)) -> 0 | O144: =IF(A7stdlife="n/a","n/a",IF(O$3>(A7stdlife+$F144),(Input!$M$209*(1+vanilla6)^0.5)-SUM($M144:N144),(Input!$M$209*(1+vanilla6)^0.5)/A7stdlife)) -> 0 | P144: =IF(A7stdlife="n/a","n/a",IF(P$3>(A7stdlife+$F144),(Input!$M$209*(1+vanilla6)^0.5)-SUM($M144:O144),(Input!$M$209*(1+vanilla6)^0.5)/A7stdlife)) -> 0 | Q144: =IF(A7stdlife="n/a","n/a",IF(Q$3>(A7stdlife+$F144),(Input!$M$209*(1+vanilla6)^0.5)-SUM($M144:P144),(Input!$M$209*(1+vanilla6)^0.5)/A7stdlife)) -> 0
F145: 7 | O145: =IF(A7stdlife="n/a","n/a",IF(O$3>(A7stdlife+$F145),(Input!$N$209*(1+vanilla7)^0.5)-SUM($N145:N145),(Input!$N$209*(1+vanilla7)^0.5)/A7stdlife)) -> 0 | P145: =IF(A7stdlife="n/a","n/a",IF(P$3>(A7stdlife+$F145),(Input!$N$209*(1+vanilla7)^0.5)-SUM($N145:O145),(Input!$N$209*(1+vanilla7)^0.5)/A7stdlife)) -> 0 | Q145: =IF(A7stdlife="n/a","n/a",IF(Q$3>(A7stdlife+$F145),(Input!$N$209*(1+vanilla7)^0.5)-SUM($N145:P145),(Input!$N$209*(1+vanilla7)^0.5)/A7stdlife)) -> 0
F146: 8 | P146: =IF(A7stdlife="n/a","n/a",IF(P$3>(A7stdlife+$F146),(Input!$O$209*(1+vanilla8)^0.5)-SUM($O146:O146),(Input!$O$209*(1+vanilla8)^0.5)/A7stdlife)) -> 0 | Q146: =IF(A7stdlife="n/a","n/a",IF(Q$3>(A7stdlife+$F146),(Input!$O$209*(1+vanilla8)^0.5)-SUM($O146:P146),(Input!$O$209*(1+vanilla8)^0.5)/A7stdlife)) -> 0
F147: 9 | Q147: =IF(A7stdlife="n/a","n/a",IF(Q$3>(A7stdlife+$F147),(Input!$P$209*(1+vanilla9)^0.5)-SUM($P147:P147),(Input!$P$209*(1+vanilla9)^0.5)/A7stdlife)) -> 0
F148: 10
D149: =Asset7 -> Overhead High Voltage Lines Urban | H149: =-SUM(H137:H148) -> -3.427013996 | I149: =-SUM(I137:I148) -> -3.614722177 | J149: =-SUM(J137:J148) -> -3.808264963 | K149: =-SUM(K137:K148) -> -3.97261452 | L149: =-SUM(L137:L148) -> -4.157794329 | M149: =IF(Input!M248>0, -SUM(M137:M148), 0) -> 0 | N149: =IF(Input!N248>0, -SUM(N137:N148), 0) -> 0 | O149: =IF(Input!O248>0, -SUM(O137:O148), 0) -> 0 | P149: =IF(Input!P248>0, -SUM(P137:P148), 0) -> 0 | Q149: =IF(Input!Q248>0, -SUM(Q137:Q148), 0) -> 0
C150: =Asset8 -> Overhead High Voltage Lines Rural | E150: Opening RAB | H150: =IF(H$3>A8remlife,A8value-SUM($G150:G150),IF(A8remlife="N/A","n/a",A8value/A8remlife)) -> 15.34993152 | I150: =IF(I$3>A8remlife,A8value-SUM($G150:H150),IF(A8remlife="N/A","n/a",A8value/A8remlife)) -> 15.34993152 | J150: =IF(J$3>A8remlife,A8value-SUM($G150:I150),IF(A8remlife="N/A","n/a",A8value/A8remlife)) -> 15.34993152 | K150: =IF(K$3>A8remlife,A8value-SUM($G150:J150),IF(A8remlife="N/A","n/a",A8value/A8remlife)) -> 15.34993152 | L150: =IF(L$3>A8remlife,A8value-SUM($G150:K150),IF(A8remlife="N/A","n/a",A8value/A8remlife)) -> 15.34993152 | M150: =IF(M$3>A8remlife,A8value-SUM($G150:L150),IF(A8remlife="N/A","n/a",A8value/A8remlife)) -> 15.34993152 | N150: =IF(N$3>A8remlife,A8value-SUM($G150:M150),IF(A8remlife="N/A","n/a",A8value/A8remlife)) -> 15.34993152 | O150: =IF(O$3>A8remlife,A8value-SUM($G150:N150),IF(A8remlife="N/A","n/a",A8value/A8remlife)) -> 15.34993152 | P150: =IF(P$3>A8remlife,A8value-SUM($G150:O150),IF(A8remlife="N/A","n/a",A8value/A8remlife)) -> 15.34993152 | Q150: =IF(Q$3>A8remlife,A8value-SUM($G150:P150),IF(A8remlife="N/A","n/a",A8value/A8remlife)) -> 15.34993152
E151: Capex in year | F151: 0
F152: 1 | I152: =IF(A8stdlife="n/a","n/a",IF(I$3>(A8stdlife+$F152),(Input!$H$210*(1+vanilla1)^0.5)-SUM($H152:H152),(Input!$H$210*(1+vanilla1)^0.5)/A8stdlife)) -> 0.4994188435 | J152: =IF(A8stdlife="n/a","n/a",IF(J$3>(A8stdlife+$F152),(Input!$H$210*(1+vanilla1)^0.5)-SUM($H152:I152),(Input!$H$210*(1+vanilla1)^0.5)/A8stdlife)) -> 0.4994188435 | K152: =IF(A8stdlife="n/a","n/a",IF(K$3>(A8stdlife+$F152),(Input!$H$210*(1+vanilla1)^0.5)-SUM($H152:J152),(Input!$H$210*(1+vanilla1)^0.5)/A8stdlife)) -> 0.4994188435 | L152: =IF(A8stdlife="n/a","n/a",IF(L$3>(A8stdlife+$F152),(Input!$H$210*(1+vanilla1)^0.5)-SUM($H152:K152),(Input!$H$210*(1+vanilla1)^0.5)/A8stdlife)) -> 0.4994188435 | M152: =IF(A8stdlife="n/a","n/a",IF(M$3>(A8stdlife+$F152),(Input!$H$210*(1+vanilla1)^0.5)-SUM($H152:L152),(Input!$H$210*(1+vanilla1)^0.5)/A8stdlife)) -> 0.4994188435 | N152: =IF(A8stdlife="n/a","n/a",IF(N$3>(A8stdlife+$F152),(Input!$H$210*(1+vanilla1)^0.5)-SUM($H152:M152),(Input!$H$210*(1+vanilla1)^0.5)/A8stdlife)) -> 0.4994188435 | O152: =IF(A8stdlife="n/a","n/a",IF(O$3>(A8stdlife+$F152),(Input!$H$210*(1+vanilla1)^0.5)-SUM($H152:N152),(Input!$H$210*(1+vanilla1)^0.5)/A8stdlife)) -> 0.4994188435 | P152: =IF(A8stdlife="n/a","n/a",IF(P$3>(A8stdlife+$F152),(Input!$H$210*(1+vanilla1)^0.5)-SUM($H152:O152),(Input!$H$210*(1+vanilla1)^0.5)/A8stdlife)) -> 0.4994188435 | Q152: =IF(A8stdlife="n/a","n/a",IF(Q$3>(A8stdlife+$F152),(Input!$H$210*(1+vanilla1)^0.5)-SUM($H152:P152),(Input!$H$210*(1+vanilla1)^0.5)/A8stdlife)) -> 0.4994188435
F153: 2 | J153: =IF(A8stdlife="n/a","n/a",IF(J$3>(A8stdlife+$F153),(Input!$I$210*(1+vanilla2)^0.5)-SUM($I153:I153),(Input!$I$210*(1+vanilla2)^0.5)/A8stdlife)) -> 0.4991797925 | K153: =IF(A8stdlife="n/a","n/a",IF(K$3>(A8stdlife+$F153),(Input!$I$210*(1+vanilla2)^0.5)-SUM($I153:J153),(Input!$I$210*(1+vanilla2)^0.5)/A8stdlife)) -> 0.4991797925 | L153: =IF(A8stdlife="n/a","n/a",IF(L$3>(A8stdlife+$F153),(Input!$I$210*(1+vanilla2)^0.5)-SUM($I153:K153),(Input!$I$210*(1+vanilla2)^0.5)/A8stdlife)) -> 0.4991797925 | M153: =IF(A8stdlife="n/a","n/a",IF(M$3>(A8stdlife+$F153),(Input!$I$210*(1+vanilla2)^0.5)-SUM($I153:L153),(Input!$I$210*(1+vanilla2)^0.5)/A8stdlife)) -> 0.4991797925 | N153: =IF(A8stdlife="n/a","n/a",IF(N$3>(A8stdlife+$F153),(Input!$I$210*(1+vanilla2)^0.5)-SUM($I153:M153),(Input!$I$210*(1+vanilla2)^0.5)/A8stdlife)) -> 0.4991797925 | O153: =IF(A8stdlife="n/a","n/a",IF(O$3>(A8stdlife+$F153),(Input!$I$210*(1+vanilla2)^0.5)-SUM($I153:N153),(Input!$I$210*(1+vanilla2)^0.5)/A8stdlife)) -> 0.4991797925 | P153: =IF(A8stdlife="n/a","n/a",IF(P$3>(A8stdlife+$F153),(Input!$I$210*(1+vanilla2)^0.5)-SUM($I153:O153),(Input!$I$210*(1+vanilla2)^0.5)/A8stdlife)) -> 0.4991797925 | Q153: =IF(A8stdlife="n/a","n/a",IF(Q$3>(A8stdlife+$F153),(Input!$I$210*(1+vanilla2)^0.5)-SUM($I153:P153),(Input!$I$210*(1+vanilla2)^0.5)/A8stdlife)) -> 0.4991797925
F154: 3 | K154: =IF(A8stdlife="n/a","n/a",IF(K$3>(A8stdlife+$F154),(Input!$J$210*(1+vanilla3)^0.5)-SUM($J154:J154),(Input!$J$210*(1+vanilla3)^0.5)/A8stdlife)) -> 0.4683324097 | L154: =IF(A8stdlife="n/a","n/a",IF(L$3>(A8stdlife+$F154),(Input!$J$210*(1+vanilla3)^0.5)-SUM($J154:K154),(Input!$J$210*(1+vanilla3)^0.5)/A8stdlife)) -> 0.4683324097 | M154: =IF(A8stdlife="n/a","n/a",IF(M$3>(A8stdlife+$F154),(Input!$J$210*(1+vanilla3)^0.5)-SUM($J154:L154),(Input!$J$210*(1+vanilla3)^0.5)/A8stdlife)) -> 0.4683324097 | N154: =IF(A8stdlife="n/a","n/a",IF(N$3>(A8stdlife+$F154),(Input!$J$210*(1+vanilla3)^0.5)-SUM($J154:M154),(Input!$J$210*(1+vanilla3)^0.5)/A8stdlife)) -> 0.4683324097 | O154: =IF(A8stdlife="n/a","n/a",IF(O$3>(A8stdlife+$F154),(Input!$J$210*(1+vanilla3)^0.5)-SUM($J154:N154),(Input!$J$210*(1+vanilla3)^0.5)/A8stdlife)) -> 0.4683324097 | P154: =IF(A8stdlife="n/a","n/a",IF(P$3>(A8stdlife+$F154),(Input!$J$210*(1+vanilla3)^0.5)-SUM($J154:O154),(Input!$J$210*(1+vanilla3)^0.5)/A8stdlife)) -> 0.4683324097 | Q154: =IF(A8stdlife="n/a","n/a",IF(Q$3>(A8stdlife+$F154),(Input!$J$210*(1+vanilla3)^0.5)-SUM($J154:P154),(Input!$J$210*(1+vanilla3)^0.5)/A8stdlife)) -> 0.4683324097
F155: 4 | L155: =IF(A8stdlife="n/a","n/a",IF(L$3>(A8stdlife+$F155),(Input!$K$210*(1+vanilla4)^0.5)-SUM($K155:K155),(Input!$K$210*(1+vanilla4)^0.5)/A8stdlife)) -> 0.4603317651 | M155: =IF(A8stdlife="n/a","n/a",IF(M$3>(A8stdlife+$F155),(Input!$K$210*(1+vanilla4)^0.5)-SUM($K155:L155),(Input!$K$210*(1+vanilla4)^0.5)/A8stdlife)) -> 0.4603317651 | N155: =IF(A8stdlife="n/a","n/a",IF(N$3>(A8stdlife+$F155),(Input!$K$210*(1+vanilla4)^0.5)-SUM($K155:M155),(Input!$K$210*(1+vanilla4)^0.5)/A8stdlife)) -> 0.4603317651 | O155: =IF(A8stdlife="n/a","n/a",IF(O$3>(A8stdlife+$F155),(Input!$K$210*(1+vanilla4)^0.5)-SUM($K155:N155),(Input!$K$210*(1+vanilla4)^0.5)/A8stdlife)) -> 0.4603317651 | P155: =IF(A8stdlife="n/a","n/a",IF(P$3>(A8stdlife+$F155),(Input!$K$210*(1+vanilla4)^0.5)-SUM($K155:O155),(Input!$K$210*(1+vanilla4)^0.5)/A8stdlife)) -> 0.4603317651 | Q155: =IF(A8stdlife="n/a","n/a",IF(Q$3>(A8stdlife+$F155),(Input!$K$210*(1+vanilla4)^0.5)-SUM($K155:P155),(Input!$K$210*(1+vanilla4)^0.5)/A8stdlife)) -> 0.4603317651
F156: 5 | M156: =IF(A8stdlife="n/a","n/a",IF(M$3>(A8stdlife+$F156),(Input!$L$210*(1+vanilla5)^0.5)-SUM($L156:L156),(Input!$L$210*(1+vanilla5)^0.5)/A8stdlife)) -> 0.5922782139 | N156: =IF(A8stdlife="n/a","n/a",IF(N$3>(A8stdlife+$F156),(Input!$L$210*(1+vanilla5)^0.5)-SUM($L156:M156),(Input!$L$210*(1+vanilla5)^0.5)/A8stdlife)) -> 0.5922782139 | O156: =IF(A8stdlife="n/a","n/a",IF(O$3>(A8stdlife+$F156),(Input!$L$210*(1+vanilla5)^0.5)-SUM($L156:N156),(Input!$L$210*(1+vanilla5)^0.5)/A8stdlife)) -> 0.5922782139 | P156: =IF(A8stdlife="n/a","n/a",IF(P$3>(A8stdlife+$F156),(Input!$L$210*(1+vanilla5)^0.5)-SUM($L156:O156),(Input!$L$210*(1+vanilla5)^0.5)/A8stdlife)) -> 0.5922782139 | Q156: =IF(A8stdlife="n/a","n/a",IF(Q$3>(A8stdlife+$F156),(Input!$L$210*(1+vanilla5)^0.5)-SUM($L156:P156),(Input!$L$210*(1+vanilla5)^0.5)/A8stdlife)) -> 0.5922782139
F157: 6 | N157: =IF(A8stdlife="n/a","n/a",IF(N$3>(A8stdlife+$F157),(Input!$M$210*(1+vanilla6)^0.5)-SUM($M157:M157),(Input!$M$210*(1+vanilla6)^0.5)/A8stdlife)) -> 0 | O157: =IF(A8stdlife="n/a","n/a",IF(O$3>(A8stdlife+$F157),(Input!$M$210*(1+vanilla6)^0.5)-SUM($M157:N157),(Input!$M$210*(1+vanilla6)^0.5)/A8stdlife)) -> 0 | P157: =IF(A8stdlife="n/a","n/a",IF(P$3>(A8stdlife+$F157),(Input!$M$210*(1+vanilla6)^0.5)-SUM($M157:O157),(Input!$M$210*(1+vanilla6)^0.5)/A8stdlife)) -> 0 | Q157: =IF(A8stdlife="n/a","n/a",IF(Q$3>(A8stdlife+$F157),(Input!$M$210*(1+vanilla6)^0.5)-SUM($M157:P157),(Input!$M$210*(1+vanilla6)^0.5)/A8stdlife)) -> 0
F158: 7 | O158: =IF(A8stdlife="n/a","n/a",IF(O$3>(A8stdlife+$F158),(Input!$N$210*(1+vanilla7)^0.5)-SUM($N158:N158),(Input!$N$210*(1+vanilla7)^0.5)/A8stdlife)) -> 0 | P158: =IF(A8stdlife="n/a","n/a",IF(P$3>(A8stdlife+$F158),(Input!$N$210*(1+vanilla7)^0.5)-SUM($N158:O158),(Input!$N$210*(1+vanilla7)^0.5)/A8stdlife)) -> 0 | Q158: =IF(A8stdlife="n/a","n/a",IF(Q$3>(A8stdlife+$F158),(Input!$N$210*(1+vanilla7)^0.5)-SUM($N158:P158),(Input!$N$210*(1+vanilla7)^0.5)/A8stdlife)) -> 0
F159: 8 | P159: =IF(A8stdlife="n/a","n/a",IF(P$3>(A8stdlife+$F159),(Input!$O$210*(1+vanilla8)^0.5)-SUM($O159:O159),(Input!$O$210*(1+vanilla8)^0.5)/A8stdlife)) -> 0 | Q159: =IF(A8stdlife="n/a","n/a",IF(Q$3>(A8stdlife+$F159),(Input!$O$210*(1+vanilla8)^0.5)-SUM($O159:P159),(Input!$O$210*(1+vanilla8)^0.5)/A8stdlife)) -> 0
F160: 9 | Q160: =IF(A8stdlife="n/a","n/a",IF(Q$3>(A8stdlife+$F160),(Input!$P$210*(1+vanilla9)^0.5)-SUM($P160:P160),(Input!$P$210*(1+vanilla9)^0.5)/A8stdlife)) -> 0
F161: 10
D162: =Asset8 -> Overhead High Voltage Lines Rural | H162: =-SUM(H150:H161) -> -15.34993152 | I162: =-SUM(I150:I161) -> -15.84935036 | J162: =-SUM(J150:J161) -> -16.34853016 | K162: =-SUM(K150:K161) -> -16.81686257 | L162: =-SUM(L150:L161) -> -17.27719433 | M162: =IF(Input!M248>0, -SUM(M150:M161), 0) -> 0 | N162: =IF(Input!N248>0, -SUM(N150:N161), 0) -> 0 | O162: =IF(Input!O248>0, -SUM(O150:O161), 0) -> 0 | P162: =IF(Input!P248>0, -SUM(P150:P161), 0) -> 0 | Q162: =IF(Input!Q248>0, -SUM(Q150:Q161), 0) -> 0
C163: =Asset9 -> Voltage Regulators on Distribution Feeders | E163: Opening RAB | H163: =IF(H$3>A9remlife,A9value-SUM($G163:G163),IF(A9remlife="N/A","n/a",A9value/A9remlife)) -> 0.4845173228 | I163: =IF(I$3>A9remlife,A9value-SUM($G163:H163),IF(A9remlife="N/A","n/a",A9value/A9remlife)) -> 0.4845173228 | J163: =IF(J$3>A9remlife,A9value-SUM($G163:I163),IF(A9remlife="N/A","n/a",A9value/A9remlife)) -> 0.4845173228 | K163: =IF(K$3>A9remlife,A9value-SUM($G163:J163),IF(A9remlife="N/A","n/a",A9value/A9remlife)) -> 0.4845173228 | L163: =IF(L$3>A9remlife,A9value-SUM($G163:K163),IF(A9remlife="N/A","n/a",A9value/A9remlife)) -> 0.4845173228 | M163: =IF(M$3>A9remlife,A9value-SUM($G163:L163),IF(A9remlife="N/A","n/a",A9value/A9remlife)) -> 0.4845173228 | N163: =IF(N$3>A9remlife,A9value-SUM($G163:M163),IF(A9remlife="N/A","n/a",A9value/A9remlife)) -> 0.4845173228 | O163: =IF(O$3>A9remlife,A9value-SUM($G163:N163),IF(A9remlife="N/A","n/a",A9value/A9remlife)) -> 0.4845173228 | P163: =IF(P$3>A9remlife,A9value-SUM($G163:O163),IF(A9remlife="N/A","n/a",A9value/A9remlife)) -> 0.4845173228 | Q163: =IF(Q$3>A9remlife,A9value-SUM($G163:P163),IF(A9remlife="N/A","n/a",A9value/A9remlife)) -> 0.4845173228
E164: Capex in year | F164: 0
F165: 1 | I165: =IF(A9stdlife="n/a","n/a",IF(I$3>(A9stdlife+$F165),(Input!$H$211*(1+vanilla1)^0.5)-SUM($H165:H165),(Input!$H$211*(1+vanilla1)^0.5)/A9stdlife)) -> 0.0223827091 | J165: =IF(A9stdlife="n/a","n/a",IF(J$3>(A9stdlife+$F165),(Input!$H$211*(1+vanilla1)^0.5)-SUM($H165:I165),(Input!$H$211*(1+vanilla1)^0.5)/A9stdlife)) -> 0.0223827091 | K165: =IF(A9stdlife="n/a","n/a",IF(K$3>(A9stdlife+$F165),(Input!$H$211*(1+vanilla1)^0.5)-SUM($H165:J165),(Input!$H$211*(1+vanilla1)^0.5)/A9stdlife)) -> 0.0223827091 | L165: =IF(A9stdlife="n/a","n/a",IF(L$3>(A9stdlife+$F165),(Input!$H$211*(1+vanilla1)^0.5)-SUM($H165:K165),(Input!$H$211*(1+vanilla1)^0.5)/A9stdlife)) -> 0.0223827091 | M165: =IF(A9stdlife="n/a","n/a",IF(M$3>(A9stdlife+$F165),(Input!$H$211*(1+vanilla1)^0.5)-SUM($H165:L165),(Input!$H$211*(1+vanilla1)^0.5)/A9stdlife)) -> 0.0223827091 | N165: =IF(A9stdlife="n/a","n/a",IF(N$3>(A9stdlife+$F165),(Input!$H$211*(1+vanilla1)^0.5)-SUM($H165:M165),(Input!$H$211*(1+vanilla1)^0.5)/A9stdlife)) -> 0.0223827091 | O165: =IF(A9stdlife="n/a","n/a",IF(O$3>(A9stdlife+$F165),(Input!$H$211*(1+vanilla1)^0.5)-SUM($H165:N165),(Input!$H$211*(1+vanilla1)^0.5)/A9stdlife)) -> 0.0223827091 | P165: =IF(A9stdlife="n/a","n/a",IF(P$3>(A9stdlife+$F165),(Input!$H$211*(1+vanilla1)^0.5)-SUM($H165:O165),(Input!$H$211*(1+vanilla1)^0.5)/A9stdlife)) -> 0.0223827091 | Q165: =IF(A9stdlife="n/a","n/a",IF(Q$3>(A9stdlife+$F165),(Input!$H$211*(1+vanilla1)^0.5)-SUM($H165:P165),(Input!$H$211*(1+vanilla1)^0.5)/A9stdlife)) -> 0.0223827091
F166: 2 | J166: =IF(A9stdlife="n/a","n/a",IF(J$3>(A9stdlife+$F166),(Input!$I$211*(1+vanilla2)^0.5)-SUM($I166:I166),(Input!$I$211*(1+vanilla2)^0.5)/A9stdlife)) -> 0.01810804141 | K166: =IF(A9stdlife="n/a","n/a",IF(K$3>(A9stdlife+$F166),(Input!$I$211*(1+vanilla2)^0.5)-SUM($I166:J166),(Input!$I$211*(1+vanilla2)^0.5)/A9stdlife)) -> 0.01810804141 | L166: =IF(A9stdlife="n/a","n/a",IF(L$3>(A9stdlife+$F166),(Input!$I$211*(1+vanilla2)^0.5)-SUM($I166:K166),(Input!$I$211*(1+vanilla2)^0.5)/A9stdlife)) -> 0.01810804141 | M166: =IF(A9stdlife="n/a","n/a",IF(M$3>(A9stdlife+$F166),(Input!$I$211*(1+vanilla2)^0.5)-SUM($I166:L166),(Input!$I$211*(1+vanilla2)^0.5)/A9stdlife)) -> 0.01810804141 | N166: =IF(A9stdlife="n/a","n/a",IF(N$3>(A9stdlife+$F166),(Input!$I$211*(1+vanilla2)^0.5)-SUM($I166:M166),(Input!$I$211*(1+vanilla2)^0.5)/A9stdlife)) -> 0.01810804141 | O166: =IF(A9stdlife="n/a","n/a",IF(O$3>(A9stdlife+$F166),(Input!$I$211*(1+vanilla2)^0.5)-SUM($I166:N166),(Input!$I$211*(1+vanilla2)^0.5)/A9stdlife)) -> 0.01810804141 | P166: =IF(A9stdlife="n/a","n/a",IF(P$3>(A9stdlife+$F166),(Input!$I$211*(1+vanilla2)^0.5)-SUM($I166:O166),(Input!$I$211*(1+vanilla2)^0.5)/A9stdlife)) -> 0.01810804141 | Q166: =IF(A9stdlife="n/a","n/a",IF(Q$3>(A9stdlife+$F166),(Input!$I$211*(1+vanilla2)^0.5)-SUM($I166:P166),(Input!$I$211*(1+vanilla2)^0.5)/A9stdlife)) -> 0.01810804141
F167: 3 | K167: =IF(A9stdlife="n/a","n/a",IF(K$3>(A9stdlife+$F167),(Input!$J$211*(1+vanilla3)^0.5)-SUM($J167:J167),(Input!$J$211*(1+vanilla3)^0.5)/A9stdlife)) -> 0.02485885507 | L167: =IF(A9stdlife="n/a","n/a",IF(L$3>(A9stdlife+$F167),(Input!$J$211*(1+vanilla3)^0.5)-SUM($J167:K167),(Input!$J$211*(1+vanilla3)^0.5)/A9stdlife)) -> 0.02485885507 | M167: =IF(A9stdlife="n/a","n/a",IF(M$3>(A9stdlife+$F167),(Input!$J$211*(1+vanilla3)^0.5)-SUM($J167:L167),(Input!$J$211*(1+vanilla3)^0.5)/A9stdlife)) -> 0.02485885507 | N167: =IF(A9stdlife="n/a","n/a",IF(N$3>(A9stdlife+$F167),(Input!$J$211*(1+vanilla3)^0.5)-SUM($J167:M167),(Input!$J$211*(1+vanilla3)^0.5)/A9stdlife)) -> 0.02485885507 | O167: =IF(A9stdlife="n/a","n/a",IF(O$3>(A9stdlife+$F167),(Input!$J$211*(1+vanilla3)^0.5)-SUM($J167:N167),(Input!$J$211*(1+vanilla3)^0.5)/A9stdlife)) -> 0.02485885507 | P167: =IF(A9stdlife="n/a","n/a",IF(P$3>(A9stdlife+$F167),(Input!$J$211*(1+vanilla3)^0.5)-SUM($J167:O167),(Input!$J$211*(1+vanilla3)^0.5)/A9stdlife)) -> 0.02485885507 | Q167: =IF(A9stdlife="n/a","n/a",IF(Q$3>(A9stdlife+$F167),(Input!$J$211*(1+vanilla3)^0.5)-SUM($J167:P167),(Input!$J$211*(1+vanilla3)^0.5)/A9stdlife)) -> 0.02485885507
F168: 4 | L168: =IF(A9stdlife="n/a","n/a",IF(L$3>(A9stdlife+$F168),(Input!$K$211*(1+vanilla4)^0.5)-SUM($K168:K168),(Input!$K$211*(1+vanilla4)^0.5)/A9stdlife)) -> 0.01390669866 | M168: =IF(A9stdlife="n/a","n/a",IF(M$3>(A9stdlife+$F168),(Input!$K$211*(1+vanilla4)^0.5)-SUM($K168:L168),(Input!$K$211*(1+vanilla4)^0.5)/A9stdlife)) -> 0.01390669866 | N168: =IF(A9stdlife="n/a","n/a",IF(N$3>(A9stdlife+$F168),(Input!$K$211*(1+vanilla4)^0.5)-SUM($K168:M168),(Input!$K$211*(1+vanilla4)^0.5)/A9stdlife)) -> 0.01390669866 | O168: =IF(A9stdlife="n/a","n/a",IF(O$3>(A9stdlife+$F168),(Input!$K$211*(1+vanilla4)^0.5)-SUM($K168:N168),(Input!$K$211*(1+vanilla4)^0.5)/A9stdlife)) -> 0.01390669866 | P168: =IF(A9stdlife="n/a","n/a",IF(P$3>(A9stdlife+$F168),(Input!$K$211*(1+vanilla4)^0.5)-SUM($K168:O168),(Input!$K$211*(1+vanilla4)^0.5)/A9stdlife)) -> 0.01390669866 | Q168: =IF(A9stdlife="n/a","n/a",IF(Q$3>(A9stdlife+$F168),(Input!$K$211*(1+vanilla4)^0.5)-SUM($K168:P168),(Input!$K$211*(1+vanilla4)^0.5)/A9stdlife)) -> 0.01390669866
F169: 5 | M169: =IF(A9stdlife="n/a","n/a",IF(M$3>(A9stdlife+$F169),(Input!$L$211*(1+vanilla5)^0.5)-SUM($L169:L169),(Input!$L$211*(1+vanilla5)^0.5)/A9stdlife)) -> 0.01820517875 | N169: =IF(A9stdlife="n/a","n/a",IF(N$3>(A9stdlife+$F169),(Input!$L$211*(1+vanilla5)^0.5)-SUM($L169:M169),(Input!$L$211*(1+vanilla5)^0.5)/A9stdlife)) -> 0.01820517875 | O169: =IF(A9stdlife="n/a","n/a",IF(O$3>(A9stdlife+$F169),(Input!$L$211*(1+vanilla5)^0.5)-SUM($L169:N169),(Input!$L$211*(1+vanilla5)^0.5)/A9stdlife)) -> 0.01820517875 | P169: =IF(A9stdlife="n/a","n/a",IF(P$3>(A9stdlife+$F169),(Input!$L$211*(1+vanilla5)^0.5)-SUM($L169:O169),(Input!$L$211*(1+vanilla5)^0.5)/A9stdlife)) -> 0.01820517875 | Q169: =IF(A9stdlife="n/a","n/a",IF(Q$3>(A9stdlife+$F169),(Input!$L$211*(1+vanilla5)^0.5)-SUM($L169:P169),(Input!$L$211*(1+vanilla5)^0.5)/A9stdlife)) -> 0.01820517875
F170: 6 | N170: =IF(A9stdlife="n/a","n/a",IF(N$3>(A9stdlife+$F170),(Input!$M$211*(1+vanilla6)^0.5)-SUM($M170:M170),(Input!$M$211*(1+vanilla6)^0.5)/A9stdlife)) -> 0 | O170: =IF(A9stdlife="n/a","n/a",IF(O$3>(A9stdlife+$F170),(Input!$M$211*(1+vanilla6)^0.5)-SUM($M170:N170),(Input!$M$211*(1+vanilla6)^0.5)/A9stdlife)) -> 0 | P170: =IF(A9stdlife="n/a","n/a",IF(P$3>(A9stdlife+$F170),(Input!$M$211*(1+vanilla6)^0.5)-SUM($M170:O170),(Input!$M$211*(1+vanilla6)^0.5)/A9stdlife)) -> 0 | Q170: =IF(A9stdlife="n/a","n/a",IF(Q$3>(A9stdlife+$F170),(Input!$M$211*(1+vanilla6)^0.5)-SUM($M170:P170),(Input!$M$211*(1+vanilla6)^0.5)/A9stdlife)) -> 0
F171: 7 | O171: =IF(A9stdlife="n/a","n/a",IF(O$3>(A9stdlife+$F171),(Input!$N$211*(1+vanilla7)^0.5)-SUM($N171:N171),(Input!$N$211*(1+vanilla7)^0.5)/A9stdlife)) -> 0 | P171: =IF(A9stdlife="n/a","n/a",IF(P$3>(A9stdlife+$F171),(Input!$N$211*(1+vanilla7)^0.5)-SUM($N171:O171),(Input!$N$211*(1+vanilla7)^0.5)/A9stdlife)) -> 0 | Q171: =IF(A9stdlife="n/a","n/a",IF(Q$3>(A9stdlife+$F171),(Input!$N$211*(1+vanilla7)^0.5)-SUM($N171:P171),(Input!$N$211*(1+vanilla7)^0.5)/A9stdlife)) -> 0
F172: 8 | P172: =IF(A9stdlife="n/a","n/a",IF(P$3>(A9stdlife+$F172),(Input!$O$211*(1+vanilla8)^0.5)-SUM($O172:O172),(Input!$O$211*(1+vanilla8)^0.5)/A9stdlife)) -> 0 | Q172: =IF(A9stdlife="n/a","n/a",IF(Q$3>(A9stdlife+$F172),(Input!$O$211*(1+vanilla8)^0.5)-SUM($O172:P172),(Input!$O$211*(1+vanilla8)^0.5)/A9stdlife)) -> 0
F173: 9 | Q173: =IF(A9stdlife="n/a","n/a",IF(Q$3>(A9stdlife+$F173),(Input!$P$211*(1+vanilla9)^0.5)-SUM($P173:P173),(Input!$P$211*(1+vanilla9)^0.5)/A9stdlife)) -> 0
F174: 10
D175: =Asset9 -> Voltage Regulators on Distribution Feeders | H175: =-SUM(H163:H174) -> -0.4845173228 | I175: =-SUM(I163:I174) -> -0.5069000319 | J175: =-SUM(J163:J174) -> -0.5250080733 | K175: =-SUM(K163:K174) -> -0.5498669284 | L175: =-SUM(L163:L174) -> -0.5637736271 | M175: =IF(Input!M248>0, -SUM(M163:M174), 0) -> 0 | N175: =IF(Input!N248>0, -SUM(N163:N174), 0) -> 0 | O175: =IF(Input!O248>0, -SUM(O163:O174), 0) -> 0 | P175: =IF(Input!P248>0, -SUM(P163:P174), 0) -> 0 | Q175: =IF(Input!Q248>0, -SUM(Q163:Q174), 0) -> 0
C176: =Asset10 -> Underground High Voltage Lines | E176: Opening RAB | H176: =IF(H$3>A10remlife,A10value-SUM($G176:G176),IF(A10remlife="N/A","n/a",A10value/A10remlife)) -> 5.403934936 | I176: =IF(I$3>A10remlife,A10value-SUM($G176:H176),IF(A10remlife="N/A","n/a",A10value/A10remlife)) -> 5.403934936 | J176: =IF(J$3>A10remlife,A10value-SUM($G176:I176),IF(A10remlife="N/A","n/a",A10value/A10remlife)) -> 5.403934936 | K176: =IF(K$3>A10remlife,A10value-SUM($G176:J176),IF(A10remlife="N/A","n/a",A10value/A10remlife)) -> 5.403934936 | L176: =IF(L$3>A10remlife,A10value-SUM($G176:K176),IF(A10remlife="N/A","n/a",A10value/A10remlife)) -> 5.403934936 | M176: =IF(M$3>A10remlife,A10value-SUM($G176:L176),IF(A10remlife="N/A","n/a",A10value/A10remlife)) -> 5.403934936 | N176: =IF(N$3>A10remlife,A10value-SUM($G176:M176),IF(A10remlife="N/A","n/a",A10value/A10remlife)) -> 5.403934936 | O176: =IF(O$3>A10remlife,A10value-SUM($G176:N176),IF(A10remlife="N/A","n/a",A10value/A10remlife)) -> 5.403934936 | P176: =IF(P$3>A10remlife,A10value-SUM($G176:O176),IF(A10remlife="N/A","n/a",A10value/A10remlife)) -> 5.403934936 | Q176: =IF(Q$3>A10remlife,A10value-SUM($G176:P176),IF(A10remlife="N/A","n/a",A10value/A10remlife)) -> 5.403934936
E177: Capex in year | F177: 0
F178: 1 | I178: =IF(A10stdlife="n/a","n/a",IF(I$3>(A10stdlife+$F178),(Input!$H$212*(1+vanilla1)^0.5)-SUM($H178:H178),(Input!$H$212*(1+vanilla1)^0.5)/A10stdlife)) -> 0.06703508476 | J178: =IF(A10stdlife="n/a","n/a",IF(J$3>(A10stdlife+$F178),(Input!$H$212*(1+vanilla1)^0.5)-SUM($H178:I178),(Input!$H$212*(1+vanilla1)^0.5)/A10stdlife)) -> 0.06703508476 | K178: =IF(A10stdlife="n/a","n/a",IF(K$3>(A10stdlife+$F178),(Input!$H$212*(1+vanilla1)^0.5)-SUM($H178:J178),(Input!$H$212*(1+vanilla1)^0.5)/A10stdlife)) -> 0.06703508476 | L178: =IF(A10stdlife="n/a","n/a",IF(L$3>(A10stdlife+$F178),(Input!$H$212*(1+vanilla1)^0.5)-SUM($H178:K178),(Input!$H$212*(1+vanilla1)^0.5)/A10stdlife)) -> 0.06703508476 | M178: =IF(A10stdlife="n/a","n/a",IF(M$3>(A10stdlife+$F178),(Input!$H$212*(1+vanilla1)^0.5)-SUM($H178:L178),(Input!$H$212*(1+vanilla1)^0.5)/A10stdlife)) -> 0.06703508476 | N178: =IF(A10stdlife="n/a","n/a",IF(N$3>(A10stdlife+$F178),(Input!$H$212*(1+vanilla1)^0.5)-SUM($H178:M178),(Input!$H$212*(1+vanilla1)^0.5)/A10stdlife)) -> 0.06703508476 | O178: =IF(A10stdlife="n/a","n/a",IF(O$3>(A10stdlife+$F178),(Input!$H$212*(1+vanilla1)^0.5)-SUM($H178:N178),(Input!$H$212*(1+vanilla1)^0.5)/A10stdlife)) -> 0.06703508476 | P178: =IF(A10stdlife="n/a","n/a",IF(P$3>(A10stdlife+$F178),(Input!$H$212*(1+vanilla1)^0.5)-SUM($H178:O178),(Input!$H$212*(1+vanilla1)^0.5)/A10stdlife)) -> 0.06703508476 | Q178: =IF(A10stdlife="n/a","n/a",IF(Q$3>(A10stdlife+$F178),(Input!$H$212*(1+vanilla1)^0.5)-SUM($H178:P178),(Input!$H$212*(1+vanilla1)^0.5)/A10stdlife)) -> 0.06703508476
F179: 2 | J179: =IF(A10stdlife="n/a","n/a",IF(J$3>(A10stdlife+$F179),(Input!$I$212*(1+vanilla2)^0.5)-SUM($I179:I179),(Input!$I$212*(1+vanilla2)^0.5)/A10stdlife)) -> 0.06108003013 | K179: =IF(A10stdlife="n/a","n/a",IF(K$3>(A10stdlife+$F179),(Input!$I$212*(1+vanilla2)^0.5)-SUM($I179:J179),(Input!$I$212*(1+vanilla2)^0.5)/A10stdlife)) -> 0.06108003013 | L179: =IF(A10stdlife="n/a","n/a",IF(L$3>(A10stdlife+$F179),(Input!$I$212*(1+vanilla2)^0.5)-SUM($I179:K179),(Input!$I$212*(1+vanilla2)^0.5)/A10stdlife)) -> 0.06108003013 | M179: =IF(A10stdlife="n/a","n/a",IF(M$3>(A10stdlife+$F179),(Input!$I$212*(1+vanilla2)^0.5)-SUM($I179:L179),(Input!$I$212*(1+vanilla2)^0.5)/A10stdlife)) -> 0.06108003013 | N179: =IF(A10stdlife="n/a","n/a",IF(N$3>(A10stdlife+$F179),(Input!$I$212*(1+vanilla2)^0.5)-SUM($I179:M179),(Input!$I$212*(1+vanilla2)^0.5)/A10stdlife)) -> 0.06108003013 | O179: =IF(A10stdlife="n/a","n/a",IF(O$3>(A10stdlife+$F179),(Input!$I$212*(1+vanilla2)^0.5)-SUM($I179:N179),(Input!$I$212*(1+vanilla2)^0.5)/A10stdlife)) -> 0.06108003013 | P179: =IF(A10stdlife="n/a","n/a",IF(P$3>(A10stdlife+$F179),(Input!$I$212*(1+vanilla2)^0.5)-SUM($I179:O179),(Input!$I$212*(1+vanilla2)^0.5)/A10stdlife)) -> 0.06108003013 | Q179: =IF(A10stdlife="n/a","n/a",IF(Q$3>(A10stdlife+$F179),(Input!$I$212*(1+vanilla2)^0.5)-SUM($I179:P179),(Input!$I$212*(1+vanilla2)^0.5)/A10stdlife)) -> 0.06108003013
F180: 3 | K180: =IF(A10stdlife="n/a","n/a",IF(K$3>(A10stdlife+$F180),(Input!$J$212*(1+vanilla3)^0.5)-SUM($J180:J180),(Input!$J$212*(1+vanilla3)^0.5)/A10stdlife)) -> 0.06407215418 | L180: =IF(A10stdlife="n/a","n/a",IF(L$3>(A10stdlife+$F180),(Input!$J$212*(1+vanilla3)^0.5)-SUM($J180:K180),(Input!$J$212*(1+vanilla3)^0.5)/A10stdlife)) -> 0.06407215418 | M180: =IF(A10stdlife="n/a","n/a",IF(M$3>(A10stdlife+$F180),(Input!$J$212*(1+vanilla3)^0.5)-SUM($J180:L180),(Input!$J$212*(1+vanilla3)^0.5)/A10stdlife)) -> 0.06407215418 | N180: =IF(A10stdlife="n/a","n/a",IF(N$3>(A10stdlife+$F180),(Input!$J$212*(1+vanilla3)^0.5)-SUM($J180:M180),(Input!$J$212*(1+vanilla3)^0.5)/A10stdlife)) -> 0.06407215418 | O180: =IF(A10stdlife="n/a","n/a",IF(O$3>(A10stdlife+$F180),(Input!$J$212*(1+vanilla3)^0.5)-SUM($J180:N180),(Input!$J$212*(1+vanilla3)^0.5)/A10stdlife)) -> 0.06407215418 | P180: =IF(A10stdlife="n/a","n/a",IF(P$3>(A10stdlife+$F180),(Input!$J$212*(1+vanilla3)^0.5)-SUM($J180:O180),(Input!$J$212*(1+vanilla3)^0.5)/A10stdlife)) -> 0.06407215418 | Q180: =IF(A10stdlife="n/a","n/a",IF(Q$3>(A10stdlife+$F180),(Input!$J$212*(1+vanilla3)^0.5)-SUM($J180:P180),(Input!$J$212*(1+vanilla3)^0.5)/A10stdlife)) -> 0.06407215418
F181: 4 | L181: =IF(A10stdlife="n/a","n/a",IF(L$3>(A10stdlife+$F181),(Input!$K$212*(1+vanilla4)^0.5)-SUM($K181:K181),(Input!$K$212*(1+vanilla4)^0.5)/A10stdlife)) -> 0.0460493149 | M181: =IF(A10stdlife="n/a","n/a",IF(M$3>(A10stdlife+$F181),(Input!$K$212*(1+vanilla4)^0.5)-SUM($K181:L181),(Input!$K$212*(1+vanilla4)^0.5)/A10stdlife)) -> 0.0460493149 | N181: =IF(A10stdlife="n/a","n/a",IF(N$3>(A10stdlife+$F181),(Input!$K$212*(1+vanilla4)^0.5)-SUM($K181:M181),(Input!$K$212*(1+vanilla4)^0.5)/A10stdlife)) -> 0.0460493149 | O181: =IF(A10stdlife="n/a","n/a",IF(O$3>(A10stdlife+$F181),(Input!$K$212*(1+vanilla4)^0.5)-SUM($K181:N181),(Input!$K$212*(1+vanilla4)^0.5)/A10stdlife)) -> 0.0460493149 | P181: =IF(A10stdlife="n/a","n/a",IF(P$3>(A10stdlife+$F181),(Input!$K$212*(1+vanilla4)^0.5)-SUM($K181:O181),(Input!$K$212*(1+vanilla4)^0.5)/A10stdlife)) -> 0.0460493149 | Q181: =IF(A10stdlife="n/a","n/a",IF(Q$3>(A10stdlife+$F181),(Input!$K$212*(1+vanilla4)^0.5)-SUM($K181:P181),(Input!$K$212*(1+vanilla4)^0.5)/A10stdlife)) -> 0.0460493149
F182: 5 | M182: =IF(A10stdlife="n/a","n/a",IF(M$3>(A10stdlife+$F182),(Input!$L$212*(1+vanilla5)^0.5)-SUM($L182:L182),(Input!$L$212*(1+vanilla5)^0.5)/A10stdlife)) -> 0.1198597901 | N182: =IF(A10stdlife="n/a","n/a",IF(N$3>(A10stdlife+$F182),(Input!$L$212*(1+vanilla5)^0.5)-SUM($L182:M182),(Input!$L$212*(1+vanilla5)^0.5)/A10stdlife)) -> 0.1198597901 | O182: =IF(A10stdlife="n/a","n/a",IF(O$3>(A10stdlife+$F182),(Input!$L$212*(1+vanilla5)^0.5)-SUM($L182:N182),(Input!$L$212*(1+vanilla5)^0.5)/A10stdlife)) -> 0.1198597901 | P182: =IF(A10stdlife="n/a","n/a",IF(P$3>(A10stdlife+$F182),(Input!$L$212*(1+vanilla5)^0.5)-SUM($L182:O182),(Input!$L$212*(1+vanilla5)^0.5)/A10stdlife)) -> 0.1198597901 | Q182: =IF(A10stdlife="n/a","n/a",IF(Q$3>(A10stdlife+$F182),(Input!$L$212*(1+vanilla5)^0.5)-SUM($L182:P182),(Input!$L$212*(1+vanilla5)^0.5)/A10stdlife)) -> 0.1198597901
F183: 6 | N183: =IF(A10stdlife="n/a","n/a",IF(N$3>(A10stdlife+$F183),(Input!$M$212*(1+vanilla6)^0.5)-SUM($M183:M183),(Input!$M$212*(1+vanilla6)^0.5)/A10stdlife)) -> 0 | O183: =IF(A10stdlife="n/a","n/a",IF(O$3>(A10stdlife+$F183),(Input!$M$212*(1+vanilla6)^0.5)-SUM($M183:N183),(Input!$M$212*(1+vanilla6)^0.5)/A10stdlife)) -> 0 | P183: =IF(A10stdlife="n/a","n/a",IF(P$3>(A10stdlife+$F183),(Input!$M$212*(1+vanilla6)^0.5)-SUM($M183:O183),(Input!$M$212*(1+vanilla6)^0.5)/A10stdlife)) -> 0 | Q183: =IF(A10stdlife="n/a","n/a",IF(Q$3>(A10stdlife+$F183),(Input!$M$212*(1+vanilla6)^0.5)-SUM($M183:P183),(Input!$M$212*(1+vanilla6)^0.5)/A10stdlife)) -> 0
F184: 7 | O184: =IF(A10stdlife="n/a","n/a",IF(O$3>(A10stdlife+$F184),(Input!$N$212*(1+vanilla7)^0.5)-SUM($N184:N184),(Input!$N$212*(1+vanilla7)^0.5)/A10stdlife)) -> 0 | P184: =IF(A10stdlife="n/a","n/a",IF(P$3>(A10stdlife+$F184),(Input!$N$212*(1+vanilla7)^0.5)-SUM($N184:O184),(Input!$N$212*(1+vanilla7)^0.5)/A10stdlife)) -> 0 | Q184: =IF(A10stdlife="n/a","n/a",IF(Q$3>(A10stdlife+$F184),(Input!$N$212*(1+vanilla7)^0.5)-SUM($N184:P184),(Input!$N$212*(1+vanilla7)^0.5)/A10stdlife)) -> 0
F185: 8 | P185: =IF(A10stdlife="n/a","n/a",IF(P$3>(A10stdlife+$F185),(Input!$O$212*(1+vanilla8)^0.5)-SUM($O185:O185),(Input!$O$212*(1+vanilla8)^0.5)/A10stdlife)) -> 0 | Q185: =IF(A10stdlife="n/a","n/a",IF(Q$3>(A10stdlife+$F185),(Input!$O$212*(1+vanilla8)^0.5)-SUM($O185:P185),(Input!$O$212*(1+vanilla8)^0.5)/A10stdlife)) -> 0
F186: 9 | Q186: =IF(A10stdlife="n/a","n/a",IF(Q$3>(A10stdlife+$F186),(Input!$P$212*(1+vanilla9)^0.5)-SUM($P186:P186),(Input!$P$212*(1+vanilla9)^0.5)/A10stdlife)) -> 0
F187: 10
D188: =Asset10 -> Underground High Voltage Lines | H188: =-SUM(H176:H187) -> -5.403934936 | I188: =-SUM(I176:I187) -> -5.470970021 | J188: =-SUM(J176:J187) -> -5.532050051 | K188: =-SUM(K176:K187) -> -5.596122205 | L188: =-SUM(L176:L187) -> -5.64217152 | M188: =IF(Input!M248>0, -SUM(M176:M187), 0) -> 0 | N188: =IF(Input!N248>0, -SUM(N176:N187), 0) -> 0 | O188: =IF(Input!O248>0, -SUM(O176:O187), 0) -> 0 | P188: =IF(Input!P248>0, -SUM(P176:P187), 0) -> 0 | Q188: =IF(Input!Q248>0, -SUM(Q176:Q187), 0) -> 0
C189: =Asset11 -> Underground High Voltage Lines SWER | E189: Opening RAB | H189: =IF(H$3>A11remlife,A11value-SUM($G189:G189),IF(A11remlife="N/A","n/a",A11value/A11remlife)) -> 0.007734776153 | I189: =IF(I$3>A11remlife,A11value-SUM($G189:H189),IF(A11remlife="N/A","n/a",A11value/A11remlife)) -> 0.007734776153 | J189: =IF(J$3>A11remlife,A11value-SUM($G189:I189),IF(A11remlife="N/A","n/a",A11value/A11remlife)) -> 0.007734776153 | K189: =IF(K$3>A11remlife,A11value-SUM($G189:J189),IF(A11remlife="N/A","n/a",A11value/A11remlife)) -> 0.007734776153 | L189: =IF(L$3>A11remlife,A11value-SUM($G189:K189),IF(A11remlife="N/A","n/a",A11value/A11remlife)) -> 0.007734776153 | M189: =IF(M$3>A11remlife,A11value-SUM($G189:L189),IF(A11remlife="N/A","n/a",A11value/A11remlife)) -> 0.007734776153 | N189: =IF(N$3>A11remlife,A11value-SUM($G189:M189),IF(A11remlife="N/A","n/a",A11value/A11remlife)) -> 0.007734776153 | O189: =IF(O$3>A11remlife,A11value-SUM($G189:N189),IF(A11remlife="N/A","n/a",A11value/A11remlife)) -> 0.007734776153 | P189: =IF(P$3>A11remlife,A11value-SUM($G189:O189),IF(A11remlife="N/A","n/a",A11value/A11remlife)) -> 0.007734776153 | Q189: =IF(Q$3>A11remlife,A11value-SUM($G189:P189),IF(A11remlife="N/A","n/a",A11value/A11remlife)) -> 0.007734776153
E190: Capex in year | F190: 0
F191: 1 | I191: =IF(A11stdlife="n/a","n/a",IF(I$3>(A11stdlife+$F191),(Input!$H$213*(1+vanilla1)^0.5)-SUM($H191:H191),(Input!$H$213*(1+vanilla1)^0.5)/A11stdlife)) -> 0.001023335308 | J191: =IF(A11stdlife="n/a","n/a",IF(J$3>(A11stdlife+$F191),(Input!$H$213*(1+vanilla1)^0.5)-SUM($H191:I191),(Input!$H$213*(1+vanilla1)^0.5)/A11stdlife)) -> 0.001023335308 | K191: =IF(A11stdlife="n/a","n/a",IF(K$3>(A11stdlife+$F191),(Input!$H$213*(1+vanilla1)^0.5)-SUM($H191:J191),(Input!$H$213*(1+vanilla1)^0.5)/A11stdlife)) -> 0.001023335308 | L191: =IF(A11stdlife="n/a","n/a",IF(L$3>(A11stdlife+$F191),(Input!$H$213*(1+vanilla1)^0.5)-SUM($H191:K191),(Input!$H$213*(1+vanilla1)^0.5)/A11stdlife)) -> 0.001023335308 | M191: =IF(A11stdlife="n/a","n/a",IF(M$3>(A11stdlife+$F191),(Input!$H$213*(1+vanilla1)^0.5)-SUM($H191:L191),(Input!$H$213*(1+vanilla1)^0.5)/A11stdlife)) -> 0.001023335308 | N191: =IF(A11stdlife="n/a","n/a",IF(N$3>(A11stdlife+$F191),(Input!$H$213*(1+vanilla1)^0.5)-SUM($H191:M191),(Input!$H$213*(1+vanilla1)^0.5)/A11stdlife)) -> 0.001023335308 | O191: =IF(A11stdlife="n/a","n/a",IF(O$3>(A11stdlife+$F191),(Input!$H$213*(1+vanilla1)^0.5)-SUM($H191:N191),(Input!$H$213*(1+vanilla1)^0.5)/A11stdlife)) -> 0.001023335308 | P191: =IF(A11stdlife="n/a","n/a",IF(P$3>(A11stdlife+$F191),(Input!$H$213*(1+vanilla1)^0.5)-SUM($H191:O191),(Input!$H$213*(1+vanilla1)^0.5)/A11stdlife)) -> 0.001023335308 | Q191: =IF(A11stdlife="n/a","n/a",IF(Q$3>(A11stdlife+$F191),(Input!$H$213*(1+vanilla1)^0.5)-SUM($H191:P191),(Input!$H$213*(1+vanilla1)^0.5)/A11stdlife)) -> 0.001023335308
F192: 2 | J192: =IF(A11stdlife="n/a","n/a",IF(J$3>(A11stdlife+$F192),(Input!$I$213*(1+vanilla2)^0.5)-SUM($I192:I192),(Input!$I$213*(1+vanilla2)^0.5)/A11stdlife)) -> 0.001377068153 | K192: =IF(A11stdlife="n/a","n/a",IF(K$3>(A11stdlife+$F192),(Input!$I$213*(1+vanilla2)^0.5)-SUM($I192:J192),(Input!$I$213*(1+vanilla2)^0.5)/A11stdlife)) -> 0.001377068153 | L192: =IF(A11stdlife="n/a","n/a",IF(L$3>(A11stdlife+$F192),(Input!$I$213*(1+vanilla2)^0.5)-SUM($I192:K192),(Input!$I$213*(1+vanilla2)^0.5)/A11stdlife)) -> 0.001377068153 | M192: =IF(A11stdlife="n/a","n/a",IF(M$3>(A11stdlife+$F192),(Input!$I$213*(1+vanilla2)^0.5)-SUM($I192:L192),(Input!$I$213*(1+vanilla2)^0.5)/A11stdlife)) -> 0.001377068153 | N192: =IF(A11stdlife="n/a","n/a",IF(N$3>(A11stdlife+$F192),(Input!$I$213*(1+vanilla2)^0.5)-SUM($I192:M192),(Input!$I$213*(1+vanilla2)^0.5)/A11stdlife)) -> 0.001377068153 | O192: =IF(A11stdlife="n/a","n/a",IF(O$3>(A11stdlife+$F192),(Input!$I$213*(1+vanilla2)^0.5)-SUM($I192:N192),(Input!$I$213*(1+vanilla2)^0.5)/A11stdlife)) -> 0.001377068153 | P192: =IF(A11stdlife="n/a","n/a",IF(P$3>(A11stdlife+$F192),(Input!$I$213*(1+vanilla2)^0.5)-SUM($I192:O192),(Input!$I$213*(1+vanilla2)^0.5)/A11stdlife)) -> 0.001377068153 | Q192: =IF(A11stdlife="n/a","n/a",IF(Q$3>(A11stdlife+$F192),(Input!$I$213*(1+vanilla2)^0.5)-SUM($I192:P192),(Input!$I$213*(1+vanilla2)^0.5)/A11stdlife)) -> 0.001377068153
F193: 3 | K193: =IF(A11stdlife="n/a","n/a",IF(K$3>(A11stdlife+$F193),(Input!$J$213*(1+vanilla3)^0.5)-SUM($J193:J193),(Input!$J$213*(1+vanilla3)^0.5)/A11stdlife)) -> 0.0004911564736 | L193: =IF(A11stdlife="n/a","n/a",IF(L$3>(A11stdlife+$F193),(Input!$J$213*(1+vanilla3)^0.5)-SUM($J193:K193),(Input!$J$213*(1+vanilla3)^0.5)/A11stdlife)) -> 0.0004911564736 | M193: =IF(A11stdlife="n/a","n/a",IF(M$3>(A11stdlife+$F193),(Input!$J$213*(1+vanilla3)^0.5)-SUM($J193:L193),(Input!$J$213*(1+vanilla3)^0.5)/A11stdlife)) -> 0.0004911564736 | N193: =IF(A11stdlife="n/a","n/a",IF(N$3>(A11stdlife+$F193),(Input!$J$213*(1+vanilla3)^0.5)-SUM($J193:M193),(Input!$J$213*(1+vanilla3)^0.5)/A11stdlife)) -> 0.0004911564736 | O193: =IF(A11stdlife="n/a","n/a",IF(O$3>(A11stdlife+$F193),(Input!$J$213*(1+vanilla3)^0.5)-SUM($J193:N193),(Input!$J$213*(1+vanilla3)^0.5)/A11stdlife)) -> 0.0004911564736 | P193: =IF(A11stdlife="n/a","n/a",IF(P$3>(A11stdlife+$F193),(Input!$J$213*(1+vanilla3)^0.5)-SUM($J193:O193),(Input!$J$213*(1+vanilla3)^0.5)/A11stdlife)) -> 0.0004911564736 | Q193: =IF(A11stdlife="n/a","n/a",IF(Q$3>(A11stdlife+$F193),(Input!$J$213*(1+vanilla3)^0.5)-SUM($J193:P193),(Input!$J$213*(1+vanilla3)^0.5)/A11stdlife)) -> 0.0004911564736
F194: 4 | L194: =IF(A11stdlife="n/a","n/a",IF(L$3>(A11stdlife+$F194),(Input!$K$213*(1+vanilla4)^0.5)-SUM($K194:K194),(Input!$K$213*(1+vanilla4)^0.5)/A11stdlife)) -> 0.0005717559575 | M194: =IF(A11stdlife="n/a","n/a",IF(M$3>(A11stdlife+$F194),(Input!$K$213*(1+vanilla4)^0.5)-SUM($K194:L194),(Input!$K$213*(1+vanilla4)^0.5)/A11stdlife)) -> 0.0005717559575 | N194: =IF(A11stdlife="n/a","n/a",IF(N$3>(A11stdlife+$F194),(Input!$K$213*(1+vanilla4)^0.5)-SUM($K194:M194),(Input!$K$213*(1+vanilla4)^0.5)/A11stdlife)) -> 0.0005717559575 | O194: =IF(A11stdlife="n/a","n/a",IF(O$3>(A11stdlife+$F194),(Input!$K$213*(1+vanilla4)^0.5)-SUM($K194:N194),(Input!$K$213*(1+vanilla4)^0.5)/A11stdlife)) -> 0.0005717559575 | P194: =IF(A11stdlife="n/a","n/a",IF(P$3>(A11stdlife+$F194),(Input!$K$213*(1+vanilla4)^0.5)-SUM($K194:O194),(Input!$K$213*(1+vanilla4)^0.5)/A11stdlife)) -> 0.0005717559575 | Q194: =IF(A11stdlife="n/a","n/a",IF(Q$3>(A11stdlife+$F194),(Input!$K$213*(1+vanilla4)^0.5)-SUM($K194:P194),(Input!$K$213*(1+vanilla4)^0.5)/A11stdlife)) -> 0.0005717559575
F195: 5 | M195: =IF(A11stdlife="n/a","n/a",IF(M$3>(A11stdlife+$F195),(Input!$L$213*(1+vanilla5)^0.5)-SUM($L195:L195),(Input!$L213*(1+vanilla5)^0.5)/A11stdlife)) -> 0 | N195: =IF(A11stdlife="n/a","n/a",IF(N$3>(A11stdlife+$F195),(Input!$L$213*(1+vanilla5)^0.5)-SUM($L195:M195),(Input!$L213*(1+vanilla5)^0.5)/A11stdlife)) -> 0 | O195: =IF(A11stdlife="n/a","n/a",IF(O$3>(A11stdlife+$F195),(Input!$L$213*(1+vanilla5)^0.5)-SUM($L195:N195),(Input!$L213*(1+vanilla5)^0.5)/A11stdlife)) -> 0 | P195: =IF(A11stdlife="n/a","n/a",IF(P$3>(A11stdlife+$F195),(Input!$L$213*(1+vanilla5)^0.5)-SUM($L195:O195),(Input!$L213*(1+vanilla5)^0.5)/A11stdlife)) -> 0 | Q195: =IF(A11stdlife="n/a","n/a",IF(Q$3>(A11stdlife+$F195),(Input!$L$213*(1+vanilla5)^0.5)-SUM($L195:P195),(Input!$L213*(1+vanilla5)^0.5)/A11stdlife)) -> 0
F196: 6 | N196: =IF(A11stdlife="n/a","n/a",IF(N$3>(A11stdlife+$F196),(Input!$M$213*(1+vanilla6)^0.5)-SUM($M196:M196),(Input!$M$213*(1+vanilla6)^0.5)/A11stdlife)) -> 0 | O196: =IF(A11stdlife="n/a","n/a",IF(O$3>(A11stdlife+$F196),(Input!$M$213*(1+vanilla6)^0.5)-SUM($M196:N196),(Input!$M$213*(1+vanilla6)^0.5)/A11stdlife)) -> 0 | P196: =IF(A11stdlife="n/a","n/a",IF(P$3>(A11stdlife+$F196),(Input!$M$213*(1+vanilla6)^0.5)-SUM($M196:O196),(Input!$M$213*(1+vanilla6)^0.5)/A11stdlife)) -> 0 | Q196: =IF(A11stdlife="n/a","n/a",IF(Q$3>(A11stdlife+$F196),(Input!$M$213*(1+vanilla6)^0.5)-SUM($M196:P196),(Input!$M$213*(1+vanilla6)^0.5)/A11stdlife)) -> 0
F197: 7 | O197: =IF(A11stdlife="n/a","n/a",IF(O$3>(A11stdlife+$F197),(Input!$N$213*(1+vanilla7)^0.5)-SUM($N197:N197),(Input!$N$213*(1+vanilla7)^0.5)/A11stdlife)) -> 0 | P197: =IF(A11stdlife="n/a","n/a",IF(P$3>(A11stdlife+$F197),(Input!$N$213*(1+vanilla7)^0.5)-SUM($N197:O197),(Input!$N$213*(1+vanilla7)^0.5)/A11stdlife)) -> 0 | Q197: =IF(A11stdlife="n/a","n/a",IF(Q$3>(A11stdlife+$F197),(Input!$N$213*(1+vanilla7)^0.5)-SUM($N197:P197),(Input!$N$213*(1+vanilla7)^0.5)/A11stdlife)) -> 0
F198: 8 | P198: =IF(A11stdlife="n/a","n/a",IF(P$3>(A11stdlife+$F198),(Input!$O$213*(1+vanilla8)^0.5)-SUM($O198:O198),(Input!$O$213*(1+vanilla8)^0.5)/A11stdlife)) -> 0 | Q198: =IF(A11stdlife="n/a","n/a",IF(Q$3>(A11stdlife+$F198),(Input!$O$213*(1+vanilla8)^0.5)-SUM($O198:P198),(Input!$O$213*(1+vanilla8)^0.5)/A11stdlife)) -> 0
F199: 9 | Q199: =IF(A11stdlife="n/a","n/a",IF(Q$3>(A11stdlife+$F199),(Input!$P$213*(1+vanilla9)^0.5)-SUM($P199:P199),(Input!$P$213*(1+vanilla9)^0.5)/A11stdlife)) -> 0
F200: 10
D201: =Asset11 -> Underground High Voltage Lines SWER | H201: =-SUM(H189:H200) -> -0.007734776153 | I201: =-SUM(I189:I200) -> -0.008758111461 | J201: =-SUM(J189:J200) -> -0.01013517961 | K201: =-SUM(K189:K200) -> -0.01062633609 | L201: =-SUM(L189:L200) -> -0.01119809204 | M201: =IF(Input!M248>0, -SUM(M189:M200), 0) -> 0 | N201: =IF(Input!N248>0, -SUM(N189:N200), 0) -> 0 | O201: =IF(Input!O248>0, -SUM(O189:O200), 0) -> 0 | P201: =IF(Input!P248>0, -SUM(P189:P200), 0) -> 0 | Q201: =IF(Input!Q248>0, -SUM(Q189:Q200), 0) -> 0
C202: =Asset12 -> Distribution Substations HV (Pole) | E202: Opening RAB | H202: =IF(H$3>A12remlife,A12value-SUM($G202:G202),IF(A12remlife="N/A","n/a",A12value/A12remlife)) -> 0.03591545743 | I202: =IF(I$3>A12remlife,A12value-SUM($G202:H202),IF(A12remlife="N/A","n/a",A12value/A12remlife)) -> 0.03591545743 | J202: =IF(J$3>A12remlife,A12value-SUM($G202:I202),IF(A12remlife="N/A","n/a",A12value/A12remlife)) -> 0.03591545743 | K202: =IF(K$3>A12remlife,A12value-SUM($G202:J202),IF(A12remlife="N/A","n/a",A12value/A12remlife)) -> 0.03591545743 | L202: =IF(L$3>A12remlife,A12value-SUM($G202:K202),IF(A12remlife="N/A","n/a",A12value/A12remlife)) -> 0.03591545743 | M202: =IF(M$3>A12remlife,A12value-SUM($G202:L202),IF(A12remlife="N/A","n/a",A12value/A12remlife)) -> 0.03591545743 | N202: =IF(N$3>A12remlife,A12value-SUM($G202:M202),IF(A12remlife="N/A","n/a",A12value/A12remlife)) -> 0.03591545743 | O202: =IF(O$3>A12remlife,A12value-SUM($G202:N202),IF(A12remlife="N/A","n/a",A12value/A12remlife)) -> 0.03591545743 | P202: =IF(P$3>A12remlife,A12value-SUM($G202:O202),IF(A12remlife="N/A","n/a",A12value/A12remlife)) -> 0.03591545743 | Q202: =IF(Q$3>A12remlife,A12value-SUM($G202:P202),IF(A12remlife="N/A","n/a",A12value/A12remlife)) -> 0.03591545743
E203: Capex in year | F203: 0
F204: 1 | I204: =IF(A12stdlife="n/a","n/a",IF(I$3>(A12stdlife+$F204),(Input!$H$214*(1+vanilla1)^0.5)-SUM($H204:H204),(Input!$H$214*(1+vanilla1)^0.5)/A12stdlife)) -> 0.002651121696 | J204: =IF(A12stdlife="n/a","n/a",IF(J$3>(A12stdlife+$F204),(Input!$H$214*(1+vanilla1)^0.5)-SUM($H204:I204),(Input!$H$214*(1+vanilla1)^0.5)/A12stdlife)) -> 0.002651121696 | K204: =IF(A12stdlife="n/a","n/a",IF(K$3>(A12stdlife+$F204),(Input!$H$214*(1+vanilla1)^0.5)-SUM($H204:J204),(Input!$H$214*(1+vanilla1)^0.5)/A12stdlife)) -> 0.002651121696 | L204: =IF(A12stdlife="n/a","n/a",IF(L$3>(A12stdlife+$F204),(Input!$H$214*(1+vanilla1)^0.5)-SUM($H204:K204),(Input!$H$214*(1+vanilla1)^0.5)/A12stdlife)) -> 0.002651121696 | M204: =IF(A12stdlife="n/a","n/a",IF(M$3>(A12stdlife+$F204),(Input!$H$214*(1+vanilla1)^0.5)-SUM($H204:L204),(Input!$H$214*(1+vanilla1)^0.5)/A12stdlife)) -> 0.002651121696 | N204: =IF(A12stdlife="n/a","n/a",IF(N$3>(A12stdlife+$F204),(Input!$H$214*(1+vanilla1)^0.5)-SUM($H204:M204),(Input!$H$214*(1+vanilla1)^0.5)/A12stdlife)) -> 0.002651121696 | O204: =IF(A12stdlife="n/a","n/a",IF(O$3>(A12stdlife+$F204),(Input!$H$214*(1+vanilla1)^0.5)-SUM($H204:N204),(Input!$H$214*(1+vanilla1)^0.5)/A12stdlife)) -> 0.002651121696 | P204: =IF(A12stdlife="n/a","n/a",IF(P$3>(A12stdlife+$F204),(Input!$H$214*(1+vanilla1)^0.5)-SUM($H204:O204),(Input!$H$214*(1+vanilla1)^0.5)/A12stdlife)) -> 0.002651121696 | Q204: =IF(A12stdlife="n/a","n/a",IF(Q$3>(A12stdlife+$F204),(Input!$H$214*(1+vanilla1)^0.5)-SUM($H204:P204),(Input!$H$214*(1+vanilla1)^0.5)/A12stdlife)) -> 0.002651121696
F205: 2 | J205: =IF(A12stdlife="n/a","n/a",IF(J$3>(A12stdlife+$F205),(Input!$I$214*(1+vanilla2)^0.5)-SUM($I205:I205),(Input!$I$214*(1+vanilla2)^0.5)/A12stdlife)) -> 0.002834694817 | K205: =IF(A12stdlife="n/a","n/a",IF(K$3>(A12stdlife+$F205),(Input!$I$214*(1+vanilla2)^0.5)-SUM($I205:J205),(Input!$I$214*(1+vanilla2)^0.5)/A12stdlife)) -> 0.002834694817 | L205: =IF(A12stdlife="n/a","n/a",IF(L$3>(A12stdlife+$F205),(Input!$I$214*(1+vanilla2)^0.5)-SUM($I205:K205),(Input!$I$214*(1+vanilla2)^0.5)/A12stdlife)) -> 0.002834694817 | M205: =IF(A12stdlife="n/a","n/a",IF(M$3>(A12stdlife+$F205),(Input!$I$214*(1+vanilla2)^0.5)-SUM($I205:L205),(Input!$I$214*(1+vanilla2)^0.5)/A12stdlife)) -> 0.002834694817 | N205: =IF(A12stdlife="n/a","n/a",IF(N$3>(A12stdlife+$F205),(Input!$I$214*(1+vanilla2)^0.5)-SUM($I205:M205),(Input!$I$214*(1+vanilla2)^0.5)/A12stdlife)) -> 0.002834694817 | O205: =IF(A12stdlife="n/a","n/a",IF(O$3>(A12stdlife+$F205),(Input!$I$214*(1+vanilla2)^0.5)-SUM($I205:N205),(Input!$I$214*(1+vanilla2)^0.5)/A12stdlife)) -> 0.002834694817 | P205: =IF(A12stdlife="n/a","n/a",IF(P$3>(A12stdlife+$F205),(Input!$I$214*(1+vanilla2)^0.5)-SUM($I205:O205),(Input!$I$214*(1+vanilla2)^0.5)/A12stdlife)) -> 0.002834694817 | Q205: =IF(A12stdlife="n/a","n/a",IF(Q$3>(A12stdlife+$F205),(Input!$I$214*(1+vanilla2)^0.5)-SUM($I205:P205),(Input!$I$214*(1+vanilla2)^0.5)/A12stdlife)) -> 0.002834694817
... 807 more rows

Sheet Total actual RAB roll forward
C2: Total Asset Base Roll Forward
G3: 0 | H3: =G3+1 -> 1 | I3: 2 | J3: 3 | K3: 4 | L3: 5 | M3: 6
C4: Year | G4: =Input!G55 -> 2011-12 | H4: =Input!H55 -> 2012-13 | I4: =Input!I55 -> 2013-14 | J4: =Input!J55 -> 2014-15 | K4: =Input!K55 -> 2015-16 | L4: =Input!L55 -> 2016-17 | M4: =Input!M55 -> 2017-18 | N4: =Input!N55 -> 2018-19 | O4: =Input!O55 -> 2019-20 | P4: =Input!P55 -> 2020-21 | Q4: =Input!Q55 -> 2021-22
C6: Nominal Opening Regulated Asset Base | G6: =SUM(G7:G51) -> 1379.480679 | H6: =SUM(H7:H51) -> 1445.213272 | I6: 1486.887269 | J6: 1539.322696 | K6: 1557.035348 | L6: 1596.977112 | M6: 0 | N6: 0 | O6: 0 | P6: 0 | Q6: 0
D7: =Asset1 -> Overhead Subtransmission Lines (Urban) | G7: ='Actual RAB roll forward'!G654 -> 10.76227929 | H7: =G7+G54+G101+G148+G195+G242 -> 10.82010419 | I7: =H7+H54+H101 -> 12.17477475 | J7: 12.91164494 | K7: 12.97200249 | L7: 13.03347588 | M7: =IF(Input!M$248>0, L7+L54+L101, 0) -> 0 | N7: =IF(Input!N$248>0, M7+M54+M101, 0) -> 0 | O7: =IF(Input!O$248>0, N7+N54+N101, 0) -> 0 | P7: =IF(Input!P$248>0, O7+O54+O101, 0) -> 0 | Q7: =IF(Input!Q$248>0, P7+P54+P101, 0) -> 0
D8: =Asset2 -> Underground Subtransmission Lines (Urban) | G8: ='Actual RAB roll forward'!G655 -> 10.4543881 | H8: 10.5361568 | I8: 10.68354395 | J8: 10.83972223 | K8: 10.68622539 | L8: 10.54214219 | M8: =IF(Input!M$248>0, L8+L55+L102, 0) -> 0 | N8: =IF(Input!N$248>0, M8+M55+M102, 0) -> 0 | O8: =IF(Input!O$248>0, N8+N55+N102, 0) -> 0 | P8: =IF(Input!P$248>0, O8+O55+O102, 0) -> 0 | Q8: =IF(Input!Q$248>0, P8+P55+P102, 0) -> 0
D9: =Asset3 -> Urban Zone Substations | G9: ='Actual RAB roll forward'!G656 -> 36.56472805 | H9: 40.78533372 | I9: 42.60345726 | J9: 47.65397683 | K9: 47.46801084 | L9: 50.41033036 | M9: =IF(Input!M$248>0, L9+L56+L103, 0) -> 0 | N9: =IF(Input!N$248>0, M9+M56+M103, 0) -> 0 | O9: =IF(Input!O$248>0, N9+N56+N103, 0) -> 0 | P9: =IF(Input!P$248>0, O9+O56+O103, 0) -> 0 | Q9: =IF(Input!Q$248>0, P9+P56+P103, 0) -> 0
D10: =Asset4 -> Rural Zone Substations | G10: ='Actual RAB roll forward'!G657 -> 1.222341549 | H10: 2.344081306 | I10: 2.639692765 | J10: 3.757925116 | K10: 4.142796056 | L10: 4.258710785 | M10: =IF(Input!M$248>0, L10+L57+L104, 0) -> 0 | N10: =IF(Input!N$248>0, M10+M57+M104, 0) -> 0 | O10: =IF(Input!O$248>0, N10+N57+N104, 0) -> 0 | P10: =IF(Input!P$248>0, O10+O57+O104, 0) -> 0 | Q10: =IF(Input!Q$248>0, P10+P57+P104, 0) -> 0
D11: =Asset5 -> SCADA | G11: ='Actual RAB roll forward'!G658 -> 5.42024432 | H11: 2.89319389 | I11: 3.123773589 | J11: 4.501538559 | K11: 5.953465628 | L11: 22.66979127 | M11: =IF(Input!M$248>0, L11+L58+L105, 0) -> 0 | N11: =IF(Input!N$248>0, M11+M58+M105, 0) -> 0 | O11: =IF(Input!O$248>0, N11+N58+N105, 0) -> 0 | P11: =IF(Input!P$248>0, O11+O58+O105, 0) -> 0 | Q11: =IF(Input!Q$248>0, P11+P58+P105, 0) -> 0
D12: =Asset6 -> Distribution Switching Stations (Ground) | G12: ='Actual RAB roll forward'!G659 -> 12.83173872 | H12: 15.10822988 | I12: 15.16285662 | J12: 15.30024746 | K12: 15.20657871 | L12: 15.06493555 | M12: =IF(Input!M$248>0, L12+L59+L106, 0) -> 0 | N12: =IF(Input!N$248>0, M12+M59+M106, 0) -> 0 | O12: =IF(Input!O$248>0, N12+N59+N106, 0) -> 0 | P12: =IF(Input!P$248>0, O12+O59+O106, 0) -> 0 | Q12: =IF(Input!Q$248>0, P12+P59+P106, 0) -> 0
D13: =Asset7 -> Overhead High Voltage Lines Urban | G13: ='Actual RAB roll forward'!G660 -> 76.93748283 | H13: 81.78463186 | I13: 87.071601 | J13: 92.96136318 | K13: 96.31079054 | L13: 100.3384754 | M13: =IF(Input!M$248>0, L13+L60+L107, 0) -> 0 | N13: =IF(Input!N$248>0, M13+M60+M107, 0) -> 0 | O13: =IF(Input!O$248>0, N13+N60+N107, 0) -> 0 | P13: =IF(Input!P$248>0, O13+O60+O107, 0) -> 0 | Q13: =IF(Input!Q$248>0, P13+P60+P107, 0) -> 0
D14: =Asset8 -> Overhead High Voltage Lines Rural | G14: ='Actual RAB roll forward'!G661 -> 297.2602826 | H14: 318.0555232 | I14: 328.2106937 | J14: 339.5403686 | K14: 344.0972812 | L14: 347.8305591 | M14: =IF(Input!M$248>0, L14+L61+L108, 0) -> 0 | N14: =IF(Input!N$248>0, M14+M61+M108, 0) -> 0 | O14: =IF(Input!O$248>0, N14+N61+N108, 0) -> 0 | P14: =IF(Input!P$248>0, O14+O61+O108, 0) -> 0 | Q14: =IF(Input!Q$248>0, P14+P61+P108, 0) -> 0
D15: =Asset9 -> Voltage Regulators on Distribution Feeders | G15: ='Actual RAB roll forward'!G662 -> 10.62092091 | H15: 11.14830348 | I15: 11.85082978 | J15: 12.42780109 | K15: 13.1034301 | L15: 13.28225341 | M15: =IF(Input!M$248>0, L15+L62+L109, 0) -> 0 | N15: =IF(Input!N$248>0, M15+M62+M109, 0) -> 0 | O15: =IF(Input!O$248>0, N15+N62+N109, 0) -> 0 | P15: =IF(Input!P$248>0, O15+O62+O109, 0) -> 0 | Q15: =IF(Input!Q$248>0, P15+P62+P109, 0) -> 0
D16: =Asset10 -> Underground High Voltage Lines | G16: ='Actual RAB roll forward'!G663 -> 205.4310384 | H16: 226.521703 | I16: 230.7657001 | J16: 235.6175901 | K16: 236.9113359 | L16: 236.8940693 | M16: =IF(Input!M$248>0, L16+L63+L110, 0) -> 0 | N16: =IF(Input!N$248>0, M16+M63+M110, 0) -> 0 | O16: =IF(Input!O$248>0, N16+N63+N110, 0) -> 0 | P16: =IF(Input!P$248>0, O16+O63+O110, 0) -> 0 | Q16: =IF(Input!Q$248>0, P16+P63+P110, 0) -> 0
D17: =Asset11 -> Underground High Voltage Lines SWER | G17: ='Actual RAB roll forward'!G664 -> 0.363882645 | H17: 0.3676607992 | I17: 0.4321923384 | J17: 0.5229184586 | K17: 0.550895961 | L17: 0.5842175756 | M17: =IF(Input!M$248>0, L17+L64+L111, 0) -> 0 | N17: =IF(Input!N$248>0, M17+M64+M111, 0) -> 0 | O17: =IF(Input!O$248>0, N17+N64+N111, 0) -> 0 | P17: =IF(Input!P$248>0, O17+O64+O111, 0) -> 0 | Q17: =IF(Input!Q$248>0, P17+P64+P111, 0) -> 0
D18: =Asset12 -> Distribution Substations HV (Pole) | G18: ='Actual RAB roll forward'!G665 -> 1.045774748 | H18: 1.197526335 | I18: 1.299800302 | J18: 1.416954152 | K18: 1.539647701 | L18: 1.6299545 | M18: =IF(Input!M$248>0, L18+L65+L112, 0) -> 0 | N18: =IF(Input!N$248>0, M18+M65+M112, 0) -> 0 | O18: =IF(Input!O$248>0, N18+N65+N112, 0) -> 0 | P18: =IF(Input!P$248>0, O18+O65+O112, 0) -> 0 | Q18: =IF(Input!Q$248>0, P18+P65+P112, 0) -> 0
D19: =Asset13 -> Distribution Substations HV (Ground) | G19: ='Actual RAB roll forward'!G666 -> 17.52304259 | H19: 17.84467856 | I19: 18.75087998 | J19: 20.19878442 | K19: 22.08400067 | L19: 24.6880909 | M19: =IF(Input!M$248>0, L19+L66+L113, 0) -> 0 | N19: =IF(Input!N$248>0, M19+M66+M113, 0) -> 0 | O19: =IF(Input!O$248>0, N19+N66+N113, 0) -> 0 | P19: =IF(Input!P$248>0, O19+O66+O113, 0) -> 0 | Q19: =IF(Input!Q$248>0, P19+P66+P113, 0) -> 0
D20: =Asset14 -> Distribution Substations LV (Pole) | G20: ='Actual RAB roll forward'!G667 -> 131.7367058 | H20: 141.8957763 | I20: 146.2113186 | J20: 150.1322998 | K20: 150.8577536 | L20: 153.2134324 | M20: =IF(Input!M$248>0, L20+L67+L114, 0) -> 0 | N20: =IF(Input!N$248>0, M20+M67+M114, 0) -> 0 | O20: =IF(Input!O$248>0, N20+N67+N114, 0) -> 0 | P20: =IF(Input!P$248>0, O20+O67+O114, 0) -> 0 | Q20: =IF(Input!Q$248>0, P20+P67+P114, 0) -> 0
D21: =Asset15 -> Distribution Substations LV (Ground) | G21: ='Actual RAB roll forward'!G668 -> 54.0085785 | H21: 59.81104031 | I21: 61.60685578 | J21: 62.32351457 | K21: 63.31766481 | L21: 65.04398835 | M21: =IF(Input!M$248>0, L21+L68+L115, 0) -> 0 | N21: =IF(Input!N$248>0, M21+M68+M115, 0) -> 0 | O21: =IF(Input!O$248>0, N21+N68+N115, 0) -> 0 | P21: =IF(Input!P$248>0, O21+O68+O115, 0) -> 0 | Q21: =IF(Input!Q$248>0, P21+P68+P115, 0) -> 0
D22: =Asset16 -> Overhead Low Voltage Lines Underbuilt Urban | G22: ='Actual RAB roll forward'!G669 -> 27.83314923 | H22: 30.07145548 | I22: 32.35985114 | J22: 34.68902801 | K22: 37.9267105 | L22: 40.69789946 | M22: =IF(Input!M$248>0, L22+L69+L116, 0) -> 0 | N22: =IF(Input!N$248>0, M22+M69+M116, 0) -> 0 | O22: =IF(Input!O$248>0, N22+N69+N116, 0) -> 0 | P22: =IF(Input!P$248>0, O22+O69+O116, 0) -> 0 | Q22: =IF(Input!Q$248>0, P22+P69+P116, 0) -> 0
D23: =Asset17 -> Overhead Low Voltage Lines Underbuilt Rural | G23: ='Actual RAB roll forward'!G670 -> 38.55305752 | H23: 40.73469511 | I23: 41.36216692 | J23: 42.19426677 | K23: 43.71032514 | L23: 45.18606087 | M23: =IF(Input!M$248>0, L23+L70+L117, 0) -> 0 | N23: =IF(Input!N$248>0, M23+M70+M117, 0) -> 0 | O23: =IF(Input!O$248>0, N23+N70+N117, 0) -> 0 | P23: =IF(Input!P$248>0, O23+O70+O117, 0) -> 0 | Q23: =IF(Input!Q$248>0, P23+P70+P117, 0) -> 0
D24: =Asset18 -> Overhead Low Voltage Lines Urban | G24: ='Actual RAB roll forward'!G671 -> 55.5006637 | H24: 57.68305261 | I24: 59.25891308 | J24: 60.77690126 | K24: 62.80859153 | L24: 64.44143312 | M24: =IF(Input!M$248>0, L24+L71+L118, 0) -> 0 | N24: =IF(Input!N$248>0, M24+M71+M118, 0) -> 0 | O24: =IF(Input!O$248>0, N24+N71+N118, 0) -> 0 | P24: =IF(Input!P$248>0, O24+O71+O118, 0) -> 0 | Q24: =IF(Input!Q$248>0, P24+P71+P118, 0) -> 0
D25: =Asset19 -> Overhead Low Voltage Lines Rural | G25: ='Actual RAB roll forward'!G672 -> 54.90230156 | H25: 61.42458215 | I25: 66.51483405 | J25: 70.90271796 | K25: 75.54054542 | L25: 80.14908942 | M25: =IF(Input!M$248>0, L25+L72+L119, 0) -> 0 | N25: =IF(Input!N$248>0, M25+M72+M119, 0) -> 0 | O25: =IF(Input!O$248>0, N25+N72+N119, 0) -> 0 | P25: =IF(Input!P$248>0, O25+O72+O119, 0) -> 0 | Q25: =IF(Input!Q$248>0, P25+P72+P119, 0) -> 0
D26: =Asset20 -> Underground Low Voltage Lines | G26: ='Actual RAB roll forward'!G673 -> 87.56666947 | H26: 93.66113053 | I26: 96.28225948 | J26: 99.60634481 | K26: 101.9547357 | L26: 102.9095858 | M26: =IF(Input!M$248>0, L26+L73+L120, 0) -> 0 | N26: =IF(Input!N$248>0, M26+M73+M120, 0) -> 0 | O26: =IF(Input!O$248>0, N26+N73+N120, 0) -> 0 | P26: =IF(Input!P$248>0, O26+O73+O120, 0) -> 0 | Q26: =IF(Input!Q$248>0, P26+P73+P120, 0) -> 0
D27: =Asset21 -> Underground Low Voltage Common Trench | G27: ='Actual RAB roll forward'!G674 -> 37.57291128 | H27: 42.34480935 | I27: 43.72708731 | J27: 45.08335267 | K27: 45.23652946 | L27: 45.41198047 | M27: =IF(Input!M$248>0, L27+L74+L121, 0) -> 0 | N27: =IF(Input!N$248>0, M27+M74+M121, 0) -> 0 | O27: =IF(Input!O$248>0, N27+N74+N121, 0) -> 0 | P27: =IF(Input!P$248>0, O27+O74+O121, 0) -> 0 | Q27: =IF(Input!Q$248>0, P27+P74+P121, 0) -> 0
D28: =Asset22 -> HVST Service Connections | G28: ='Actual RAB roll forward'!G675 -> 0.004279201129 | H28: 0.002983883948 | I28: 0.001540625965 | J28: 2.984550674e-05 | K28: -1.262256055e-05 | L28: -1.278802483e-05 | M28: =IF(Input!M$248>0, L28+L75+L122, 0) -> 0 | N28: =IF(Input!N$248>0, M28+M75+M122, 0) -> 0 | O28: =IF(Input!O$248>0, N28+N75+N122, 0) -> 0 | P28: =IF(Input!P$248>0, O28+O75+O122, 0) -> 0 | Q28: =IF(Input!Q$248>0, P28+P75+P122, 0) -> 0
D29: =Asset23 -> HV Service Connections | G29: ='Actual RAB roll forward'!G676 -> 2.233987496 | H29: 2.239078192 | I29: 2.296869934 | J29: 2.342961333 | K29: 2.438459226 | L29: 2.4984824 | M29: =IF(Input!M$248>0, L29+L76+L123, 0) -> 0 | N29: =IF(Input!N$248>0, M29+M76+M123, 0) -> 0 | O29: =IF(Input!O$248>0, N29+N76+N123, 0) -> 0 | P29: =IF(Input!P$248>0, O29+O76+O123, 0) -> 0 | Q29: =IF(Input!Q$248>0, P29+P76+P123, 0) -> 0
D30: =Asset24 -> HV Metering CA Service Connections | G30: ='Actual RAB roll forward'!G677 -> 0.8842924953 | H30: 0.8702032317 | I30: 0.8182455605 | J30: 0.7655585293 | K30: 0.6903362989 | L30: 0.6181156197 | M30: =IF(Input!M$248>0, L30+L77+L124, 0) -> 0 | N30: =IF(Input!N$248>0, M30+M77+M124, 0) -> 0 | O30: =IF(Input!O$248>0, N30+N77+N124, 0) -> 0 | P30: =IF(Input!P$248>0, O30+O77+O124, 0) -> 0 | Q30: =IF(Input!Q$248>0, P30+P77+P124, 0) -> 0
D31: =Asset25 -> HV/LV Service Connections | G31: ='Actual RAB roll forward'!G678 -> 3.798943762 | H31: 3.803758309 | I31: 3.905424594 | J31: 3.984875278 | K31: 4.146028306 | L31: 4.254946918 | M31: =IF(Input!M$248>0, L31+L78+L125, 0) -> 0 | N31: =IF(Input!N$248>0, M31+M78+M125, 0) -> 0 | O31: =IF(Input!O$248>0, N31+N78+N125, 0) -> 0 | P31: =IF(Input!P$248>0, O31+O78+O125, 0) -> 0 | Q31: =IF(Input!Q$248>0, P31+P78+P125, 0) -> 0
D32: =Asset26 -> Business LV Service Connections | G32: ='Actual RAB roll forward'!G679 -> 8.695793619 | H32: 8.408739899 | I32: 8.379829092 | J32: 8.259185246 | K32: 8.400597838 | L32: 8.36419523 | M32: =IF(Input!M$248>0, L32+L79+L126, 0) -> 0 | N32: =IF(Input!N$248>0, M32+M79+M126, 0) -> 0 | O32: =IF(Input!O$248>0, N32+N79+N126, 0) -> 0 | P32: =IF(Input!P$248>0, O32+O79+O126, 0) -> 0 | Q32: =IF(Input!Q$248>0, P32+P79+P126, 0) -> 0
D33: =Asset27 -> Business LV Metering CA Service Connections | G33: ='Actual RAB roll forward'!G680 -> 7.945906695 | H33: 7.987228656 | I33: 7.381002797 | J33: 6.721977046 | K33: 5.644998634 | L33: 4.704254338 | M33: =IF(Input!M$248>0, L33+L80+L127, 0) -> 0 | N33: =IF(Input!N$248>0, M33+M80+M127, 0) -> 0 | O33: =IF(Input!O$248>0, N33+N80+N127, 0) -> 0 | P33: =IF(Input!P$248>0, O33+O80+O127, 0) -> 0 | Q33: =IF(Input!Q$248>0, P33+P80+P127, 0) -> 0
D34: =Asset28 -> Domestic LV Service Connections | G34: ='Actual RAB roll forward'!G681 -> 53.21845486 | H34: 53.04064291 | I34: 55.36527162 | J34: 57.02636213 | K34: 61.01788244 | L34: 63.72279167 | M34: =IF(Input!M$248>0, L34+L81+L128, 0) -> 0 | N34: =IF(Input!N$248>0, M34+M81+M128, 0) -> 0 | O34: =IF(Input!O$248>0, N34+N81+N128, 0) -> 0 | P34: =IF(Input!P$248>0, O34+O81+O128, 0) -> 0 | Q34: =IF(Input!Q$248>0, P34+P81+P128, 0) -> 0
D35: =Asset29 -> Domestic LV Metering CA Service Connections | G35: ='Actual RAB roll forward'!G682 -> 13.61106207 | H35: 11.77414759 | I35: 9.304342155 | J35: 6.949624804 | K35: 3.817665746 | L35: 1.377785373 | M35: =IF(Input!M$248>0, L35+L82+L129, 0) -> 0 | N35: =IF(Input!N$248>0, M35+M82+M129, 0) -> 0 | O35: =IF(Input!O$248>0, N35+N82+N129, 0) -> 0 | P35: =IF(Input!P$248>0, O35+O82+O129, 0) -> 0 | Q35: =IF(Input!Q$248>0, P35+P82+P129, 0) -> 0
D36: =Asset30 -> Wholesale Metering | G36: ='Actual RAB roll forward'!G683 -> 0 | H36: 0 | I36: 0 | J36: 0 | K36: 0 | L36: 0 | M36: =IF(Input!M$248>0, L36+L83+L130, 0) -> 0 | N36: =IF(Input!N$248>0, M36+M83+M130, 0) -> 0 | O36: =IF(Input!O$248>0, N36+N83+N130, 0) -> 0 | P36: =IF(Input!P$248>0, O36+O83+O130, 0) -> 0 | Q36: =IF(Input!Q$248>0, P36+P83+P130, 0) -> 0
D37: =Asset31 -> HV Metering | G37: ='Actual RAB roll forward'!G684 -> 0 | H37: =G37+G84+G131+G178+G225+G272 -> 0 | I37: =H37+H84+H131 -> 0 | J37: 0 | K37: 0 | L37: 0 | M37: =IF(Input!M$248>0, L37+L84+L131, 0) -> 0 | N37: =IF(Input!N$248>0, M37+M84+M131, 0) -> 0 | O37: =IF(Input!O$248>0, N37+N84+N131, 0) -> 0 | P37: =IF(Input!P$248>0, O37+O84+O131, 0) -> 0 | Q37: =IF(Input!Q$248>0, P37+P84+P131, 0) -> 0
D38: =Asset32 -> HV/LV Metering | G38: ='Actual RAB roll forward'!G685 -> 0 | H38: 0 | I38: =H38+H85+H132 -> 0 | J38: 0 | K38: 0 | L38: 0 | M38: =IF(Input!M$248>0, L38+L85+L132, 0) -> 0 | N38: =IF(Input!N$248>0, M38+M85+M132, 0) -> 0 | O38: =IF(Input!O$248>0, N38+N85+N132, 0) -> 0 | P38: =IF(Input!P$248>0, O38+O85+O132, 0) -> 0 | Q38: =IF(Input!Q$248>0, P38+P85+P132, 0) -> 0
D39: =Asset33 -> Business LV Metering | G39: ='Actual RAB roll forward'!G686 -> 0 | H39: 0 | I39: =H39+H86+H133 -> 0 | J39: 0 | K39: 0 | L39: 0 | M39: =IF(Input!M$248>0, L39+L86+L133, 0) -> 0 | N39: =IF(Input!N$248>0, M39+M86+M133, 0) -> 0 | O39: =IF(Input!O$248>0, N39+N86+N133, 0) -> 0 | P39: =IF(Input!P$248>0, O39+O86+O133, 0) -> 0 | Q39: =IF(Input!Q$248>0, P39+P86+P133, 0) -> 0
D40: =Asset34 -> Domestic LV Metering | G40: ='Actual RAB roll forward'!G687 -> 0 | H40: 0 | I40: =H40+H87+H134 -> 0 | J40: 0 | K40: 0 | L40: 0 | M40: =IF(Input!M$248>0, L40+L87+L134, 0) -> 0 | N40: =IF(Input!N$248>0, M40+M87+M134, 0) -> 0 | O40: =IF(Input!O$248>0, N40+N87+N134, 0) -> 0 | P40: =IF(Input!P$248>0, O40+O87+O134, 0) -> 0 | Q40: =IF(Input!Q$248>0, P40+P87+P134, 0) -> 0
D41: =Asset35 -> Off Peak Metering | G41: ='Actual RAB roll forward'!G688 -> 0 | H41: 0 | I41: =H41+H88+H135 -> 0 | J41: 0 | K41: 0 | L41: 0 | M41: =IF(Input!M$248>0, L41+L88+L135, 0) -> 0 | N41: =IF(Input!N$248>0, M41+M88+M135, 0) -> 0 | O41: =IF(Input!O$248>0, N41+N88+N135, 0) -> 0 | P41: =IF(Input!P$248>0, O41+O88+O135, 0) -> 0 | Q41: =IF(Input!Q$248>0, P41+P88+P135, 0) -> 0
D42: =Asset36 -> Emergency Network Spares | G42: ='Actual RAB roll forward'!G689 -> 2.2311868 | H42: 2.300353591 | I42: =H42+H89+H136 -> 2.357919998 | J42: 2.426999685 | K42: 2.459236872 | L42: 2.49147406 | M42: =IF(Input!M$248>0, L42+L89+L136, 0) -> 0 | N42: =IF(Input!N$248>0, M42+M89+M136, 0) -> 0 | O42: =IF(Input!O$248>0, N42+N89+N136, 0) -> 0 | P42: =IF(Input!P$248>0, O42+O89+O136, 0) -> 0 | Q42: =IF(Input!Q$248>0, P42+P89+P136, 0) -> 0
D43: =Asset37 -> Motor Vehicles | G43: ='Actual RAB roll forward'!G690 -> 18.20981251 | H43: 19.66719411 | I43: =H43+H90+H137 -> 17.1984823 | J43: 15.3551186 | K43: 9.716840801 | L43: 7.363629622 | M43: =IF(Input!M$248>0, L43+L90+L137, 0) -> 0 | N43: =IF(Input!N$248>0, M43+M90+M137, 0) -> 0 | O43: =IF(Input!O$248>0, N43+N90+N137, 0) -> 0 | P43: =IF(Input!P$248>0, O43+O90+O137, 0) -> 0 | Q43: =IF(Input!Q$248>0, P43+P90+P137, 0) -> 0
D44: =Asset38 -> Minor Assets | G44: ='Actual RAB roll forward'!G691 -> 29.31495873 | H44: 30.24879836 | I44: =H44+H91+H138 -> 26.6623593 | J44: 22.22746437 | K44: 21.6128554 | L44: 23.66105507 | M44: =IF(Input!M$248>0, L44+L91+L138, 0) -> 0 | N44: =IF(Input!N$248>0, M44+M91+M138, 0) -> 0 | O44: =IF(Input!O$248>0, N44+N91+N138, 0) -> 0 | P44: =IF(Input!P$248>0, O44+O91+O138, 0) -> 0 | Q44: =IF(Input!Q$248>0, P44+P91+P138, 0) -> 0
D45: =Asset39 -> Non-System Property | G45: ='Actual RAB roll forward'!G692 -> 36.90274505 | H45: 18.70450237 | I45: =H45+H92+H139 -> 15.890811 | J45: 14.19286996 | K45: 13.26953789 | L45: 12.31686254 | M45: =IF(Input!M$248>0, L45+L92+L139, 0) -> 0 | N45: =IF(Input!N$248>0, M45+M92+M139, 0) -> 0 | O45: =IF(Input!O$248>0, N45+N92+N139, 0) -> 0 | P45: =IF(Input!P$248>0, O45+O92+O139, 0) -> 0 | Q45: =IF(Input!Q$248>0, P45+P92+P139, 0) -> 0
D46: =Asset40 -> Spare Parts | G46: ='Actual RAB roll forward'!G693 -> 11.94112162 | H46: 10.86450012 | I46: =H46+H93+H140 -> 11.1363845 | J46: 11.46264577 | K46: 11.61490103 | L46: 11.76715628 | M46: =IF(Input!M$248>0, L46+L93+L140, 0) -> 0 | N46: =IF(Input!N$248>0, M46+M93+M140, 0) -> 0 | O46: =IF(Input!O$248>0, N46+N93+N140, 0) -> 0 | P46: =IF(Input!P$248>0, O46+O93+O140, 0) -> 0 | Q46: =IF(Input!Q$248>0, P46+P93+P140, 0) -> 0
D47: =Asset41 -> NEM Assets | G47: ='Actual RAB roll forward'!G694 -> 16.37595198 | H47: 8.267472104 | I47: =H47+H94+H141 -> 13.38446336 | J47: 22.4779174 | K47: 17.743805 | L47: 12.87687339 | M47: =IF(Input!M$248>0, L47+L94+L141, 0) -> 0 | N47: =IF(Input!N$248>0, M47+M94+M141, 0) -> 0 | O47: =IF(Input!O$248>0, N47+N94+N141, 0) -> 0 | P47: =IF(Input!P$248>0, O47+O94+O141, 0) -> 0 | Q47: =IF(Input!Q$248>0, P47+P94+P141, 0) -> 0
D48: =Asset42 -> 0 | G48: ='Actual RAB roll forward'!G695 -> 0 | H48: 0 | I48: =H48+H95+H142 -> 0 | J48: 0 | K48: 0 | L48: 0 | M48: =IF(Input!M$248>0, L48+L95+L142, 0) -> 0 | N48: =IF(Input!N$248>0, M48+M95+M142, 0) -> 0 | O48: =IF(Input!O$248>0, N48+N95+N142, 0) -> 0 | P48: =IF(Input!P$248>0, O48+O95+O142, 0) -> 0 | Q48: =IF(Input!Q$248>0, P48+P95+P142, 0) -> 0
D49: =Asset43 -> Land | G49: ='Actual RAB roll forward'!G696 -> 0 | H49: 0 | I49: =H49+H96+H143 -> 0.5899469034 | J49: 1.282177292 | K49: 1.29920811 | L49: 1.316238928 | M49: =IF(Input!M$248>0, L49+L96+L143, 0) -> 0 | N49: =IF(Input!N$248>0, M49+M96+M143, 0) -> 0 | O49: =IF(Input!O$248>0, N49+N96+N143, 0) -> 0 | P49: =IF(Input!P$248>0, O49+O96+O143, 0) -> 0 | Q49: =IF(Input!Q$248>0, P49+P96+P143, 0) -> 0
D50: =Asset44 -> Easements | G50: ='Actual RAB roll forward'!G697 -> 0 | H50: 0 | I50: =H50+H97+H144 -> 0.1212924772 | J50: 0.4876677277 | K50: 0.7836900902 | L50: 1.362787641 | M50: =IF(Input!M$248>0, L50+L97+L144, 0) -> 0 | N50: =IF(Input!N$248>0, M50+M97+M144, 0) -> 0 | O50: =IF(Input!O$248>0, N50+N97+N144, 0) -> 0 | P50: =IF(Input!P$248>0, O50+O97+O144, 0) -> 0 | Q50: =IF(Input!Q$248>0, P50+P97+P144, 0) -> 0
D51: =Asset45 -> Equity Raising Costs | G51: ='Actual RAB roll forward'!G698 -> 0 | H51: 0 | I51: =H51+H98+H145 -> 0 | J51: 0 | K51: 0 | L51: 0 | M51: =IF(Input!M$248>0, L51+L98+L145, 0) -> 0 | N51: =IF(Input!N$248>0, M51+M98+M145, 0) -> 0 | O51: =IF(Input!O$248>0, N51+N98+N145, 0) -> 0 | P51: =IF(Input!P$248>0, O51+O98+O145, 0) -> 0 | Q51: =IF(Input!Q$248>0, P51+P98+P145, 0) -> 0
C53: Nominal Actual Net Capex | G53: =SUM(G54:G98) -> 128.2773889 | H53: =SUM(H54:H98) -> 89.30384701 | I53: 99.7803829 | J53: 89.18083327 | K53: 104.9332536 | L53: 125.4206463 | M53: 0 | N53: 0 | O53: 0 | P53: 0 | Q53: 0
D54: =Asset1 -> Overhead Subtransmission Lines (Urban) | G54: ='Actual RAB roll forward'!G701 -> 1.54038274 | H54: ='Actual RAB roll forward'!H701 -> 1.466708589 | I54: ='Actual RAB roll forward'!I701 -> 0.8026468692 | J54: ='Actual RAB roll forward'!J701 -> 0.340215143 | K54: ='Actual RAB roll forward'!K701 -> 0.3556779057 | L54: ='Actual RAB roll forward'!L701 -> 0.24163424 | M54: ='Actual RAB roll forward'!M701 -> 0 | N54: ='Actual RAB roll forward'!N701 -> 0 | O54: ='Actual RAB roll forward'!O701 -> 0 | P54: ='Actual RAB roll forward'!P701 -> 0 | Q54: ='Actual RAB roll forward'!Q701 -> 0
D55: =Asset2 -> Underground Subtransmission Lines (Urban) | G55: ='Actual RAB roll forward'!G702 -> 0.6952456953 | H55: ='Actual RAB roll forward'!H702 -> 0.1703615121 | I55: ='Actual RAB roll forward'!I702 -> 0.1399094263 | J55: ='Actual RAB roll forward'!J702 -> 0.01034088581 | K55: ='Actual RAB roll forward'!K702 -> 0.02791737448 | L55: ='Actual RAB roll forward'!L702 -> 0 | M55: ='Actual RAB roll forward'!M702 -> 0 | N55: ='Actual RAB roll forward'!N702 -> 0 | O55: ='Actual RAB roll forward'!O702 -> 0 | P55: ='Actual RAB roll forward'!P702 -> 0 | Q55: ='Actual RAB roll forward'!Q702 -> 0
D56: =Asset3 -> Urban Zone Substations | G56: ='Actual RAB roll forward'!G703 -> 8.734324844 | H56: ='Actual RAB roll forward'!H703 -> 2.160880283 | I56: ='Actual RAB roll forward'!I703 -> 5.255275455 | J56: ='Actual RAB roll forward'!J703 -> 0.8117595357 | K56: ='Actual RAB roll forward'!K703 -> 3.993003942 | L56: ='Actual RAB roll forward'!L703 -> 0.1692395019 | M56: ='Actual RAB roll forward'!M703 -> 0 | N56: ='Actual RAB roll forward'!N703 -> 0 | O56: ='Actual RAB roll forward'!O703 -> 0 | P56: ='Actual RAB roll forward'!P703 -> 0 | Q56: ='Actual RAB roll forward'!Q703 -> 0
D57: =Asset4 -> Rural Zone Substations | G57: ='Actual RAB roll forward'!G704 -> 1.168505427 | H57: ='Actual RAB roll forward'!H704 -> 0.3190361315 | I57: ='Actual RAB roll forward'!I704 -> 1.133212656 | J57: ='Actual RAB roll forward'!J704 -> 0.4591353298 | K57: ='Actual RAB roll forward'!K704 -> 0.1990686125 | L57: ='Actual RAB roll forward'!L704 -> 0.1549322431 | M57: ='Actual RAB roll forward'!M704 -> 0 | N57: ='Actual RAB roll forward'!N704 -> 0 | O57: ='Actual RAB roll forward'!O704 -> 0 | P57: ='Actual RAB roll forward'!P704 -> 0 | Q57: ='Actual RAB roll forward'!Q704 -> 0
D58: =Asset5 -> SCADA | G58: ='Actual RAB roll forward'!G705 -> 0.9428689435 | H58: ='Actual RAB roll forward'!H705 -> 1.322003697 | I58: ='Actual RAB roll forward'!I705 -> 2.614707881 | J58: ='Actual RAB roll forward'!J705 -> 2.492153479 | K58: ='Actual RAB roll forward'!K705 -> 17.30484676 | L58: ='Actual RAB roll forward'!L705 -> 18.84004945 | M58: ='Actual RAB roll forward'!M705 -> 0 | N58: ='Actual RAB roll forward'!N705 -> 0 | O58: ='Actual RAB roll forward'!O705 -> 0 | P58: ='Actual RAB roll forward'!P705 -> 0 | Q58: ='Actual RAB roll forward'!Q705 -> 0
D59: =Asset6 -> Distribution Switching Stations (Ground) | G59: ='Actual RAB roll forward'!G706 -> 3.472658763 | H59: ='Actual RAB roll forward'!H706 -> 0.1590409667 | I59: ='Actual RAB roll forward'!I706 -> 0.191814637 | J59: ='Actual RAB roll forward'!J706 -> 0.2212949562 | K59: ='Actual RAB roll forward'!K706 -> 0.1897013376 | L59: ='Actual RAB roll forward'!L706 -> 0.4508322588 | M59: ='Actual RAB roll forward'!M706 -> 0 | N59: ='Actual RAB roll forward'!N706 -> 0 | O59: ='Actual RAB roll forward'!O706 -> 0 | P59: ='Actual RAB roll forward'!P706 -> 0 | Q59: ='Actual RAB roll forward'!Q706 -> 0
D60: =Asset7 -> Overhead High Voltage Lines Urban | G60: ='Actual RAB roll forward'!G707 -> 8.106141884 | H60: ='Actual RAB roll forward'!H707 -> 6.773676277 | I60: ='Actual RAB roll forward'!I707 -> 7.159005427 | J60: ='Actual RAB roll forward'!J707 -> 6.257270001 | K60: ='Actual RAB roll forward'!K707 -> 7.143986578 | L60: ='Actual RAB roll forward'!L707 -> 7.446192121 | M60: ='Actual RAB roll forward'!M707 -> 0 | N60: ='Actual RAB roll forward'!N707 -> 0 | O60: ='Actual RAB roll forward'!O707 -> 0 | P60: ='Actual RAB roll forward'!P707 -> 0 | Q60: ='Actual RAB roll forward'!Q707 -> 0
D61: =Asset8 -> Overhead High Voltage Lines Rural | G61: ='Actual RAB roll forward'!G708 -> 26.71630893 | H61: ='Actual RAB roll forward'!H708 -> 18.02213171 | I61: ='Actual RAB roll forward'!I708 -> 18.46429369 | J61: ='Actual RAB roll forward'!J708 -> 17.83078939 | K61: ='Actual RAB roll forward'!K708 -> 17.75897695 | L61: ='Actual RAB roll forward'!L708 -> 23.14881506 | M61: ='Actual RAB roll forward'!M708 -> 0 | N61: ='Actual RAB roll forward'!N708 -> 0 | O61: ='Actual RAB roll forward'!O708 -> 0 | P61: ='Actual RAB roll forward'!P708 -> 0 | Q61: ='Actual RAB roll forward'!Q708 -> 0
D62: =Asset9 -> Voltage Regulators on Distribution Feeders | G62: ='Actual RAB roll forward'!G709 -> 0.6358598137 | H62: ='Actual RAB roll forward'!H709 -> 0.923093796 | I62: ='Actual RAB roll forward'!I709 -> 0.765489308 | J62: ='Actual RAB roll forward'!J709 -> 1.081656655 | K62: ='Actual RAB roll forward'!K709 -> 0.6131447167 | L62: ='Actual RAB roll forward'!L709 -> 0.8131860161 | M62: ='Actual RAB roll forward'!M709 -> 0 | N62: ='Actual RAB roll forward'!N709 -> 0 | O62: ='Actual RAB roll forward'!O709 -> 0 | P62: ='Actual RAB roll forward'!P709 -> 0 | Q62: ='Actual RAB roll forward'!Q709 -> 0
D63: =Asset10 -> Underground High Voltage Lines | G63: ='Actual RAB roll forward'!G710 -> 18.37248953 | H63: ='Actual RAB roll forward'!H710 -> 4.146929037 | I63: ='Actual RAB roll forward'!I710 -> 3.87309502 | J63: ='Actual RAB roll forward'!J710 -> 4.18185422 | K63: ='Actual RAB roll forward'!K710 -> 3.045463358 | L63: ='Actual RAB roll forward'!L710 -> 8.030816938 | M63: ='Actual RAB roll forward'!M710 -> 0 | N63: ='Actual RAB roll forward'!N710 -> 0 | O63: ='Actual RAB roll forward'!O710 -> 0 | P63: ='Actual RAB roll forward'!P710 -> 0 | Q63: ='Actual RAB roll forward'!Q710 -> 0
D64: =Asset11 -> Underground High Voltage Lines SWER | G64: ='Actual RAB roll forward'!G711 -> 0 | H64: ='Actual RAB roll forward'!H711 -> 0.06330563942 | I64: ='Actual RAB roll forward'!I711 -> 0.08732012399 | J64: ='Actual RAB roll forward'!J711 -> 0.032056746 | K64: ='Actual RAB roll forward'!K711 -> 0.0378129799 | L64: ='Actual RAB roll forward'!L711 -> 0 | M64: ='Actual RAB roll forward'!M711 -> 0 | N64: ='Actual RAB roll forward'!N711 -> 0 | O64: ='Actual RAB roll forward'!O711 -> 0 | P64: ='Actual RAB roll forward'!P711 -> 0 | Q64: ='Actual RAB roll forward'!Q711 -> 0
D65: =Asset12 -> Distribution Substations HV (Pole) | G65: ='Actual RAB roll forward'!G712 -> 0.1137962907 | H65: ='Actual RAB roll forward'!H712 -> 0.1093359155 | I65: ='Actual RAB roll forward'!I712 -> 0.1198323179 | J65: ='Actual RAB roll forward'!J712 -> 0.1489087556 | K65: ='Actual RAB roll forward'!K712 -> 0.1195307505 | L65: ='Actual RAB roll forward'!L712 -> 0.1660974762 | M65: ='Actual RAB roll forward'!M712 -> 0 | N65: ='Actual RAB roll forward'!N712 -> 0 | O65: ='Actual RAB roll forward'!O712 -> 0 | P65: ='Actual RAB roll forward'!P712 -> 0 | Q65: ='Actual RAB roll forward'!Q712 -> 0
D66: =Asset13 -> Distribution Substations HV (Ground) | G66: ='Actual RAB roll forward'!G713 -> 0.7094159731 | H66: ='Actual RAB roll forward'!H713 -> 1.549267735 | I66: ='Actual RAB roll forward'!I713 -> 2.05516107 | J66: ='Actual RAB roll forward'!J713 -> 2.860289014 | K66: ='Actual RAB roll forward'!K713 -> 3.646939763 | L66: ='Actual RAB roll forward'!L713 -> 3.689214295 | M66: ='Actual RAB roll forward'!M713 -> 0 | N66: ='Actual RAB roll forward'!N713 -> 0 | O66: ='Actual RAB roll forward'!O713 -> 0 | P66: ='Actual RAB roll forward'!P713 -> 0 | Q66: ='Actual RAB roll forward'!Q713 -> 0
D67: =Asset14 -> Distribution Substations LV (Pole) | G67: ='Actual RAB roll forward'!G714 -> 10.63036081 | H67: ='Actual RAB roll forward'!H714 -> 7.171678557 | I67: ='Actual RAB roll forward'!I714 -> 6.388644084 | J67: ='Actual RAB roll forward'!J714 -> 5.844668657 | K67: ='Actual RAB roll forward'!K714 -> 7.734067306 | L67: ='Actual RAB roll forward'!L714 -> 6.622842123 | M67: ='Actual RAB roll forward'!M714 -> 0 | N67: ='Actual RAB roll forward'!N714 -> 0 | O67: ='Actual RAB roll forward'!O714 -> 0 | P67: ='Actual RAB roll forward'!P714 -> 0 | Q67: ='Actual RAB roll forward'!Q714 -> 0
D68: =Asset15 -> Distribution Substations LV (Ground) | G68: ='Actual RAB roll forward'!G715 -> 6.082119559 | H68: ='Actual RAB roll forward'!H715 -> 2.820129587 | I68: ='Actual RAB roll forward'!I715 -> 1.568215186 | J68: ='Actual RAB roll forward'!J715 -> 2.940947923 | K68: ='Actual RAB roll forward'!K715 -> 3.782295837 | L68: ='Actual RAB roll forward'!L715 -> 6.139149526 | M68: ='Actual RAB roll forward'!M715 -> 0 | N68: ='Actual RAB roll forward'!N715 -> 0 | O68: ='Actual RAB roll forward'!O715 -> 0 | P68: ='Actual RAB roll forward'!P715 -> 0 | Q68: ='Actual RAB roll forward'!Q715 -> 0
D69: =Asset16 -> Overhead Low Voltage Lines Underbuilt Urban | G69: ='Actual RAB roll forward'!G716 -> 2.580127585 | H69: ='Actual RAB roll forward'!H716 -> 2.842399289 | I69: ='Actual RAB roll forward'!I716 -> 2.803616892 | J69: ='Actual RAB roll forward'!J716 -> 4.323524355 | K69: ='Actual RAB roll forward'!K716 -> 3.96634253 | L69: ='Actual RAB roll forward'!L716 -> 3.469996109 | M69: ='Actual RAB roll forward'!M716 -> 0 | N69: ='Actual RAB roll forward'!N716 -> 0 | O69: ='Actual RAB roll forward'!O716 -> 0 | P69: ='Actual RAB roll forward'!P716 -> 0 | Q69: ='Actual RAB roll forward'!Q716 -> 0
D70: =Asset17 -> Overhead Low Voltage Lines Underbuilt Rural | G70: ='Actual RAB roll forward'!G717 -> 3.142579381 | H70: ='Actual RAB roll forward'!H717 -> 2.006105999 | I70: ='Actual RAB roll forward'!I717 -> 2.137100783 | J70: ='Actual RAB roll forward'!J717 -> 3.608969146 | K70: ='Actual RAB roll forward'!K717 -> 3.69584686 | L70: ='Actual RAB roll forward'!L717 -> 2.595235454 | M70: ='Actual RAB roll forward'!M717 -> 0 | N70: ='Actual RAB roll forward'!N717 -> 0 | O70: ='Actual RAB roll forward'!O717 -> 0 | P70: ='Actual RAB roll forward'!P717 -> 0 | Q70: ='Actual RAB roll forward'!Q717 -> 0
D71: =Asset18 -> Overhead Low Voltage Lines Urban | G71: ='Actual RAB roll forward'!G718 -> 3.25511229 | H71: ='Actual RAB roll forward'!H718 -> 3.518627153 | I71: ='Actual RAB roll forward'!I718 -> 3.355963661 | J71: ='Actual RAB roll forward'!J718 -> 5.001886464 | K71: ='Actual RAB roll forward'!K718 -> 4.781972051 | L71: ='Actual RAB roll forward'!L718 -> 4.024575985 | M71: ='Actual RAB roll forward'!M718 -> 0 | N71: ='Actual RAB roll forward'!N718 -> 0 | O71: ='Actual RAB roll forward'!O718 -> 0 | P71: ='Actual RAB roll forward'!P718 -> 0 | Q71: ='Actual RAB roll forward'!Q718 -> 0
D72: =Asset19 -> Overhead Low Voltage Lines Rural | G72: ='Actual RAB roll forward'!G719 -> 6.607792316 | H72: ='Actual RAB roll forward'!H719 -> 6.01082378 | I72: ='Actual RAB roll forward'!I719 -> 5.134470879 | J72: ='Actual RAB roll forward'!J719 -> 6.621269181 | K72: ='Actual RAB roll forward'!K719 -> 6.774082573 | L72: ='Actual RAB roll forward'!L719 -> 6.377615947 | M72: ='Actual RAB roll forward'!M719 -> 0 | N72: ='Actual RAB roll forward'!N719 -> 0 | O72: ='Actual RAB roll forward'!O719 -> 0 | P72: ='Actual RAB roll forward'!P719 -> 0 | Q72: ='Actual RAB roll forward'!Q719 -> 0
D73: =Asset20 -> Underground Low Voltage Lines | G73: ='Actual RAB roll forward'!G720 -> 6.523657115 | H73: ='Actual RAB roll forward'!H720 -> 2.83120426 | I73: ='Actual RAB roll forward'!I720 -> 3.169543648 | J73: ='Actual RAB roll forward'!J720 -> 3.824059571 | K73: ='Actual RAB roll forward'!K720 -> 2.518833451 | L73: ='Actual RAB roll forward'!L720 -> 4.648183395 | M73: ='Actual RAB roll forward'!M720 -> 0 | N73: ='Actual RAB roll forward'!N720 -> 0 | O73: ='Actual RAB roll forward'!O720 -> 0 | P73: ='Actual RAB roll forward'!P720 -> 0 | Q73: ='Actual RAB roll forward'!Q720 -> 0
D74: =Asset21 -> Underground Low Voltage Common Trench | G74: ='Actual RAB roll forward'!G721 -> 4.698284554 | H74: ='Actual RAB roll forward'!H721 -> 1.252967587 | I74: ='Actual RAB roll forward'!I721 -> 1.050255792 | J74: ='Actual RAB roll forward'!J721 -> 0.5759873394 | K74: ='Actual RAB roll forward'!K721 -> 0.6274009382 | L74: ='Actual RAB roll forward'!L721 -> 1.030413071 | M74: ='Actual RAB roll forward'!M721 -> 0 | N74: ='Actual RAB roll forward'!N721 -> 0 | O74: ='Actual RAB roll forward'!O721 -> 0 | P74: ='Actual RAB roll forward'!P721 -> 0 | Q74: ='Actual RAB roll forward'!Q721 -> 0
D75: =Asset22 -> HVST Service Connections | G75: ='Actual RAB roll forward'!G722 -> 0 | H75: ='Actual RAB roll forward'!H722 -> 0 | I75: ='Actual RAB roll forward'!I722 -> 0 | J75: ='Actual RAB roll forward'!J722 -> 0 | K75: ='Actual RAB roll forward'!K722 -> 0 | L75: ='Actual RAB roll forward'!L722 -> 0 | M75: ='Actual RAB roll forward'!M722 -> 0 | N75: ='Actual RAB roll forward'!N722 -> 0 | O75: ='Actual RAB roll forward'!O722 -> 0 | P75: ='Actual RAB roll forward'!P722 -> 0 | Q75: ='Actual RAB roll forward'!Q722 -> 0
D76: =Asset23 -> HV Service Connections | G76: ='Actual RAB roll forward'!G723 -> 0.110560886 | H76: ='Actual RAB roll forward'!H723 -> 0.08406546754 | I76: ='Actual RAB roll forward'!I723 -> 0.06532095821 | J76: ='Actual RAB roll forward'!J723 -> 0.1551132871 | K76: ='Actual RAB roll forward'!K723 -> 0.1239292416 | L76: ='Actual RAB roll forward'!L723 -> 0.1432310628 | M76: ='Actual RAB roll forward'!M723 -> 0 | N76: ='Actual RAB roll forward'!N723 -> 0 | O76: ='Actual RAB roll forward'!O723 -> 0 | P76: ='Actual RAB roll forward'!P723 -> 0 | Q76: ='Actual RAB roll forward'!Q723 -> 0
D77: =Asset24 -> HV Metering CA Service Connections | G77: ='Actual RAB roll forward'!G724 -> 0.03435223488 | H77: ='Actual RAB roll forward'!H724 -> 0.007811520696 | I77: ='Actual RAB roll forward'!I724 -> 0.007127847517 | J77: ='Actual RAB roll forward'!J724 -> 0.001034088581 | K77: ='Actual RAB roll forward'!K724 -> 0.00632915288 | L77: ='Actual RAB roll forward'!L724 -> 0.02462526713 | M77: ='Actual RAB roll forward'!M724 -> 0 | N77: ='Actual RAB roll forward'!N724 -> 0 | O77: ='Actual RAB roll forward'!O724 -> 0 | P77: ='Actual RAB roll forward'!P724 -> 0 | Q77: ='Actual RAB roll forward'!Q724 -> 0
D78: =Asset25 -> HV/LV Service Connections | G78: ='Actual RAB roll forward'!G725 -> 0.1999748089 | H78: ='Actual RAB roll forward'!H725 -> 0.1520517464 | I78: ='Actual RAB roll forward'!I725 -> 0.1181479871 | J78: ='Actual RAB roll forward'!J725 -> 0.2688630309 | K78: ='Actual RAB roll forward'!K725 -> 0.2241545569 | L78: ='Actual RAB roll forward'!L725 -> 0.259066343 | M78: ='Actual RAB roll forward'!M725 -> 0 | N78: ='Actual RAB roll forward'!N725 -> 0 | O78: ='Actual RAB roll forward'!O725 -> 0 | P78: ='Actual RAB roll forward'!P725 -> 0 | Q78: ='Actual RAB roll forward'!Q725 -> 0
D79: =Asset26 -> Business LV Service Connections | G79: ='Actual RAB roll forward'!G726 -> 0.5291348702 | H79: ='Actual RAB roll forward'!H726 -> 0.4266968697 | I79: ='Actual RAB roll forward'!I726 -> 0.3290539638 | J79: ='Actual RAB roll forward'!J726 -> 0.7569528409 | K79: ='Actual RAB roll forward'!K726 -> 0.6102697191 | L79: ='Actual RAB roll forward'!L726 -> 0.6887855108 | M79: ='Actual RAB roll forward'!M726 -> 0 | N79: ='Actual RAB roll forward'!N726 -> 0 | O79: ='Actual RAB roll forward'!O726 -> 0 | P79: ='Actual RAB roll forward'!P726 -> 0 | Q79: ='Actual RAB roll forward'!Q726 -> 0
D80: =Asset27 -> Business LV Metering CA Service Connections | G80: ='Actual RAB roll forward'!G727 -> 0.9856018599 | H80: ='Actual RAB roll forward'!H727 -> 0.5014080896 | I80: ='Actual RAB roll forward'!I727 -> 0.4855272968 | J80: ='Actual RAB roll forward'!J727 -> 0.2543857908 | K80: ='Actual RAB roll forward'!K727 -> 0.4350887292 | L80: ='Actual RAB roll forward'!L727 -> 0.7156300342 | M80: ='Actual RAB roll forward'!M727 -> 0 | N80: ='Actual RAB roll forward'!N727 -> 0 | O80: ='Actual RAB roll forward'!O727 -> 0 | P80: ='Actual RAB roll forward'!P727 -> 0 | Q80: ='Actual RAB roll forward'!Q727 -> 0
D81: =Asset28 -> Domestic LV Service Connections | G81: ='Actual RAB roll forward'!G728 -> 4.216953775 | H81: ='Actual RAB roll forward'!H728 -> 3.508419686 | I81: ='Actual RAB roll forward'!I728 -> 2.715785733 | J81: ='Actual RAB roll forward'!J728 -> 6.069065879 | K81: ='Actual RAB roll forward'!K728 -> 4.953422658 | L81: ='Actual RAB roll forward'!L728 -> 5.472924037 | M81: ='Actual RAB roll forward'!M728 -> 0 | N81: ='Actual RAB roll forward'!N728 -> 0 | O81: ='Actual RAB roll forward'!O728 -> 0 | P81: ='Actual RAB roll forward'!P728 -> 0 | Q81: ='Actual RAB roll forward'!Q728 -> 0
D82: =Asset29 -> Domestic LV Metering CA Service Connections | G82: ='Actual RAB roll forward'!G729 -> 0.6649646088 | H82: ='Actual RAB roll forward'!H729 -> 0.3789016961 | I82: ='Actual RAB roll forward'!I729 -> 0.6141317046 | J82: ='Actual RAB roll forward'!J729 -> 0.1437383127 | K82: ='Actual RAB roll forward'!K729 -> 0.4662647314 | L82: ='Actual RAB roll forward'!L729 -> 0.5362592264 | M82: ='Actual RAB roll forward'!M729 -> 0 | N82: ='Actual RAB roll forward'!N729 -> 0 | O82: ='Actual RAB roll forward'!O729 -> 0 | P82: ='Actual RAB roll forward'!P729 -> 0 | Q82: ='Actual RAB roll forward'!Q729 -> 0
D83: =Asset30 -> Wholesale Metering | G83: ='Actual RAB roll forward'!G730 -> 0 | H83: ='Actual RAB roll forward'!H730 -> 0 | I83: ='Actual RAB roll forward'!I730 -> 0 | J83: ='Actual RAB roll forward'!J730 -> 0 | K83: ='Actual RAB roll forward'!K730 -> 0 | L83: ='Actual RAB roll forward'!L730 -> 0 | M83: ='Actual RAB roll forward'!M730 -> 0 | N83: ='Actual RAB roll forward'!N730 -> 0 | O83: ='Actual RAB roll forward'!O730 -> 0 | P83: ='Actual RAB roll forward'!P730 -> 0 | Q83: ='Actual RAB roll forward'!Q730 -> 0
D84: =Asset31 -> HV Metering | G84: ='Actual RAB roll forward'!G731 -> 0 | H84: ='Actual RAB roll forward'!H731 -> 0 | I84: ='Actual RAB roll forward'!I731 -> 0 | J84: ='Actual RAB roll forward'!J731 -> 0 | K84: ='Actual RAB roll forward'!K731 -> 0 | L84: ='Actual RAB roll forward'!L731 -> 0 | M84: ='Actual RAB roll forward'!M731 -> 0 | N84: ='Actual RAB roll forward'!N731 -> 0 | O84: ='Actual RAB roll forward'!O731 -> 0 | P84: ='Actual RAB roll forward'!P731 -> 0 | Q84: ='Actual RAB roll forward'!Q731 -> 0
D85: =Asset32 -> HV/LV Metering | G85: ='Actual RAB roll forward'!G732 -> 0 | H85: ='Actual RAB roll forward'!H732 -> 0 | I85: ='Actual RAB roll forward'!I732 -> 0 | J85: ='Actual RAB roll forward'!J732 -> 0 | K85: ='Actual RAB roll forward'!K732 -> 0 | L85: ='Actual RAB roll forward'!L732 -> 0 | M85: ='Actual RAB roll forward'!M732 -> 0 | N85: ='Actual RAB roll forward'!N732 -> 0 | O85: ='Actual RAB roll forward'!O732 -> 0 | P85: ='Actual RAB roll forward'!P732 -> 0 | Q85: ='Actual RAB roll forward'!Q732 -> 0
D86: =Asset33 -> Business LV Metering | G86: ='Actual RAB roll forward'!G733 -> 0 | H86: ='Actual RAB roll forward'!H733 -> 0 | I86: ='Actual RAB roll forward'!I733 -> 0 | J86: ='Actual RAB roll forward'!J733 -> 0 | K86: ='Actual RAB roll forward'!K733 -> 0 | L86: ='Actual RAB roll forward'!L733 -> 0 | M86: ='Actual RAB roll forward'!M733 -> 0 | N86: ='Actual RAB roll forward'!N733 -> 0 | O86: ='Actual RAB roll forward'!O733 -> 0 | P86: ='Actual RAB roll forward'!P733 -> 0 | Q86: ='Actual RAB roll forward'!Q733 -> 0
D87: =Asset34 -> Domestic LV Metering | G87: ='Actual RAB roll forward'!G734 -> 0 | H87: ='Actual RAB roll forward'!H734 -> 0 | I87: ='Actual RAB roll forward'!I734 -> 0 | J87: ='Actual RAB roll forward'!J734 -> 0 | K87: ='Actual RAB roll forward'!K734 -> 0 | L87: ='Actual RAB roll forward'!L734 -> 0 | M87: ='Actual RAB roll forward'!M734 -> 0 | N87: ='Actual RAB roll forward'!N734 -> 0 | O87: ='Actual RAB roll forward'!O734 -> 0 | P87: ='Actual RAB roll forward'!P734 -> 0 | Q87: ='Actual RAB roll forward'!Q734 -> 0
D88: =Asset35 -> Off Peak Metering | G88: ='Actual RAB roll forward'!G735 -> 0 | H88: ='Actual RAB roll forward'!H735 -> 0 | I88: ='Actual RAB roll forward'!I735 -> 0 | J88: ='Actual RAB roll forward'!J735 -> 0 | K88: ='Actual RAB roll forward'!K735 -> 0 | L88: ='Actual RAB roll forward'!L735 -> 0 | M88: ='Actual RAB roll forward'!M735 -> 0 | N88: ='Actual RAB roll forward'!N735 -> 0 | O88: ='Actual RAB roll forward'!O735 -> 0 | P88: ='Actual RAB roll forward'!P735 -> 0 | Q88: ='Actual RAB roll forward'!Q735 -> 0
D89: =Asset36 -> Emergency Network Spares | G89: ='Actual RAB roll forward'!G736 -> 0 | H89: ='Actual RAB roll forward'!H736 -> 0 | I89: ='Actual RAB roll forward'!I736 -> 0 | J89: ='Actual RAB roll forward'!J736 -> 0 | K89: ='Actual RAB roll forward'!K736 -> 0 | L89: ='Actual RAB roll forward'!L736 -> 0 | M89: ='Actual RAB roll forward'!M736 -> 0 | N89: ='Actual RAB roll forward'!N736 -> 0 | O89: ='Actual RAB roll forward'!O736 -> 0 | P89: ='Actual RAB roll forward'!P736 -> 0 | Q89: ='Actual RAB roll forward'!Q736 -> 0
D90: =Asset37 -> Motor Vehicles | G90: ='Actual RAB roll forward'!G737 -> 5.547662659 | H90: ='Actual RAB roll forward'!H737 -> 2.864270799 | I90: ='Actual RAB roll forward'!I737 -> 4.113028661 | J90: ='Actual RAB roll forward'!J737 -> 1.512871593 | K90: ='Actual RAB roll forward'!K737 -> 1.995848819 | L90: ='Actual RAB roll forward'!L737 -> 1.71417431 | M90: ='Actual RAB roll forward'!M737 -> 0 | N90: ='Actual RAB roll forward'!N737 -> 0 | O90: ='Actual RAB roll forward'!O737 -> 0 | P90: ='Actual RAB roll forward'!P737 -> 0 | Q90: ='Actual RAB roll forward'!Q737 -> 0
D91: =Asset38 -> Minor Assets | G91: ='Actual RAB roll forward'!G738 -> 8.427237772 | H91: ='Actual RAB roll forward'!H738 -> 7.541328171 | I91: ='Actual RAB roll forward'!I738 -> 8.512151467 | J91: ='Actual RAB roll forward'!J738 -> 10.2602269 | K91: ='Actual RAB roll forward'!K738 -> 7.232208967 | L91: ='Actual RAB roll forward'!L738 -> 16.30981175 | M91: ='Actual RAB roll forward'!M738 -> 0 | N91: ='Actual RAB roll forward'!N738 -> 0 | O91: ='Actual RAB roll forward'!O738 -> 0 | P91: ='Actual RAB roll forward'!P738 -> 0 | Q91: ='Actual RAB roll forward'!Q738 -> 0
D92: =Asset39 -> Non-System Property | G92: ='Actual RAB roll forward'!G739 -> -4.624670691 | H92: ='Actual RAB roll forward'!H739 -> -2.148450852 | I92: ='Actual RAB roll forward'!I739 -> -1.056865004 | J92: ='Actual RAB roll forward'!J739 -> 0 | K92: ='Actual RAB roll forward'!K739 -> 0 | L92: ='Actual RAB roll forward'!L739 -> 1.497117578 | M92: ='Actual RAB roll forward'!M739 -> 0 | N92: ='Actual RAB roll forward'!N739 -> 0 | O92: ='Actual RAB roll forward'!O739 -> 0 | P92: ='Actual RAB roll forward'!P739 -> 0 | Q92: ='Actual RAB roll forward'!Q739 -> 0
D93: =Asset40 -> Spare Parts | G93: ='Actual RAB roll forward'!G740 -> -1.446796269 | H93: ='Actual RAB roll forward'!H740 -> 0 | I93: ='Actual RAB roll forward'!I740 -> 0 | J93: ='Actual RAB roll forward'!J740 -> 0 | K93: ='Actual RAB roll forward'!K740 -> 0 | L93: ='Actual RAB roll forward'!L740 -> 0 | M93: ='Actual RAB roll forward'!M740 -> 0 | N93: ='Actual RAB roll forward'!N740 -> 0 | O93: ='Actual RAB roll forward'!O740 -> 0 | P93: ='Actual RAB roll forward'!P740 -> 0 | Q93: ='Actual RAB roll forward'!Q740 -> 0
D94: =Asset41 -> NEM Assets | G94: ='Actual RAB roll forward'!G741 -> -1.095620084 | H94: ='Actual RAB roll forward'!H741 -> 9.636396929 | I94: ='Actual RAB roll forward'!I741 -> 14.56962893 | J94: ='Actual RAB roll forward'!J741 -> 0 | K94: ='Actual RAB roll forward'!K741 -> 0 | L94: ='Actual RAB roll forward'!L741 -> 0 | M94: ='Actual RAB roll forward'!M741 -> 0 | N94: ='Actual RAB roll forward'!N741 -> 0 | O94: ='Actual RAB roll forward'!O741 -> 0 | P94: ='Actual RAB roll forward'!P741 -> 0 | Q94: ='Actual RAB roll forward'!Q741 -> 0
D95: =Asset42 -> 0 | G95: ='Actual RAB roll forward'!G742 -> 0 | H95: ='Actual RAB roll forward'!H742 -> 0 | I95: ='Actual RAB roll forward'!I742 -> 0 | J95: ='Actual RAB roll forward'!J742 -> 0 | K95: ='Actual RAB roll forward'!K742 -> 0 | L95: ='Actual RAB roll forward'!L742 -> 0 | M95: ='Actual RAB roll forward'!M742 -> 0 | N95: ='Actual RAB roll forward'!N742 -> 0 | O95: ='Actual RAB roll forward'!O742 -> 0 | P95: ='Actual RAB roll forward'!P742 -> 0 | Q95: ='Actual RAB roll forward'!Q742 -> 0
D96: =Asset43 -> Land | G96: ='Actual RAB roll forward'!G743 -> 0 | H96: ='Actual RAB roll forward'!H743 -> 0.5899469034 | I96: ='Actual RAB roll forward'!I743 -> 0.6749467879 | J96: ='Actual RAB roll forward'!J743 -> 0 | K96: ='Actual RAB roll forward'!K743 -> 0 | L96: ='Actual RAB roll forward'!L743 -> 0 | M96: ='Actual RAB roll forward'!M743 -> 0 | N96: ='Actual RAB roll forward'!N743 -> 0 | O96: ='Actual RAB roll forward'!O743 -> 0 | P96: ='Actual RAB roll forward'!P743 -> 0 | Q96: ='Actual RAB roll forward'!Q743 -> 0
D97: =Asset44 -> Easements | G97: ='Actual RAB roll forward'!G744 -> 0 | H97: ='Actual RAB roll forward'!H744 -> 0.1212924772 | I97: ='Actual RAB roll forward'!I744 -> 0.3628217599 | J97: ='Actual RAB roll forward'!J744 -> 0.2895448025 | K97: ='Actual RAB roll forward'!K744 -> 0.5688244601 | L97: ='Actual RAB roll forward'!L744 -> 0 | M97: ='Actual RAB roll forward'!M744 -> 0 | N97: ='Actual RAB roll forward'!N744 -> 0 | O97: ='Actual RAB roll forward'!O744 -> 0 | P97: ='Actual RAB roll forward'!P744 -> 0 | Q97: ='Actual RAB roll forward'!Q744 -> 0
D98: =Asset45 -> Equity Raising Costs | G98: ='Actual RAB roll forward'!G745 -> 0 | H98: ='Actual RAB roll forward'!H745 -> 0 | I98: ='Actual RAB roll forward'!I745 -> 0 | J98: ='Actual RAB roll forward'!J745 -> 0 | K98: ='Actual RAB roll forward'!K745 -> 0 | L98: ='Actual RAB roll forward'!L745 -> 0 | M98: ='Actual RAB roll forward'!M745 -> 0 | N98: ='Actual RAB roll forward'!N745 -> 0 | O98: ='Actual RAB roll forward'!O745 -> 0 | P98: ='Actual RAB roll forward'!P745 -> 0 | Q98: ='Actual RAB roll forward'!Q745 -> 0
C100: Nominal Actual Regulatory Depreciation | G100: =SUM(G101:G145) -> -29.18343191 | H100: =SUM(H101:H145) -> -47.62985053 | I100: -47.34495555 | J100: -71.46818087 | K100: -64.99148965 | L100: -52.27567002 | M100: 0 | N100: 0 | O100: 0 | P100: 0 | Q100: 0
D101: =Asset1 -> Overhead Subtransmission Lines (Urban) | G101: ='Actual RAB roll forward'!G748 -> 0.004313524534 | H101: ='Actual RAB roll forward'!H748 -> -0.1120380299 | I101: ='Actual RAB roll forward'!I748 -> -0.0657766793 | J101: ='Actual RAB roll forward'!J748 -> -0.2798575905 | K101: ='Actual RAB roll forward'!K748 -> -0.2942045094 | L101: ='Actual RAB roll forward'!L748 -> -0.2004902548 | M101: ='Actual RAB roll forward'!M748 -> 0 | N101: ='Actual RAB roll forward'!N748 -> 0 | O101: ='Actual RAB roll forward'!O748 -> 0 | P101: ='Actual RAB roll forward'!P748 -> 0 | Q101: ='Actual RAB roll forward'!Q748 -> 0
D102: =Asset2 -> Underground Subtransmission Lines (Urban) | G102: ='Actual RAB roll forward'!G749 -> 0.06601881637 | H102: ='Actual RAB roll forward'!H749 -> -0.02297436787 | I102: ='Actual RAB roll forward'!I749 -> 0.01626886039 | J102: ='Actual RAB roll forward'!J749 -> -0.1638377324 | K102: ='Actual RAB roll forward'!K749 -> -0.1720005694 | L102: ='Actual RAB roll forward'!L749 -> -0.09255093376 | M102: ='Actual RAB roll forward'!M749 -> 0 | N102: ='Actual RAB roll forward'!N749 -> 0 | O102: ='Actual RAB roll forward'!O749 -> 0 | P102: ='Actual RAB roll forward'!P749 -> 0 | Q102: ='Actual RAB roll forward'!Q749 -> 0
D103: =Asset3 -> Urban Zone Substations | G103: ='Actual RAB roll forward'!G750 -> 0.06925399757 | H103: ='Actual RAB roll forward'!H750 -> -0.3427567468 | I103: ='Actual RAB roll forward'!I750 -> -0.2047558791 | J103: ='Actual RAB roll forward'!J750 -> -0.9977255297 | K103: ='Actual RAB roll forward'!K750 -> -1.050684419 | L103: ='Actual RAB roll forward'!L750 -> -0.7244187024 | M103: ='Actual RAB roll forward'!M750 -> 0 | N103: ='Actual RAB roll forward'!N750 -> 0 | O103: ='Actual RAB roll forward'!O750 -> 0 | P103: ='Actual RAB roll forward'!P750 -> 0 | Q103: ='Actual RAB roll forward'!Q750 -> 0
D104: =Asset4 -> Rural Zone Substations | G104: ='Actual RAB roll forward'!G751 -> -0.01011550243 | H104: ='Actual RAB roll forward'!H751 -> -0.02342467227 | I104: ='Actual RAB roll forward'!I751 -> -0.01498030543 | J104: ='Actual RAB roll forward'!J751 -> -0.07426438929 | K104: ='Actual RAB roll forward'!K751 -> -0.08315388378 | L104: ='Actual RAB roll forward'!L751 -> -0.05377694111 | M104: ='Actual RAB roll forward'!M751 -> 0 | N104: ='Actual RAB roll forward'!N751 -> 0 | O104: ='Actual RAB roll forward'!O751 -> 0 | P104: ='Actual RAB roll forward'!P751 -> 0 | Q104: ='Actual RAB roll forward'!Q751 -> 0
D105: =Asset5 -> SCADA | G105: ='Actual RAB roll forward'!G752 -> -0.8325397398 | H105: ='Actual RAB roll forward'!H752 -> -1.091423998 | I105: ='Actual RAB roll forward'!I752 -> -1.236942912 | J105: ='Actual RAB roll forward'!J752 -> -1.04022641 | K105: ='Actual RAB roll forward'!K752 -> -0.5885211117 | L105: ='Actual RAB roll forward'!L752 -> -1.94657924 | M105: ='Actual RAB roll forward'!M752 -> 0 | N105: ='Actual RAB roll forward'!N752 -> 0 | O105: ='Actual RAB roll forward'!O752 -> 0 | P105: ='Actual RAB roll forward'!P752 -> 0 | Q105: ='Actual RAB roll forward'!Q752 -> 0
D106: =Asset6 -> Distribution Switching Stations (Ground) | G106: ='Actual RAB roll forward'!G753 -> 0.03069667671 | H106: ='Actual RAB roll forward'!H753 -> -0.1044142294 | I106: ='Actual RAB roll forward'!I753 -> -0.05442379556 | J106: ='Actual RAB roll forward'!J753 -> -0.3149637037 | K106: ='Actual RAB roll forward'!K753 -> -0.3313444982 | L106: ='Actual RAB roll forward'!L753 -> -0.2222085704 | M106: ='Actual RAB roll forward'!M753 -> 0 | N106: ='Actual RAB roll forward'!N753 -> 0 | O106: ='Actual RAB roll forward'!O753 -> 0 | P106: ='Actual RAB roll forward'!P753 -> 0 | Q106: ='Actual RAB roll forward'!Q753 -> 0
D107: =Asset7 -> Overhead High Voltage Lines Urban | G107: ='Actual RAB roll forward'!G754 -> -0.7073048763 | H107: ='Actual RAB roll forward'!H754 -> -1.486707143 | I107: ='Actual RAB roll forward'!I754 -> -1.269243246 | J107: ='Actual RAB roll forward'!J754 -> -2.90784264 | K107: ='Actual RAB roll forward'!K754 -> -3.116301734 | L107: ='Actual RAB roll forward'!L754 -> -2.510104213 | M107: ='Actual RAB roll forward'!M754 -> 0 | N107: ='Actual RAB roll forward'!N754 -> 0 | O107: ='Actual RAB roll forward'!O754 -> 0 | P107: ='Actual RAB roll forward'!P754 -> 0 | Q107: ='Actual RAB roll forward'!Q754 -> 0
D108: =Asset8 -> Overhead High Voltage Lines Rural | G108: ='Actual RAB roll forward'!G755 -> -4.893336459 | H108: ='Actual RAB roll forward'!H755 -> -7.866961277 | I108: ='Actual RAB roll forward'!I755 -> -7.134618697 | J108: ='Actual RAB roll forward'!J755 -> -13.27387687 | K108: ='Actual RAB roll forward'!K755 -> -14.02569905 | L108: ='Actual RAB roll forward'!L755 -> -11.8995635 | M108: ='Actual RAB roll forward'!M755 -> 0 | N108: ='Actual RAB roll forward'!N755 -> 0 | O108: ='Actual RAB roll forward'!O755 -> 0 | P108: ='Actual RAB roll forward'!P755 -> 0 | Q108: ='Actual RAB roll forward'!Q755 -> 0
D109: =Asset9 -> Voltage Regulators on Distribution Feeders | G109: ='Actual RAB roll forward'!G756 -> -0.1248038631 | H109: ='Actual RAB roll forward'!H756 -> -0.2205674938 | I109: ='Actual RAB roll forward'!I756 -> -0.1885179977 | J109: ='Actual RAB roll forward'!J756 -> -0.4060276504 | K109: ='Actual RAB roll forward'!K756 -> -0.434321403 | L109: ='Actual RAB roll forward'!L756 -> -0.3472238055 | M109: ='Actual RAB roll forward'!M756 -> 0 | N109: ='Actual RAB roll forward'!N756 -> 0 | O109: ='Actual RAB roll forward'!O756 -> 0 | P109: ='Actual RAB roll forward'!P756 -> 0 | Q109: ='Actual RAB roll forward'!Q756 -> 0
D110: =Asset10 -> Underground High Voltage Lines | G110: ='Actual RAB roll forward'!G757 -> 1.433120363 | H110: ='Actual RAB roll forward'!H757 -> 0.09706802486 | I110: ='Actual RAB roll forward'!I757 -> 0.9787949949 | J110: ='Actual RAB roll forward'!J757 -> -2.888108363 | K110: ='Actual RAB roll forward'!K757 -> -3.06273002 | L110: ='Actual RAB roll forward'!L757 -> -1.264949374 | M110: ='Actual RAB roll forward'!M757 -> 0 | N110: ='Actual RAB roll forward'!N757 -> 0 | O110: ='Actual RAB roll forward'!O757 -> 0 | P110: ='Actual RAB roll forward'!P757 -> 0 | Q110: ='Actual RAB roll forward'!Q757 -> 0
D111: =Asset11 -> Underground High Voltage Lines SWER | G111: ='Actual RAB roll forward'!G758 -> 0.00377815428 | H111: ='Actual RAB roll forward'!H758 -> 0.001225899772 | I111: ='Actual RAB roll forward'!I758 -> 0.003405996148 | J111: ='Actual RAB roll forward'!J758 -> -0.004079243585 | K111: ='Actual RAB roll forward'!K758 -> -0.004491365232 | L111: ='Actual RAB roll forward'!L758 -> -8.619161567e-05 | M111: ='Actual RAB roll forward'!M758 -> 0 | N111: ='Actual RAB roll forward'!N758 -> 0 | O111: ='Actual RAB roll forward'!O758 -> 0 | P111: ='Actual RAB roll forward'!P758 -> 0 | Q111: ='Actual RAB roll forward'!Q758 -> 0
D112: =Asset12 -> Distribution Substations HV (Pole) | G112: ='Actual RAB roll forward'!G759 -> 0.0004283692382 | H112: ='Actual RAB roll forward'!H759 -> -0.007061948584 | I112: ='Actual RAB roll forward'!I759 -> -0.002678467911 | J112: ='Actual RAB roll forward'!J759 -> -0.02621520603 | K112: ='Actual RAB roll forward'!K759 -> -0.0292239521 | L112: ='Actual RAB roll forward'!L759 -> -0.01843386143 | M112: ='Actual RAB roll forward'!M759 -> 0 | N112: ='Actual RAB roll forward'!N759 -> 0 | O112: ='Actual RAB roll forward'!O759 -> 0 | P112: ='Actual RAB roll forward'!P759 -> 0 | Q112: ='Actual RAB roll forward'!Q759 -> 0
D113: =Asset13 -> Distribution Substations HV (Ground) | G113: ='Actual RAB roll forward'!G760 -> -0.4641052003 | H113: ='Actual RAB roll forward'!H760 -> -0.6430663175 | I113: ='Actual RAB roll forward'!I760 -> -0.6072566273 | J113: ='Actual RAB roll forward'!J760 -> -0.9750727676 | K113: ='Actual RAB roll forward'!K760 -> -1.04284953 | L113: ='Actual RAB roll forward'!L760 -> -0.9173809013 | M113: ='Actual RAB roll forward'!M760 -> 0 | N113: ='Actual RAB roll forward'!N760 -> 0 | O113: ='Actual RAB roll forward'!O760 -> 0 | P113: ='Actual RAB roll forward'!P760 -> 0 | Q113: ='Actual RAB roll forward'!Q760 -> 0
D114: =Asset14 -> Distribution Substations LV (Pole) | G114: ='Actual RAB roll forward'!G761 -> -1.677780654 | H114: ='Actual RAB roll forward'!H761 -> -2.856136204 | I114: ='Actual RAB roll forward'!I761 -> -2.467662957 | J114: ='Actual RAB roll forward'!J761 -> -5.119214792 | K114: ='Actual RAB roll forward'!K761 -> -5.378388561 | L114: ='Actual RAB roll forward'!L761 -> -4.391389438 | M114: ='Actual RAB roll forward'!M761 -> 0 | N114: ='Actual RAB roll forward'!N761 -> 0 | O114: ='Actual RAB roll forward'!O761 -> 0 | P114: ='Actual RAB roll forward'!P761 -> 0 | Q114: ='Actual RAB roll forward'!Q761 -> 0
D115: =Asset15 -> Distribution Substations LV (Ground) | G115: ='Actual RAB roll forward'!G762 -> -0.5453603589 | H115: ='Actual RAB roll forward'!H762 -> -1.024314117 | I115: ='Actual RAB roll forward'!I762 -> -0.8515563928 | J115: ='Actual RAB roll forward'!J762 -> -1.946797681 | K115: ='Actual RAB roll forward'!K762 -> -2.055972293 | L115: ='Actual RAB roll forward'!L762 -> -1.636971623 | M115: ='Actual RAB roll forward'!M762 -> 0 | N115: ='Actual RAB roll forward'!N762 -> 0 | O115: ='Actual RAB roll forward'!O762 -> 0 | P115: ='Actual RAB roll forward'!P762 -> 0 | Q115: ='Actual RAB roll forward'!Q762 -> 0
D116: =Asset16 -> Overhead Low Voltage Lines Underbuilt Urban | G116: ='Actual RAB roll forward'!G763 -> -0.2925671324 | H116: ='Actual RAB roll forward'!H763 -> -0.5540036247 | I116: ='Actual RAB roll forward'!I763 -> -0.4744400225 | J116: ='Actual RAB roll forward'!J763 -> -1.085841869 | K116: ='Actual RAB roll forward'!K763 -> -1.19515357 | L116: ='Actual RAB roll forward'!L763 -> -0.9642012875 | M116: ='Actual RAB roll forward'!M763 -> 0 | N116: ='Actual RAB roll forward'!N763 -> 0 | O116: ='Actual RAB roll forward'!O763 -> 0 | P116: ='Actual RAB roll forward'!P763 -> 0 | Q116: ='Actual RAB roll forward'!Q763 -> 0
D117: =Asset17 -> Overhead Low Voltage Lines Underbuilt Rural | G117: ='Actual RAB roll forward'!G764 -> -0.970973846 | H117: ='Actual RAB roll forward'!H764 -> -1.378634185 | I117: ='Actual RAB roll forward'!I764 -> -1.305000931 | J117: ='Actual RAB roll forward'!J764 -> -2.09291078 | K117: ='Actual RAB roll forward'!K764 -> -2.220111128 | L117: ='Actual RAB roll forward'!L764 -> -1.976169327 | M117: ='Actual RAB roll forward'!M764 -> 0 | N117: ='Actual RAB roll forward'!N764 -> 0 | O117: ='Actual RAB roll forward'!O764 -> 0 | P117: ='Actual RAB roll forward'!P764 -> 0 | Q117: ='Actual RAB roll forward'!Q764 -> 0
D118: =Asset18 -> Overhead Low Voltage Lines Urban | G118: ='Actual RAB roll forward'!G765 -> -1.37208064 | H118: ='Actual RAB roll forward'!H765 -> -1.942766682 | I118: ='Actual RAB roll forward'!I765 -> -1.837975478 | J118: ='Actual RAB roll forward'!J765 -> -2.970196197 | K118: ='Actual RAB roll forward'!K765 -> -3.149130459 | L118: ='Actual RAB roll forward'!L765 -> -2.793129192 | M118: ='Actual RAB roll forward'!M765 -> 0 | N118: ='Actual RAB roll forward'!N765 -> 0 | O118: ='Actual RAB roll forward'!O765 -> 0 | P118: ='Actual RAB roll forward'!P765 -> 0 | Q118: ='Actual RAB roll forward'!Q765 -> 0
D119: =Asset19 -> Overhead Low Voltage Lines Rural | G119: ='Actual RAB roll forward'!G766 -> -0.4213056684 | H119: ='Actual RAB roll forward'!H766 -> -0.920571883 | I119: ='Actual RAB roll forward'!I766 -> -0.7465869697 | J119: ='Actual RAB roll forward'!J766 -> -1.983441716 | K119: ='Actual RAB roll forward'!K766 -> -2.165538577 | L119: ='Actual RAB roll forward'!L766 -> -1.689496837 | M119: ='Actual RAB roll forward'!M766 -> 0 | N119: ='Actual RAB roll forward'!N766 -> 0 | O119: ='Actual RAB roll forward'!O766 -> 0 | P119: ='Actual RAB roll forward'!P766 -> 0 | Q119: ='Actual RAB roll forward'!Q766 -> 0
D120: =Asset20 -> Underground Low Voltage Lines | G120: ='Actual RAB roll forward'!G767 -> 0.4207019581 | H120: ='Actual RAB roll forward'!H767 -> -0.2100753159 | I120: ='Actual RAB roll forward'!I767 -> 0.1545416834 | J120: ='Actual RAB roll forward'!J767 -> -1.475668703 | K120: ='Actual RAB roll forward'!K767 -> -1.563983282 | L120: ='Actual RAB roll forward'!L767 -> -0.7934785412 | M120: ='Actual RAB roll forward'!M767 -> 0 | N120: ='Actual RAB roll forward'!N767 -> 0 | O120: ='Actual RAB roll forward'!O767 -> 0 | P120: ='Actual RAB roll forward'!P767 -> 0 | Q120: ='Actual RAB roll forward'!Q767 -> 0
D121: =Asset21 -> Underground Low Voltage Common Trench | G121: ='Actual RAB roll forward'!G768 -> 0.3678321077 | H121: ='Actual RAB roll forward'!H768 -> 0.1293103756 | I121: ='Actual RAB roll forward'!I768 -> 0.3060095665 | J121: ='Actual RAB roll forward'!J768 -> -0.4228105527 | K121: ='Actual RAB roll forward'!K768 -> -0.4519499302 | L121: ='Actual RAB roll forward'!L768 -> -0.1039102271 | M121: ='Actual RAB roll forward'!M768 -> 0 | N121: ='Actual RAB roll forward'!N768 -> 0 | O121: ='Actual RAB roll forward'!O768 -> 0 | P121: ='Actual RAB roll forward'!P768 -> 0 | Q121: ='Actual RAB roll forward'!Q768 -> 0
D122: =Asset22 -> HVST Service Connections | G122: ='Actual RAB roll forward'!G769 -> -0.001295317181 | H122: ='Actual RAB roll forward'!H769 -> -0.001443257984 | I122: ='Actual RAB roll forward'!I769 -> -0.001510780458 | J122: ='Actual RAB roll forward'!J769 -> -4.246806729e-05 | K122: ='Actual RAB roll forward'!K769 -> -1.654642769e-07 | L122: ='Actual RAB roll forward'!L769 -> -2.718341692e-07 | M122: ='Actual RAB roll forward'!M769 -> 0 | N122: ='Actual RAB roll forward'!N769 -> 0 | O122: ='Actual RAB roll forward'!O769 -> 0 | P122: ='Actual RAB roll forward'!P769 -> 0 | Q122: ='Actual RAB roll forward'!Q769 -> 0
D123: =Asset23 -> HV Service Connections | G123: ='Actual RAB roll forward'!G770 -> -0.005411321438 | H123: ='Actual RAB roll forward'!H770 -> -0.02627372541 | I123: ='Actual RAB roll forward'!I770 -> -0.0192295596 | J123: ='Actual RAB roll forward'!J770 -> -0.05961539417 | K123: ='Actual RAB roll forward'!K770 -> -0.06390606806 | L123: ='Actual RAB roll forward'!L770 -> -0.04715639895 | M123: ='Actual RAB roll forward'!M770 -> 0 | N123: ='Actual RAB roll forward'!N770 -> 0 | O123: ='Actual RAB roll forward'!O770 -> 0 | P123: ='Actual RAB roll forward'!P770 -> 0 | Q123: ='Actual RAB roll forward'!Q770 -> 0
D124: =Asset24 -> HV Metering CA Service Connections | G124: ='Actual RAB roll forward'!G771 -> -0.04844149844 | H124: ='Actual RAB roll forward'!H771 -> -0.0597691919 | I124: ='Actual RAB roll forward'!I771 -> -0.05981487868 | J124: ='Actual RAB roll forward'!J771 -> -0.07625631906 | K124: ='Actual RAB roll forward'!K771 -> -0.07854983208 | L124: ='Actual RAB roll forward'!L771 -> -0.07576854976 | M124: ='Actual RAB roll forward'!M771 -> 0 | N124: ='Actual RAB roll forward'!N771 -> 0 | O124: ='Actual RAB roll forward'!O771 -> 0 | P124: ='Actual RAB roll forward'!P771 -> 0 | Q124: ='Actual RAB roll forward'!Q771 -> 0
D125: =Asset25 -> HV/LV Service Connections | G125: ='Actual RAB roll forward'!G772 -> -0.01418076866 | H125: ='Actual RAB roll forward'!H772 -> -0.05038546232 | I125: ='Actual RAB roll forward'!I772 -> -0.03869730243 | J125: ='Actual RAB roll forward'!J772 -> -0.1077100031 | K125: ='Actual RAB roll forward'!K772 -> -0.1152359449 | L125: ='Actual RAB roll forward'!L772 -> -0.08703785722 | M125: ='Actual RAB roll forward'!M772 -> 0 | N125: ='Actual RAB roll forward'!N772 -> 0 | O125: ='Actual RAB roll forward'!O772 -> 0 | P125: ='Actual RAB roll forward'!P772 -> 0 | Q125: ='Actual RAB roll forward'!Q772 -> 0
D126: =Asset26 -> Business LV Service Connections | G126: ='Actual RAB roll forward'!G773 -> -0.3418774182 | H126: ='Actual RAB roll forward'!H773 -> -0.4556076776 | I126: ='Actual RAB roll forward'!I773 -> -0.4496978089 | J126: ='Actual RAB roll forward'!J773 -> -0.6155402496 | K126: ='Actual RAB roll forward'!K773 -> -0.6466723264 | L126: ='Actual RAB roll forward'!L773 -> -0.6065807411 | M126: ='Actual RAB roll forward'!M773 -> 0 | N126: ='Actual RAB roll forward'!N773 -> 0 | O126: ='Actual RAB roll forward'!O773 -> 0 | P126: ='Actual RAB roll forward'!P773 -> 0 | Q126: ='Actual RAB roll forward'!Q773 -> 0
D127: =Asset27 -> Business LV Metering CA Service Connections | G127: ='Actual RAB roll forward'!G774 -> -0.9442798992 | H127: ='Actual RAB roll forward'!H774 -> -1.107633949 | I127: ='Actual RAB roll forward'!I774 -> -1.144553047 | J127: ='Actual RAB roll forward'!J774 -> -1.331364203 | K127: ='Actual RAB roll forward'!K774 -> -1.375833025 | L127: ='Actual RAB roll forward'!L774 -> -1.386470084 | M127: ='Actual RAB roll forward'!M774 -> 0 | N127: ='Actual RAB roll forward'!N774 -> 0 | O127: ='Actual RAB roll forward'!O774 -> 0 | P127: ='Actual RAB roll forward'!P774 -> 0 | Q127: ='Actual RAB roll forward'!Q774 -> 0
D128: =Asset28 -> Domestic LV Service Connections | G128: ='Actual RAB roll forward'!G775 -> -0.5920600929 | H128: ='Actual RAB roll forward'!H775 -> -1.18379097 | I128: ='Actual RAB roll forward'!I775 -> -1.05469523 | J128: ='Actual RAB roll forward'!J775 -> -2.077545566 | K128: ='Actual RAB roll forward'!K775 -> -2.248513426 | L128: ='Actual RAB roll forward'!L775 -> -1.87716381 | M128: ='Actual RAB roll forward'!M775 -> 0 | N128: ='Actual RAB roll forward'!N775 -> 0 | O128: ='Actual RAB roll forward'!O775 -> 0 | P128: ='Actual RAB roll forward'!P775 -> 0 | Q128: ='Actual RAB roll forward'!Q775 -> 0
D129: =Asset29 -> Domestic LV Metering CA Service Connections | G129: ='Actual RAB roll forward'!G776 -> -2.501879086 | H129: ='Actual RAB roll forward'!H776 -> -2.848707131 | I129: ='Actual RAB roll forward'!I776 -> -2.968849055 | J129: ='Actual RAB roll forward'!J776 -> -3.27569737 | K129: ='Actual RAB roll forward'!K776 -> -2.906145105 | L129: ='Actual RAB roll forward'!L776 -> -0.05467411701 | M129: ='Actual RAB roll forward'!M776 -> 0 | N129: ='Actual RAB roll forward'!N776 -> 0 | O129: ='Actual RAB roll forward'!O776 -> 0 | P129: ='Actual RAB roll forward'!P776 -> 0 | Q129: ='Actual RAB roll forward'!Q776 -> 0
D130: =Asset30 -> Wholesale Metering | G130: ='Actual RAB roll forward'!G777 -> 0 | H130: ='Actual RAB roll forward'!H777 -> 0 | I130: ='Actual RAB roll forward'!I777 -> 0 | J130: ='Actual RAB roll forward'!J777 -> 0 | K130: ='Actual RAB roll forward'!K777 -> 0 | L130: ='Actual RAB roll forward'!L777 -> 0 | M130: ='Actual RAB roll forward'!M777 -> 0 | N130: ='Actual RAB roll forward'!N777 -> 0 | O130: ='Actual RAB roll forward'!O777 -> 0 | P130: ='Actual RAB roll forward'!P777 -> 0 | Q130: ='Actual RAB roll forward'!Q777 -> 0
D131: =Asset31 -> HV Metering | G131: ='Actual RAB roll forward'!G778 -> 0 | H131: ='Actual RAB roll forward'!H778 -> 0 | I131: ='Actual RAB roll forward'!I778 -> 0 | J131: ='Actual RAB roll forward'!J778 -> 0 | K131: ='Actual RAB roll forward'!K778 -> 0 | L131: ='Actual RAB roll forward'!L778 -> 0 | M131: ='Actual RAB roll forward'!M778 -> 0 | N131: ='Actual RAB roll forward'!N778 -> 0 | O131: ='Actual RAB roll forward'!O778 -> 0 | P131: ='Actual RAB roll forward'!P778 -> 0 | Q131: ='Actual RAB roll forward'!Q778 -> 0
D132: =Asset32 -> HV/LV Metering | G132: ='Actual RAB roll forward'!G779 -> 0 | H132: ='Actual RAB roll forward'!H779 -> 0 | I132: ='Actual RAB roll forward'!I779 -> 0 | J132: ='Actual RAB roll forward'!J779 -> 0 | K132: ='Actual RAB roll forward'!K779 -> 0 | L132: ='Actual RAB roll forward'!L779 -> 0 | M132: ='Actual RAB roll forward'!M779 -> 0 | N132: ='Actual RAB roll forward'!N779 -> 0 | O132: ='Actual RAB roll forward'!O779 -> 0 | P132: ='Actual RAB roll forward'!P779 -> 0 | Q132: ='Actual RAB roll forward'!Q779 -> 0
D133: =Asset33 -> Business LV Metering | G133: ='Actual RAB roll forward'!G780 -> 0 | H133: ='Actual RAB roll forward'!H780 -> 0 | I133: ='Actual RAB roll forward'!I780 -> 0 | J133: ='Actual RAB roll forward'!J780 -> 0 | K133: ='Actual RAB roll forward'!K780 -> 0 | L133: ='Actual RAB roll forward'!L780 -> 0 | M133: ='Actual RAB roll forward'!M780 -> 0 | N133: ='Actual RAB roll forward'!N780 -> 0 | O133: ='Actual RAB roll forward'!O780 -> 0 | P133: ='Actual RAB roll forward'!P780 -> 0 | Q133: ='Actual RAB roll forward'!Q780 -> 0
D134: =Asset34 -> Domestic LV Metering | G134: ='Actual RAB roll forward'!G781 -> 0 | H134: ='Actual RAB roll forward'!H781 -> 0 | I134: ='Actual RAB roll forward'!I781 -> 0 | J134: ='Actual RAB roll forward'!J781 -> 0 | K134: ='Actual RAB roll forward'!K781 -> 0 | L134: ='Actual RAB roll forward'!L781 -> 0 | M134: ='Actual RAB roll forward'!M781 -> 0 | N134: ='Actual RAB roll forward'!N781 -> 0 | O134: ='Actual RAB roll forward'!O781 -> 0 | P134: ='Actual RAB roll forward'!P781 -> 0 | Q134: ='Actual RAB roll forward'!Q781 -> 0
D135: =Asset35 -> Off Peak Metering | G135: ='Actual RAB roll forward'!G782 -> 0 | H135: ='Actual RAB roll forward'!H782 -> 0 | I135: ='Actual RAB roll forward'!I782 -> 0 | J135: ='Actual RAB roll forward'!J782 -> 0 | K135: ='Actual RAB roll forward'!K782 -> 0 | L135: ='Actual RAB roll forward'!L782 -> 0 | M135: ='Actual RAB roll forward'!M782 -> 0 | N135: ='Actual RAB roll forward'!N782 -> 0 | O135: ='Actual RAB roll forward'!O782 -> 0 | P135: ='Actual RAB roll forward'!P782 -> 0 | Q135: ='Actual RAB roll forward'!Q782 -> 0
D136: =Asset36 -> Emergency Network Spares | G136: ='Actual RAB roll forward'!G783 -> 0.06916679082 | H136: ='Actual RAB roll forward'!H783 -> 0.05756640619 | I136: ='Actual RAB roll forward'!I783 -> 0.06907968743 | J136: ='Actual RAB roll forward'!J783 -> 0.03223718747 | K136: ='Actual RAB roll forward'!K783 -> 0.03223718747 | L136: ='Actual RAB roll forward'!L783 -> 0.05296109369 | M136: ='Actual RAB roll forward'!M783 -> 0 | N136: ='Actual RAB roll forward'!N783 -> 0 | O136: ='Actual RAB roll forward'!O783 -> 0 | P136: ='Actual RAB roll forward'!P783 -> 0 | Q136: ='Actual RAB roll forward'!Q783 -> 0
D137: =Asset37 -> Motor Vehicles | G137: ='Actual RAB roll forward'!G784 -> -3.557238286 | H137: ='Actual RAB roll forward'!H784 -> -5.332982606 | I137: ='Actual RAB roll forward'!I784 -> -5.956392359 | J137: ='Actual RAB roll forward'!J784 -> -7.151149396 | K137: ='Actual RAB roll forward'!K784 -> -4.349059999 | L137: ='Actual RAB roll forward'!L784 -> -1.680690126 | M137: ='Actual RAB roll forward'!M784 -> 0 | N137: ='Actual RAB roll forward'!N784 -> 0 | O137: ='Actual RAB roll forward'!O784 -> 0 | P137: ='Actual RAB roll forward'!P784 -> 0 | Q137: ='Actual RAB roll forward'!Q784 -> 0
D138: =Asset38 -> Minor Assets | G138: ='Actual RAB roll forward'!G785 -> -7.785774171 | H138: ='Actual RAB roll forward'!H785 -> -11.12776723 | I138: ='Actual RAB roll forward'!I785 -> -12.9470464 | J138: ='Actual RAB roll forward'!J785 -> -10.87483586 | K138: ='Actual RAB roll forward'!K785 -> -5.184009298 | L138: ='Actual RAB roll forward'!L785 -> -6.501434133 | M138: ='Actual RAB roll forward'!M785 -> 0 | N138: ='Actual RAB roll forward'!N785 -> 0 | O138: ='Actual RAB roll forward'!O785 -> 0 | P138: ='Actual RAB roll forward'!P785 -> 0 | Q138: ='Actual RAB roll forward'!Q785 -> 0
D139: =Asset39 -> Non-System Property | G139: ='Actual RAB roll forward'!G786 -> 0.02434370645 | H139: ='Actual RAB roll forward'!H786 -> -0.6652405109 | I139: ='Actual RAB roll forward'!I786 -> -0.6410760401 | J139: ='Actual RAB roll forward'!J786 -> -0.9233320703 | K139: ='Actual RAB roll forward'!K786 -> -0.9526753462 | L139: ='Actual RAB roll forward'!L786 -> -0.8795703296 | M139: ='Actual RAB roll forward'!M786 -> 0 | N139: ='Actual RAB roll forward'!N786 -> 0 | O139: ='Actual RAB roll forward'!O786 -> 0 | P139: ='Actual RAB roll forward'!P786 -> 0 | Q139: ='Actual RAB roll forward'!Q786 -> 0
D140: =Asset40 -> Spare Parts | G140: ='Actual RAB roll forward'!G787 -> 0.3701747701 | H140: ='Actual RAB roll forward'!H787 -> 0.2718843873 | I140: ='Actual RAB roll forward'!I787 -> 0.3262612648 | J140: ='Actual RAB roll forward'!J787 -> 0.1522552569 | K140: ='Actual RAB roll forward'!K787 -> 0.1522552569 | L140: ='Actual RAB roll forward'!L787 -> 0.2501336363 | M140: ='Actual RAB roll forward'!M787 -> 0 | N140: ='Actual RAB roll forward'!N787 -> 0 | O140: ='Actual RAB roll forward'!O787 -> 0 | P140: ='Actual RAB roll forward'!P787 -> 0 | Q140: ='Actual RAB roll forward'!Q787 -> 0
D141: =Asset41 -> NEM Assets | G141: ='Actual RAB roll forward'!G788 -> -3.938549349 | H141: ='Actual RAB roll forward'!H788 -> -4.519405675 | I141: ='Actual RAB roll forward'!I788 -> -5.476174878 | J141: ='Actual RAB roll forward'!J788 -> -4.7341124 | K141: ='Actual RAB roll forward'!K788 -> -4.866931618 | L141: ='Actual RAB roll forward'!L788 -> -4.892653245 | M141: ='Actual RAB roll forward'!M788 -> 0 | N141: ='Actual RAB roll forward'!N788 -> 0 | O141: ='Actual RAB roll forward'!O788 -> 0 | P141: ='Actual RAB roll forward'!P788 -> 0 | Q141: ='Actual RAB roll forward'!Q788 -> 0
D142: =Asset42 -> 0 | G142: ='Actual RAB roll forward'!G789 -> 0 | H142: ='Actual RAB roll forward'!H789 -> 0 | I142: ='Actual RAB roll forward'!I789 -> 0 | J142: ='Actual RAB roll forward'!J789 -> 0 | K142: ='Actual RAB roll forward'!K789 -> 0 | L142: ='Actual RAB roll forward'!L789 -> 0 | M142: ='Actual RAB roll forward'!M789 -> 0 | N142: ='Actual RAB roll forward'!N789 -> 0 | O142: ='Actual RAB roll forward'!O789 -> 0 | P142: ='Actual RAB roll forward'!P789 -> 0 | Q142: ='Actual RAB roll forward'!Q789 -> 0
D143: =Asset43 -> Land | G143: ='Actual RAB roll forward'!G790 -> 0 | H143: ='Actual RAB roll forward'!H790 -> 0 | I143: ='Actual RAB roll forward'!I790 -> 0.01728360069 | J143: ='Actual RAB roll forward'!J790 -> 0.01703081792 | K143: ='Actual RAB roll forward'!K790 -> 0.01703081792 | L143: ='Actual RAB roll forward'!L790 -> 0.02797920087 | M143: ='Actual RAB roll forward'!M790 -> 0 | N143: ='Actual RAB roll forward'!N790 -> 0 | O143: ='Actual RAB roll forward'!O790 -> 0 | P143: ='Actual RAB roll forward'!P790 -> 0 | Q143: ='Actual RAB roll forward'!Q790 -> 0
D144: =Asset44 -> Easements | G144: ='Actual RAB roll forward'!G791 -> 0 | H144: ='Actual RAB roll forward'!H791 -> 0 | I144: ='Actual RAB roll forward'!I791 -> 0.003553490544 | J144: ='Actual RAB roll forward'!J791 -> 0.00647755995 | K144: ='Actual RAB roll forward'!K791 -> 0.01027309107 | L144: ='Actual RAB roll forward'!L791 -> 0.02896868369 | M144: ='Actual RAB roll forward'!M791 -> 0 | N144: ='Actual RAB roll forward'!N791 -> 0 | O144: ='Actual RAB roll forward'!O791 -> 0 | P144: ='Actual RAB roll forward'!P791 -> 0 | Q144: ='Actual RAB roll forward'!Q791 -> 0
D145: =Asset45 -> Equity Raising Costs | G145: ='Actual RAB roll forward'!G792 -> 0 | H145: ='Actual RAB roll forward'!H792 -> 0 | I145: ='Actual RAB roll forward'!I792 -> 0 | J145: ='Actual RAB roll forward'!J792 -> 0 | K145: ='Actual RAB roll forward'!K792 -> 0 | L145: ='Actual RAB roll forward'!L792 -> 0 | M145: ='Actual RAB roll forward'!M792 -> 0 | N145: ='Actual RAB roll forward'!N792 -> 0 | O145: ='Actual RAB roll forward'!O792 -> 0 | P145: ='Actual RAB roll forward'!P792 -> 0 | Q145: ='Actual RAB roll forward'!Q792 -> 0
C147: Nominal Prudent Additional Capex Allowance | G147: =SUM(G148:G192) -> -21.8396315
D148: =Asset1 -> Overhead Subtransmission Lines (Urban) | G148: ='Actual RAB roll forward'!G795 -> -0.9733631735
D149: =Asset2 -> Underground Subtransmission Lines (Urban) | G149: ='Actual RAB roll forward'!G796 -> -0.4448240847
D150: =Asset3 -> Urban Zone Substations | G150: ='Actual RAB roll forward'!G797 -> -3.000190476
D151: =Asset4 -> Rural Zone Substations | G151: ='Actual RAB roll forward'!G798 -> -0.0239926097
D152: =Asset5 -> SCADA | G152: ='Actual RAB roll forward'!G799 -> -1.726530131
D153: =Asset6 -> Distribution Switching Stations (Ground) | G153: ='Actual RAB roll forward'!G800 -> -0.8031525389
D154: =Asset7 -> Overhead High Voltage Lines Urban | G154: ='Actual RAB roll forward'!G801 -> -1.670433073
